Workbook

Sheet Inhalt
B1: Aktuelle Haushaltsdaten
B2: Übersicht | C2: Details | E2: Eingaben
B3: Liquidität | C3: Mitglieder und Spendende | E3: Allgemein
B4: HH - Übersicht | C4: Sachmittel Verwaltung
B5: Kurzfassung Haushalt | C5: Personalmittel Verwaltung | E5: Arbeitsgruppen
C6: Gremien | E6: Projekte Schwerpunkte
C7: Algemeine Öffentlichkeitsarbeit
C8: Internetpräsenz | E8: HH-Pläne
C9: Investitionen | E9: Beschluss Ratschlag
C10: Webshop | E10: HH-Plan Aktuell
C11: Gruppen
C12: Arbeitsgruppen | E12: Kurzfassung Projekte
C13: Projekte / Schwerpunkte
C14: Stellenplan | E14: Sonstiges
E15: Einnahmenprognose
E16: Vermögen

Sheet Liquidität
B2: Inhalt | D2: 2025-01-01 | E2: 2025-12-31 | I2: 2025-01-31 | O2: 2025-02-28 | U2: 2025-03-31 | AA2: 2025-04-30 | AG2: 2025-05-31 | AM2: 2025-06-30 | AS2: 2025-07-31 | AY2: 2025-08-31 | BE2: 2025-09-30 | BK2: 2025-10-31 | BQ2: 2025-11-30 | BW2: 2025-12-31 | CC2: 2025-01-31
B3: err. Kontenstand | C3: Ist | D3: =D23 -> 0 | E3: =D3+F30 -> 0 | I3: =D3+I30 -> 0 | O3: =I3+O30 -> 0 | U3: =O3+U30 -> 0 | AA3: =U3+AA30 -> 0 | AG3: =AA3+AG30 -> 0 | AM3: =AG3+AM30 -> 0 | AS3: =AM3+AS30 -> 0 | AY3: =AS3+AY30 -> 0 | BE3: =AY3+BE30 -> 0 | BK3: =BE3+BK30 -> 0 | BQ3: =BK3+BQ30 -> 0 | BW3: =BQ3+BW30 -> 0 | CC3: =BW3+CC30 -> 0
C4: Plan | D4: 400000 | E4: =D4+F31 -> 356527.3008 | I4: =D4+I31 -> 422048.9417 | O4: =I4+O31 -> 400297.8835 | U4: =O4+U31 -> 427546.8252 | AA4: =U4+AA31 -> 447795.7669 | AG4: =AA4+AG31 -> 426044.7087 | AM4: =AG4+AM31 -> 453293.6504 | AS4: =AM4+AS31 -> 476542.5921 | AY4: =AS4+AY31 -> 433791.5338 | BE4: =AY4+BE31 -> 484040.4756 | BK4: =BE4+BK31 -> 500289.4173 | BQ4: =BK4+BQ31 -> 457538.359 | BW4: =BQ4+BW31 -> 356527.3008 | CC4: =BW4+CC31 -> 356527.3008
C5: Saldo | D5: =D4-D3 -> 400000 | E5: =E4-E3 -> 356527.3008 | I5: =I3-I4 -> -422048.9417 | O5: =O3-O4 -> -400297.8835 | U5: =U3-U4 -> -427546.8252 | AA5: =AA3-AA4 -> -447795.7669 | AG5: =AG3-AG4 -> -426044.7087 | AM5: =AM3-AM4 -> -453293.6504 | AS5: =AS3-AS4 -> -476542.5921 | AY5: =AY3-AY4 -> -433791.5338 | BE5: =BE3-BE4 -> -484040.4756 | BK5: =BK3-BK4 -> -500289.4173 | BQ5: =BQ3-BQ4 -> -457538.359 | BW5: =BW3-BW4 -> -356527.3008 | CC5: =CC3-CC4 -> -356527.3008
B7: Kontostände
B9: GLS Geschäftsk. 6007 726 100 | E9: 0 | F9: =E9-D9 -> 0
B10: GLS Geschäftsk. 6007 726 101 | E10: 0 | F10: 0
B11: GLS Geschäftsk. 6007 726 102 | E11: 0 | F11: 0
B12: Spenden Paypal 1285 | E12: 0 | F12: 0
B13: Paypal 1280 | E13: 0 | F13: 0
B14: Kreditkartenabrechnung 1730 | E14: 0 | F14: 0
B15: GLS Beitr.u.Sp. 8026 318 401 | E15: 0 | F15: 0
B16: GLS Beitr.u.Sp. 800 100 800 | E16: 0 | F16: 0
B17: GLS Material 8026 318 400 | E17: 0 | F17: 0
B18: GLS Wissensalmende 8026 318 402 | E18: 0 | F18: 0
B19: Im Bankverkehr unterwegs (1360) | E19: 0 | F19: 0
B20: Barkassen (HK/K-BL/PK) | E20: 0 | F20: =E20-D20 -> 0
B21: Festgeldkonto GLS 6007 726 104 | E21: 0 | F21: =E21-D21 -> 0
B23: Bank realer Kontostand | D23: =SUM(D9:D21) -> 0 | E23: =BW23 -> 0 | I23: =SUM(I9:I21) -> 0 | O23: =SUM(O9:O21) -> 0 | U23: =SUM(U9:U22) -> 0 | AA23: =SUM(AA9:AA22) -> 0 | AG23: =SUM(AG9:AG22) -> 0 | AM23: =SUM(AM9:AM22) -> 0 | AS23: =SUM(AS9:AS22) -> 0 | AY23: =SUM(AY9:AY22) -> 0 | BE23: =SUM(BE9:BE22) -> 0 | BK23: =SUM(BK9:BK22) -> 0 | BQ23: =SUM(BQ9:BQ21) -> 0 | BW23: =SUM(BW9:BW21) -> 0 | CC23: =SUM(CC9:CC21) -> 0
D27: Jahr | G27: Januar | M27: Februar | S27: März | Y27: April | AE27: Mai | AK27: Juni | AQ27: Juli | AW27: August | BC27: September | BI27: Oktober | BO27: November | BU27: Dezember | CA27: Überträge etc.
G28: Monatswerte | J28: Buchungsstand | M28: Monatswerte | P28: Buchungsstand | S28: Monatswerte | V28: Buchungsstand | Y28: Monatswerte | AB28: Buchungsstand | AE28: Monatswerte | AH28: Buchungsstand | AK28: Monatswerte | AN28: Buchungsstand | AQ28: Monatswerte | AT28: Buchungsstand | AW28: Monatswerte | AZ28: Buchungsstand | BC28: Monatswerte | BF28: Buchungsstand | BI28: Monatswerte | BL28: Buchungsstand | BO28: Monatswerte | BR28: Buchungsstand | BU28: Monatswerte | BX28: Buchungsstand | CD28: Buchungsstand
D29: Einnahmen | E29: Ausgaben | F29: Saldo | G29: Einnahmen | H29: Ausgaben | I29: Saldo | J29: Einnahmen | K29: Ausgaben | L29: Saldo | M29: Einnahmen | N29: Ausgaben | O29: Saldo | P29: Einnahmen | Q29: Ausgaben | R29: Saldo | S29: Einnahmen | T29: Ausgaben | U29: Saldo | V29: Einnahmen | W29: Ausgaben | X29: Saldo | Y29: Einnahmen | Z29: Ausgaben | AA29: Saldo | AB29: Einnahmen | AC29: Ausgaben | AD29: Saldo | AE29: Einnahmen | AF29: Ausgaben | AG29: Saldo | AH29: Einnahmen | AI29: Ausgaben | AJ29: Saldo | AK29: Einnahmen | AL29: Ausgaben | AM29: Saldo | AN29: Einnahmen | AO29: Ausgaben | AP29: Saldo | AQ29: Einnahmen | AR29: Ausgaben | AS29: Saldo | AT29: Einnahmen | AU29: Ausgaben | AV29: Saldo | AW29: Einnahmen | AX29: Ausgaben | AY29: Saldo | AZ29: Einnahmen | BA29: Ausgaben | BB29: Saldo | BC29: Einnahmen | BD29: Ausgaben | BE29: Saldo | BF29: Einnahmen | BG29: Ausgaben | BH29: Saldo | BI29: Einnahmen | BJ29: Ausgaben | BK29: Saldo | BL29: Einnahmen | BM29: Ausgaben | BN29: Saldo | BO29: Einnahmen | BP29: Ausgaben | BQ29: Saldo | BR29: Einnahmen | BS29: Ausgaben | BT29: Saldo | BU29: Einnahmen | BV29: Ausgaben | BW29: Saldo | BX29: Einnahmen | BY29: Ausgaben | BZ29: Saldo | CA29: Einnahmen | CB29: Ausgaben | CC29: Saldo | CD29: Einnahmen | CE29: Ausgaben | CF29: Saldo
B30: Summen | C30: Ist | D30: =D34+D38+D42+D46+D50+D54 -> 0 | E30: =E34+E38+E42+E46+E50+E54 -> 0 | F30: =D30-E30 -> 0 | G30: =G34+G38+G42+G46+G50+G54+G58+G62 -> 0 | H30: =H34+H38+H42+H46+H50+H54+H58+H62 -> 0 | I30: =G30-H30 -> 0 | J30: =G30 -> 0 | K30: =H30 -> 0 | L30: =J30-K30 -> 0 | M30: =M34+M38+M42+M46+M50+M54+M58+M62 -> 0 | N30: =N34+N38+N42+N46+N50+N54+N58+N62 -> 0 | O30: =M30-N30 -> 0 | P30: =J30+M30 -> 0 | Q30: =K30+N30 -> 0 | R30: =P30-Q30 -> 0 | S30: =S34+S38+S42+S46+S50+S54+S58+S62 -> 0 | T30: =T34+T38+T42+T46+T50+T54+T58+T62 -> 0 | U30: =S30-T30 -> 0 | V30: =P30+S30 -> 0 | W30: =Q30+T30 -> 0 | X30: =V30-W30 -> 0 | Y30: =Y34+Y38+Y42+Y46+Y50+Y54+Y58+Y62 -> 0 | Z30: =Z34+Z38+Z42+Z46+Z50+Z54+Z58+Z62 -> 0 | AA30: =Y30-Z30 -> 0 | AB30: =V30+Y30 -> 0 | AC30: =W30+Z30 -> 0 | AD30: =AB30-AC30 -> 0 | AE30: =AE34+AE38+AE42+AE46+AE50+AE54+AE58+AE62 -> 0 | AF30: =AF34+AF38+AF42+AF46+AF50+AF54+AF58+AF62 -> 0 | AG30: =AE30-AF30 -> 0 | AH30: =AB30+AE30 -> 0 | AI30: =AC30+AF30 -> 0 | AJ30: =AH30-AI30 -> 0 | AK30: =AK34+AK38+AK42+AK46+AK50+AK54+AK58+AK62 -> 0 | AL30: =AL34+AL38+AL42+AL46+AL50+AL54+AL58+AL62 -> 0 | AM30: =AK30-AL30 -> 0 | AN30: =AH30+AK30 -> 0 | AO30: =AI30+AL30 -> 0 | AP30: =AN30-AO30 -> 0 | AQ30: =AQ34+AQ38+AQ42+AQ46+AQ50+AQ54+AQ58+AQ62 -> 0 | AR30: =AR34+AR38+AR42+AR46+AR50+AR54+AR58+AR62 -> 0 | AS30: =AQ30-AR30 -> 0 | AT30: =AN30+AQ30 -> 0 | AU30: =AO30+AR30 -> 0 | AV30: =AT30-AU30 -> 0 | AW30: =AW34+AW38+AW42+AW46+AW50+AW54+AW58+AW62 -> 0 | AX30: =AX34+AX38+AX42+AX46+AX50+AX54+AX58+AX62 -> 0 | AY30: =AW30-AX30 -> 0 | AZ30: =AT30+AW30 -> 0 | BA30: =AU30+AX30 -> 0 | BB30: =AZ30-BA30 -> 0 | BC30: =BC34+BC38+BC42+BC46+BC50+BC54+BC58+BC62 -> 0 | BD30: =BD34+BD38+BD42+BD46+BD50+BD54+BD58+BD62 -> 0 | BE30: =BC30-BD30 -> 0 | BF30: =AZ30+BC30 -> 0 | BG30: =BA30+BD30 -> 0 | BH30: =BF30-BG30 -> 0 | BI30: =BI34+BI38+BI42+BI46+BI50+BI54+BI58+BI62 -> 0 | BJ30: =BJ34+BJ38+BJ42+BJ46+BJ50+BJ54+BJ58+BJ62 -> 0 | BK30: =BI30-BJ30 -> 0 | BL30: =BF30+BI30 -> 0 | BM30: =BG30+BJ30 -> 0 | BN30: =BL30-BM30 -> 0 | BO30: =BO34+BO38+BO42+BO46+BO50+BO54+BO58+BO62 -> 0 | BP30: =BP34+BP38+BP42+BP46+BP50+BP54+BP58+BP62 -> 0 | BQ30: =BO30-BP30 -> 0 | BR30: =BL30+BO30 -> 0 | BS30: =BM30+BP30 -> 0 | BT30: =BR30-BS30 -> 0 | BU30: =BU34+BU38+BU42+BU46+BU50+BU54+BU58+BU62 -> 0 | BV30: =BV34+BV38+BV42+BV46+BV50+BV54+BV58+BV62 -> 0 | BW30: =BU30-BV30 -> 0 | BX30: =BR30+BU30 -> 0 | BY30: =BS30+BV30 -> 0 | BZ30: =BX30-BY30 -> 0 | CA30: =CA34+CA38+CA42+CA46+CA50+CA54+CA58+CA62 -> 0 | CB30: =CB34+CB38+CB42+CB46+CB50+CB54+CB58+CB62 -> 0 | CC30: =CA30-CB30 -> 0 | CD30: =BX30+CA30 -> 0 | CE30: =BY30+CB30 -> 0 | CF30: =CD30-CE30 -> 0
C31: Plan | D31: =D35+D39+D43+D47+D51+D55 -> 1785200 | E31: =E35+E39+E43+E47+E51+E55 -> 1828672.699 | F31: =D31-E31 -> -43472.69923 | G31: =G35+G39+G43+G47+G51+G55+G59+G63 -> 120000 | H31: =H35+H39+H43+H47+H51+H55+H59+H63 -> 97951.05827 | I31: =G31-H31 -> 22048.94173 | J31: =G31 -> 120000 | K31: =H31 -> 97951.05827 | L31: =J31-K31 -> 22048.94173 | M31: =M35+M39+M43+M47+M51+M55+M59+M63 -> 120000 | N31: =N35+N39+N43+N47+N51+N55+N59+N63 -> 141751.0583 | O31: =M31-N31 -> -21751.05827 | P31: =J31+M31 -> 240000 | Q31: =K31+N31 -> 239702.1165 | R31: =P31-Q31 -> 297.8834612 | S31: =S35+S39+S43+S47+S51+S55+S59+S63 -> 155000 | T31: =T35+T39+T43+T47+T51+T55+T59+T63 -> 127751.0583 | U31: =S31-T31 -> 27248.94173 | V31: =P31+S31 -> 395000 | W31: =Q31+T31 -> 367453.1748 | X31: =V31-W31 -> 27546.82519 | Y31: =Y35+Y39+Y43+Y47+Y51+Y55+Y59+Y63 -> 120000 | Z31: =Z35+Z39+Z43+Z47+Z51+Z55+Z59+Z63 -> 99751.05827 | AA31: =Y31-Z31 -> 20248.94173 | AB31: =V31+Y31 -> 515000 | AC31: =W31+Z31 -> 467204.2331 | AD31: =AB31-AC31 -> 47795.76692 | AE31: =AE35+AE39+AE43+AE47+AE51+AE55+AE59+AE63 -> 120000 | AF31: =AF35+AF39+AF43+AF47+AF51+AF55+AF59+AF63 -> 141751.0583 | AG31: =AE31-AF31 -> -21751.05827 | AH31: =AB31+AE31 -> 635000 | AI31: =AC31+AF31 -> 608955.2913 | AJ31: =AH31-AI31 -> 26044.70865 | AK31: =AK35+AK39+AK43+AK47+AK51+AK55+AK59+AK63 -> 155000 | AL31: =AL35+AL39+AL43+AL47+AL51+AL55+AL59+AL63 -> 127751.0583 | AM31: =AK31-AL31 -> 27248.94173 | AN31: =AH31+AK31 -> 790000 | AO31: =AI31+AL31 -> 736706.3496 | AP31: =AN31-AO31 -> 53293.65038 | AQ31: =AQ35+AQ39+AQ43+AQ47+AQ51+AQ55+AQ59+AQ63 -> 120000 | AR31: =AR35+AR39+AR43+AR47+AR51+AR55+AR59+AR63 -> 96751.05827 | AS31: =AQ31-AR31 -> 23248.94173 | AT31: =AN31+AQ31 -> 910000 | AU31: =AO31+AR31 -> 833457.4079 | AV31: =AT31-AU31 -> 76542.59211 | AW31: =AW35+AW39+AW43+AW47+AW51+AW55+AW59+AW63 -> 120000 | AX31: =AX35+AX39+AX43+AX47+AX51+AX55+AX59+AX63 -> 162751.0583 | AY31: =AW31-AX31 -> -42751.05827 | AZ31: =AT31+AW31 -> 1030000 | BA31: =AU31+AX31 -> 996208.4662 | BB31: =AZ31-BA31 -> 33791.53384 | BC31: =BC35+BC39+BC43+BC47+BC51+BC55+BC59+BC63 -> 155000 | BD31: =BD35+BD39+BD43+BD47+BD51+BD55+BD59+BD63 -> 104751.0583 | BE31: =BC31-BD31 -> 50248.94173 | BF31: =AZ31+BC31 -> 1185000 | BG31: =BA31+BD31 -> 1100959.524 | BH31: =BF31-BG31 -> 84040.47558 | BI31: =BI35+BI39+BI43+BI47+BI51+BI55+BI59+BI63 -> 120000 | BJ31: =BJ35+BJ39+BJ43+BJ47+BJ51+BJ55+BJ59+BJ63 -> 103751.0583 | BK31: =BI31-BJ31 -> 16248.94173 | BL31: =BF31+BI31 -> 1305000 | BM31: =BG31+BJ31 -> 1204710.583 | BN31: =BL31-BM31 -> 100289.4173 | BO31: =BO35+BO39+BO43+BO47+BO51+BO55+BO59+BO63 -> 120000 | BP31: =BP35+BP39+BP43+BP47+BP51+BP55+BP59+BP63 -> 162751.0583 | BQ31: =BO31-BP31 -> -42751.05827 | BR31: =BL31+BO31 -> 1425000 | BS31: =BM31+BP31 -> 1367461.641 | BT31: =BR31-BS31 -> 57538.35904 | BU31: =BU35+BU39+BU43+BU47+BU51+BU55+BU59+BU63 -> 360200 | BV31: =BV35+BV39+BV43+BV47+BV51+BV55+BV59+BV63 -> 461211.0583 | BW31: =BU31-BV31 -> -101011.0583 | BX31: =BR31+BU31 -> 1785200 | BY31: =BS31+BV31 -> 1828672.699 | BZ31: =BX31-BY31 -> -43472.69923 | CA31: =CA35+CA39+CA43+CA47+CA51+CA55+CA59+CA63 -> 0 | CB31: =CB35+CB39+CB43+CB47+CB51+CB55+CB59+CB63 -> 0 | CC31: =CA31-CB31 -> 0 | CD31: =BX31+CA31 -> 1785200 | CE31: =BY31+CB31 -> 1828672.699 | CF31: =CD31-CE31 -> -43472.69923
C32: Saldo | D32: =D30-D31 -> -1785200 | E32: =E31-E30 -> 1828672.699 | G32: =G30-G31 -> -120000 | H32: =H31-H30 -> 97951.05827 | J32: =J30-J31 -> -120000 | K32: =K31-K30 -> 97951.05827 | M32: =M30-M31 -> -120000 | N32: =N31-N30 -> 141751.0583 | P32: =P30-P31 -> -240000 | Q32: =Q31-Q30 -> 239702.1165 | S32: =S30-S31 -> -155000 | T32: =T31-T30 -> 127751.0583 | V32: =V30-V31 -> -395000 | W32: =W31-W30 -> 367453.1748 | Y32: =Y30-Y31 -> -120000 | Z32: =Z31-Z30 -> 99751.05827 | AB32: =AB30-AB31 -> -515000 | AC32: =AC31-AC30 -> 467204.2331 | AE32: =AE30-AE31 -> -120000 | AF32: =AF31-AF30 -> 141751.0583 | AH32: =AH30-AH31 -> -635000 | AI32: =AI31-AI30 -> 608955.2913 | AK32: =AK30-AK31 -> -155000 | AL32: =AL31-AL30 -> 127751.0583 | AN32: =AN30-AN31 -> -790000 | AO32: =AO31-AO30 -> 736706.3496 | AQ32: =AQ30-AQ31 -> -120000 | AR32: =AR31-AR30 -> 96751.05827 | AT32: =AT30-AT31 -> -910000 | AU32: =AU31-AU30 -> 833457.4079 | AW32: =AW30-AW31 -> -120000 | AX32: =AX31-AX30 -> 162751.0583 | AZ32: =AZ30-AZ31 -> -1030000 | BA32: =BA31-BA30 -> 996208.4662 | BC32: =BC30-BC31 -> -155000 | BD32: =BD31-BD30 -> 104751.0583 | BF32: =BF30-BF31 -> -1185000 | BG32: =BG31-BG30 -> 1100959.524 | BI32: =BI30-BI31 -> -120000 | BJ32: =BJ31-BJ30 -> 103751.0583 | BL32: =BL30-BL31 -> -1305000 | BM32: =BM31-BM30 -> 1204710.583 | BO32: =BO30-BO31 -> -120000 | BP32: =BP31-BP30 -> 162751.0583 | BR32: =BR30-BR31 -> -1425000 | BS32: =BS31-BS30 -> 1367461.641 | BU32: =BU30-BU31 -> -360200 | BV32: =BV31-BV30 -> 461211.0583 | BX32: =BX30-BX31 -> -1785200 | BY32: =BY31-BY30 -> 1828672.699 | CA32: =CA30-CA31 -> 0 | CB32: =CB31-CB30 -> 0 | CD32: =CD30-CD31 -> -1785200 | CE32: =CE31-CE30 -> 1828672.699
B34: Haushalt 2025 | C34: Ist | D34: =Übersicht!D4 -> 0 | E34: =Übersicht!E4 -> 0 | F34: =D34-E34 -> 0 | G34: =Übersicht!G4 -> 0 | H34: =Übersicht!H4 -> 0 | I34: =G34-H34 -> 0 | J34: =Übersicht!J4 -> 0 | K34: =Übersicht!K4 -> 0 | L34: =J34-K34 -> 0 | M34: =Übersicht!M4 -> 0 | N34: =Übersicht!N4 -> 0 | O34: =M34-N34 -> 0 | P34: =Übersicht!P4 -> 0 | Q34: =Übersicht!Q4 -> 0 | R34: =P34-Q34 -> 0 | S34: =Übersicht!S4 -> 0 | T34: =Übersicht!T4 -> 0 | U34: =S34-T34 -> 0 | V34: =Übersicht!V4 -> 0 | W34: =Übersicht!W4 -> 0 | X34: =V34-W34 -> 0 | Y34: =Übersicht!Y4 -> 0 | Z34: =Übersicht!Z4 -> 0 | AA34: =Y34-Z34 -> 0 | AB34: =Übersicht!AB4 -> 0 | AC34: =Übersicht!AC4 -> 0 | AD34: =AB34-AC34 -> 0 | AE34: =Übersicht!AE4 -> 0 | AF34: =Übersicht!AF4 -> 0 | AG34: =AE34-AF34 -> 0 | AH34: =Übersicht!AH4 -> 0 | AI34: =Übersicht!AI4 -> 0 | AJ34: =AH34-AI34 -> 0 | AK34: =Übersicht!AK4 -> 0 | AL34: =Übersicht!AL4 -> 0 | AM34: =AK34-AL34 -> 0 | AN34: =Übersicht!AN4 -> 0 | AO34: =Übersicht!AO4 -> 0 | AP34: =AN34-AO34 -> 0 | AQ34: =Übersicht!AQ4 -> 0 | AR34: =Übersicht!AR4 -> 0 | AS34: =AQ34-AR34 -> 0 | AT34: =Übersicht!AT4 -> 0 | AU34: =Übersicht!AU4 -> 0 | AV34: =AT34-AU34 -> 0 | AW34: =Übersicht!AW4 -> 0 | AX34: =Übersicht!AX4 -> 0 | AY34: =AW34-AX34 -> 0 | AZ34: =Übersicht!AZ4 -> 0 | BA34: =Übersicht!BA4 -> 0 | BB34: =AZ34-BA34 -> 0 | BC34: =Übersicht!BC4 -> 0 | BD34: =Übersicht!BD4 -> 0 | BE34: =BC34-BD34 -> 0 | BF34: =Übersicht!BF4 -> 0 | BG34: =Übersicht!BG4 -> 0 | BH34: =BF34-BG34 -> 0 | BI34: =Übersicht!BI4 -> 0 | BJ34: =Übersicht!BJ4 -> 0 | BK34: =BI34-BJ34 -> 0 | BL34: =Übersicht!BL4 -> 0 | BM34: =Übersicht!BM4 -> 0 | BN34: =BL34-BM34 -> 0 | BO34: =Übersicht!BO4 -> 0 | BP34: =Übersicht!BP4 -> 0 | BQ34: =BO34-BP34 -> 0 | BR34: =Übersicht!BR4 -> 0 | BS34: =Übersicht!BS4 -> 0 | BT34: =BR34-BS34 -> 0 | BU34: =Übersicht!BU4 -> 0 | BV34: =Übersicht!BV4 -> 0 | BW34: =BU34-BV34 -> 0 | BX34: =Übersicht!BX4 -> 0 | BY34: =Übersicht!BY4 -> 50000 | BZ34: =BX34-BY34 -> -50000 | CA34: =Übersicht!CA4 -> 0 | CB34: =Übersicht!CB4 -> 0 | CC34: =CA34-CB34 -> 0 | CD34: =Übersicht!CD4 -> 0 | CE34: =Übersicht!CE4 -> 50000 | CF34: =CD34-CE34 -> -50000
C35: Plan | D35: =Übersicht!D5 -> 1785200 | E35: =Übersicht!E5 -> 1828672.699 | F35: =D35-E35 -> -43472.69923 | G35: =Übersicht!G5 -> 120000 | H35: =Übersicht!H5 -> 97951.05827 | I35: =G35-H35 -> 22048.94173 | J35: =Übersicht!J5 -> 119370.1347 | K35: =Übersicht!K5 -> 97321.19295 | L35: =J35-K35 -> 22048.94173 | M35: =Übersicht!M5 -> 120000 | N35: =Übersicht!N5 -> 141751.0583 | O35: =M35-N35 -> -21751.05827 | P35: =Übersicht!P5 -> 240000 | Q35: =Übersicht!Q5 -> 239072.2512 | R35: =P35-Q35 -> 927.7487767 | S35: =Übersicht!S5 -> 155000 | T35: =Übersicht!T5 -> 127751.0583 | U35: =S35-T35 -> 27248.94173 | V35: =Übersicht!V5 -> 399259.7306 | W35: =Übersicht!W5 -> 364303.8482 | X35: =V35-W35 -> 34955.8824 | Y35: =Übersicht!Y5 -> 120000 | Z35: =Übersicht!Z5 -> 99751.05827 | AA35: =Y35-Z35 -> 20248.94173 | AB35: =Übersicht!AB5 -> 514370.1347 | AC35: =Übersicht!AC5 -> 461684.7718 | AD35: =AB35-AC35 -> 52685.36287 | AE35: =Übersicht!AE5 -> 120000 | AF35: =Übersicht!AF5 -> 141751.0583 | AG35: =AE35-AF35 -> -21751.05827 | AH35: =Übersicht!AH5 -> 638000 | AI35: =Übersicht!AI5 -> 603435.8301 | AJ35: =AH35-AI35 -> 34564.16991 | AK35: =Übersicht!AK5 -> 155000 | AL35: =Übersicht!AL5 -> 127751.0583 | AM35: =AK35-AL35 -> 27248.94173 | AN35: =Übersicht!AN5 -> 792519.4613 | AO35: =Übersicht!AO5 -> 727407.6965 | AP35: =AN35-AO35 -> 65111.7648 | AQ35: =Übersicht!AQ5 -> 120000 | AR35: =Übersicht!AR5 -> 96751.05827 | AS35: =AQ35-AR35 -> 23248.94173 | AT35: =Übersicht!AT5 -> 919370.1347 | AU35: =Übersicht!AU5 -> 826048.3507 | AV35: =AT35-AU35 -> 93321.78401 | AW35: =Übersicht!AW5 -> 120000 | AX35: =Übersicht!AX5 -> 162751.0583 | AY35: =AW35-AX35 -> -42751.05827 | AZ35: =Übersicht!AZ5 -> 1063000 | BA35: =Übersicht!BA5 -> 988799.4089 | BB35: =AZ35-BA35 -> 74200.59105 | BC35: =Übersicht!BC5 -> 155000 | BD35: =Übersicht!BD5 -> 104751.0583 | BE35: =BC35-BD35 -> 50248.94173 | BF35: =Übersicht!BF5 -> 1231779.192 | BG35: =Übersicht!BG5 -> 1088511.545 | BH35: =BF35-BG35 -> 143267.6472 | BI35: =Übersicht!BI5 -> 120000 | BJ35: =Übersicht!BJ5 -> 103751.0583 | BK35: =BI35-BJ35 -> 16248.94173 | BL35: =Übersicht!BL5 -> 1304370.135 | BM35: =Übersicht!BM5 -> 1158411.93 | BN35: =BL35-BM35 -> 145958.2051 | BO35: =Übersicht!BO5 -> 120000 | BP35: =Übersicht!BP5 -> 162751.0583 | BQ35: =BO35-BP35 -> -42751.05827 | BR35: =Übersicht!BR5 -> 1425000 | BS35: =Übersicht!BS5 -> 1321162.988 | BT35: =BR35-BS35 -> 103837.0122 | BU35: =Übersicht!BU5 -> 360200 | BV35: =Übersicht!BV5 -> 461211.0583 | BW35: =BU35-BV35 -> -101011.0583 | BX35: =Übersicht!BX5 -> 1686038.923 | BY35: =Übersicht!BY5 -> 1784575.393 | BZ35: =BX35-BY35 -> -98536.4704 | CA35: =Übersicht!CA5 -> 0 | CB35: =Übersicht!CB5 -> 0 | CC35: =CA35-CB35 -> 0 | CD35: =Übersicht!CD5 -> 1680370.135 | CE35: =Übersicht!CE5 -> 1789614.315 | CF35: =CD35-CE35 -> -109244.1808
C36: Saldo | D36: =D34-D35 -> -1785200 | E36: =E35-E34 -> 1828672.699 | G36: =G34-G35 -> -120000 | H36: =H35-H34 -> 97951.05827 | J36: =J34-J35 -> -119370.1347 | K36: =K35-K34 -> 97321.19295 | M36: =M34-M35 -> -120000 | N36: =N35-N34 -> 141751.0583 | P36: =P34-P35 -> -240000 | Q36: =Q35-Q34 -> 239072.2512 | S36: =S34-S35 -> -155000 | T36: =T35-T34 -> 127751.0583 | V36: =V34-V35 -> -399259.7306 | W36: =W35-W34 -> 364303.8482 | Y36: =Y34-Y35 -> -120000 | Z36: =Z35-Z34 -> 99751.05827 | AB36: =AB34-AB35 -> -514370.1347 | AC36: =AC35-AC34 -> 461684.7718 | AE36: =AE34-AE35 -> -120000 | AF36: =AF35-AF34 -> 141751.0583 | AH36: =AH34-AH35 -> -638000 | AI36: =AI35-AI34 -> 603435.8301 | AK36: =AK34-AK35 -> -155000 | AL36: =AL35-AL34 -> 127751.0583 | AN36: =AN34-AN35 -> -792519.4613 | AO36: =AO35-AO34 -> 727407.6965 | AQ36: =AQ34-AQ35 -> -120000 | AR36: =AR35-AR34 -> 96751.05827 | AT36: =AT34-AT35 -> -919370.1347 | AU36: =AU35-AU34 -> 826048.3507 | AW36: =AW34-AW35 -> -120000 | AX36: =AX35-AX34 -> 162751.0583 | AZ36: =AZ34-AZ35 -> -1063000 | BA36: =BA35-BA34 -> 988799.4089 | BC36: =BC34-BC35 -> -155000 | BD36: =BD35-BD34 -> 104751.0583 | BF36: =BF34-BF35 -> -1231779.192 | BG36: =BG35-BG34 -> 1088511.545 | BI36: =BI34-BI35 -> -120000 | BJ36: =BJ35-BJ34 -> 103751.0583 | BL36: =BL34-BL35 -> -1304370.135 | BM36: =BM35-BM34 -> 1158411.93 | BO36: =BO34-BO35 -> -120000 | BP36: =BP35-BP34 -> 162751.0583 | BR36: =BR34-BR35 -> -1425000 | BS36: =BS35-BS34 -> 1321162.988 | BU36: =BU34-BU35 -> -360200 | BV36: =BV35-BV34 -> 461211.0583 | BX36: =BX34-BX35 -> -1686038.923 | BY36: =BY35-BY34 -> 1734575.393 | CA36: =CA34-CA35 -> 0 | CB36: =CB35-CB34 -> 0 | CD36: =CD34-CD35 -> -1680370.135 | CE36: =CE35-CE34 -> 1739614.315
B38: Darlehen | C38: Ist | D38: =Darlehen!E4 -> 0 | E38: =Darlehen!F4 -> 0 | F38: =D38-E38 -> 0 | G38: =Darlehen!I4 -> 0 | H38: =Darlehen!J4 -> 0 | I38: =G38-H38 -> 0 | J38: =Darlehen!K4 -> 0 | K38: =Darlehen!L4 -> 0 | L38: =J38-K38 -> 0 | M38: =Darlehen!N4 -> 0 | N38: =Darlehen!O4 -> 0 | O38: =M38-N38 -> 0 | P38: =Darlehen!P4 -> 0 | Q38: =Darlehen!Q4 -> 0 | R38: =P38-Q38 -> 0 | S38: =Darlehen!S4 -> 0 | T38: =Darlehen!T4 -> 0 | U38: =S38-T38 -> 0 | V38: =Darlehen!U4 -> 0 | W38: =Darlehen!V4 -> 0 | X38: =V38-W38 -> 0 | Y38: =Darlehen!X4 -> 0 | Z38: =Darlehen!Y4 -> 0 | AA38: =Y38-Z38 -> 0 | AB38: =Darlehen!Z4 -> 0 | AC38: =Darlehen!AA4 -> 0 | AD38: =AB38-AC38 -> 0 | AE38: =Darlehen!AC4 -> 0 | AF38: =Darlehen!AD4 -> 0 | AG38: =AE38-AF38 -> 0 | AH38: =Darlehen!AE4 -> 0 | AI38: =Darlehen!AF4 -> 0 | AJ38: =AH38-AI38 -> 0 | AK38: =Darlehen!AH4 -> 0 | AL38: =Darlehen!AI4 -> 0 | AM38: =AK38-AL38 -> 0 | AN38: =Darlehen!AJ4 -> 0 | AO38: =Darlehen!AK4 -> 0 | AP38: =AN38-AO38 -> 0 | AQ38: =Darlehen!AM4 -> 0 | AR38: =Darlehen!AN4 -> 0 | AS38: =AQ38-AR38 -> 0 | AT38: =Darlehen!AO4 -> 0 | AU38: =Darlehen!AP4 -> 0 | AV38: =AT38-AU38 -> 0 | AW38: =Darlehen!AR4 -> 0 | AX38: =Darlehen!AS4 -> 0 | AY38: =AW38-AX38 -> 0 | AZ38: =Darlehen!AT4 -> 0 | BA38: =Darlehen!AU4 -> 0 | BB38: =AZ38-BA38 -> 0 | BC38: =Darlehen!AW4 -> 0 | BD38: =Darlehen!AX4 -> 0 | BE38: =BC38-BD38 -> 0 | BF38: =Darlehen!AY4 -> 0 | BG38: =Darlehen!AZ4 -> 0 | BH38: =BF38-BG38 -> 0 | BI38: =Darlehen!BB4 -> 0 | BJ38: =Darlehen!BC4 -> 0 | BK38: =BI38-BJ38 -> 0 | BL38: =Darlehen!BD4 -> 0 | BM38: =Darlehen!BE4 -> 0 | BN38: =BL38-BM38 -> 0 | BO38: =Darlehen!BG4 -> 0 | BP38: =Darlehen!BH4 -> 0 | BQ38: =BO38-BP38 -> 0 | BR38: =Darlehen!BI4 -> 0 | BS38: =Darlehen!BJ4 -> 0 | BT38: =BR38-BS38 -> 0 | BU38: =Darlehen!BL4 -> 0 | BV38: =Darlehen!BM4 -> 0 | BW38: =BU38-BV38 -> 0 | BX38: =Darlehen!BN4 -> 0 | BY38: =Darlehen!BO4 -> 0 | BZ38: =BX38-BY38 -> 0 | CA38: =Darlehen!BQ4 -> 0 | CB38: =Darlehen!BR4 -> 0 | CC38: =CA38-CB38 -> 0 | CD38: =Darlehen!BS4 -> 0 | CE38: =Darlehen!BT4 -> 0 | CF38: =CD38-CE38 -> 0
C39: Plan | D39: =Darlehen!E5 -> 0 | E39: =Darlehen!F5 -> 0 | F39: =D39-E39 -> 0 | G39: =Darlehen!I5 -> 0 | H39: =Darlehen!J5 -> 0 | I39: =G39-H39 -> 0 | J39: =Darlehen!K5 -> 0 | K39: =Darlehen!L5 -> 0 | L39: =J39-K39 -> 0 | M39: =Darlehen!N5 -> 0 | N39: =Darlehen!O5 -> 0 | O39: =M39-N39 -> 0 | P39: =Darlehen!P5 -> 0 | Q39: =Darlehen!Q5 -> 0 | R39: =P39-Q39 -> 0 | S39: =Darlehen!S5 -> 0 | T39: =Darlehen!T5 -> 0 | U39: =S39-T39 -> 0 | V39: =Darlehen!U5 -> 0 | W39: =Darlehen!V5 -> 0 | X39: =V39-W39 -> 0 | Y39: =Darlehen!X5 -> 0 | Z39: =Darlehen!Y5 -> 0 | AA39: =Y39-Z39 -> 0 | AB39: =Darlehen!Z5 -> 0 | AC39: =Darlehen!AA5 -> 0 | AD39: =AB39-AC39 -> 0 | AE39: =Darlehen!AC5 -> 0 | AF39: =Darlehen!AD5 -> 0 | AG39: =AE39-AF39 -> 0 | AH39: =Darlehen!AE5 -> 0 | AI39: =Darlehen!AF5 -> 0 | AJ39: =AH39-AI39 -> 0 | AK39: =Darlehen!AH5 -> 0 | AL39: =Darlehen!AI5 -> 0 | AM39: =AK39-AL39 -> 0 | AN39: =Darlehen!AJ5 -> 0 | AO39: =Darlehen!AK5 -> 0 | AP39: =AN39-AO39 -> 0 | AQ39: =Darlehen!AM5 -> 0 | AR39: =Darlehen!AN5 -> 0 | AS39: =AQ39-AR39 -> 0 | AT39: =Darlehen!AO5 -> 0 | AU39: =Darlehen!AP5 -> 0 | AV39: =AT39-AU39 -> 0 | AW39: =Darlehen!AR5 -> 0 | AX39: =Darlehen!AS5 -> 0 | AY39: =AW39-AX39 -> 0 | AZ39: =Darlehen!AT5 -> 0 | BA39: =Darlehen!AU5 -> 0 | BB39: =AZ39-BA39 -> 0 | BC39: =Darlehen!AW5 -> 0 | BD39: =Darlehen!AX5 -> 0 | BE39: =BC39-BD39 -> 0 | BF39: =Darlehen!AY5 -> 0 | BG39: =Darlehen!AZ5 -> 0 | BH39: =BF39-BG39 -> 0 | BI39: =Darlehen!BB5 -> 0 | BJ39: =Darlehen!BC5 -> 0 | BK39: =BI39-BJ39 -> 0 | BL39: =Darlehen!BD5 -> 0 | BM39: =Darlehen!BE5 -> 0 | BN39: =BL39-BM39 -> 0 | BO39: =Darlehen!BG5 -> 0 | BP39: =Darlehen!BH5 -> 0 | BQ39: =BO39-BP39 -> 0 | BR39: =Darlehen!BI5 -> 0 | BS39: =Darlehen!BJ5 -> 0 | BT39: =BR39-BS39 -> 0 | BU39: =Darlehen!BL5 -> 0 | BV39: =Darlehen!BM5 -> 0 | BW39: =BU39-BV39 -> 0 | BX39: =Darlehen!BN5 -> 0 | BY39: =Darlehen!BO5 -> 0 | BZ39: =BX39-BY39 -> 0 | CA39: =Darlehen!BQ5 -> 0 | CB39: =Darlehen!BR5 -> 0 | CC39: =CA39-CB39 -> 0 | CD39: =Darlehen!BS5 -> 0 | CE39: =Darlehen!BT5 -> 0 | CF39: =CD39-CE39 -> 0
C40: Saldo | D40: =D38-D39 -> 0 | E40: =E39-E38 -> 0 | G40: =G38-G39 -> 0 | H40: =H39-H38 -> 0 | J40: =J38-J39 -> 0 | K40: =K39-K38 -> 0 | M40: =M38-M39 -> 0 | N40: =N39-N38 -> 0 | P40: =P38-P39 -> 0 | Q40: =Q39-Q38 -> 0 | S40: =S38-S39 -> 0 | T40: =T39-T38 -> 0 | V40: =V38-V39 -> 0 | W40: =W39-W38 -> 0 | Y40: =Y38-Y39 -> 0 | Z40: =Z39-Z38 -> 0 | AB40: =AB38-AB39 -> 0 | AC40: =AC39-AC38 -> 0 | AE40: =AE38-AE39 -> 0 | AF40: =AF39-AF38 -> 0 | AH40: =AH38-AH39 -> 0 | AI40: =AI39-AI38 -> 0 | AK40: =AK38-AK39 -> 0 | AL40: =AL39-AL38 -> 0 | AN40: =AN38-AN39 -> 0 | AO40: =AO39-AO38 -> 0 | AQ40: =AQ38-AQ39 -> 0 | AR40: =AR39-AR38 -> 0 | AT40: =AT38-AT39 -> 0 | AU40: =AU39-AU38 -> 0 | AW40: =AW38-AW39 -> 0 | AX40: =AX39-AX38 -> 0 | AZ40: =AZ38-AZ39 -> 0 | BA40: =BA39-BA38 -> 0 | BC40: =BC38-BC39 -> 0 | BD40: =BD39-BD38 -> 0 | BF40: =BF38-BF39 -> 0 | BG40: =BG39-BG38 -> 0 | BI40: =BI38-BI39 -> 0 | BJ40: =BJ39-BJ38 -> 0 | BL40: =BL38-BL39 -> 0 | BM40: =BM39-BM38 -> 0 | BO40: =BO38-BO39 -> 0 | BP40: =BP39-BP38 -> 0 | BR40: =BR38-BR39 -> 0 | BS40: =BS39-BS38 -> 0 | BU40: =BU38-BU39 -> 0 | BV40: =BV39-BV38 -> 0 | BX40: =BX38-BX39 -> 0 | BY40: =BY39-BY38 -> 0 | CA40: =CA38-CA39 -> 0 | CB40: =CB39-CB38 -> 0 | CD40: =CD38-CD39 -> 0 | CE40: =CE39-CE38 -> 0
B42: Ford. und Rechn. | C42: Ist | D42: =Offen2024!D4 -> 0 | E42: =Offen2024!E4 -> 0 | F42: =D42-E42 -> 0 | G42: =Offen2024!G4 -> 0 | H42: =Offen2024!H4 -> 0 | I42: =G42-H42 -> 0 | J42: =G42 -> 0 | K42: =H42 -> 0 | L42: =J42-K42 -> 0 | M42: =Offen2024!K4 -> 0 | N42: =Offen2024!L4 -> 0 | O42: =M42-N42 -> 0 | P42: =J42+M42 -> 0 | Q42: =K42+N42 -> 0 | R42: =P42-Q42 -> 0 | S42: =Offen2024!O4 -> 0 | T42: =Offen2024!P4 -> 0 | U42: =S42-T42 -> 0 | V42: =P42+S42 -> 0 | W42: =Q42+T42 -> 0 | X42: -33093 | Y42: =Offen2024!S4 -> 0 | Z42: =Offen2024!T4 -> 0 | AA42: =Y42-Z42 -> 0 | AB42: =V42+Y42 -> 0 | AC42: =W42+Z42 -> 0 | AD42: =AB42-AC42 -> 0 | AE42: =Offen2024!W4 -> 0 | AF42: =Offen2024!X4 -> 0 | AG42: =AE42-AF42 -> 0 | AH42: =AB42+AE42 -> 0 | AI42: =AC42+AF42 -> 0 | AJ42: =AH42-AI42 -> 0 | AK42: =Offen2024!AA4 -> 0 | AL42: =Offen2024!AB4 -> 0 | AM42: =AK42-AL42 -> 0 | AN42: =AH42+AK42 -> 0 | AO42: =AI42+AL42 -> 0 | AP42: =AN42-AO42 -> 0 | AQ42: =Offen2024!AE4 -> 0 | AR42: =Offen2024!AF4 -> 0 | AS42: =AQ42-AR42 -> 0 | AT42: =AN42+AQ42 -> 0 | AU42: =AO42+AR42 -> 0 | AV42: =AT42-AU42 -> 0 | AW42: =Offen2024!AI4 -> 0 | AX42: =Offen2024!AJ4 -> 0 | AY42: =AW42-AX42 -> 0 | AZ42: =AT42+AW42 -> 0 | BA42: =AU42+AX42 -> 0 | BB42: =AZ42-BA42 -> 0 | BC42: =Offen2024!AM4 -> 0 | BD42: =Offen2024!AN4 -> 0 | BE42: =BC42-BD42 -> 0 | BF42: =AZ42+BC42 -> 0 | BG42: =BA42+BD42 -> 0 | BH42: =BF42-BG42 -> 0 | BI42: =Offen2024!AQ4 -> 0 | BJ42: =Offen2024!AR4 -> 0 | BK42: =BI42-BJ42 -> 0 | BL42: =BF42+BI42 -> 0 | BM42: =BG42+BJ42 -> 0 | BN42: =BL42-BM42 -> 0 | BO42: =Offen2024!AU4 -> 0 | BP42: =Offen2024!AV4 -> 0 | BQ42: =BO42-BP42 -> 0 | BR42: =BL42+BO42 -> 0 | BS42: =BM42+BP42 -> 0 | BT42: =BR42-BS42 -> 0 | BU42: =Offen2024!AY4 -> 0 | BV42: =Offen2024!AZ4 -> 0 | BW42: =BU42-BV42 -> 0 | BX42: =BR42+BU42 -> 0 | BY42: =BS42+BV42 -> 0 | BZ42: =BX42-BY42 -> 0 | CA42: =Offen2024!BC4 -> 0 | CB42: =Offen2024!BD4 -> 0 | CC42: =CA42-CB42 -> 0 | CD42: =BX42+CA42 -> 0 | CE42: =BY42+CB42 -> 0 | CF42: =CD42-CE42 -> 0
B43: aus 2024 | C43: Plan | D43: =Offen2024!D5 -> 0 | E43: =Offen2024!E5 -> 0 | F43: =D43-E43 -> 0 | G43: =Offen2024!G5 -> 0 | H43: =Offen2024!H5 -> 0 | I43: =G43-H43 -> 0 | J43: =G43 -> 0 | K43: =H43 -> 0 | L43: =J43-K43 -> 0 | M43: =Offen2024!K5 -> 0 | N43: =Offen2024!L5 -> 0 | O43: =M43-N43 -> 0 | P43: =J43+M43 -> 0 | Q43: =K43+N43 -> 0 | R43: =P43-Q43 -> 0 | S43: =Offen2024!O5 -> 0 | T43: =Offen2024!P5 -> 0 | U43: =S43-T43 -> 0 | V43: =P43+S43 -> 0 | W43: =Q43+T43 -> 0 | X43: =V43-W43 -> 0 | Y43: =Offen2024!S5 -> 0 | Z43: =Offen2024!T5 -> 0 | AA43: =Y43-Z43 -> 0 | AB43: =V43+Y43 -> 0 | AC43: =W43+Z43 -> 0 | AD43: =AB43-AC43 -> 0 | AE43: =Offen2024!W5 -> 0 | AF43: =Offen2024!X5 -> 0 | AG43: =AE43-AF43 -> 0 | AH43: =AB43+AE43 -> 0 | AI43: =AC43+AF43 -> 0 | AJ43: =AH43-AI43 -> 0 | AK43: =Offen2024!AA5 -> 0 | AL43: =Offen2024!AB5 -> 0 | AM43: =AK43-AL43 -> 0 | AN43: =AH43+AK43 -> 0 | AO43: =AI43+AL43 -> 0 | AP43: =AN43-AO43 -> 0 | AQ43: =Offen2024!AE5 -> 0 | AR43: =Offen2024!AF5 -> 0 | AS43: =AQ43-AR43 -> 0 | AT43: =AN43+AQ43 -> 0 | AU43: =AO43+AR43 -> 0 | AV43: =AT43-AU43 -> 0 | AW43: =Offen2024!AI5 -> 0 | AX43: =Offen2024!AJ5 -> 0 | AY43: =AW43-AX43 -> 0 | AZ43: =AT43+AW43 -> 0 | BA43: =AU43+AX43 -> 0 | BB43: =AZ43-BA43 -> 0 | BC43: =Offen2024!AM5 -> 0 | BD43: =Offen2024!AN5 -> 0 | BE43: =BC43-BD43 -> 0 | BF43: =AZ43+BC43 -> 0 | BG43: =BA43+BD43 -> 0 | BH43: =BF43-BG43 -> 0 | BI43: =Offen2024!AQ5 -> 0 | BJ43: =Offen2024!AR5 -> 0 | BK43: =BI43-BJ43 -> 0 | BL43: =BF43+BI43 -> 0 | BM43: =BG43+BJ43 -> 0 | BN43: =BL43-BM43 -> 0 | BO43: =Offen2024!AU5 -> 0 | BP43: =Offen2024!AV5 -> 0 | BQ43: =BO43-BP43 -> 0 | BR43: =BL43+BO43 -> 0 | BS43: =BM43+BP43 -> 0 | BT43: =BR43-BS43 -> 0 | BU43: =Offen2024!AY5 -> 0 | BV43: =Offen2024!AZ5 -> 0 | BW43: =BU43-BV43 -> 0 | BX43: =BR43+BU43 -> 0 | BY43: =BS43+BV43 -> 0 | BZ43: =BX43-BY43 -> 0 | CA43: =Offen2024!BC5 -> 0 | CB43: =Offen2024!BD5 -> 0 | CC43: =CA43-CB43 -> 0 | CD43: =BX43+CA43 -> 0 | CE43: =BY43+CB43 -> 0 | CF43: =CD43-CE43 -> 0
C44: Saldo | D44: =D42-D43 -> 0 | E44: =E43-E42 -> 0 | G44: =G42-G43 -> 0 | H44: =H43-H42 -> 0 | J44: =J42-J43 -> 0 | K44: =K43-K42 -> 0 | M44: =M42-M43 -> 0 | N44: =N43-N42 -> 0 | P44: =P42-P43 -> 0 | Q44: =Q43-Q42 -> 0 | S44: =S42-S43 -> 0 | T44: =T43-T42 -> 0 | V44: =V42-V43 -> 0 | W44: =W43-W42 -> 0 | Y44: =Y42-Y43 -> 0 | Z44: =Z43-Z42 -> 0 | AB44: =AB42-AB43 -> 0 | AC44: =AC43-AC42 -> 0 | AE44: =AE42-AE43 -> 0 | AF44: =AF43-AF42 -> 0 | AH44: =AH42-AH43 -> 0 | AI44: =AI43-AI42 -> 0 | AK44: =AK42-AK43 -> 0 | AL44: =AL43-AL42 -> 0 | AN44: =AN42-AN43 -> 0 | AO44: =AO43-AO42 -> 0 | AQ44: =AQ42-AQ43 -> 0 | AR44: =AR43-AR42 -> 0 | AT44: =AT42-AT43 -> 0 | AU44: =AU43-AU42 -> 0 | AW44: =AW42-AW43 -> 0 | AX44: =AX43-AX42 -> 0 | AZ44: =AZ42-AZ43 -> 0 | BA44: =BA43-BA42 -> 0 | BC44: =BC42-BC43 -> 0 | BD44: =BD43-BD42 -> 0 | BF44: =BF42-BF43 -> 0 | BG44: =BG43-BG42 -> 0 | BI44: =BI42-BI43 -> 0 | BJ44: =BJ43-BJ42 -> 0 | BL44: =BL42-BL43 -> 0 | BM44: =BM43-BM42 -> 0 | BO44: =BO42-BO43 -> 0 | BP44: =BP43-BP42 -> 0 | BR44: =BR42-BR43 -> 0 | BS44: =BS43-BS42 -> 0 | BU44: =BU42-BU43 -> 0 | BV44: =BV43-BV42 -> 0 | BX44: =BX42-BX43 -> 0 | BY44: =BY43-BY42 -> 0 | CA44: =CA42-CA43 -> 0 | CB44: =CB43-CB42 -> 0 | CD44: =CD42-CD43 -> 0 | CE44: =CE43-CE42 -> 0
B46: Externe Projekte | C46: Ist | D46: =G46+M46+S46+Y46+AE46+AK46+AQ46+AW46+BC46+BI46+BO46+BU46+CA46 -> 0 | E46: =H46+N46+T46+Z46+AF46+AL46+AR46+AX46+BD46+BJ46+BP46+BV46+CB46 -> 0 | F46: =D46-E46 -> 0 | G46: =ExterneProj!G4 -> 0 | H46: =ExterneProj!H4 -> 0 | I46: =G46-H46 -> 0 | J46: =G46 -> 0 | K46: =H46 -> 0 | L46: =J46-K46 -> 0 | M46: =ExterneProj!M4 -> 0 | N46: =ExterneProj!N4 -> 0 | O46: =M46-N46 -> 0 | P46: =J46+M46 -> 0 | Q46: =K46+N46 -> 0 | R46: =P46-Q46 -> 0 | S46: =ExterneProj!S4 -> 0 | T46: =ExterneProj!T12 -> 0 | U46: =S46-T46 -> 0 | V46: =P46+S46 -> 0 | W46: =Q46+T46 -> 0 | X46: =V46-W46 -> 0 | Y46: 0 | Z46: =ExterneProj!Z4 -> 0 | AA46: =Y46-Z46 -> 0 | AB46: =V46+Y46 -> 0 | AC46: =W46+Z46 -> 0 | AD46: =AB46-AC46 -> 0 | AE46: =ExterneProj!AE4 -> 0 | AF46: =ExterneProj!AF4 -> 0 | AG46: =AE46-AF46 -> 0 | AH46: =AB46+AE46 -> 0 | AI46: =AC46+AF46 -> 0 | AJ46: =AH46-AI46 -> 0 | AK46: 0 | AL46: =ExterneProj!AL4 -> 0 | AM46: =AK46-AL46 -> 0 | AN46: =AH46+AK46 -> 0 | AO46: =AI46+AL46 -> 0 | AP46: =AN46-AO46 -> 0 | AQ46: =ExterneProj!AQ4 -> 0 | AR46: =ExterneProj!AR4 -> 0 | AS46: =AQ46-AR46 -> 0 | AT46: =AN46+AQ46 -> 0 | AU46: =AO46+AR46 -> 0 | AV46: =AT46-AU46 -> 0 | AW46: 0 | AX46: =ExterneProj!AX4 -> 0 | AY46: =AW46-AX46 -> 0 | AZ46: =AT46+AW46 -> 0 | BA46: =AU46+AX46 -> 0 | BB46: =AZ46-BA46 -> 0 | BC46: 0 | BD46: =ExterneProj!BD4 -> 0 | BE46: =BC46-BD46 -> 0 | BF46: =AZ46+BC46 -> 0 | BG46: =BA46+BD46 -> 0 | BH46: =BF46-BG46 -> 0 | BI46: =ExterneProj!BI4 -> 0 | BJ46: =ExterneProj!BJ4 -> 0 | BK46: =BI46-BJ46 -> 0 | BL46: =BF46+BI46 -> 0 | BM46: =BG46+BJ46 -> 0 | BN46: =BL46-BM46 -> 0 | BO46: =ExterneProj!BO4 -> 0 | BP46: =ExterneProj!BP4 -> 0 | BQ46: =BO46-BP46 -> 0 | BR46: =BL46+BO46 -> 0 | BS46: =BM46+BP46 -> 0 | BT46: =BR46-BS46 -> 0 | BU46: =ExterneProj!BU4 -> 0 | BV46: =ExterneProj!BV4 -> 0 | BW46: =BU46-BV46 -> 0 | BX46: =BR46+BU46 -> 0 | BY46: =BS46+BV46 -> 0 | BZ46: =BX46-BY46 -> 0 | CA46: =ExterneProj!CA4 -> 0 | CB46: =ExterneProj!CB4 -> 0 | CC46: =CA46-CB46 -> 0 | CD46: =BX46+CA46 -> 0 | CE46: =BY46+CB46 -> 0 | CF46: =CD46-CE46 -> 0
B47: gesonderte Tabelle | C47: Plan | D47: =G47+M47+S47+Y47+AE47+AK47+AQ47+AW47+BC47+BI47+BO47+BU47+CA47 -> 0 | E47: =H47+N47+T47+Z47+AF47+AL47+AR47+AX47+BD47+BJ47+BP47+BV47+CB47 -> 0 | F47: =D47-E47 -> 0 | G47: =ExterneProj!G5 -> 0 | H47: =ExterneProj!H5 -> 0 | I47: =G47-H47 -> 0 | J47: =G47 -> 0 | K47: =H47 -> 0 | L47: =J47-K47 -> 0 | M47: =ExterneProj!M5 -> 0 | N47: =ExterneProj!N5 -> 0 | O47: =M47-N47 -> 0 | P47: =J47+M47 -> 0 | Q47: =K47+N47 -> 0 | R47: =P47-Q47 -> 0 | S47: =ExterneProj!S5 -> 0 | T47: =ExterneProj!T5 -> 0 | U47: =S47-T47 -> 0 | V47: =P47+S47 -> 0 | W47: =Q47+T47 -> 0 | X47: =V47-W47 -> 0 | Y47: =ExterneProj!Y5 -> 0 | Z47: =ExterneProj!Z5 -> 0 | AA47: =Y47-Z47 -> 0 | AB47: =V47+Y47 -> 0 | AC47: =W47+Z47 -> 0 | AD47: =AB47-AC47 -> 0 | AE47: =ExterneProj!AE5 -> 0 | AF47: =ExterneProj!AF5 -> 0 | AG47: =AE47-AF47 -> 0 | AH47: =AB47+AE47 -> 0 | AI47: =AC47+AF47 -> 0 | AJ47: =AH47-AI47 -> 0 | AK47: =ExterneProj!AK5 -> 0 | AL47: =ExterneProj!AL5 -> 0 | AM47: =AK47-AL47 -> 0 | AN47: =AH47+AK47 -> 0 | AO47: =AI47+AL47 -> 0 | AP47: =AN47-AO47 -> 0 | AQ47: =ExterneProj!AQ5 -> 0 | AR47: =ExterneProj!AR5 -> 0 | AS47: =AQ47-AR47 -> 0 | AT47: =AN47+AQ47 -> 0 | AU47: =AO47+AR47 -> 0 | AV47: =AT47-AU47 -> 0 | AW47: =ExterneProj!AW5 -> 0 | AX47: =ExterneProj!AX5 -> 0 | AY47: =AW47-AX47 -> 0 | AZ47: =AT47+AW47 -> 0 | BA47: =AU47+AX47 -> 0 | BB47: =AZ47-BA47 -> 0 | BC47: =ExterneProj!BC5 -> 0 | BD47: =ExterneProj!BD5 -> 0 | BE47: =BC47-BD47 -> 0 | BF47: =AZ47+BC47 -> 0 | BG47: =BA47+BD47 -> 0 | BH47: =BF47-BG47 -> 0 | BI47: =ExterneProj!BI5 -> 0 | BJ47: =ExterneProj!BJ5 -> 0 | BK47: =BI47-BJ47 -> 0 | BL47: =BF47+BI47 -> 0 | BM47: =BG47+BJ47 -> 0 | BN47: =BL47-BM47 -> 0 | BO47: =ExterneProj!BO5 -> 0 | BP47: =ExterneProj!BP5 -> 0 | BQ47: =BO47-BP47 -> 0 | BR47: =BL47+BO47 -> 0 | BS47: =BM47+BP47 -> 0 | BT47: =BR47-BS47 -> 0 | BU47: =ExterneProj!BU5 -> 0 | BV47: =ExterneProj!BV5 -> 0 | BW47: =BU47-BV47 -> 0 | BX47: =BR47+BU47 -> 0 | BY47: =BS47+BV47 -> 0 | BZ47: =BX47-BY47 -> 0 | CA47: =ExterneProj!CA5 -> 0 | CB47: =ExterneProj!CB5 -> 0 | CC47: =CA47-CB47 -> 0 | CD47: =BX47+CA47 -> 0 | CE47: =BY47+CB47 -> 0 | CF47: =CD47-CE47 -> 0
C48: Saldo | D48: =D46-D47 -> 0 | E48: =E47-E46 -> 0 | G48: =G46-G47 -> 0 | H48: =H47-H46 -> 0 | J48: =J46-J47 -> 0 | K48: =K47-K46 -> 0 | M48: =M46-M47 -> 0 | N48: =N47-N46 -> 0 | P48: =P46-P47 -> 0 | Q48: =Q47-Q46 -> 0 | S48: =S46-S47 -> 0 | T48: =T47-T46 -> 0 | V48: =V46-V47 -> 0 | W48: =W47-W46 -> 0 | Y48: =Y46-Y47 -> 0 | Z48: =Z47-Z46 -> 0 | AB48: =AB46-AB47 -> 0 | AC48: =AC47-AC46 -> 0 | AE48: =AE46-AE47 -> 0 | AF48: =AF47-AF46 -> 0 | AH48: =AH46-AH47 -> 0 | AI48: =AI47-AI46 -> 0 | AK48: =AK46-AK47 -> 0 | AL48: =AL47-AL46 -> 0 | AN48: =AN46-AN47 -> 0 | AO48: =AO47-AO46 -> 0 | AQ48: =AQ46-AQ47 -> 0 | AR48: =AR47-AR46 -> 0 | AT48: =AT46-AT47 -> 0 | AU48: =AU47-AU46 -> 0 | AW48: =AW46-AW47 -> 0 | AX48: =AX47-AX46 -> 0 | AZ48: =AZ46-AZ47 -> 0 | BA48: =BA47-BA46 -> 0 | BC48: =BC46-BC47 -> 0 | BD48: =BD47-BD46 -> 0 | BF48: =BF46-BF47 -> 0 | BG48: =BG47-BG46 -> 0 | BI48: =BI46-BI47 -> 0 | BJ48: =BJ47-BJ46 -> 0 | BL48: =BL46-BL47 -> 0 | BM48: =BM47-BM46 -> 0 | BO48: =BO46-BO47 -> 0 | BP48: =BP47-BP46 -> 0 | BR48: =BR46-BR47 -> 0 | BS48: =BS47-BS46 -> 0 | BU48: =BU46-BU47 -> 0 | BV48: =BV47-BV46 -> 0 | BX48: =BX46-BX47 -> 0 | BY48: =BY47-BY46 -> 0 | CA48: =CA46-CA47 -> 0 | CB48: =CB47-CB46 -> 0 | CD48: =CD46-CD47 -> 0 | CE48: =CE47-CE46 -> 0
B50: nicht cashwirksam in 2025 | C50: Ist | D50: =G50+M50+S50+Y50+AE50+AK50+AQ50+AW50+BC50+BI50+BO50+BU50+CA50 -> 0 | E50: =H50+N50+T50+Z50+AF50+AL50+AR50+AX50+BD50+BJ50+BP50+BV50+CB50 -> 0 | F50: =D50-E50 -> 0 | G50: 0 | H50: 0 | I50: =G50-H50 -> 0 | J50: =G50 -> 0 | K50: =H50 -> 0 | L50: =J50-K50 -> 0 | M50: 0 | N50: 0 | O50: =M50-N50 -> 0 | P50: =J50+M50 -> 0 | Q50: =K50+N50 -> 0 | R50: =P50-Q50 -> 0 | S50: 0 | T50: 0 | U50: =S50-T50 -> 0 | V50: =P50+S50 -> 0 | W50: 0 | X50: =V50-W50 -> 0 | Y50: 0 | Z50: 0 | AA50: =Y50-Z50 -> 0 | AB50: =V50+Y50 -> 0 | AC50: =W50+Z50 -> 0 | AD50: =AB50-AC50 -> 0 | AE50: 0 | AF50: 0 | AG50: =AE50-AF50 -> 0 | AH50: =AB50+AE50 -> 0 | AI50: =AC50+AF50 -> 0 | AJ50: =AH50-AI50 -> 0 | AK50: 0 | AL50: 0 | AM50: =AK50-AL50 -> 0 | AN50: =AH50+AK50 -> 0 | AO50: =AI50+AL50 -> 0 | AP50: =AN50-AO50 -> 0 | AQ50: 0 | AR50: 0 | AS50: =AQ50-AR50 -> 0 | AT50: =AN50+AQ50 -> 0 | AU50: =AO50+AR50 -> 0 | AV50: =AT50-AU50 -> 0 | AW50: 0 | AX50: 0 | AY50: =AW50-AX50 -> 0 | AZ50: =AT50+AW50 -> 0 | BA50: =AU50+AX50 -> 0 | BB50: =AZ50-BA50 -> 0 | BC50: 0 | BD50: 0 | BE50: =BC50-BD50 -> 0 | BF50: =AZ50+BC50 -> 0 | BG50: =BA50+BD50 -> 0 | BH50: =BF50-BG50 -> 0 | BI50: 0 | BJ50: 0 | BK50: =BI50-BJ50 -> 0 | BL50: =BF50+BI50 -> 0 | BM50: =BG50+BJ50 -> 0 | BN50: =BL50-BM50 -> 0 | BO50: 0 | BP50: 0 | BQ50: =BO50-BP50 -> 0 | BR50: =BL50+BO50 -> 0 | BS50: =BM50+BP50 -> 0 | BT50: =BR50-BS50 -> 0 | BU50: 0 | BV50: 0 | BW50: =BU50-BV50 -> 0 | BX50: =BR50+BU50 -> 0 | BY50: =BS50+BV50 -> 0 | BZ50: =BX50-BY50 -> 0 | CA50: 0 | CB50: 0 | CC50: =CA50-CB50 -> 0 | CD50: =BX50+CA50 -> 0 | CE50: =BY50+CB50 -> 0 | CF50: =CD50-CE50 -> 0
C51: Plan | D51: =G51+M51+S51+Y51+AE51+AK51+AQ51+AW51+BC51+BI51+BO51+BU51+CA51 -> 0 | E51: =H51+N51+T51+Z51+AF51+AL51+AR51+AX51+BD51+BJ51+BP51+BV51+CB51 -> 0 | F51: =D51-E51 -> 0 | G51: 0 | H51: 0 | I51: =G51-H51 -> 0 | J51: =G51 -> 0 | K51: =H51 -> 0 | L51: =J51-K51 -> 0 | M51: 0 | N51: 0 | O51: =M51-N51 -> 0 | P51: =J51+M51 -> 0 | Q51: =K51+N51 -> 0 | R51: =P51-Q51 -> 0 | S51: 0 | T51: 0 | U51: =S51-T51 -> 0 | V51: =P51+S51 -> 0 | W51: =Q51+T51 -> 0 | X51: =V51-W51 -> 0 | Y51: 0 | Z51: 0 | AA51: =Y51-Z51 -> 0 | AB51: =V51+Y51 -> 0 | AC51: =W51+Z51 -> 0 | AD51: =AB51-AC51 -> 0 | AE51: 0 | AF51: 0 | AG51: =AE51-AF51 -> 0 | AH51: =AB51+AE51 -> 0 | AI51: =AC51+AF51 -> 0 | AJ51: =AH51-AI51 -> 0 | AK51: 0 | AL51: 0 | AM51: =AK51-AL51 -> 0 | AN51: =AH51+AK51 -> 0 | AO51: =AI51+AL51 -> 0 | AP51: =AN51-AO51 -> 0 | AQ51: 0 | AR51: 0 | AS51: =AQ51-AR51 -> 0 | AT51: =AN51+AQ51 -> 0 | AU51: =AO51+AR51 -> 0 | AV51: =AT51-AU51 -> 0 | AW51: 0 | AX51: 0 | AY51: =AW51-AX51 -> 0 | AZ51: =AT51+AW51 -> 0 | BA51: =AU51+AX51 -> 0 | BB51: =AZ51-BA51 -> 0 | BC51: 0 | BE51: =BC51-BD51 -> 0 | BF51: =AZ51+BC51 -> 0 | BG51: =BA51+BD51 -> 0 | BH51: =BF51-BG51 -> 0 | BI51: 0 | BJ51: 0 | BK51: =BI51-BJ51 -> 0 | BL51: =BF51+BI51 -> 0 | BM51: =BG51+BJ51 -> 0 | BN51: =BL51-BM51 -> 0 | BO51: 0 | BP51: 0 | BQ51: =BO51-BP51 -> 0 | BR51: =BL51+BO51 -> 0 | BS51: =BM51+BP51 -> 0 | BT51: =BR51-BS51 -> 0 | BU51: 0 | BV51: 0 | BW51: =BU51-BV51 -> 0 | BX51: =BR51+BU51 -> 0 | BY51: =BS51+BV51 -> 0 | BZ51: =BX51-BY51 -> 0 | CA51: 0 | CB51: 0 | CC51: =CA51-CB51 -> 0 | CD51: =BX51+CA51 -> 0 | CE51: =BY51+CB51 -> 0 | CF51: =CD51-CE51 -> 0
C52: Saldo | D52: =D50-D51 -> 0 | E52: =E51-E50 -> 0 | G52: =G50-G51 -> 0 | H52: =H51-H50 -> 0 | J52: =J50-J51 -> 0 | K52: =K51-K50 -> 0 | M52: =M50-M51 -> 0 | N52: =N51-N50 -> 0 | P52: =P50-P51 -> 0 | Q52: =Q51-Q50 -> 0 | S52: =S50-S51 -> 0 | T52: =T51-T50 -> 0 | V52: =V50-V51 -> 0 | W52: =W51-W50 -> 0 | Y52: =Y50-Y51 -> 0 | Z52: =Z51-Z50 -> 0 | AB52: =AB50-AB51 -> 0 | AC52: =AC51-AC50 -> 0 | AE52: =AE50-AE51 -> 0 | AF52: =AF51-AF50 -> 0 | AH52: =AH50-AH51 -> 0 | AI52: =AI51-AI50 -> 0 | AK52: =AK50-AK51 -> 0 | AL52: =AL51-AL50 -> 0 | AN52: =AN50-AN51 -> 0 | AO52: =AO51-AO50 -> 0 | AQ52: =AQ50-AQ51 -> 0 | AR52: =AR51-AR50 -> 0 | AT52: =AT50-AT51 -> 0 | AU52: =AU51-AU50 -> 0 | AW52: =AW50-AW51 -> 0 | AX52: =AX51-AX50 -> 0 | AZ52: =AZ50-AZ51 -> 0 | BA52: =BA51-BA50 -> 0 | BC52: =BC50-BC51 -> 0 | BD52: =BD51-BD50 -> 0 | BF52: =BF50-BF51 -> 0 | BG52: =BG51-BG50 -> 0 | BI52: =BI50-BI51 -> 0 | BJ52: =BJ51-BJ50 -> 0 | BL52: =BL50-BL51 -> 0 | BM52: =BM51-BM50 -> 0 | BO52: =BO50-BO51 -> 0 | BP52: =BP51-BP50 -> 0 | BR52: =BR50-BR51 -> 0 | BS52: =BS51-BS50 -> 0 | BU52: =BU50-BU51 -> 0 | BV52: =BV51-BV50 -> 0 | BX52: =BX50-BX51 -> 0 | BY52: =BY51-BY50 -> 0 | CA52: =CA50-CA51 -> 0 | CB52: =CB51-CB50 -> 0 | CD52: =CD50-CD51 -> 0 | CE52: =CE51-CE50 -> 0
B54: Durchlaufende Posten (1590) | C54: Ist | D54: =G54+M54+S54+Y54+AE54+AK54+AQ54+AW54+BC54+BI54+BO54+BU54+CA54 -> 0 | E54: =H54+N54+T54+Z54+AF54+AL54+AR54+AX54+BD54+BJ54+BP54+BV54+CB54 -> 0 | F54: =D54-E54 -> 0 | G54: 0 | H54: 0 | I54: =G54-H54 -> 0 | J54: =G54 -> 0 | K54: =H54 -> 0 | L54: =J54-K54 -> 0 | M54: 0 | N54: 0 | O54: =M54-N54 -> 0 | P54: =J54+M54 -> 0 | Q54: =K54+N54 -> 0 | R54: =P54-Q54 -> 0 | S54: 0 | T54: 0 | U54: =S54-T54 -> 0 | V54: =P54+S54 -> 0 | W54: =Q54+T54 -> 0 | X54: =V54-W54 -> 0 | Y54: 0 | Z54: 0 | AA54: =Y54-Z54 -> 0 | AB54: =V54+Y54 -> 0 | AC54: =W54+Z54 -> 0 | AD54: =AB54-AC54 -> 0 | AE54: 0 | AF54: 0 | AG54: =AE54-AF54 -> 0 | AH54: =AB54+AE54 -> 0 | AI54: =AC54+AF54 -> 0 | AJ54: =AH54-AI54 -> 0 | AK54: 0 | AL54: 0 | AM54: =AK54-AL54 -> 0 | AN54: =AH54+AK54 -> 0 | AO54: =AI54+AL54 -> 0 | AP54: =AN54-AO54 -> 0 | AQ54: 0 | AR54: 0 | AS54: =AQ54-AR54 -> 0 | AT54: =AN54+AQ54 -> 0 | AU54: =AO54+AR54 -> 0 | AV54: =AT54-AU54 -> 0 | AW54: 0 | AX54: 0 | AY54: =AW54-AX54 -> 0 | AZ54: =AT54+AW54 -> 0 | BA54: =AU54+AX54 -> 0 | BB54: =AZ54-BA54 -> 0 | BC54: 0 | BD54: 0 | BE54: =BC54-BD54 -> 0 | BF54: =AZ54+BC54 -> 0 | BG54: =BA54+BD54 -> 0 | BH54: =BF54-BG54 -> 0 | BI54: 0 | BJ54: 0 | BK54: =BI54-BJ54 -> 0 | BL54: =BF54+BI54 -> 0 | BM54: =BG54+BJ54 -> 0 | BN54: =BL54-BM54 -> 0 | BO54: 0 | BP54: 0 | BQ54: =BO54-BP54 -> 0 | BR54: =BL54+BO54 -> 0 | BS54: =BM54+BP54 -> 0 | BT54: =BR54-BS54 -> 0 | BU54: 0 | BV54: 0 | BW54: =BU54-BV54 -> 0 | BX54: =BR54+BU54 -> 0 | BY54: =BS54+BV54 -> 0 | BZ54: =BX54-BY54 -> 0 | CA54: 0 | CB54: 0 | CC54: =CA54-CB54 -> 0 | CD54: =BX54+CA54 -> 0 | CE54: =BY54+CB54 -> 0 | CF54: =CD54-CE54 -> 0
B55: Irrläufer | C55: Plan | D55: =G55+M55+S55+Y55+AE55+AK55+AQ55+AW55+BC55+BI55+BO55+BU55+CA55 -> 0 | E55: =H55+N55+T55+Z55+AF55+AL55+AR55+AX55+BD55+BJ55+BP55+BV55+CB55 -> 0 | F55: =D55-E55 -> 0 | G55: 0 | H55: 0 | I55: =G55-H55 -> 0 | J55: =G55 -> 0 | K55: =H55 -> 0 | L55: =J55-K55 -> 0 | M55: 0 | N55: 0 | O55: =M55-N55 -> 0 | P55: =J55+M55 -> 0 | Q55: =K55+N55 -> 0 | R55: =P55-Q55 -> 0 | S55: 0 | T55: 0 | U55: =S55-T55 -> 0 | V55: =P55+S55 -> 0 | W55: =Q55+T55 -> 0 | X55: =V55-W55 -> 0 | Y55: 0 | Z55: 0 | AA55: =Y55-Z55 -> 0 | AB55: =V55+Y55 -> 0 | AC55: =W55+Z55 -> 0 | AD55: =AB55-AC55 -> 0 | AE55: 0 | AF55: 0 | AG55: =AE55-AF55 -> 0 | AH55: =AB55+AE55 -> 0 | AI55: =AC55+AF55 -> 0 | AJ55: =AH55-AI55 -> 0 | AK55: 0 | AL55: 0 | AM55: =AK55-AL55 -> 0 | AN55: =AH55+AK55 -> 0 | AO55: =AI55+AL55 -> 0 | AP55: =AN55-AO55 -> 0 | AQ55: 0 | AR55: 0 | AS55: =AQ55-AR55 -> 0 | AT55: =AN55+AQ55 -> 0 | AU55: =AO55+AR55 -> 0 | AV55: =AT55-AU55 -> 0 | AW55: 0 | AX55: 0 | AY55: =AW55-AX55 -> 0 | AZ55: =AT55+AW55 -> 0 | BA55: =AU55+AX55 -> 0 | BB55: =AZ55-BA55 -> 0 | BC55: 0 | BD55: 0 | BE55: =BC55-BD55 -> 0 | BF55: =AZ55+BC55 -> 0 | BG55: =BA55+BD55 -> 0 | BH55: =BF55-BG55 -> 0 | BI55: 0 | BJ55: 0 | BK55: =BI55-BJ55 -> 0 | BL55: =BF55+BI55 -> 0 | BM55: =BG55+BJ55 -> 0 | BN55: =BL55-BM55 -> 0 | BO55: 0 | BP55: 0 | BQ55: =BO55-BP55 -> 0 | BR55: =BL55+BO55 -> 0 | BS55: =BM55+BP55 -> 0 | BT55: =BR55-BS55 -> 0 | BU55: 0 | BV55: 0 | BW55: =BU55-BV55 -> 0 | BX55: =BR55+BU55 -> 0 | BY55: =BS55+BV55 -> 0 | BZ55: =BX55-BY55 -> 0 | CA55: 0 | CB55: 0 | CC55: =CA55-CB55 -> 0 | CD55: =BX55+CA55 -> 0 | CE55: =BY55+CB55 -> 0 | CF55: =CD55-CE55 -> 0
C56: Saldo | D56: =D54-D55 -> 0 | E56: =E55-E54 -> 0 | G56: =G54-G55 -> 0 | H56: =H55-H54 -> 0 | J56: =J54-J55 -> 0 | K56: =K55-K54 -> 0 | M56: =M54-M55 -> 0 | N56: =N55-N54 -> 0 | P56: =P54-P55 -> 0 | Q56: =Q55-Q54 -> 0 | S56: =S54-S55 -> 0 | T56: =T55-T54 -> 0 | V56: =V54-V55 -> 0 | W56: =W55-W54 -> 0 | Y56: =Y54-Y55 -> 0 | Z56: =Z55-Z54 -> 0 | AB56: =AB54-AB55 -> 0 | AC56: =AC55-AC54 -> 0 | AE56: =AE54-AE55 -> 0 | AF56: =AF55-AF54 -> 0 | AH56: =AH54-AH55 -> 0 | AI56: =AI55-AI54 -> 0 | AK56: =AK54-AK55 -> 0 | AL56: =AL55-AL54 -> 0 | AN56: =AN54-AN55 -> 0 | AO56: =AO55-AO54 -> 0 | AQ56: =AQ54-AQ55 -> 0 | AR56: =AR55-AR54 -> 0 | AT56: =AT54-AT55 -> 0 | AU56: =AU55-AU54 -> 0 | AW56: =AW54-AW55 -> 0 | AX56: =AX55-AX54 -> 0 | AZ56: =AZ54-AZ55 -> 0 | BA56: =BA55-BA54 -> 0 | BC56: =BC54-BC55 -> 0 | BD56: =BD55-BD54 -> 0 | BF56: =BF54-BF55 -> 0 | BG56: =BG55-BG54 -> 0 | BI56: =BI54-BI55 -> 0 | BJ56: =BJ55-BJ54 -> 0 | BL56: =BL54-BL55 -> 0 | BM56: =BM55-BM54 -> 0 | BO56: =BO54-BO55 -> 0 | BP56: =BP55-BP54 -> 0 | BR56: =BR54-BR55 -> 0 | BS56: =BS55-BS54 -> 0 | BU56: =BU54-BU55 -> 0 | BV56: =BV55-BV54 -> 0 | BX56: =BX54-BX55 -> 0 | BY56: =BY55-BY54 -> 0 | CA56: =CA54-CA55 -> 0 | CB56: =CB55-CB54 -> 0 | CD56: =CD54-CD55 -> 0 | CE56: =CE55-CE54 -> 0
B58: Durchlaufende Posten (1361) | C58: Ist | D58: =G58+M58+S58+Y58+AE58+AK58+AQ58+AW58+BC58+BI58+BO58+BU58+CA58 -> 0 | E58: =H58+N58+T58+Z58+AF58+AL58+AR58+AX58+BD58+BJ58+BP58+BV58+CB58 -> 0 | F58: =D58-E58 -> 0 | G58: 0 | H58: 0 | I58: =G58-H58 -> 0 | J58: =G58 -> 0 | K58: =H58 -> 0 | L58: =J58-K58 -> 0 | M58: 0 | N58: 0 | O58: =M58-N58 -> 0 | P58: =J58+M58 -> 0 | Q58: =K58+N58 -> 0 | R58: =P58-Q58 -> 0 | S58: 0 | T58: 0 | U58: =S58-T58 -> 0 | V58: =P58+S58 -> 0 | W58: =Q58+T58 -> 0 | X58: =V58-W58 -> 0 | Y58: 0 | Z58: 0 | AA58: =Y58-Z58 -> 0 | AB58: =V58+Y58 -> 0 | AC58: =W58+Z58 -> 0 | AD58: =AB58-AC58 -> 0 | AE58: 0 | AF58: 0 | AG58: =AE58-AF58 -> 0 | AH58: =AB58+AE58 -> 0 | AI58: =AC58+AF58 -> 0 | AJ58: =AH58-AI58 -> 0 | AK58: 0 | AL58: 0 | AM58: =AK58-AL58 -> 0 | AN58: =AH58+AK58 -> 0 | AO58: =AI58+AL58 -> 0 | AP58: =AN58-AO58 -> 0 | AQ58: 0 | AR58: 0 | AS58: =AQ58-AR58 -> 0 | AT58: =AN58+AQ58 -> 0 | AU58: =AO58+AR58 -> 0 | AV58: =AT58-AU58 -> 0 | AW58: 0 | AX58: 0 | AY58: =AW58-AX58 -> 0 | AZ58: =AT58+AW58 -> 0 | BA58: =AU58+AX58 -> 0 | BB58: =AZ58-BA58 -> 0 | BC58: 0 | BD58: 0 | BE58: =BC58-BD58 -> 0 | BF58: =AZ58+BC58 -> 0 | BG58: =BA58+BD58 -> 0 | BH58: =BF58-BG58 -> 0 | BI58: 0 | BJ58: 0 | BK58: =BI58-BJ58 -> 0 | BL58: =BF58+BI58 -> 0 | BM58: =BG58+BJ58 -> 0 | BN58: =BL58-BM58 -> 0 | BO58: 0 | BP58: 0 | BQ58: =BO58-BP58 -> 0 | BR58: =BL58+BO58 -> 0 | BS58: =BM58+BP58 -> 0 | BT58: =BR58-BS58 -> 0 | BU58: 0 | BV58: 0 | BW58: =BU58-BV58 -> 0 | BX58: =BR58+BU58 -> 0 | BY58: =BS58+BV58 -> 0 | BZ58: =BX58-BY58 -> 0 | CA58: 0 | CB58: 0 | CC58: =CA58-CB58 -> 0 | CD58: =BX58+CA58 -> 0 | CE58: =BY58+CB58 -> 0 | CF58: =CD58-CE58 -> 0
B59: Weiterleitungen | C59: Plan | D59: =G59+M59+S59+Y59+AE59+AK59+AQ59+AW59+BC59+BI59+BO59+BU59+CA59 -> 0 | E59: =H59+N59+T59+Z59+AF59+AL59+AR59+AX59+BD59+BJ59+BP59+BV59+CB59 -> 0 | F59: =D59-E59 -> 0 | G59: 0 | H59: 0 | I59: =G59-H59 -> 0 | J59: =G59 -> 0 | K59: =H59 -> 0 | L59: =J59-K59 -> 0 | M59: 0 | N59: 0 | O59: =M59-N59 -> 0 | P59: =J59+M59 -> 0 | Q59: =K59+N59 -> 0 | R59: =P59-Q59 -> 0 | S59: 0 | T59: 0 | U59: =S59-T59 -> 0 | V59: =P59+S59 -> 0 | W59: =Q59+T59 -> 0 | X59: =V59-W59 -> 0 | Y59: 0 | Z59: 0 | AA59: =Y59-Z59 -> 0 | AB59: =V59+Y59 -> 0 | AC59: =W59+Z59 -> 0 | AD59: =AB59-AC59 -> 0 | AE59: 0 | AF59: 0 | AG59: =AE59-AF59 -> 0 | AH59: =AB59+AE59 -> 0 | AI59: =AC59+AF59 -> 0 | AJ59: =AH59-AI59 -> 0 | AK59: 0 | AL59: 0 | AM59: =AK59-AL59 -> 0 | AN59: =AH59+AK59 -> 0 | AO59: =AI59+AL59 -> 0 | AP59: =AN59-AO59 -> 0 | AQ59: 0 | AR59: 0 | AS59: =AQ59-AR59 -> 0 | AT59: =AN59+AQ59 -> 0 | AU59: =AO59+AR59 -> 0 | AV59: =AT59-AU59 -> 0 | AW59: 0 | AX59: 0 | AY59: =AW59-AX59 -> 0 | AZ59: =AT59+AW59 -> 0 | BA59: =AU59+AX59 -> 0 | BB59: =AZ59-BA59 -> 0 | BC59: 0 | BD59: 0 | BE59: =BC59-BD59 -> 0 | BF59: =AZ59+BC59 -> 0 | BG59: =BA59+BD59 -> 0 | BH59: =BF59-BG59 -> 0 | BI59: 0 | BJ59: 0 | BK59: =BI59-BJ59 -> 0 | BL59: =BF59+BI59 -> 0 | BM59: =BG59+BJ59 -> 0 | BN59: =BL59-BM59 -> 0 | BO59: 0 | BP59: 0 | BQ59: =BO59-BP59 -> 0 | BR59: =BL59+BO59 -> 0 | BS59: =BM59+BP59 -> 0 | BT59: =BR59-BS59 -> 0 | BU59: 0 | BV59: 0 | BW59: =BU59-BV59 -> 0 | BX59: =BR59+BU59 -> 0 | BY59: =BS59+BV59 -> 0 | BZ59: =BX59-BY59 -> 0 | CA59: 0 | CB59: 0 | CC59: =CA59-CB59 -> 0 | CD59: =BX59+CA59 -> 0 | CE59: =BY59+CB59 -> 0 | CF59: =CD59-CE59 -> 0
C60: Saldo | D60: =D58-D59 -> 0 | E60: =E59-E58 -> 0 | G60: =G58-G59 -> 0 | H60: =H59-H58 -> 0 | J60: =J58-J59 -> 0 | K60: =K59-K58 -> 0 | M60: =M58-M59 -> 0 | N60: =N59-N58 -> 0 | P60: =P58-P59 -> 0 | Q60: =Q59-Q58 -> 0 | S60: =S58-S59 -> 0 | T60: =T59-T58 -> 0 | V60: =V58-V59 -> 0 | W60: =W59-W58 -> 0 | Y60: =Y58-Y59 -> 0 | Z60: =Z59-Z58 -> 0 | AB60: =AB58-AB59 -> 0 | AC60: =AC59-AC58 -> 0 | AE60: =AE58-AE59 -> 0 | AF60: =AF59-AF58 -> 0 | AH60: =AH58-AH59 -> 0 | AI60: =AI59-AI58 -> 0 | AK60: =AK58-AK59 -> 0 | AL60: =AL59-AL58 -> 0 | AN60: =AN58-AN59 -> 0 | AO60: =AO59-AO58 -> 0 | AQ60: =AQ58-AQ59 -> 0 | AR60: =AR59-AR58 -> 0 | AT60: =AT58-AT59 -> 0 | AU60: =AU59-AU58 -> 0 | AW60: =AW58-AW59 -> 0 | AX60: =AX59-AX58 -> 0 | AZ60: =AZ58-AZ59 -> 0 | BA60: =BA59-BA58 -> 0 | BC60: =BC58-BC59 -> 0 | BD60: =BD59-BD58 -> 0 | BF60: =BF58-BF59 -> 0 | BG60: =BG59-BG58 -> 0 | BI60: =BI58-BI59 -> 0 | BJ60: =BJ59-BJ58 -> 0 | BL60: =BL58-BL59 -> 0 | BM60: =BM59-BM58 -> 0 | BO60: =BO58-BO59 -> 0 | BP60: =BP59-BP58 -> 0 | BR60: =BR58-BR59 -> 0 | BS60: =BS59-BS58 -> 0 | BU60: =BU58-BU59 -> 0 | BV60: =BV59-BV58 -> 0 | BX60: =BX58-BX59 -> 0 | BY60: =BY59-BY58 -> 0 | CA60: =CA58-CA59 -> 0 | CB60: =CB59-CB58 -> 0 | CD60: =CD58-CD59 -> 0 | CE60: =CE59-CE58 -> 0
B62: Geldtransit PayPal 1368 | C62: Ist | D62: =G62+M62+S62+Y62+AE62+AK62+AQ62+AW62+BC62+BI62+BO62+BU62+CA62 -> 0 | E62: =H62+N62+T62+Z62+AF62+AL62+AR62+AX62+BD62+BJ62+BP62+BV62+CB62 -> 0 | F62: =D62-E62 -> 0 | G62: 0 | H62: 0 | I62: =G62-H62 -> 0 | J62: =G62 -> 0 | K62: =H62 -> 0 | L62: =J62-K62 -> 0 | M62: 0 | N62: 0 | O62: =M62-N62 -> 0 | P62: =J62+M62 -> 0 | Q62: =K62+N62 -> 0 | R62: =P62-Q62 -> 0 | S62: 0 | T62: 0 | U62: =S62-T62 -> 0 | V62: =P62+S62 -> 0 | W62: =Q62+T62 -> 0 | X62: =V62-W62 -> 0 | Y62: 0 | Z62: 0 | AA62: =Y62-Z62 -> 0 | AB62: =V62+Y62 -> 0 | AC62: =W62+Z62 -> 0 | AD62: =AB62-AC62 -> 0 | AE62: 0 | AF62: 0 | AG62: =AE62-AF62 -> 0 | AH62: =AB62+AE62 -> 0 | AI62: =AC62+AF62 -> 0 | AJ62: =AH62-AI62 -> 0 | AK62: 0 | AL62: 0 | AM62: =AK62-AL62 -> 0 | AN62: =AH62+AK62 -> 0 | AO62: =AI62+AL62 -> 0 | AP62: =AN62-AO62 -> 0 | AQ62: 0 | AR62: 0 | AS62: =AQ62-AR62 -> 0 | AT62: =AN62+AQ62 -> 0 | AU62: =AO62+AR62 -> 0 | AV62: =AT62-AU62 -> 0 | AW62: 0 | AX62: 0 | AY62: =AW62-AX62 -> 0 | AZ62: =AT62+AW62 -> 0 | BA62: =AU62+AX62 -> 0 | BB62: =AZ62-BA62 -> 0 | BC62: 0 | BD62: 0 | BE62: =BC62-BD62 -> 0 | BF62: =AZ62+BC62 -> 0 | BG62: =BA62+BD62 -> 0 | BH62: =BF62-BG62 -> 0 | BI62: 0 | BJ62: 0 | BK62: =BI62-BJ62 -> 0 | BL62: =BF62+BI62 -> 0 | BM62: =BG62+BJ62 -> 0 | BN62: =BL62-BM62 -> 0 | BO62: 0 | BP62: 0 | BQ62: =BO62-BP62 -> 0 | BR62: =BL62+BO62 -> 0 | BS62: =BM62+BP62 -> 0 | BT62: =BR62-BS62 -> 0 | BU62: 0 | BV62: 0 | BW62: =BU62-BV62 -> 0 | BX62: =BR62+BU62 -> 0 | BY62: =BS62+BV62 -> 0 | BZ62: =BX62-BY62 -> 0 | CA62: 0 | CB62: 0 | CC62: =CA62-CB62 -> 0 | CD62: =BX62+CA62 -> 0 | CE62: =BY62+CB62 -> 0 | CF62: =CD62-CE62 -> 0
C63: Plan | D63: =G63+M63+S63+Y63+AE63+AK63+AQ63+AW63+BC63+BI63+BO63+BU63+CA63 -> 0 | E63: =H63+N63+T63+Z63+AF63+AL63+AR63+AX63+BD63+BJ63+BP63+BV63+CB63 -> 0 | F63: =D63-E63 -> 0 | G63: 0 | H63: 0 | I63: =G63-H63 -> 0 | J63: =G63 -> 0 | K63: =H63 -> 0 | L63: =J63-K63 -> 0 | M63: 0 | N63: 0 | O63: =M63-N63 -> 0 | P63: =J63+M63 -> 0 | Q63: =K63+N63 -> 0 | R63: =P63-Q63 -> 0 | S63: 0 | T63: 0 | U63: =S63-T63 -> 0 | V63: =P63+S63 -> 0 | W63: =Q63+T63 -> 0 | X63: =V63-W63 -> 0 | Y63: 0 | Z63: 0 | AA63: =Y63-Z63 -> 0 | AB63: =V63+Y63 -> 0 | AC63: =W63+Z63 -> 0 | AD63: =AB63-AC63 -> 0 | AE63: 0 | AF63: 0 | AG63: =AE63-AF63 -> 0 | AH63: =AB63+AE63 -> 0 | AI63: =AC63+AF63 -> 0 | AJ63: =AH63-AI63 -> 0 | AK63: 0 | AL63: 0 | AM63: =AK63-AL63 -> 0 | AN63: =AH63+AK63 -> 0 | AO63: =AI63+AL63 -> 0 | AP63: =AN63-AO63 -> 0 | AQ63: 0 | AR63: 0 | AS63: =AQ63-AR63 -> 0 | AT63: =AN63+AQ63 -> 0 | AU63: =AO63+AR63 -> 0 | AV63: =AT63-AU63 -> 0 | AW63: 0 | AX63: 0 | AY63: =AW63-AX63 -> 0 | AZ63: =AT63+AW63 -> 0 | BA63: =AU63+AX63 -> 0 | BB63: =AZ63-BA63 -> 0 | BC63: 0 | BD63: 0 | BE63: =BC63-BD63 -> 0 | BF63: =AZ63+BC63 -> 0 | BG63: =BA63+BD63 -> 0 | BH63: =BF63-BG63 -> 0 | BI63: 0 | BJ63: 0 | BK63: =BI63-BJ63 -> 0 | BL63: =BF63+BI63 -> 0 | BM63: =BG63+BJ63 -> 0 | BN63: =BL63-BM63 -> 0 | BO63: 0 | BP63: 0 | BQ63: =BO63-BP63 -> 0 | BR63: =BL63+BO63 -> 0 | BS63: =BM63+BP63 -> 0 | BT63: =BR63-BS63 -> 0 | BU63: 0 | BV63: 0 | BW63: =BU63-BV63 -> 0 | BX63: =BR63+BU63 -> 0 | BY63: =BS63+BV63 -> 0 | BZ63: =BX63-BY63 -> 0 | CA63: 0 | CB63: 0 | CC63: =CA63-CB63 -> 0 | CD63: =BX63+CA63 -> 0 | CE63: =BY63+CB63 -> 0 | CF63: =CD63-CE63 -> 0
C64: Saldo | D64: =D62-D63 -> 0 | E64: =E63-E62 -> 0 | G64: =G62-G63 -> 0 | H64: =H63-H62 -> 0 | J64: =J62-J63 -> 0 | K64: =K63-K62 -> 0 | M64: =M62-M63 -> 0 | N64: =N63-N62 -> 0 | P64: =P62-P63 -> 0 | Q64: =Q63-Q62 -> 0 | S64: =S62-S63 -> 0 | T64: =T63-T62 -> 0 | V64: =V62-V63 -> 0 | W64: =W63-W62 -> 0 | Y64: =Y62-Y63 -> 0 | Z64: =Z63-Z62 -> 0 | AB64: =AB62-AB63 -> 0 | AC64: =AC63-AC62 -> 0 | AE64: =AE62-AE63 -> 0 | AF64: =AF63-AF62 -> 0 | AH64: =AH62-AH63 -> 0 | AI64: =AI63-AI62 -> 0 | AK64: =AK62-AK63 -> 0 | AL64: =AL63-AL62 -> 0 | AN64: =AN62-AN63 -> 0 | AO64: =AO63-AO62 -> 0 | AQ64: =AQ62-AQ63 -> 0 | AR64: =AR63-AR62 -> 0 | AT64: =AT62-AT63 -> 0 | AU64: =AU63-AU62 -> 0 | AW64: =AW62-AW63 -> 0 | AX64: =AX63-AX62 -> 0 | AZ64: =AZ62-AZ63 -> 0 | BA64: =BA63-BA62 -> 0 | BC64: =BC62-BC63 -> 0 | BD64: =BD63-BD62 -> 0 | BF64: =BF62-BF63 -> 0 | BG64: =BG63-BG62 -> 0 | BI64: =BI62-BI63 -> 0 | BJ64: =BJ63-BJ62 -> 0 | BL64: =BL62-BL63 -> 0 | BM64: =BM63-BM62 -> 0 | BO64: =BO62-BO63 -> 0 | BP64: =BP63-BP62 -> 0 | BR64: =BR62-BR63 -> 0 | BS64: =BS63-BS62 -> 0 | BU64: =BU62-BU63 -> 0 | BV64: =BV63-BV62 -> 0 | BX64: =BX62-BX63 -> 0 | BY64: =BY63-BY62 -> 0 | CA64: =CA62-CA63 -> 0 | CB64: =CB63-CB62 -> 0 | CD64: =CD62-CD63 -> 0 | CE64: =CE63-CE62 -> 0

Sheet Übersicht
B1: Inhalt | D1: Jahr | G1: Januar | M1: Februar | S1: März | Y1: April | AE1: Mai | AK1: Juni | AQ1: Juli | AW1: August | BC1: September | BI1: Oktober | BO1: November | BU1: Dezember | CA1: Überträge etc.
B2: Liquidität | G2: Monatswerte | J2: Buchungsstand | M2: Monatswerte | P2: Buchungsstand | S2: Monatswerte | V2: Buchungsstand | Y2: Monatswerte | AB2: Buchungsstand | AE2: Monatswerte | AH2: Buchungsstand | AK2: Monatswerte | AN2: Buchungsstand | AQ2: Monatswerte | AT2: Buchungsstand | AW2: Monatswerte | AZ2: Buchungsstand | BC2: Monatswerte | BF2: Buchungsstand | BI2: Monatswerte | BL2: Buchungsstand | BO2: Monatswerte | BR2: Buchungsstand | BU2: Monatswerte | BX2: Buchungsstand | CD2: Buchungsstand
B3: Haushhaltsbeschluss | D3: Einnahmen | E3: Ausgaben | F3: Saldo | G3: Einnahmen | H3: Ausgaben | I3: Saldo | J3: Einnahmen | K3: Ausgaben | L3: Saldo | M3: Einnahmen | N3: Ausgaben | O3: Saldo | P3: Einnahmen | Q3: Ausgaben | R3: Saldo | S3: Einnahmen | T3: Ausgaben | U3: Saldo | V3: Einnahmen | W3: Ausgaben | X3: Saldo | Y3: Einnahmen | Z3: Ausgaben | AA3: Saldo | AB3: Einnahmen | AC3: Ausgaben | AD3: Saldo | AE3: Einnahmen | AF3: Ausgaben | AG3: Saldo | AH3: Einnahmen | AI3: Ausgaben | AJ3: Saldo | AK3: Einnahmen | AL3: Ausgaben | AM3: Saldo | AN3: Einnahmen | AO3: Ausgaben | AP3: Saldo | AQ3: Einnahmen | AR3: Ausgaben | AS3: Saldo | AT3: Einnahmen | AU3: Ausgaben | AV3: Saldo | AW3: Einnahmen | AX3: Ausgaben | AY3: Saldo | AZ3: Einnahmen | BA3: Ausgaben | BB3: Saldo | BC3: Einnahmen | BD3: Ausgaben | BE3: Saldo | BF3: Einnahmen | BG3: Ausgaben | BH3: Saldo | BI3: Einnahmen | BJ3: Ausgaben | BK3: Saldo | BL3: Einnahmen | BM3: Ausgaben | BN3: Saldo | BO3: Einnahmen | BP3: Ausgaben | BQ3: Saldo | BR3: Einnahmen | BS3: Ausgaben | BT3: Saldo | BU3: Einnahmen | BV3: Ausgaben | BW3: Saldo | BX3: Einnahmen | BY3: Ausgaben | BZ3: Saldo | CA3: Einnahmen | CB3: Ausgaben | CC3: Saldo | CD3: Einnahmen | CE3: Ausgaben | CF3: Saldo
B4: Jahressumme | C4: Ist | D4: =D7+D40+D48+D52+D44 -> 0 | E4: 0 | F4: 0 | G4: 0 | H4: 0 | I4: 0 | J4: 0 | K4: 0 | L4: 0 | M4: 0 | N4: 0 | O4: 0 | P4: 0 | Q4: 0 | R4: 0 | S4: 0 | T4: 0 | U4: 0 | V4: 0 | W4: 0 | X4: 0 | Y4: 0 | Z4: 0 | AA4: 0 | AB4: 0 | AC4: 0 | AD4: 0 | AE4: 0 | AF4: 0 | AG4: 0 | AH4: 0 | AI4: 0 | AJ4: =AJ7+AJ40+AJ48+AJ52+AJ44 -> 0 | AK4: 0 | AL4: 0 | AM4: 0 | AN4: 0 | AO4: 0 | AP4: 0 | AQ4: 0 | AR4: 0 | AS4: 0 | AT4: 0 | AU4: 0 | AV4: 0 | AW4: 0 | AX4: 0 | AY4: 0 | AZ4: 0 | BA4: 0 | BB4: 0 | BC4: 0 | BD4: 0 | BE4: 0 | BF4: 0 | BG4: 0 | BH4: 0 | BI4: 0 | BJ4: 0 | BK4: 0 | BL4: 0 | BM4: 0 | BN4: 0 | BO4: 0 | BP4: =BP7+BP40+BP48+BP52+BP44 -> 0 | BQ4: 0 | BR4: 0 | BS4: 0 | BT4: 0 | BU4: 0 | BV4: 0 | BW4: 0 | BX4: 0 | BY4: 50000 | BZ4: -50000 | CA4: 0 | CB4: 0 | CC4: 0 | CD4: 0 | CE4: 50000 | CF4: -50000
B5: Haushalt 2025 | C5: Plan | D5: =D8+D41+D49+D53 -> 1785200 | E5: =E8+E41+E49+E53+E45 -> 1828672.699 | F5: =F8+F41+F49+F53+F45 -> -43472.69923 | G5: 120000 | H5: 97951.05827 | I5: 22048.94173 | J5: 119370.1347 | K5: 97321.19295 | L5: 22048.94173 | M5: 120000 | N5: 141751.0583 | O5: -21751.05827 | P5: 240000 | Q5: 239072.2512 | R5: 927.7487767 | S5: 155000 | T5: 127751.0583 | U5: 27248.94173 | V5: 399259.7306 | W5: 364303.8482 | X5: 34955.8824 | Y5: 120000 | Z5: 99751.05827 | AA5: 20248.94173 | AB5: 514370.1347 | AC5: 461684.7718 | AD5: 52685.36287 | AE5: 120000 | AF5: 141751.0583 | AG5: -21751.05827 | AH5: 638000 | AI5: 603435.8301 | AJ5: 34564.16991 | AK5: =AK8+AK41+AK49+AK53+AK45 -> 155000 | AL5: 127751.0583 | AM5: 27248.94173 | AN5: 792519.4613 | AO5: 727407.6965 | AP5: 65111.7648 | AQ5: 120000 | AR5: 96751.05827 | AS5: 23248.94173 | AT5: 919370.1347 | AU5: 826048.3507 | AV5: 93321.78401 | AW5: 120000 | AX5: 162751.0583 | AY5: -42751.05827 | AZ5: 1063000 | BA5: 988799.4089 | BB5: 74200.59105 | BC5: 155000 | BD5: 104751.0583 | BE5: 50248.94173 | BF5: 1231779.192 | BG5: 1088511.545 | BH5: 143267.6472 | BI5: 120000 | BJ5: 103751.0583 | BK5: 16248.94173 | BL5: 1304370.135 | BM5: 1158411.93 | BN5: 145958.2051 | BO5: 120000 | BP5: 162751.0583 | BQ5: =BQ8+BQ41+BQ49+BQ53+BQ45 -> -42751.05827 | BR5: 1425000 | BS5: 1321162.988 | BT5: 103837.0122 | BU5: 360200 | BV5: 461211.0583 | BW5: -101011.0583 | BX5: 1686038.923 | BY5: 1784575.393 | BZ5: -98536.4704 | CA5: 0 | CB5: 0 | CC5: 0 | CD5: 1680370.135 | CE5: 1789614.315 | CF5: -109244.1808
C6: Saldo | D6: =D4-D5 -> -1785200 | E6: =E5-E4 -> 1828672.699 | F6: =F4-F5 -> 43472.69923 | G6: =G4-G5 -> -120000 | H6: =H5-H4 -> 97951.05827 | I6: =I4-I5 -> -22048.94173 | J6: =J4-J5 -> -119370.1347 | K6: =K4-K5 -> -97321.19295 | L6: =L4-L5 -> -22048.94173 | M6: =M4-M5 -> -120000 | N6: =N5-N4 -> 141751.0583 | O6: =O4-O5 -> 21751.05827 | P6: =P4-P5 -> -240000 | Q6: =Q4-Q5 -> -239072.2512 | R6: =R4-R5 -> -927.7487767 | S6: =S4-S5 -> -155000 | T6: =T5-T4 -> 127751.0583 | U6: =U4-U5 -> -27248.94173 | V6: =V4-V5 -> -399259.7306 | W6: =W4-W5 -> -364303.8482 | X6: =X4-X5 -> -34955.8824 | Y6: =Y4-Y5 -> -120000 | Z6: =Z5-Z4 -> 99751.05827 | AA6: =AA4-AA5 -> -20248.94173 | AB6: =AB4-AB5 -> -514370.1347 | AC6: =AC4-AC5 -> -461684.7718 | AD6: =AD4-AD5 -> -52685.36287 | AE6: =AE4-AE5 -> -120000 | AF6: =AF5-AF4 -> 141751.0583 | AG6: =AG4-AG5 -> 21751.05827 | AH6: =AH4-AH5 -> -638000 | AI6: =AI4-AI5 -> -603435.8301 | AJ6: =AJ4-AJ5 -> -34564.16991 | AK6: =AK4-AK5 -> -155000 | AL6: =AL5-AL4 -> 127751.0583 | AM6: =AM4-AM5 -> -27248.94173 | AN6: =AN4-AN5 -> -792519.4613 | AO6: =AO4-AO5 -> -727407.6965 | AP6: =AP4-AP5 -> -65111.7648 | AQ6: =AQ4-AQ5 -> -120000 | AR6: =AR5-AR4 -> 96751.05827 | AS6: =AS4-AS5 -> -23248.94173 | AT6: =AT4-AT5 -> -919370.1347 | AU6: =AU4-AU5 -> -826048.3507 | AV6: =AV4-AV5 -> -93321.78401 | AW6: =AW4-AW5 -> -120000 | AX6: =AX5-AX4 -> 162751.0583 | AY6: =AY4-AY5 -> 42751.05827 | AZ6: =AZ4-AZ5 -> -1063000 | BA6: =BA4-BA5 -> -988799.4089 | BB6: =BB4-BB5 -> -74200.59105 | BC6: =BC4-BC5 -> -155000 | BD6: =BD5-BD4 -> 104751.0583 | BE6: =BE4-BE5 -> -50248.94173 | BF6: =BF4-BF5 -> -1231779.192 | BG6: =BG4-BG5 -> -1088511.545 | BH6: =BH4-BH5 -> -143267.6472 | BI6: =BI4-BI5 -> -120000 | BJ6: =BJ5-BJ4 -> 103751.0583 | BK6: =BK4-BK5 -> -16248.94173 | BL6: =BL4-BL5 -> -1304370.135 | BM6: =BM4-BM5 -> -1158411.93 | BN6: =BN4-BN5 -> -145958.2051 | BO6: =BO4-BO5 -> -120000 | BP6: =BP5-BP4 -> 162751.0583 | BQ6: =BQ4-BQ5 -> 42751.05827 | BR6: =BR4-BR5 -> -1425000 | BS6: =BS4-BS5 -> -1321162.988 | BT6: =BT4-BT5 -> -103837.0122 | BU6: =BU4-BU5 -> -360200 | BV6: =BV5-BV4 -> 461211.0583 | BW6: =BW4-BW5 -> 101011.0583 | BX6: =BX4-BX5 -> -1686038.923 | BY6: =BY4-BY5 -> -1734575.393 | BZ6: =BZ4-BZ5 -> 48536.4704 | CA6: =CA4-CA5 -> 0 | CB6: =CB5-CB4 -> 0 | CC6: =CC4-CC5 -> 0 | CD6: =CD4-CD5 -> -1680370.135 | CE6: =CE4-CE5 -> -1739614.315 | CF6: =CF4-CF5 -> 59244.18076
A7: 1 | B7: Attac Bundespräsenz | C7: Ist | D7: =D10+D14+D18+D22+D26+D30+D34 -> 0 | E7: =E10+E14+E18+E22+E26+E30+E34 -> 0 | F7: =F10+F14+F18+F22+F26+F30+F34 -> 0 | G7: 0 | H7: 0 | I7: 0 | J7: 0 | K7: 0 | L7: 0 | M7: 0 | N7: 0 | O7: 0 | P7: 0 | Q7: 0 | R7: 0 | S7: 0 | T7: 0 | U7: 0 | V7: 0 | W7: 0 | X7: 0 | Y7: 0 | Z7: 0 | AA7: 0 | AB7: 0 | AC7: 0 | AD7: 0 | AE7: 0 | AF7: 0 | AG7: 0 | AH7: 0 | AI7: 0 | AJ7: 0 | AK7: 0 | AL7: 0 | AM7: 0 | AN7: 0 | AO7: 0 | AP7: 0 | AQ7: 0 | AR7: 0 | AS7: 0 | AT7: 0 | AU7: 0 | AV7: 0 | AW7: 0 | AX7: 0 | AY7: 0 | AZ7: 0 | BA7: 0 | BB7: 0 | BC7: 0 | BD7: 0 | BE7: 0 | BF7: 0 | BG7: 0 | BH7: 0 | BI7: 0 | BJ7: 0 | BK7: 0 | BL7: 0 | BM7: 0 | BN7: 0 | BO7: 0 | BP7: 0 | BQ7: =BQ10+BQ14+BQ18+BQ22+BQ26+BQ30+BQ34 -> 0 | BR7: 0 | BS7: 0 | BT7: 0 | BU7: 0 | BV7: 0 | BW7: 0 | BX7: 0 | BY7: 50000 | BZ7: -50000 | CA7: 0 | CB7: 0 | CC7: 0 | CD7: 0 | CE7: 50000 | CF7: -50000
C8: Plan | D8: =D11+D15+D19+D23+D27+D31+D35 -> 1665200 | E8: =E11+E15+E19+E23+E27+E31+E35 -> 1182570.282 | F8: =F11+F15+F19+F23+F27+F31+F35 -> 482629.7183 | G8: 120000 | H8: 74775.85681 | I8: 45224.14319 | J8: 119370.1347 | K8: 74145.99149 | L8: 45224.14319 | M8: 120000 | N8: 73575.85681 | O8: 46424.14319 | P8: 240000 | Q8: 147721.8483 | R8: 92278.1517 | S8: 155000 | T8: 104575.8568 | U8: 50424.14319 | V8: 396259.7306 | W8: 249778.2439 | X8: 146481.4868 | Y8: 120000 | Z8: 73575.85681 | AA8: 46424.14319 | AB8: 514370.1347 | AC8: 323983.966 | AD8: 190386.1687 | AE8: 120000 | AF8: 73575.85681 | AG8: 46424.14319 | AH8: 635000 | AI8: 397559.8228 | AJ8: 237440.1772 | AK8: 155000 | AL8: 104575.8568 | AM8: 50424.14319 | AN8: 792519.4613 | AO8: 498356.4877 | AP8: 294162.9736 | AQ8: 120000 | AR8: 73575.85681 | AS8: 46424.14319 | AT8: 909370.1347 | AU8: 573821.9405 | AV8: 335548.1942 | AW8: 120000 | AX8: 94575.85681 | AY8: 25424.14319 | AZ8: 1030000 | BA8: 668397.7973 | BB8: 361602.2027 | BC8: 155000 | BD8: 81575.85681 | BE8: 73424.14319 | BF8: 1188779.192 | BG8: 744934.7316 | BH8: 443844.4603 | BI8: 120000 | BJ8: 73575.85681 | BK8: 46424.14319 | BL8: 1304370.135 | BM8: 791659.9149 | BN8: 512710.2197 | BO8: 120000 | BP8: 94575.85681 | BQ8: =BQ11+BQ15+BQ19+BQ23+BQ27+BQ31+BQ35 -> 25424.14319 | BR8: 1425000 | BS8: 886235.7717 | BT8: 538764.2283 | BU8: 240200 | BV8: 260035.8568 | BW8: -19835.85681 | BX8: 1666038.923 | BY8: 1181472.975 | BZ8: 484565.9471 | CA8: 0 | CB8: 0 | CC8: 0 | CD8: 1660370.135 | CE8: 1186511.898 | CF8: 473858.2368
C9: Saldo | D9: =D7-D8 -> -1665200 | E9: =E8-E7 -> 1182570.282 | F9: =F7-F8 -> -482629.7183 | G9: -120000 | H9: =H8-H7 -> 74775.85681 | I9: -45224.14319 | J9: -119370.1347 | K9: -74145.99149 | L9: -45224.14319 | M9: -120000 | N9: =N8-N7 -> 73575.85681 | O9: -46424.14319 | P9: -240000 | Q9: -147721.8483 | R9: -92278.1517 | S9: -155000 | T9: =T8-T7 -> 104575.8568 | U9: -50424.14319 | V9: -396259.7306 | W9: -249778.2439 | X9: -146481.4868 | Y9: -120000 | Z9: =Z8-Z7 -> 73575.85681 | AA9: -46424.14319 | AB9: -514370.1347 | AC9: -323983.966 | AD9: -190386.1687 | AE9: -120000 | AF9: -73575.85681 | AG9: -46424.14319 | AH9: -635000 | AI9: -397559.8228 | AJ9: -237440.1772 | AK9: -155000 | AL9: -104575.8568 | AM9: -50424.14319 | AN9: -792519.4613 | AO9: -498356.4877 | AP9: -294162.9736 | AQ9: -120000 | AR9: -73575.85681 | AS9: -46424.14319 | AT9: -909370.1347 | AU9: -573821.9405 | AV9: -335548.1942 | AW9: -120000 | AX9: =AX8-AX7 -> 94575.85681 | AY9: -25424.14319 | AZ9: -1030000 | BA9: -668397.7973 | BB9: -361602.2027 | BC9: -155000 | BD9: =BD8-BD7 -> 81575.85681 | BE9: -73424.14319 | BF9: -1188779.192 | BG9: -744934.7316 | BH9: -443844.4603 | BI9: -120000 | BJ9: =BJ8-BJ7 -> 73575.85681 | BK9: -46424.14319 | BL9: -1304370.135 | BM9: -791659.9149 | BN9: -512710.2197 | BO9: -120000 | BP9: =BP8-BP7 -> 94575.85681 | BQ9: =BQ7-BQ8 -> -25424.14319 | BR9: -1425000 | BS9: -886235.7717 | BT9: -538764.2283 | BU9: -240200 | BV9: =BV8-BV7 -> 260035.8568 | BW9: 19835.85681 | BX9: -1666038.923 | BY9: -1131472.975 | BZ9: -534565.9471 | CA9: 0 | CB9: 0 | CC9: 0 | CD9: -1660370.135 | CE9: -1136511.898 | CF9: -523858.2368
A10: 1.1 | B10: Mitglieder / Spendende | C10: Ist | D10: =MitgSpend!D4 -> 0 | E10: =MitgSpend!E4 -> 0 | F10: =D10-E10 -> 0 | G10: =MitgSpend!G4 -> 0 | H10: =MitgSpend!H4 -> 0 | I10: =G10-H10 -> 0 | J10: =MitgSpend!I4 -> 0 | K10: =MitgSpend!J4 -> 0 | L10: =J10-K10 -> 0 | M10: =MitgSpend!K4 -> 0 | N10: =MitgSpend!L4 -> 0 | O10: =M10-N10 -> 0 | P10: =MitgSpend!M4 -> 0 | Q10: =MitgSpend!N4 -> 0 | R10: =P10-Q10 -> 0 | S10: =MitgSpend!O4 -> 0 | T10: =MitgSpend!P4 -> 0 | U10: =S10-T10 -> 0 | V10: =MitgSpend!Q4 -> 0 | W10: =MitgSpend!R4 -> 0 | X10: =V10-W10 -> 0 | Y10: =MitgSpend!S4 -> 0 | Z10: =MitgSpend!T4 -> 0 | AA10: =Y10-Z10 -> 0 | AB10: =MitgSpend!U4 -> 0 | AC10: =MitgSpend!V4 -> 0 | AD10: =AB10-AC10 -> 0 | AE10: =MitgSpend!W4 -> 0 | AF10: =MitgSpend!X4 -> 0 | AG10: =AE10-AF10 -> 0 | AH10: =MitgSpend!Y4 -> 0 | AI10: =MitgSpend!Z4 -> 0 | AJ10: =AH10-AI10 -> 0 | AK10: =MitgSpend!AA4 -> 0 | AL10: =MitgSpend!AB4 -> 0 | AM10: =AK10-AL10 -> 0 | AN10: =MitgSpend!AC4 -> 0 | AO10: =MitgSpend!AD4 -> 0 | AP10: =AN10-AO10 -> 0 | AQ10: =MitgSpend!AE4 -> 0 | AR10: =MitgSpend!AF4 -> 0 | AS10: =AQ10-AR10 -> 0 | AT10: =MitgSpend!AG4 -> 0 | AU10: =MitgSpend!AH4 -> 0 | AV10: =AT10-AU10 -> 0 | AW10: =MitgSpend!AI4 -> 0 | AX10: =MitgSpend!AJ4 -> 0 | AY10: =AW10-AX10 -> 0 | AZ10: =MitgSpend!AK4 -> 0 | BA10: =MitgSpend!AL4 -> 0 | BB10: =AZ10-BA10 -> 0 | BC10: =MitgSpend!AM4 -> 0 | BD10: =MitgSpend!AN4 -> 0 | BE10: =BC10-BD10 -> 0 | BF10: =MitgSpend!AO4 -> 0 | BG10: =MitgSpend!AP4 -> 0 | BH10: =BF10-BG10 -> 0 | BI10: =MitgSpend!AQ4 -> 0 | BJ10: =MitgSpend!AR4 -> 0 | BK10: =BI10-BJ10 -> 0 | BL10: =MitgSpend!AS4 -> 0 | BM10: =MitgSpend!AT4 -> 0 | BN10: =BL10-BM10 -> 0 | BO10: =MitgSpend!AU4 -> 0 | BP10: =MitgSpend!AV4 -> 0 | BQ10: =BO10-BP10 -> 0 | BR10: =MitgSpend!AW4 -> 0 | BS10: =MitgSpend!AX4 -> 0 | BT10: =BR10-BS10 -> 0 | BU10: =MitgSpend!AY4 -> 0 | BV10: =MitgSpend!AZ4 -> 0 | BW10: =BU10-BV10 -> 0 | BX10: =MitgSpend!BA4 -> 0 | BY10: =MitgSpend!BB4 -> 50000 | BZ10: =BX10-BY10 -> -50000 | CA10: =MitgSpend!BC4 -> 0 | CB10: =MitgSpend!BD4 -> 0 | CC10: =CA10-CB10 -> 0 | CD10: =MitgSpend!BE4 -> 0 | CE10: =MitgSpend!BF4 -> 50000 | CF10: =CD10-CE10 -> -50000
C11: Plan | D11: =MitgSpend!D5 -> 1661000 | E11: =MitgSpend!E5 -> 161210.5114 | F11: =D11-E11 -> 1499789.489 | G11: =MitgSpend!G5 -> 120000 | H11: =MitgSpend!H5 -> 8670.87595 | I11: =G11-H11 -> 111329.124 | J11: =MitgSpend!I5 -> 120000 | K11: =MitgSpend!J5 -> 8670.87595 | L11: =J11-K11 -> 111329.124 | M11: =MitgSpend!K5 -> 120000 | N11: =MitgSpend!L5 -> 8670.87595 | O11: =M11-N11 -> 111329.124 | P11: =MitgSpend!M5 -> 240000 | Q11: =MitgSpend!N5 -> 17341.7519 | R11: =P11-Q11 -> 222658.2481 | S11: =MitgSpend!O5 -> 155000 | T11: =MitgSpend!P5 -> 18670.87595 | U11: =S11-T11 -> 136329.124 | V11: =MitgSpend!Q5 -> 395000 | W11: =MitgSpend!R5 -> 36012.62785 | X11: =V11-W11 -> 358987.3721 | Y11: =MitgSpend!S5 -> 120000 | Z11: =MitgSpend!T5 -> 8670.87595 | AA11: =Y11-Z11 -> 111329.124 | AB11: =MitgSpend!U5 -> 515000 | AC11: =MitgSpend!V5 -> 44683.5038 | AD11: =AB11-AC11 -> 470316.4962 | AE11: =MitgSpend!W5 -> 120000 | AF11: =MitgSpend!X5 -> 8670.87595 | AG11: =AE11-AF11 -> 111329.124 | AH11: =MitgSpend!Y5 -> 635000 | AI11: =MitgSpend!Z5 -> 53354.37975 | AJ11: =AH11-AI11 -> 581645.6202 | AK11: =MitgSpend!AA5 -> 155000 | AL11: =MitgSpend!AB5 -> 18670.87595 | AM11: =AK11-AL11 -> 136329.124 | AN11: =MitgSpend!AC5 -> 790000 | AO11: =MitgSpend!AD5 -> 72025.2557 | AP11: =AN11-AO11 -> 717974.7443 | AQ11: =MitgSpend!AE5 -> 120000 | AR11: =MitgSpend!AF5 -> 8670.87595 | AS11: =AQ11-AR11 -> 111329.124 | AT11: =MitgSpend!AG5 -> 910000 | AU11: =MitgSpend!AH5 -> 80696.13165 | AV11: =AT11-AU11 -> 829303.8683 | AW11: =MitgSpend!AI5 -> 120000 | AX11: =MitgSpend!AJ5 -> 8670.87595 | AY11: =AW11-AX11 -> 111329.124 | AZ11: =MitgSpend!AK5 -> 1030000 | BA11: =MitgSpend!AL5 -> 89367.0076 | BB11: =AZ11-BA11 -> 940632.9924 | BC11: =MitgSpend!AM5 -> 155000 | BD11: =MitgSpend!AN5 -> 16670.87595 | BE11: =BC11-BD11 -> 138329.124 | BF11: =MitgSpend!AO5 -> 1185000 | BG11: =MitgSpend!AP5 -> 106037.8836 | BH11: =BF11-BG11 -> 1078962.116 | BI11: =MitgSpend!AQ5 -> 120000 | BJ11: =MitgSpend!AR5 -> 8670.87595 | BK11: =BI11-BJ11 -> 111329.124 | BL11: =MitgSpend!AS5 -> 1305000 | BM11: =MitgSpend!AT5 -> 114708.7595 | BN11: =BL11-BM11 -> 1190291.24 | BO11: =MitgSpend!AU5 -> 120000 | BP11: =MitgSpend!AV5 -> 8670.87595 | BQ11: =BO11-BP11 -> 111329.124 | BR11: =MitgSpend!AW5 -> 1425000 | BS11: =MitgSpend!AX5 -> 123379.6355 | BT11: =BR11-BS11 -> 1301620.365 | BU11: =MitgSpend!AY5 -> 236000 | BV11: =MitgSpend!AZ5 -> 37830.87595 | BW11: =BU11-BV11 -> 198169.124 | BX11: =MitgSpend!BA5 -> 1661000 | BY11: =MitgSpend!BB5 -> 211210.5114 | BZ11: =BX11-BY11 -> 1449789.489 | CA11: =MitgSpend!BC5 -> 0 | CB11: =MitgSpend!BD5 -> 0 | CC11: =CA11-CB11 -> 0 | CD11: =MitgSpend!BE5 -> 1661000 | CE11: =MitgSpend!BF5 -> 211210.5114 | CF11: =CD11-CE11 -> 1449789.489
C12: Saldo | D12: =D10-D11 -> -1661000 | E12: =E11-E10 -> 161210.5114 | F12: =F10-F11 -> -1499789.489 | G12: =G10-G11 -> -120000 | H12: =H11-H10 -> 8670.87595 | J12: =J10-J11 -> -120000 | K12: =K11-K10 -> 8670.87595 | M12: =M10-M11 -> -120000 | N12: =N11-N10 -> 8670.87595 | P12: =P10-P11 -> -240000 | Q12: =Q11-Q10 -> 17341.7519 | S12: =S10-S11 -> -155000 | T12: =T11-T10 -> 18670.87595 | V12: =V10-V11 -> -395000 | W12: =W11-W10 -> 36012.62785 | Y12: =Y10-Y11 -> -120000 | Z12: =Z11-Z10 -> 8670.87595 | AB12: =AB10-AB11 -> -515000 | AC12: =AC11-AC10 -> 44683.5038 | AE12: =AE10-AE11 -> -120000 | AF12: =AF11-AF10 -> 8670.87595 | AH12: =AH10-AH11 -> -635000 | AI12: =AI11-AI10 -> 53354.37975 | AK12: =AK10-AK11 -> -155000 | AL12: =AL11-AL10 -> 18670.87595 | AN12: =AN10-AN11 -> -790000 | AO12: =AO11-AO10 -> 72025.2557 | AP12: =AP10-AP11 -> -717974.7443 | AQ12: =AQ10-AQ11 -> -120000 | AR12: =AR11-AR10 -> 8670.87595 | AT12: =AT10-AT11 -> -910000 | AU12: =AU11-AU10 -> 80696.13165 | AW12: =AW10-AW11 -> -120000 | AX12: =AX11-AX10 -> 8670.87595 | AZ12: =AZ10-AZ11 -> -1030000 | BA12: =BA11-BA10 -> 89367.0076 | BC12: =BC10-BC11 -> -155000 | BD12: =BD11-BD10 -> 16670.87595 | BF12: =BF10-BF11 -> -1185000 | BG12: =BG11-BG10 -> 106037.8836 | BI12: =BI10-BI11 -> -120000 | BJ12: =BJ11-BJ10 -> 8670.87595 | BL12: =BL10-BL11 -> -1305000 | BM12: =BM11-BM10 -> 114708.7595 | BO12: =BO10-BO11 -> -120000 | BP12: =BP11-BP10 -> 8670.87595 | BR12: =BR10-BR11 -> -1425000 | BS12: =BS11-BS10 -> 123379.6355 | BU12: =BU10-BU11 -> -236000 | BV12: =BV11-BV10 -> 37830.87595 | BX12: =BX10-BX11 -> -1661000 | BY12: =BY11-BY10 -> 161210.5114 | CA12: =CA10-CA11 -> 0 | CB12: =CB11-CB10 -> 0 | CD12: =CD10-CD11 -> -1661000 | CE12: =CE11-CE10 -> 161210.5114
A14: 1.2 | B14: Verwaltung | C14: Ist | D14: =Verwaltung!D4 -> 0 | E14: =Verwaltung!E4 -> 0 | F14: =D14-E14 -> 0 | G14: =Verwaltung!G4 -> 0 | H14: =Verwaltung!H4 -> 0 | I14: =G14-H14 -> 0 | J14: =Verwaltung!I4 -> 0 | K14: =Verwaltung!J4 -> 0 | L14: =J14-K14 -> 0 | M14: =Verwaltung!K4 -> 0 | N14: =Verwaltung!L4 -> 0 | O14: =M14-N14 -> 0 | P14: =Verwaltung!M4 -> 0 | Q14: =Verwaltung!N4 -> 0 | R14: =P14-Q14 -> 0 | S14: =Verwaltung!O4 -> 0 | T14: =Verwaltung!P4 -> 0 | U14: =S14-T14 -> 0 | V14: =Verwaltung!Q4 -> 0 | W14: =Verwaltung!R4 -> 0 | X14: =V14-W14 -> 0 | Y14: =Verwaltung!S4 -> 0 | Z14: =Verwaltung!T4 -> 0 | AA14: =Y14-Z14 -> 0 | AB14: =Verwaltung!U4 -> 0 | AC14: =Verwaltung!V4 -> 0 | AD14: =AB14-AC14 -> 0 | AE14: =Verwaltung!W4 -> 0 | AF14: =Verwaltung!X4 -> 0 | AG14: =AE14-AF14 -> 0 | AH14: =Verwaltung!Y4 -> 0 | AI14: =Verwaltung!Z4 -> 0 | AJ14: =AH14-AI14 -> 0 | AK14: =Verwaltung!AA4 -> 0 | AL14: =Verwaltung!AB4 -> 0 | AM14: =AK14-AL14 -> 0 | AN14: =Verwaltung!AC4 -> 0 | AO14: =Verwaltung!AD4 -> 0 | AP14: =AN14-AO14 -> 0 | AQ14: =Verwaltung!AE4 -> 0 | AR14: =Verwaltung!AF4 -> 0 | AS14: =AQ14-AR14 -> 0 | AT14: =Verwaltung!AG4 -> 0 | AU14: =Verwaltung!AH4 -> 0 | AV14: =AT14-AU14 -> 0 | AW14: =Verwaltung!AI4 -> 0 | AX14: =Verwaltung!AJ4 -> 0 | AY14: =AW14-AX14 -> 0 | AZ14: =Verwaltung!AK4 -> 0 | BA14: =Verwaltung!AL4 -> 0 | BB14: =AZ14-BA14 -> 0 | BC14: =Verwaltung!AM4 -> 0 | BD14: =Verwaltung!AN4 -> 0 | BE14: =BC14-BD14 -> 0 | BF14: =Verwaltung!AO4 -> 0 | BG14: =Verwaltung!AP4 -> 0 | BH14: =BF14-BG14 -> 0 | BI14: =Verwaltung!AQ4 -> 0 | BJ14: =Verwaltung!AR4 -> 0 | BK14: =BI14-BJ14 -> 0 | BL14: =Verwaltung!AS4 -> 0 | BM14: =Verwaltung!AT4 -> 0 | BN14: =BL14-BM14 -> 0 | BO14: =Verwaltung!AU4 -> 0 | BP14: =Verwaltung!AV4 -> 0 | BQ14: =BO14-BP14 -> 0 | BR14: =Verwaltung!AW4 -> 0 | BS14: =Verwaltung!AX4 -> 0 | BT14: =BR14-BS14 -> 0 | BU14: =Verwaltung!AY4 -> 0 | BV14: =Verwaltung!AZ4 -> 0 | BW14: =BU14-BV14 -> 0 | BX14: =Verwaltung!BA4 -> 0 | BY14: =Verwaltung!BB4 -> 0 | BZ14: =BX14-BY14 -> 0 | CA14: =Verwaltung!BC4 -> 0 | CB14: =Verwaltung!BD4 -> 0 | CC14: =CA14-CB14 -> 0 | CD14: =Verwaltung!BE4 -> 0 | CE14: =Verwaltung!BF4 -> 0 | CF14: =CD14-CE14 -> 0
C15: Plan | D15: =Verwaltung!D5 -> 0 | E15: =Verwaltung!E5 -> 117900 | F15: =D15-E15 -> -117900 | G15: =Verwaltung!G5 -> 0 | H15: =Verwaltung!H5 -> 5100 | I15: =G15-H15 -> -5100 | J15: =Verwaltung!I5 -> 0 | K15: =Verwaltung!J5 -> 5100 | L15: =J15-K15 -> -5100 | M15: =Verwaltung!K5 -> 0 | N15: =Verwaltung!L5 -> 5100 | O15: =M15-N15 -> -5100 | P15: =Verwaltung!M5 -> 0 | Q15: =Verwaltung!N5 -> 10200 | R15: =P15-Q15 -> -10200 | S15: =Verwaltung!O5 -> 0 | T15: =Verwaltung!P5 -> 5100 | U15: =S15-T15 -> -5100 | V15: =Verwaltung!Q5 -> 0 | W15: =Verwaltung!R5 -> 15300 | X15: =V15-W15 -> -15300 | Y15: =Verwaltung!S5 -> 0 | Z15: =Verwaltung!T5 -> 5100 | AA15: =Y15-Z15 -> -5100 | AB15: =Verwaltung!U5 -> 0 | AC15: =Verwaltung!V5 -> 20400 | AD15: =AB15-AC15 -> -20400 | AE15: =Verwaltung!W5 -> 0 | AF15: =Verwaltung!X5 -> 5100 | AG15: =AE15-AF15 -> -5100 | AH15: =Verwaltung!Y5 -> 0 | AI15: =Verwaltung!Z5 -> 25500 | AJ15: =AH15-AI15 -> -25500 | AK15: =Verwaltung!AA5 -> 0 | AL15: =Verwaltung!AB5 -> 5100 | AM15: =AK15-AL15 -> -5100 | AN15: =Verwaltung!AC5 -> 0 | AO15: =Verwaltung!AD5 -> 30600 | AP15: =AN15-AO15 -> -30600 | AQ15: =Verwaltung!AE5 -> 0 | AR15: =Verwaltung!AF5 -> 5100 | AS15: =AQ15-AR15 -> -5100 | AT15: =Verwaltung!AG5 -> 0 | AU15: =Verwaltung!AH5 -> 35700 | AV15: =AT15-AU15 -> -35700 | AW15: =Verwaltung!AI5 -> 0 | AX15: =Verwaltung!AJ5 -> 5100 | AY15: =AW15-AX15 -> -5100 | AZ15: =Verwaltung!AK5 -> 0 | BA15: =Verwaltung!AL5 -> 40800 | BB15: =AZ15-BA15 -> -40800 | BC15: =Verwaltung!AM5 -> 0 | BD15: =Verwaltung!AN5 -> 5100 | BE15: =BC15-BD15 -> -5100 | BF15: =Verwaltung!AO5 -> 0 | BG15: =Verwaltung!AP5 -> 45900 | BH15: =BF15-BG15 -> -45900 | BI15: =Verwaltung!AQ5 -> 0 | BJ15: =Verwaltung!AR5 -> 5100 | BK15: =BI15-BJ15 -> -5100 | BL15: =Verwaltung!AS5 -> 0 | BM15: =Verwaltung!AT5 -> 51000 | BN15: =BL15-BM15 -> -51000 | BO15: =Verwaltung!AU5 -> 0 | BP15: =Verwaltung!AV5 -> 5100 | BQ15: =BO15-BP15 -> -5100 | BR15: =Verwaltung!AW5 -> 0 | BS15: =Verwaltung!AX5 -> 56100 | BT15: =BR15-BS15 -> -56100 | BU15: =Verwaltung!AY5 -> 0 | BV15: =Verwaltung!AZ5 -> 61800 | BW15: =BU15-BV15 -> -61800 | BX15: =Verwaltung!BA5 -> 0 | BY15: =Verwaltung!BB5 -> 117900 | BZ15: =BX15-BY15 -> -117900 | CA15: =Verwaltung!BC5 -> 0 | CB15: =Verwaltung!BD5 -> 0 | CC15: =CA15-CB15 -> 0 | CD15: =Verwaltung!BE5 -> 0 | CE15: =Verwaltung!BF5 -> 117900 | CF15: =CD15-CE15 -> -117900
C16: Saldo | D16: =D14-D15 -> 0 | E16: =E15-E14 -> 117900 | F16: =F14-F15 -> 117900 | G16: =G14-G15 -> 0 | H16: =H15-H14 -> 5100 | J16: =J14-J15 -> 0 | K16: =K15-K14 -> 5100 | M16: =M14-M15 -> 0 | N16: =N15-N14 -> 5100 | P16: =P14-P15 -> 0 | Q16: =Q15-Q14 -> 10200 | S16: =S14-S15 -> 0 | T16: =T15-T14 -> 5100 | V16: =V14-V15 -> 0 | W16: =W15-W14 -> 15300 | Y16: =Y14-Y15 -> 0 | Z16: =Z15-Z14 -> 5100 | AB16: =AB14-AB15 -> 0 | AC16: =AC15-AC14 -> 20400 | AE16: =AE14-AE15 -> 0 | AF16: =AF15-AF14 -> 5100 | AH16: =AH14-AH15 -> 0 | AI16: =AI15-AI14 -> 25500 | AK16: =AK14-AK15 -> 0 | AL16: =AL15-AL14 -> 5100 | AN16: =AN14-AN15 -> 0 | AO16: =AO15-AO14 -> 30600 | AP16: =AP14-AP15 -> 30600 | AQ16: =AQ14-AQ15 -> 0 | AR16: =AR15-AR14 -> 5100 | AT16: =AT14-AT15 -> 0 | AU16: =AU15-AU14 -> 35700 | AW16: =AW14-AW15 -> 0 | AX16: =AX15-AX14 -> 5100 | AZ16: =AZ14-AZ15 -> 0 | BA16: =BA15-BA14 -> 40800 | BC16: =BC14-BC15 -> 0 | BD16: =BD15-BD14 -> 5100 | BF16: =BF14-BF15 -> 0 | BG16: =BG15-BG14 -> 45900 | BI16: =BI14-BI15 -> 0 | BJ16: =BJ15-BJ14 -> 5100 | BL16: =BL14-BL15 -> 0 | BM16: =BM15-BM14 -> 51000 | BO16: =BO14-BO15 -> 0 | BP16: =BP15-BP14 -> 5100 | BR16: =BR14-BR15 -> 0 | BS16: =BS15-BS14 -> 56100 | BU16: =BU14-BU15 -> 0 | BV16: =BV15-BV14 -> 61800 | BX16: =BX14-BX15 -> 0 | BY16: =BY15-BY14 -> 117900 | CA16: =CA14-CA15 -> 0 | CB16: =CB15-CB14 -> 0 | CD16: =CD14-CD15 -> 0 | CE16: =CE15-CE14 -> 117900
A18: 1.3 | B18: Personalmittel Verw. | C18: Ist | D18: =PersBund!D4 -> 0 | E18: =PersBund!E4 -> 0 | F18: =D18-E18 -> 0 | G18: =PersBund!G4 -> 0 | H18: =PersBund!H4 -> 0 | I18: =G18-H18 -> 0 | J18: =PersBund!I4 -> 0 | K18: =PersBund!J4 -> 0 | L18: =J18-K18 -> 0 | M18: =PersBund!K4 -> 0 | N18: =PersBund!L4 -> 0 | O18: =M18-N18 -> 0 | P18: =PersBund!M4 -> 0 | Q18: =PersBund!N4 -> 0 | R18: =P18-Q18 -> 0 | S18: =PersBund!O4 -> 0 | T18: =PersBund!P4 -> 0 | U18: =S18-T18 -> 0 | V18: =PersBund!Q4 -> 0 | W18: =PersBund!R4 -> 0 | X18: =V18-W18 -> 0 | Y18: =PersBund!S4 -> 0 | Z18: =PersBund!T4 -> 0 | AA18: =Y18-Z18 -> 0 | AB18: =PersBund!U4 -> 0 | AC18: =PersBund!V4 -> 0 | AD18: =AB18-AC18 -> 0 | AE18: =PersBund!W4 -> 0 | AF18: =PersBund!X4 -> 0 | AG18: =AE18-AF18 -> 0 | AH18: =PersBund!Y4 -> 0 | AI18: =PersBund!Z4 -> 0 | AJ18: =AH18-AI18 -> 0 | AK18: =PersBund!AA4 -> 0 | AL18: =PersBund!AB4 -> 0 | AM18: =AK18-AL18 -> 0 | AN18: =PersBund!AC4 -> 0 | AO18: =PersBund!AD4 -> 0 | AP18: =AN18-AO18 -> 0 | AQ18: =PersBund!AE4 -> 0 | AR18: =PersBund!AF4 -> 0 | AS18: =AQ18-AR18 -> 0 | AT18: =PersBund!AG4 -> 0 | AU18: =PersBund!AH4 -> 0 | AV18: =AT18-AU18 -> 0 | AW18: =PersBund!AI4 -> 0 | AX18: =PersBund!AJ4 -> 0 | AY18: =AW18-AX18 -> 0 | AZ18: =PersBund!AK4 -> 0 | BA18: =PersBund!AL4 -> 0 | BB18: =AZ18-BA18 -> 0 | BC18: =PersBund!AM4 -> 0 | BD18: =PersBund!AN4 -> 0 | BE18: =BC18-BD18 -> 0 | BF18: =PersBund!AO4 -> 0 | BG18: =PersBund!AP4 -> 0 | BH18: =BF18-BG18 -> 0 | BI18: =PersBund!AQ4 -> 0 | BJ18: =PersBund!AR4 -> 0 | BK18: =BI18-BJ18 -> 0 | BL18: =PersBund!AS4 -> 0 | BM18: =PersBund!AT4 -> 0 | BN18: =BL18-BM18 -> 0 | BO18: =PersBund!AU4 -> 0 | BP18: =PersBund!AV4 -> 0 | BQ18: =BO18-BP18 -> 0 | BR18: =PersBund!AW4 -> 0 | BS18: =PersBund!AX4 -> 0 | BT18: =BR18-BS18 -> 0 | BU18: =PersBund!AY4 -> 0 | BV18: =PersBund!AZ4 -> 0 | BW18: =BU18-BV18 -> 0 | BX18: =PersBund!BA4 -> 0 | BY18: =PersBund!BB4 -> 0 | BZ18: =BX18-BY18 -> 0 | CA18: =PersBund!BC4 -> 0 | CB18: =PersBund!BD4 -> 0 | CC18: =CA18-CB18 -> 0 | CD18: =PersBund!BE4 -> 0 | CE18: =PersBund!BF4 -> 0 | CF18: =CD18-CE18 -> 0
C19: Plan | D19: =PersBund!D5 -> 0 | E19: =PersBund!E5 -> 435648.4229 | F19: =D19-E19 -> -435648.4229 | G19: =PersBund!G5 -> 0 | H19: =PersBund!H5 -> 33562.36857 | I19: =G19-H19 -> -33562.36857 | J19: =PersBund!I5 -> 0 | K19: =PersBund!J5 -> 33562.36857 | L19: =J19-K19 -> -33562.36857 | M19: =PersBund!K5 -> 0 | N19: =PersBund!L5 -> 33562.36857 | O19: =M19-N19 -> -33562.36857 | P19: =PersBund!M5 -> 0 | Q19: =PersBund!N5 -> 67124.73715 | R19: =P19-Q19 -> -67124.73715 | S19: =PersBund!O5 -> 0 | T19: =PersBund!P5 -> 33562.36857 | U19: =S19-T19 -> -33562.36857 | V19: =PersBund!Q5 -> 0 | W19: =PersBund!R5 -> 100687.1057 | X19: =V19-W19 -> -100687.1057 | Y19: =PersBund!S5 -> 0 | Z19: =PersBund!T5 -> 33562.36857 | AA19: =Y19-Z19 -> -33562.36857 | AB19: =PersBund!U5 -> 0 | AC19: =PersBund!V5 -> 134249.4743 | AD19: =AB19-AC19 -> -134249.4743 | AE19: =PersBund!W5 -> 0 | AF19: =PersBund!X5 -> 33562.36857 | AG19: =AE19-AF19 -> -33562.36857 | AH19: =PersBund!Y5 -> 0 | AI19: =PersBund!Z5 -> 167811.8429 | AJ19: =AH19-AI19 -> -167811.8429 | AK19: =PersBund!AA5 -> 0 | AL19: =PersBund!AB5 -> 33562.36857 | AM19: =AK19-AL19 -> -33562.36857 | AN19: =PersBund!AC5 -> 0 | AO19: =PersBund!AD5 -> 201374.2114 | AP19: =AN19-AO19 -> -201374.2114 | AQ19: =PersBund!AE5 -> 0 | AR19: =PersBund!AF5 -> 33562.36857 | AS19: =AQ19-AR19 -> -33562.36857 | AT19: =PersBund!AG5 -> 0 | AU19: =PersBund!AH5 -> 234936.58 | AV19: =AT19-AU19 -> -234936.58 | AW19: =PersBund!AI5 -> 0 | AX19: =PersBund!AJ5 -> 33562.36857 | AY19: =AW19-AX19 -> -33562.36857 | AZ19: =PersBund!AK5 -> 0 | BA19: =PersBund!AL5 -> 268498.9486 | BB19: =AZ19-BA19 -> -268498.9486 | BC19: =PersBund!AM5 -> 0 | BD19: =PersBund!AN5 -> 33562.36857 | BE19: =BC19-BD19 -> -33562.36857 | BF19: =PersBund!AO5 -> 0 | BG19: =PersBund!AP5 -> 302061.3172 | BH19: =BF19-BG19 -> -302061.3172 | BI19: =PersBund!AQ5 -> 0 | BJ19: =PersBund!AR5 -> 33562.36857 | BK19: =BI19-BJ19 -> -33562.36857 | BL19: =PersBund!AS5 -> 0 | BM19: =PersBund!AT5 -> 335623.6857 | BN19: =BL19-BM19 -> -335623.6857 | BO19: =PersBund!AU5 -> 0 | BP19: =PersBund!AV5 -> 33562.36857 | BQ19: =BO19-BP19 -> -33562.36857 | BR19: =PersBund!AW5 -> 0 | BS19: =PersBund!AX5 -> 369186.0543 | BT19: =BR19-BS19 -> -369186.0543 | BU19: =PersBund!AY5 -> 0 | BV19: =PersBund!AZ5 -> 66462.36857 | BW19: =BU19-BV19 -> -66462.36857 | BX19: =PersBund!BA5 -> 0 | BY19: =PersBund!BB5 -> 435648.4229 | BZ19: =BX19-BY19 -> -435648.4229 | CA19: =PersBund!BC5 -> 0 | CB19: =PersBund!BD5 -> 0 | CC19: =CA19-CB19 -> 0 | CD19: =PersBund!BE5 -> 0 | CE19: =PersBund!BF5 -> 435648.4229 | CF19: =CD19-CE19 -> -435648.4229
C20: Saldo | D20: =D18-D19 -> 0 | E20: =E19-E18 -> 435648.4229 | F20: =F18-F19 -> 435648.4229 | G20: =G18-G19 -> 0 | H20: =H19-H18 -> 33562.36857 | J20: =J18-J19 -> 0 | K20: =K19-K18 -> 33562.36857 | M20: =M18-M19 -> 0 | N20: =N19-N18 -> 33562.36857 | P20: =P18-P19 -> 0 | Q20: =Q19-Q18 -> 67124.73715 | S20: =S18-S19 -> 0 | T20: =T19-T18 -> 33562.36857 | V20: =V18-V19 -> 0 | W20: =W19-W18 -> 100687.1057 | Y20: =Y18-Y19 -> 0 | Z20: =Z19-Z18 -> 33562.36857 | AB20: =AB18-AB19 -> 0 | AC20: =AC19-AC18 -> 134249.4743 | AE20: =AE18-AE19 -> 0 | AF20: =AF19-AF18 -> 33562.36857 | AH20: =AH18-AH19 -> 0 | AI20: =AI19-AI18 -> 167811.8429 | AK20: =AK18-AK19 -> 0 | AL20: =AL19-AL18 -> 33562.36857 | AN20: =AN18-AN19 -> 0 | AO20: =AO19-AO18 -> 201374.2114 | AP20: =AP18-AP19 -> 201374.2114 | AQ20: =AQ18-AQ19 -> 0 | AR20: =AR19-AR18 -> 33562.36857 | AT20: =AT18-AT19 -> 0 | AU20: =AU19-AU18 -> 234936.58 | AW20: =AW18-AW19 -> 0 | AX20: =AX19-AX18 -> 33562.36857 | AZ20: =AZ18-AZ19 -> 0 | BA20: =BA19-BA18 -> 268498.9486 | BC20: =BC18-BC19 -> 0 | BD20: =BD19-BD18 -> 33562.36857 | BF20: =BF18-BF19 -> 0 | BG20: =BG19-BG18 -> 302061.3172 | BI20: =BI18-BI19 -> 0 | BJ20: =BJ19-BJ18 -> 33562.36857 | BL20: =BL18-BL19 -> 0 | BM20: =BM19-BM18 -> 335623.6857 | BO20: =BO18-BO19 -> 0 | BP20: =BP19-BP18 -> 33562.36857 | BR20: =BR18-BR19 -> 0 | BS20: =BS19-BS18 -> 369186.0543 | BU20: =BU18-BU19 -> 0 | BV20: =BV19-BV18 -> 66462.36857 | BX20: =BX18-BX19 -> 0 | BY20: =BY19-BY18 -> 435648.4229 | CA20: =CA18-CA19 -> 0 | CB20: =CB19-CB18 -> 0 | CD20: =CD18-CD19 -> 0 | CE20: =CE19-CE18 -> 435648.4229
A22: 1.4 | B22: Allg. Öffentlichkeitsarbeit | C22: Ist | D22: =AlgÖff!D4 -> 0 | E22: =AlgÖff!E4 -> 0 | F22: =D22-E22 -> 0 | G22: =AlgÖff!G4 -> 0 | H22: =AlgÖff!H4 -> 0 | I22: =G22-H22 -> 0 | J22: =AlgÖff!I4 -> 0 | K22: =AlgÖff!J4 -> 0 | L22: =J22-K22 -> 0 | M22: =AlgÖff!K4 -> 0 | N22: =AlgÖff!L4 -> 0 | O22: =M22-N22 -> 0 | P22: =AlgÖff!M4 -> 0 | Q22: =AlgÖff!N4 -> 0 | R22: =P22-Q22 -> 0 | S22: =AlgÖff!O4 -> 0 | T22: =AlgÖff!P4 -> 0 | U22: =S22-T22 -> 0 | V22: =AlgÖff!Q4 -> 0 | W22: =AlgÖff!R4 -> 0 | X22: =V22-W22 -> 0 | Y22: =AlgÖff!S4 -> 0 | Z22: =AlgÖff!T4 -> 0 | AA22: =Y22-Z22 -> 0 | AB22: =AlgÖff!U4 -> 0 | AC22: =AlgÖff!V4 -> 0 | AD22: =AB22-AC22 -> 0 | AE22: =AlgÖff!W4 -> 0 | AF22: =AlgÖff!X4 -> 0 | AG22: =AE22-AF22 -> 0 | AH22: =AlgÖff!Y4 -> 0 | AI22: =AlgÖff!Z4 -> 0 | AJ22: =AH22-AI22 -> 0 | AK22: =AlgÖff!AA4 -> 0 | AL22: =AlgÖff!AB4 -> 0 | AM22: =AK22-AL22 -> 0 | AN22: =AlgÖff!AC4 -> 0 | AO22: =AlgÖff!AD4 -> 0 | AP22: =AN22-AO22 -> 0 | AQ22: =AlgÖff!AE4 -> 0 | AR22: =AlgÖff!AF4 -> 0 | AS22: =AQ22-AR22 -> 0 | AT22: =AlgÖff!AG4 -> 0 | AU22: =AlgÖff!AH4 -> 0 | AV22: =AT22-AU22 -> 0 | AW22: =AlgÖff!AI4 -> 0 | AX22: =AlgÖff!AJ4 -> 0 | AY22: =AW22-AX22 -> 0 | AZ22: =AlgÖff!AK4 -> 0 | BA22: =AlgÖff!AL4 -> 0 | BB22: =AZ22-BA22 -> 0 | BC22: =AlgÖff!AM4 -> 0 | BD22: =AlgÖff!AN4 -> 0 | BE22: =BC22-BD22 -> 0 | BF22: =AlgÖff!AO4 -> 0 | BG22: =AlgÖff!AP4 -> 0 | BH22: =BF22-BG22 -> 0 | BI22: =AlgÖff!AQ4 -> 0 | BJ22: =AlgÖff!AR4 -> 0 | BK22: =BI22-BJ22 -> 0 | BL22: =AlgÖff!AS4 -> 0 | BM22: =AlgÖff!AT4 -> 0 | BN22: =BL22-BM22 -> 0 | BO22: =AlgÖff!AU4 -> 0 | BP22: =AlgÖff!AV4 -> 0 | BQ22: =BO22-BP22 -> 0 | BR22: =AlgÖff!AW4 -> 0 | BS22: =AlgÖff!AX4 -> 0 | BT22: =BR22-BS22 -> 0 | BU22: =AlgÖff!AY4 -> 0 | BV22: =AlgÖff!AZ4 -> 0 | BW22: =BU22-BV22 -> 0 | BX22: =AlgÖff!BA4 -> 0 | BY22: =AlgÖff!BB4 -> 0 | BZ22: =BX22-BY22 -> 0 | CA22: =AlgÖff!BC4 -> 0 | CB22: =AlgÖff!BD4 -> 0 | CC22: =CA22-CB22 -> 0 | CD22: =AlgÖff!BE4 -> 0 | CE22: =AlgÖff!BF4 -> 0 | CF22: =CD22-CE22 -> 0
C23: Plan | D23: =AlgÖff!D5 -> 0 | E23: =AlgÖff!E5 -> 258096.3553 | F23: =D23-E23 -> -258096.3553 | G23: =AlgÖff!G5 -> 0 | H23: =AlgÖff!H5 -> 14216.36294 | I23: =G23-H23 -> -14216.36294 | J23: =AlgÖff!I5 -> 0 | K23: =AlgÖff!J5 -> 14216.36294 | L23: =J23-K23 -> -14216.36294 | M23: =AlgÖff!K5 -> 0 | N23: =AlgÖff!L5 -> 13016.36294 | O23: =M23-N23 -> -13016.36294 | P23: =AlgÖff!M5 -> 0 | Q23: =AlgÖff!N5 -> 27232.72588 | R23: =P23-Q23 -> -27232.72588 | S23: =AlgÖff!O5 -> 0 | T23: =AlgÖff!P5 -> 34016.36294 | U23: =S23-T23 -> -34016.36294 | V23: =AlgÖff!Q5 -> 0 | W23: =AlgÖff!R5 -> 61249.08883 | X23: =V23-W23 -> -61249.08883 | Y23: =AlgÖff!S5 -> 0 | Z23: =AlgÖff!T5 -> 13016.36294 | AA23: =Y23-Z23 -> -13016.36294 | AB23: =AlgÖff!U5 -> 0 | AC23: =AlgÖff!V5 -> 74265.45177 | AD23: =AB23-AC23 -> -74265.45177 | AE23: =AlgÖff!W5 -> 0 | AF23: =AlgÖff!X5 -> 13016.36294 | AG23: =AE23-AF23 -> -13016.36294 | AH23: =AlgÖff!Y5 -> 0 | AI23: =AlgÖff!Z5 -> 87281.81471 | AJ23: =AH23-AI23 -> -87281.81471 | AK23: =AlgÖff!AA5 -> 0 | AL23: =AlgÖff!AB5 -> 34016.36294 | AM23: =AK23-AL23 -> -34016.36294 | AN23: =AlgÖff!AC5 -> 0 | AO23: =AlgÖff!AD5 -> 121298.1777 | AP23: =AN23-AO23 -> -121298.1777 | AQ23: =AlgÖff!AE5 -> 0 | AR23: =AlgÖff!AF5 -> 13016.36294 | AS23: =AQ23-AR23 -> -13016.36294 | AT23: =AlgÖff!AG5 -> 0 | AU23: =AlgÖff!AH5 -> 134314.5406 | AV23: =AT23-AU23 -> -134314.5406 | AW23: =AlgÖff!AI5 -> 0 | AX23: =AlgÖff!AJ5 -> 34016.36294 | AY23: =AW23-AX23 -> -34016.36294 | AZ23: =AlgÖff!AK5 -> 0 | BA23: =AlgÖff!AL5 -> 168330.9035 | BB23: =AZ23-BA23 -> -168330.9035 | BC23: =AlgÖff!AM5 -> 0 | BD23: =AlgÖff!AN5 -> 13016.36294 | BE23: =BC23-BD23 -> -13016.36294 | BF23: =AlgÖff!AO5 -> 0 | BG23: =AlgÖff!AP5 -> 181347.2665 | BH23: =BF23-BG23 -> -181347.2665 | BI23: =AlgÖff!AQ5 -> 0 | BJ23: =AlgÖff!AR5 -> 13016.36294 | BK23: =BI23-BJ23 -> -13016.36294 | BL23: =AlgÖff!AS5 -> 0 | BM23: =AlgÖff!AT5 -> 194363.6294 | BN23: =BL23-BM23 -> -194363.6294 | BO23: =AlgÖff!AU5 -> 0 | BP23: =AlgÖff!AV5 -> 34016.36294 | BQ23: =BO23-BP23 -> -34016.36294 | BR23: =AlgÖff!AW5 -> 0 | BS23: =AlgÖff!AX5 -> 228379.9924 | BT23: =BR23-BS23 -> -228379.9924 | BU23: =AlgÖff!AY5 -> 0 | BV23: =AlgÖff!AZ5 -> 29716.36294 | BW23: =BU23-BV23 -> -29716.36294 | BX23: =AlgÖff!BA5 -> 0 | BY23: =AlgÖff!BB5 -> 258096.3553 | BZ23: =BX23-BY23 -> -258096.3553 | CA23: =AlgÖff!BC5 -> 0 | CB23: =AlgÖff!BD5 -> 0 | CC23: =CA23-CB23 -> 0 | CD23: =AlgÖff!BE5 -> 0 | CE23: =AlgÖff!BF5 -> 258096.3553 | CF23: =CD23-CE23 -> -258096.3553
C24: Saldo | D24: =D22-D23 -> 0 | E24: =E23-E22 -> 258096.3553 | F24: =F22-F23 -> 258096.3553 | G24: =G22-G23 -> 0 | H24: =H23-H22 -> 14216.36294 | J24: =J22-J23 -> 0 | K24: =K23-K22 -> 14216.36294 | M24: =M22-M23 -> 0 | N24: =N23-N22 -> 13016.36294 | P24: =P22-P23 -> 0 | Q24: =Q23-Q22 -> 27232.72588 | S24: =S22-S23 -> 0 | T24: =T23-T22 -> 34016.36294 | V24: =V22-V23 -> 0 | W24: =W23-W22 -> 61249.08883 | Y24: =Y22-Y23 -> 0 | Z24: =Z23-Z22 -> 13016.36294 | AB24: =AB22-AB23 -> 0 | AC24: =AC23-AC22 -> 74265.45177 | AE24: =AE22-AE23 -> 0 | AF24: =AF23-AF22 -> 13016.36294 | AH24: =AH22-AH23 -> 0 | AI24: =AI23-AI22 -> 87281.81471 | AK24: =AK22-AK23 -> 0 | AL24: =AL23-AL22 -> 34016.36294 | AN24: =AN22-AN23 -> 0 | AO24: =AO23-AO22 -> 121298.1777 | AP24: =AP22-AP23 -> 121298.1777 | AQ24: =AQ22-AQ23 -> 0 | AR24: =AR23-AR22 -> 13016.36294 | AT24: =AT22-AT23 -> 0 | AU24: =AU23-AU22 -> 134314.5406 | AW24: =AW22-AW23 -> 0 | AX24: =AX23-AX22 -> 34016.36294 | AZ24: =AZ22-AZ23 -> 0 | BA24: =BA23-BA22 -> 168330.9035 | BC24: =BC22-BC23 -> 0 | BD24: =BD23-BD22 -> 13016.36294 | BF24: =BF22-BF23 -> 0 | BG24: =BG23-BG22 -> 181347.2665 | BI24: =BI22-BI23 -> 0 | BJ24: =BJ23-BJ22 -> 13016.36294 | BL24: =BL22-BL23 -> 0 | BM24: =BM23-BM22 -> 194363.6294 | BO24: =BO22-BO23 -> 0 | BP24: =BP23-BP22 -> 34016.36294 | BR24: =BR22-BR23 -> 0 | BS24: =BS23-BS22 -> 228379.9924 | BU24: =BU22-BU23 -> 0 | BV24: =BV23-BV22 -> 29716.36294 | BX24: =BX22-BX23 -> 0 | BY24: =BY23-BY22 -> 258096.3553 | CA24: =CA22-CA23 -> 0 | CB24: =CB23-CB22 -> 0 | CD24: =CD22-CD23 -> 0 | CE24: =CE23-CE22 -> 258096.3553
A26: 1.5 | B26: Internet Präsenz | C26: Ist | D26: =IntPräs!D4 -> 0 | E26: =IntPräs!E4 -> 0 | F26: =D26-E26 -> 0 | G26: =IntPräs!G4 -> 0 | H26: =IntPräs!H4 -> 0 | I26: =G26-H26 -> 0 | J26: =IntPräs!I4 -> 0 | K26: =IntPräs!J4 -> 0 | L26: =J26-K26 -> 0 | M26: =IntPräs!K4 -> 0 | N26: =IntPräs!L4 -> 0 | O26: =M26-N26 -> 0 | P26: =IntPräs!M4 -> 0 | Q26: =IntPräs!N4 -> 0 | R26: =P26-Q26 -> 0 | S26: =IntPräs!O4 -> 0 | T26: =IntPräs!P4 -> 0 | U26: =S26-T26 -> 0 | V26: =IntPräs!Q4 -> 0 | W26: =IntPräs!R4 -> 0 | X26: =V26-W26 -> 0 | Y26: =IntPräs!S4 -> 0 | Z26: =IntPräs!T4 -> 0 | AA26: =Y26-Z26 -> 0 | AB26: =IntPräs!U4 -> 0 | AC26: =IntPräs!V4 -> 0 | AD26: =AB26-AC26 -> 0 | AE26: =IntPräs!W4 -> 0 | AF26: =IntPräs!X4 -> 0 | AG26: =AE26-AF26 -> 0 | AH26: =IntPräs!Y4 -> 0 | AI26: =IntPräs!Z4 -> 0 | AJ26: =AH26-AI26 -> 0 | AK26: =IntPräs!AA4 -> 0 | AL26: =IntPräs!AB4 -> 0 | AM26: =AK26-AL26 -> 0 | AN26: =IntPräs!AC4 -> 0 | AO26: =IntPräs!AD4 -> 0 | AP26: =AN26-AO26 -> 0 | AQ26: =IntPräs!AE4 -> 0 | AR26: =IntPräs!AF4 -> 0 | AS26: =AQ26-AR26 -> 0 | AT26: =IntPräs!AG4 -> 0 | AU26: =IntPräs!AH4 -> 0 | AV26: =AT26-AU26 -> 0 | AW26: =IntPräs!AI4 -> 0 | AX26: =IntPräs!AJ4 -> 0 | AY26: =AW26-AX26 -> 0 | AZ26: =IntPräs!AK4 -> 0 | BA26: =IntPräs!AL4 -> 0 | BB26: =AZ26-BA26 -> 0 | BC26: =IntPräs!AM4 -> 0 | BD26: =IntPräs!AN4 -> 0 | BE26: =BC26-BD26 -> 0 | BF26: =IntPräs!AO4 -> 0 | BG26: =IntPräs!AP4 -> 0 | BH26: =BF26-BG26 -> 0 | BI26: =IntPräs!AQ4 -> 0 | BJ26: =IntPräs!AR4 -> 0 | BK26: =BI26-BJ26 -> 0 | BL26: =IntPräs!AS4 -> 0 | BM26: =IntPräs!AT4 -> 0 | BN26: =BL26-BM26 -> 0 | BO26: =IntPräs!AU4 -> 0 | BP26: =IntPräs!AV4 -> 0 | BQ26: =BO26-BP26 -> 0 | BR26: =IntPräs!AW4 -> 0 | BS26: =IntPräs!AX4 -> 0 | BT26: =BR26-BS26 -> 0 | BU26: =IntPräs!AY4 -> 0 | BV26: =IntPräs!AZ4 -> 0 | BW26: =BU26-BV26 -> 0 | BX26: =IntPräs!BA4 -> 0 | BY26: =IntPräs!BB4 -> 0 | BZ26: =BX26-BY26 -> 0 | CA26: =IntPräs!BC4 -> 0 | CB26: =IntPräs!BD4 -> 0 | CC26: =CA26-CB26 -> 0 | CD26: =IntPräs!BE4 -> 0 | CE26: =IntPräs!BF4 -> 0 | CF26: =CD26-CE26 -> 0
C27: Plan | D27: =IntPräs!D5 -> 0 | E27: =IntPräs!E5 -> 183156.6083 | F27: =D27-E27 -> -183156.6083 | G27: =IntPräs!G5 -> 0 | H27: =IntPräs!H5 -> 12596.38403 | I27: =G27-H27 -> -12596.38403 | J27: =IntPräs!I5 -> 0 | K27: =IntPräs!J5 -> 12596.38403 | L27: =J27-K27 -> -12596.38403 | M27: =IntPräs!K5 -> 0 | N27: =IntPräs!L5 -> 12596.38403 | O27: =M27-N27 -> -12596.38403 | P27: =IntPräs!M5 -> 0 | Q27: =IntPräs!N5 -> 25192.76806 | R27: =P27-Q27 -> -25192.76806 | S27: =IntPräs!O5 -> 0 | T27: =IntPräs!P5 -> 12596.38403 | U27: =S27-T27 -> -12596.38403 | V27: =IntPräs!Q5 -> 0 | W27: =IntPräs!R5 -> 37789.15209 | X27: =V27-W27 -> -37789.15209 | Y27: =IntPräs!S5 -> 0 | Z27: =IntPräs!T5 -> 12596.38403 | AA27: =Y27-Z27 -> -12596.38403 | AB27: =IntPräs!U5 -> 0 | AC27: =IntPräs!V5 -> 50385.53612 | AD27: =AB27-AC27 -> -50385.53612 | AE27: =IntPräs!W5 -> 0 | AF27: =IntPräs!X5 -> 12596.38403 | AG27: =AE27-AF27 -> -12596.38403 | AH27: =IntPräs!Y5 -> 0 | AI27: =IntPräs!Z5 -> 62981.92014 | AJ27: =AH27-AI27 -> -62981.92014 | AK27: =IntPräs!AA5 -> 0 | AL27: =IntPräs!AB5 -> 12596.38403 | AM27: =AK27-AL27 -> -12596.38403 | AN27: =IntPräs!AC5 -> 0 | AO27: =IntPräs!AD5 -> 75578.30417 | AP27: =AN27-AO27 -> -75578.30417 | AQ27: =IntPräs!AE5 -> 0 | AR27: =IntPräs!AF5 -> 12596.38403 | AS27: =AQ27-AR27 -> -12596.38403 | AT27: =IntPräs!AG5 -> 0 | AU27: =IntPräs!AH5 -> 88174.6882 | AV27: =AT27-AU27 -> -88174.6882 | AW27: =IntPräs!AI5 -> 0 | AX27: =IntPräs!AJ5 -> 12596.38403 | AY27: =AW27-AX27 -> -12596.38403 | AZ27: =IntPräs!AK5 -> 0 | BA27: =IntPräs!AL5 -> 100771.0722 | BB27: =AZ27-BA27 -> -100771.0722 | BC27: =IntPräs!AM5 -> 0 | BD27: =IntPräs!AN5 -> 12596.38403 | BE27: =BC27-BD27 -> -12596.38403 | BF27: =IntPräs!AO5 -> 0 | BG27: =IntPräs!AP5 -> 113367.4563 | BH27: =BF27-BG27 -> -113367.4563 | BI27: =IntPräs!AQ5 -> 0 | BJ27: =IntPräs!AR5 -> 12596.38403 | BK27: =BI27-BJ27 -> -12596.38403 | BL27: =IntPräs!AS5 -> 0 | BM27: =IntPräs!AT5 -> 95963.84029 | BN27: =BL27-BM27 -> -95963.84029 | BO27: =IntPräs!AU5 -> 0 | BP27: =IntPräs!AV5 -> 12596.38403 | BQ27: =BO27-BP27 -> -12596.38403 | BR27: =IntPräs!AW5 -> 0 | BS27: =IntPräs!AX5 -> 108560.2243 | BT27: =BR27-BS27 -> -108560.2243 | BU27: =IntPräs!AY5 -> 0 | BV27: =IntPräs!AZ5 -> 44596.38403 | BW27: =BU27-BV27 -> -44596.38403 | BX27: =IntPräs!BA5 -> 0 | BY27: =IntPräs!BB5 -> 153156.6083 | BZ27: =BX27-BY27 -> -153156.6083 | CA27: =IntPräs!BC5 -> 0 | CB27: =IntPräs!BD5 -> 0 | CC27: =CA27-CB27 -> 0 | CD27: =IntPräs!BE5 -> 0 | CE27: =IntPräs!BF5 -> 153156.6083 | CF27: =CD27-CE27 -> -153156.6083
C28: Saldo | D28: =D26-D27 -> 0 | E28: =E27-E26 -> 183156.6083 | F28: =F26-F27 -> 183156.6083 | G28: =G26-G27 -> 0 | H28: =H27-H26 -> 12596.38403 | J28: =J26-J27 -> 0 | K28: =K27-K26 -> 12596.38403 | M28: =M26-M27 -> 0 | N28: =N27-N26 -> 12596.38403 | P28: =P26-P27 -> 0 | Q28: =Q27-Q26 -> 25192.76806 | S28: =S26-S27 -> 0 | T28: =T27-T26 -> 12596.38403 | V28: =V26-V27 -> 0 | W28: =W27-W26 -> 37789.15209 | Y28: =Y26-Y27 -> 0 | Z28: =Z27-Z26 -> 12596.38403 | AB28: =AB26-AB27 -> 0 | AC28: =AC27-AC26 -> 50385.53612 | AE28: =AE26-AE27 -> 0 | AF28: =AF27-AF26 -> 12596.38403 | AH28: =AH26-AH27 -> 0 | AI28: =AI27-AI26 -> 62981.92014 | AK28: =AK26-AK27 -> 0 | AL28: =AL27-AL26 -> 12596.38403 | AN28: =AN26-AN27 -> 0 | AO28: =AO27-AO26 -> 75578.30417 | AP28: =AP26-AP27 -> 75578.30417 | AQ28: =AQ26-AQ27 -> 0 | AR28: =AR27-AR26 -> 12596.38403 | AT28: =AT26-AT27 -> 0 | AU28: =AU27-AU26 -> 88174.6882 | AW28: =AW26-AW27 -> 0 | AX28: =AX27-AX26 -> 12596.38403 | AZ28: =AZ26-AZ27 -> 0 | BA28: =BA27-BA26 -> 100771.0722 | BC28: =BC26-BC27 -> 0 | BD28: =BD27-BD26 -> 12596.38403 | BF28: =BF26-BF27 -> 0 | BG28: =BG27-BG26 -> 113367.4563 | BI28: =BI26-BI27 -> 0 | BJ28: =BJ27-BJ26 -> 12596.38403 | BL28: =BL26-BL27 -> 0 | BM28: =BM27-BM26 -> 95963.84029 | BO28: =BO26-BO27 -> 0 | BP28: =BP27-BP26 -> 12596.38403 | BR28: =BR26-BR27 -> 0 | BS28: =BS27-BS26 -> 108560.2243 | BU28: =BU26-BU27 -> 0 | BV28: =BV27-BV26 -> 44596.38403 | BX28: =BX26-BX27 -> 0 | BY28: =BY27-BY26 -> 153156.6083 | CA28: =CA26-CA27 -> 0 | CB28: =CB27-CB26 -> 0 | CD28: =CD26-CD27 -> 0 | CE28: =CE27-CE26 -> 153156.6083
A30: 1.6 | B30: Investitionsgüter | C30: Ist | D30: =Invest!D4 -> 0 | E30: =Invest!E4 -> 0 | F30: =D30-E30 -> 0 | G30: =Invest!G4 -> 0 | H30: =Invest!H4 -> 0 | I30: =G30-H30 -> 0 | J30: =Invest!I4 -> 0 | K30: =Invest!J4 -> 0 | L30: =J30-K30 -> 0 | M30: =Invest!K4 -> 0 | N30: =Invest!L4 -> 0 | O30: =M30-N30 -> 0 | P30: =Invest!M4 -> 0 | Q30: =Invest!N4 -> 0 | R30: =P30-Q30 -> 0 | S30: =Invest!O4 -> 0 | T30: =Invest!P4 -> 0 | U30: =S30-T30 -> 0 | V30: =Invest!Q4 -> 0 | W30: =Invest!R4 -> 0 | X30: =V30-W30 -> 0 | Y30: =Invest!S4 -> 0 | Z30: =Invest!T4 -> 0 | AA30: =Y30-Z30 -> 0 | AB30: =Invest!U4 -> 0 | AC30: =Invest!V4 -> 0 | AD30: =AB30-AC30 -> 0 | AE30: =Invest!AE4 -> 0 | AF30: =Invest!AF4 -> 0 | AG30: =AE30-AF30 -> 0 | AH30: =Invest!Y4 -> 0 | AI30: =Invest!Z4 -> 0 | AJ30: =AH30-AI30 -> 0 | AK30: =Invest!AA4 -> 0 | AL30: =Invest!AB4 -> 0 | AM30: =AK30-AL30 -> 0 | AN30: =Invest!AC4 -> 0 | AO30: =Invest!AD4 -> 0 | AP30: =AN30-AO30 -> 0 | AQ30: =Invest!AE4 -> 0 | AR30: =Invest!AF4 -> 0 | AS30: =AQ30-AR30 -> 0 | AT30: =Invest!AG4 -> 0 | AU30: =Invest!AH4 -> 0 | AV30: =AT30-AU30 -> 0 | AW30: =Invest!AI4 -> 0 | AX30: =Invest!AJ4 -> 0 | AY30: =AW30-AX30 -> 0 | AZ30: =Invest!AK4 -> 0 | BA30: =Invest!AL4 -> 0 | BB30: =AZ30-BA30 -> 0 | BC30: =Invest!AM4 -> 0 | BD30: =Invest!AN4 -> 0 | BE30: =BC30-BD30 -> 0 | BF30: =Invest!AO4 -> 0 | BG30: =Invest!AP4 -> 0 | BH30: =BF30-BG30 -> 0 | BI30: =Invest!AQ4 -> 0 | BJ30: =Invest!AR4 -> 0 | BK30: =BI30-BJ30 -> 0 | BL30: =Invest!AS4 -> 0 | BM30: =Invest!AT4 -> 0 | BN30: =BL30-BM30 -> 0 | BO30: =Invest!AU4 -> 0 | BP30: =Invest!AV4 -> 0 | BQ30: =BO30-BP30 -> 0 | BR30: =Invest!AW4 -> 0 | BS30: =Invest!AX4 -> 0 | BT30: =BR30-BS30 -> 0 | BU30: =Invest!AY4 -> 0 | BV30: =Invest!AZ4 -> 0 | BW30: =BU30-BV30 -> 0 | BX30: =Invest!BA4 -> 0 | BY30: =Invest!BB4 -> 0 | BZ30: =BX30-BY30 -> 0 | CA30: =Invest!BC4 -> 0 | CB30: =Invest!BD4 -> 0 | CC30: =CA30-CB30 -> 0 | CD30: =Invest!BE4 -> 0 | CE30: =Invest!BF4 -> 0 | CF30: =CD30-CE30 -> 0
C31: Plan | D31: =Invest!D5 -> 0 | E31: =Invest!E5 -> 10500 | F31: =D31-E31 -> -10500 | G31: =Invest!G5 -> 0 | H31: =Invest!H5 -> 0 | I31: =G31-H31 -> 0 | J31: =Invest!I5 -> 0 | K31: =Invest!J5 -> 0 | L31: =J31-K31 -> 0 | M31: =Invest!K5 -> 0 | N31: =Invest!L5 -> 0 | O31: =M31-N31 -> 0 | P31: =Invest!M5 -> 0 | Q31: =Invest!N5 -> 0 | R31: =P31-Q31 -> 0 | S31: =Invest!O5 -> 0 | T31: =Invest!P5 -> 0 | U31: =S31-T31 -> 0 | V31: =Invest!Q5 -> 0 | W31: =Invest!R5 -> 0 | X31: =V31-W31 -> 0 | Y31: =Invest!S5 -> 0 | Z31: =Invest!T5 -> 0 | AA31: =Y31-Z31 -> 0 | AB31: =Invest!U5 -> 0 | AC31: =Invest!V5 -> 0 | AD31: =AB31-AC31 -> 0 | AE31: =Invest!W5 -> 0 | AF31: =Invest!X5 -> 0 | AG31: =AE31-AF31 -> 0 | AH31: =Invest!Y5 -> 0 | AI31: =Invest!Z5 -> 0 | AJ31: =AH31-AI31 -> 0 | AK31: =Invest!AA5 -> 0 | AL31: =Invest!AB5 -> 0 | AM31: =AK31-AL31 -> 0 | AN31: =Invest!AC5 -> 0 | AO31: =Invest!AD5 -> 0 | AP31: =AN31-AO31 -> 0 | AQ31: =Invest!AE5 -> 0 | AR31: =Invest!AF5 -> 0 | AS31: =AQ31-AR31 -> 0 | AT31: =Invest!AG5 -> 0 | AU31: =Invest!AH5 -> 0 | AV31: =AT31-AU31 -> 0 | AW31: =Invest!AI5 -> 0 | AX31: =Invest!AJ5 -> 0 | AY31: =AW31-AX31 -> 0 | AZ31: =Invest!AK5 -> 0 | BA31: =Invest!AL5 -> 0 | BB31: =AZ31-BA31 -> 0 | BC31: =Invest!AM5 -> 0 | BD31: =Invest!AN5 -> 0 | BE31: =BC31-BD31 -> 0 | BF31: =Invest!AO5 -> 0 | BG31: =Invest!AP5 -> 0 | BH31: =BF31-BG31 -> 0 | BI31: =Invest!AQ5 -> 0 | BJ31: =Invest!AR5 -> 0 | BK31: =BI31-BJ31 -> 0 | BL31: =Invest!AS5 -> 0 | BM31: =Invest!AT5 -> 0 | BN31: =BL31-BM31 -> 0 | BO31: =Invest!AU5 -> 0 | BP31: =Invest!AV5 -> 0 | BQ31: =BO31-BP31 -> 0 | BR31: =Invest!AW5 -> 0 | BS31: =Invest!AX5 -> 0 | BT31: =BR31-BS31 -> 0 | BU31: =Invest!AY5 -> 0 | BV31: =Invest!AZ5 -> 10500 | BW31: =BU31-BV31 -> -10500 | BX31: =Invest!BA5 -> 0 | BY31: =Invest!BB5 -> 10500 | BZ31: =BX31-BY31 -> -10500 | CA31: =Invest!BC5 -> 0 | CB31: =Invest!BD5 -> 0 | CC31: =CA31-CB31 -> 0 | CD31: =Invest!BE5 -> 0 | CE31: =Invest!BF5 -> 10500 | CF31: =CD31-CE31 -> -10500
C32: Saldo | D32: =D30-D31 -> 0 | E32: =E31-E30 -> 10500 | F32: =F30-F31 -> 10500 | G32: =G30-G31 -> 0 | H32: =H31-H30 -> 0 | J32: =J30-J31 -> 0 | K32: =K31-K30 -> 0 | M32: =M30-M31 -> 0 | N32: =N31-N30 -> 0 | P32: =P30-P31 -> 0 | Q32: =Q31-Q30 -> 0 | S32: =S30-S31 -> 0 | T32: =T31-T30 -> 0 | V32: =V30-V31 -> 0 | W32: =W31-W30 -> 0 | Y32: =Y30-Y31 -> 0 | Z32: =Z31-Z30 -> 0 | AB32: =AB30-AB31 -> 0 | AC32: =AC31-AC30 -> 0 | AE32: =AE30-AE31 -> 0 | AF32: =AF31-AF30 -> 0 | AH32: =AH30-AH31 -> 0 | AI32: =AI31-AI30 -> 0 | AK32: =AK30-AK31 -> 0 | AL32: =AL31-AL30 -> 0 | AN32: =AN30-AN31 -> 0 | AO32: =AO31-AO30 -> 0 | AP32: =AP30-AP31 -> 0 | AQ32: =AQ30-AQ31 -> 0 | AR32: =AR31-AR30 -> 0 | AT32: =AT30-AT31 -> 0 | AU32: =AU31-AU30 -> 0 | AW32: =AW30-AW31 -> 0 | AX32: =AX31-AX30 -> 0 | AZ32: =AZ30-AZ31 -> 0 | BA32: =BA31-BA30 -> 0 | BC32: =BC30-BC31 -> 0 | BD32: =BD31-BD30 -> 0 | BF32: =BF30-BF31 -> 0 | BG32: =BG31-BG30 -> 0 | BI32: =BI30-BI31 -> 0 | BJ32: =BJ31-BJ30 -> 0 | BL32: =BL30-BL31 -> 0 | BM32: =BM31-BM30 -> 0 | BO32: =BO30-BO31 -> 0 | BP32: =BP31-BP30 -> 0 | BR32: =BR30-BR31 -> 0 | BS32: =BS31-BS30 -> 0 | BU32: =BU30-BU31 -> 0 | BV32: =BV31-BV30 -> 10500 | BX32: =BX30-BX31 -> 0 | BY32: =BY31-BY30 -> 10500 | CA32: =CA30-CA31 -> 0 | CB32: =CB31-CB30 -> 0 | CD32: =CD30-CD31 -> 0 | CE32: =CE31-CE30 -> 10500
A34: 1.7 | B34: Webshop | C34: Ist | D34: =ZweckBet!D4 -> 0 | E34: =ZweckBet!E4 -> 0 | F34: =D34-E34 -> 0 | G34: =ZweckBet!G4 -> 0 | H34: =ZweckBet!H4 -> 0 | I34: =G34-H34 -> 0 | J34: =ZweckBet!I4 -> 0 | K34: =ZweckBet!J4 -> 0 | L34: =J34-K34 -> 0 | M34: =ZweckBet!M4 -> 0 | N34: =ZweckBet!N4 -> 0 | O34: =M34-N34 -> 0 | P34: =ZweckBet!M4 -> 0 | Q34: =ZweckBet!N4 -> 0 | R34: =P34-Q34 -> 0 | S34: =ZweckBet!S4 -> 0 | T34: =ZweckBet!T4 -> 0 | U34: =S34-T34 -> 0 | V34: =ZweckBet!Q4 -> 0 | W34: =ZweckBet!R4 -> 0 | X34: =V34-W34 -> 0 | Y34: =ZweckBet!Y4 -> 0 | Z34: =ZweckBet!Z4 -> 0 | AA34: =Y34-Z34 -> 0 | AB34: =ZweckBet!U4 -> 0 | AC34: =ZweckBet!V4 -> 0 | AD34: =AB34-AC34 -> 0 | AE34: =ZweckBet!AE4 -> 0 | AF34: =ZweckBet!AF4 -> 0 | AG34: =AE34-AF34 -> 0 | AH34: =ZweckBet!Y4 -> 0 | AI34: =ZweckBet!Z4 -> 0 | AJ34: =AH34-AI34 -> 0 | AK34: =ZweckBet!AK4 -> 0 | AL34: =ZweckBet!AL4 -> 0 | AM34: =AK34-AL34 -> 0 | AN34: =ZweckBet!AC4 -> 0 | AO34: =ZweckBet!AD4 -> 0 | AP34: =AN34-AO34 -> 0 | AQ34: =ZweckBet!AQ4 -> 0 | AR34: =ZweckBet!AR4 -> 0 | AS34: =AQ34-AR34 -> 0 | AT34: =ZweckBet!AG4 -> 0 | AU34: =ZweckBet!AH4 -> 0 | AV34: =AT34-AU34 -> 0 | AW34: =ZweckBet!AW4 -> 0 | AX34: =ZweckBet!AX4 -> 0 | AY34: =AW34-AX34 -> 0 | AZ34: =ZweckBet!AK4 -> 0 | BA34: =ZweckBet!AL4 -> 0 | BB34: =AZ34-BA34 -> 0 | BC34: =ZweckBet!BC4 -> 0 | BD34: =ZweckBet!BD4 -> 0 | BE34: =BC34-BD34 -> 0 | BF34: =ZweckBet!AO4 -> 0 | BG34: =ZweckBet!AP4 -> 0 | BH34: =BF34-BG34 -> 0 | BI34: =ZweckBet!BI4 -> 0 | BJ34: =ZweckBet!BJ4 -> 0 | BK34: =BI34-BJ34 -> 0 | BL34: =ZweckBet!AS4 -> 0 | BM34: =ZweckBet!AT4 -> 0 | BN34: =BL34-BM34 -> 0 | BO34: =ZweckBet!BO4 -> 0 | BP34: =ZweckBet!BP4 -> 0 | BQ34: =BO34-BP34 -> 0 | BR34: =ZweckBet!AW4 -> 0 | BS34: =ZweckBet!AX4 -> 0 | BT34: =BR34-BS34 -> 0 | BU34: =ZweckBet!BU4 -> 0 | BV34: =ZweckBet!BV4 -> 0 | BW34: =BU34-BV34 -> 0 | BX34: =ZweckBet!BA4 -> 0 | BY34: =ZweckBet!BB4 -> 0 | BZ34: =BX34-BY34 -> 0 | CA34: =ZweckBet!CA4 -> 0 | CB34: =ZweckBet!CB4 -> 0 | CC34: =CA34-CB34 -> 0 | CD34: =ZweckBet!BE4 -> 0 | CE34: =ZweckBet!BF4 -> 0 | CF34: =CD34-CE34 -> 0
C35: Plan | D35: =ZweckBet!D5 -> 4200 | E35: =ZweckBet!E5 -> 16058.38379 | F35: =D35-E35 -> -11858.38379 | G35: =ZweckBet!G5 -> 0 | H35: =ZweckBet!H5 -> 629.8653154 | I35: =G35-H35 -> -629.8653154 | J35: =ZweckBet!I5 -> -629.8653154 | K35: =ZweckBet!J5 -> 0 | L35: =J35-K35 -> -629.8653154 | M35: =ZweckBet!M5 -> 0 | N35: =ZweckBet!N5 -> 629.8653154 | O35: =M35-N35 -> -629.8653154 | P35: =ZweckBet!M5 -> 0 | Q35: =ZweckBet!N5 -> 629.8653154 | R35: =P35-Q35 -> -629.8653154 | S35: =ZweckBet!S5 -> 0 | T35: =ZweckBet!T5 -> 629.8653154 | U35: =S35-T35 -> -629.8653154 | V35: =ZweckBet!Q5 -> 1259.730631 | W35: =ZweckBet!R5 -> -1259.730631 | X35: =V35-W35 -> 2519.461262 | Y35: =ZweckBet!Y5 -> 0 | Z35: =ZweckBet!Z5 -> 629.8653154 | AA35: =Y35-Z35 -> -629.8653154 | AB35: =ZweckBet!U5 -> -629.8653154 | AC35: =ZweckBet!V5 -> 0 | AD35: =AB35-AC35 -> -629.8653154 | AE35: =ZweckBet!AE5 -> 0 | AF35: =ZweckBet!AF5 -> 629.8653154 | AG35: =AE35-AF35 -> -629.8653154 | AH35: =ZweckBet!Y5 -> 0 | AI35: =ZweckBet!Z5 -> 629.8653154 | AJ35: =AH35-AI35 -> -629.8653154 | AK35: =ZweckBet!AK5 -> 0 | AL35: =ZweckBet!AL5 -> 629.8653154 | AM35: =AK35-AL35 -> -629.8653154 | AN35: =ZweckBet!AC5 -> 2519.461262 | AO35: =ZweckBet!AD5 -> -2519.461262 | AP35: =AN35-AO35 -> 5038.922523 | AQ35: =ZweckBet!AQ5 -> 0 | AR35: =ZweckBet!AR5 -> 629.8653154 | AS35: =AQ35-AR35 -> -629.8653154 | AT35: =ZweckBet!AG5 -> -629.8653154 | AU35: =ZweckBet!AH5 -> 0 | AV35: =AT35-AU35 -> -629.8653154 | AW35: =ZweckBet!AW5 -> 0 | AX35: =ZweckBet!AX5 -> 629.8653154 | AY35: =AW35-AX35 -> -629.8653154 | AZ35: =ZweckBet!AK5 -> 0 | BA35: =ZweckBet!AL5 -> 629.8653154 | BB35: =AZ35-BA35 -> -629.8653154 | BC35: =ZweckBet!BC5 -> 0 | BD35: =ZweckBet!BD5 -> 629.8653154 | BE35: =BC35-BD35 -> -629.8653154 | BF35: =ZweckBet!AO5 -> 3779.191893 | BG35: =ZweckBet!AP5 -> -3779.191893 | BH35: =BF35-BG35 -> 7558.383785 | BI35: =ZweckBet!BI5 -> 0 | BJ35: =ZweckBet!BJ5 -> 629.8653154 | BK35: =BI35-BJ35 -> -629.8653154 | BL35: =ZweckBet!AS5 -> -629.8653154 | BM35: =ZweckBet!AT5 -> 0 | BN35: =BL35-BM35 -> -629.8653154 | BO35: =ZweckBet!BO5 -> 0 | BP35: =ZweckBet!BP5 -> 629.8653154 | BQ35: =BO35-BP35 -> -629.8653154 | BR35: =ZweckBet!AW5 -> 0 | BS35: =ZweckBet!AX5 -> 629.8653154 | BT35: =BR35-BS35 -> -629.8653154 | BU35: =ZweckBet!BU5 -> 4200 | BV35: =ZweckBet!BV5 -> 9129.865315 | BW35: =BU35-BV35 -> -4929.865315 | BX35: =ZweckBet!BA5 -> 5038.922523 | BY35: =ZweckBet!BB5 -> -5038.922523 | BZ35: =BX35-BY35 -> 10077.84505 | CA35: =ZweckBet!CA5 -> 0 | CB35: =ZweckBet!CB5 -> 0 | CC35: =CA35-CB35 -> 0 | CD35: =ZweckBet!BE5 -> -629.8653154 | CE35: =ZweckBet!BF5 -> 0 | CF35: =CD35-CE35 -> -629.8653154
C36: Saldo | D36: =D34-D35 -> -4200 | E36: =E35-E34 -> 16058.38379 | F36: =F34-F35 -> 11858.38379 | G36: =G34-G35 -> 0 | H36: =H35-H34 -> 629.8653154 | J36: =J34-J35 -> 629.8653154 | K36: =K35-K34 -> 0 | M36: =M34-M35 -> 0 | N36: =N35-N34 -> 629.8653154 | P36: =P34-P35 -> 0 | Q36: =Q35-Q34 -> 629.8653154 | S36: =S34-S35 -> 0 | T36: =T35-T34 -> 629.8653154 | V36: =V34-V35 -> -1259.730631 | W36: =W35-W34 -> -1259.730631 | Y36: =Y34-Y35 -> 0 | Z36: =Z35-Z34 -> 629.8653154 | AB36: =AB34-AB35 -> 629.8653154 | AC36: =AC35-AC34 -> 0 | AE36: =AE34-AE35 -> 0 | AF36: =AF35-AF34 -> 629.8653154 | AH36: =AH34-AH35 -> 0 | AI36: =AI35-AI34 -> 629.8653154 | AK36: =AK34-AK35 -> 0 | AL36: =AL35-AL34 -> 629.8653154 | AN36: =AN34-AN35 -> -2519.461262 | AO36: =AO35-AO34 -> -2519.461262 | AP36: =AP34-AP35 -> -5038.922523 | AQ36: =AQ34-AQ35 -> 0 | AR36: =AR35-AR34 -> 629.8653154 | AT36: =AT34-AT35 -> 629.8653154 | AU36: =AU35-AU34 -> 0 | AW36: =AW34-AW35 -> 0 | AX36: =AX35-AX34 -> 629.8653154 | AZ36: =AZ34-AZ35 -> 0 | BA36: =BA35-BA34 -> 629.8653154 | BC36: =BC34-BC35 -> 0 | BD36: =BD35-BD34 -> 629.8653154 | BF36: =BF34-BF35 -> -3779.191893 | BG36: =BG35-BG34 -> -3779.191893 | BI36: =BI34-BI35 -> 0 | BJ36: =BJ35-BJ34 -> 629.8653154 | BL36: =BL34-BL35 -> 629.8653154 | BM36: =BM35-BM34 -> 0 | BO36: =BO34-BO35 -> 0 | BP36: =BP35-BP34 -> 629.8653154 | BR36: =BR34-BR35 -> 0 | BS36: =BS35-BS34 -> 629.8653154 | BU36: =BU34-BU35 -> -4200 | BV36: =BV35-BV34 -> 9129.865315 | BX36: =BX34-BX35 -> -5038.922523 | BY36: =BY35-BY34 -> -5038.922523 | CA36: =CA34-CA35 -> 0 | CB36: =CB35-CB34 -> 0 | CD36: =CD34-CD35 -> 629.8653154 | CE36: =CE35-CE34 -> 0
A40: 2 | B40: lokale Gruppen | C40: Ist | D40: =Gruppen!D4 -> 0 | E40: =Gruppen!E4 -> 0 | F40: =D40-E40 -> 0 | G40: =Gruppen!G4 -> 0 | H40: =Gruppen!H4 -> 0 | I40: =G40-H40 -> 0 | J40: =Gruppen!I4 -> 0 | K40: =Gruppen!J4 -> 0 | L40: =J40-K40 -> 0 | M40: =Gruppen!K4 -> 0 | N40: =Gruppen!L4 -> 0 | O40: =M40-N40 -> 0 | P40: =Gruppen!M4 -> 0 | Q40: =Gruppen!N4 -> 0 | R40: =P40-Q40 -> 0 | S40: =Gruppen!O4 -> 0 | T40: =Gruppen!P4 -> 0 | U40: =S40-T40 -> 0 | V40: =Gruppen!Q4 -> 0 | W40: =Gruppen!R4 -> 0 | X40: =V40-W40 -> 0 | Y40: =Gruppen!S4 -> 0 | Z40: =Gruppen!T4 -> 0 | AA40: =Y40-Z40 -> 0 | AB40: =Gruppen!U4 -> 0 | AC40: =Gruppen!V4 -> 0 | AD40: =AB40-AC40 -> 0 | AE40: =Gruppen!W4 -> 0 | AF40: =Gruppen!X4 -> 0 | AG40: =AE40-AF40 -> 0 | AH40: =Gruppen!Y4 -> 0 | AI40: =Gruppen!Z4 -> 0 | AJ40: =AH40-AI40 -> 0 | AK40: =Gruppen!AA4 -> 0 | AL40: =Gruppen!AB4 -> 0 | AM40: =AK40-AL40 -> 0 | AN40: =Gruppen!AC4 -> 0 | AO40: =Gruppen!AD4 -> 0 | AP40: =AN40-AO40 -> 0 | AQ40: =Gruppen!AE4 -> 0 | AR40: =Gruppen!AF4 -> 0 | AS40: =AQ40-AR40 -> 0 | AT40: =Gruppen!AG4 -> 0 | AU40: =Gruppen!AH4 -> 0 | AV40: =AT40-AU40 -> 0 | AW40: =Gruppen!AI4 -> 0 | AX40: =Gruppen!AJ4 -> 0 | AY40: =AW40-AX40 -> 0 | AZ40: =Gruppen!AK4 -> 0 | BA40: =Gruppen!AL4 -> 0 | BB40: =AZ40-BA40 -> 0 | BC40: =Gruppen!AM4 -> 0 | BD40: =Gruppen!AN4 -> 0 | BE40: =BC40-BD40 -> 0 | BF40: =Gruppen!AO4 -> 0 | BG40: =Gruppen!AP4 -> 0 | BH40: =BF40-BG40 -> 0 | BI40: =Gruppen!AQ4 -> 0 | BJ40: =Gruppen!AR4 -> 0 | BK40: =BI40-BJ40 -> 0 | BL40: =Gruppen!AS4 -> 0 | BM40: =Gruppen!AT4 -> 0 | BN40: =BL40-BM40 -> 0 | BO40: =Gruppen!AU4 -> 0 | BP40: =Gruppen!AV4 -> 0 | BQ40: =BO40-BP40 -> 0 | BR40: =Gruppen!AW4 -> 0 | BS40: =Gruppen!AX4 -> 0 | BT40: =BR40-BS40 -> 0 | BU40: =Gruppen!AY4 -> 0 | BV40: =Gruppen!AZ4 -> 0 | BW40: =BU40-BV40 -> 0 | BX40: =Gruppen!BA4 -> 0 | BY40: =Gruppen!BB4 -> 0 | BZ40: =BX40-BY40 -> 0 | CA40: =Gruppen!BC4 -> 0 | CB40: =Gruppen!BD4 -> 0 | CC40: =CA40-CB40 -> 0 | CD40: =Gruppen!BE4 -> 0 | CE40: =Gruppen!BF4 -> 0 | CF40: =CD40-CE40 -> 0
C41: Plan | D41: =Gruppen!D5 -> 20000 | E41: =Gruppen!E5 -> 238682.5589 | F41: =D41-E41 -> -218682.5589 | G41: =Gruppen!G5 -> 0 | H41: =Gruppen!H5 -> 3223.546575 | I41: =G41-H41 -> -3223.546575 | J41: =Gruppen!I5 -> 0 | K41: =Gruppen!J5 -> 3223.546575 | L41: =J41-K41 -> -3223.546575 | M41: =Gruppen!K5 -> 0 | N41: =Gruppen!L5 -> 48223.54657 | O41: =M41-N41 -> -48223.54657 | P41: =Gruppen!M5 -> 0 | Q41: =Gruppen!N5 -> 51447.09315 | R41: =P41-Q41 -> -51447.09315 | S41: =Gruppen!O5 -> 0 | T41: =Gruppen!P5 -> 3223.546575 | U41: =S41-T41 -> -3223.546575 | V41: =Gruppen!Q5 -> 0 | W41: =Gruppen!R5 -> 54670.63972 | X41: =V41-W41 -> -54670.63972 | Y41: =Gruppen!S5 -> 0 | Z41: =Gruppen!T5 -> 3223.546575 | AA41: =Y41-Z41 -> -3223.546575 | AB41: =Gruppen!U5 -> 0 | AC41: =Gruppen!V5 -> 57894.1863 | AD41: =AB41-AC41 -> -57894.1863 | AE41: =Gruppen!W5 -> 0 | AF41: =Gruppen!X5 -> 48223.54657 | AG41: =AE41-AF41 -> -48223.54657 | AH41: =Gruppen!Y5 -> 0 | AI41: =Gruppen!Z5 -> 106117.7329 | AJ41: =AH41-AI41 -> -106117.7329 | AK41: =Gruppen!AA5 -> 0 | AL41: =Gruppen!AB5 -> 3223.546575 | AM41: =AK41-AL41 -> -3223.546575 | AN41: =Gruppen!AC5 -> 0 | AO41: =Gruppen!AD5 -> 109341.2794 | AP41: =AN41-AO41 -> -109341.2794 | AQ41: =Gruppen!AE5 -> 0 | AR41: =Gruppen!AF5 -> 3223.546575 | AS41: =AQ41-AR41 -> -3223.546575 | AT41: =Gruppen!AG5 -> 0 | AU41: =Gruppen!AH5 -> 112564.826 | AV41: =AT41-AU41 -> -112564.826 | AW41: =Gruppen!AI5 -> 0 | AX41: =Gruppen!AJ5 -> 48223.54657 | AY41: =AW41-AX41 -> -48223.54657 | AZ41: =Gruppen!AK5 -> 0 | BA41: =Gruppen!AL5 -> 160788.3726 | BB41: =AZ41-BA41 -> -160788.3726 | BC41: =Gruppen!AM5 -> 0 | BD41: =Gruppen!AN5 -> 3223.546575 | BE41: =BC41-BD41 -> -3223.546575 | BF41: =Gruppen!AO5 -> 0 | BG41: =Gruppen!AP5 -> 164011.9192 | BH41: =BF41-BG41 -> -164011.9192 | BI41: =Gruppen!AQ5 -> 0 | BJ41: =Gruppen!AR5 -> 3223.546575 | BK41: =BI41-BJ41 -> -3223.546575 | BL41: =Gruppen!AS5 -> 0 | BM41: =Gruppen!AT5 -> 167235.4657 | BN41: =BL41-BM41 -> -167235.4657 | BO41: =Gruppen!AU5 -> 0 | BP41: =Gruppen!AV5 -> 48223.54657 | BQ41: =BO41-BP41 -> -48223.54657 | BR41: =Gruppen!AW5 -> 0 | BS41: =Gruppen!AX5 -> 215459.0123 | BT41: =BR41-BS41 -> -215459.0123 | BU41: =Gruppen!AY5 -> 20000 | BV41: =Gruppen!AZ5 -> 23223.54657 | BW41: =BU41-BV41 -> -3223.546575 | BX41: =Gruppen!BA5 -> 20000 | BY41: =Gruppen!BB5 -> 238682.5589 | BZ41: =BX41-BY41 -> -218682.5589 | CA41: =Gruppen!BC5 -> 0 | CB41: =Gruppen!BD5 -> 0 | CC41: =CA41-CB41 -> 0 | CD41: =Gruppen!BE5 -> 20000 | CE41: =Gruppen!BF5 -> 238682.5589 | CF41: =CD41-CE41 -> -218682.5589
C42: Saldo | D42: =D40-D41 -> -20000 | E42: =E41-E40 -> 238682.5589 | F42: =F40-F41 -> 218682.5589 | G42: =G40-G41 -> 0 | H42: =H41-H40 -> 3223.546575 | J42: =J40-J41 -> 0 | K42: =K41-K40 -> 3223.546575 | M42: =M40-M41 -> 0 | N42: =N41-N40 -> 48223.54657 | P42: =P40-P41 -> 0 | Q42: =Q41-Q40 -> 51447.09315 | S42: =S40-S41 -> 0 | T42: =T41-T40 -> 3223.546575 | V42: =V40-V41 -> 0 | W42: =W41-W40 -> 54670.63972 | Y42: =Y40-Y41 -> 0 | Z42: =Z41-Z40 -> 3223.546575 | AB42: =AB40-AB41 -> 0 | AC42: =AC41-AC40 -> 57894.1863 | AE42: =AE40-AE41 -> 0 | AF42: =AF41-AF40 -> 48223.54657 | AH42: =AH40-AH41 -> 0 | AI42: =AI41-AI40 -> 106117.7329 | AK42: =AK40-AK41 -> 0 | AL42: =AL41-AL40 -> 3223.546575 | AN42: =AN40-AN41 -> 0 | AO42: =AO41-AO40 -> 109341.2794 | AP42: =AP40-AP41 -> 109341.2794 | AQ42: =AQ40-AQ41 -> 0 | AR42: =AR41-AR40 -> 3223.546575 | AT42: =AT40-AT41 -> 0 | AU42: =AU41-AU40 -> 112564.826 | AW42: =AW40-AW41 -> 0 | AX42: =AX41-AX40 -> 48223.54657 | AZ42: =AZ40-AZ41 -> 0 | BA42: =BA41-BA40 -> 160788.3726 | BC42: =BC40-BC41 -> 0 | BD42: =BD41-BD40 -> 3223.546575 | BF42: =BF40-BF41 -> 0 | BG42: =BG41-BG40 -> 164011.9192 | BI42: =BI40-BI41 -> 0 | BJ42: =BJ41-BJ40 -> 3223.546575 | BL42: =BL40-BL41 -> 0 | BM42: =BM41-BM40 -> 167235.4657 | BO42: =BO40-BO41 -> 0 | BP42: =BP41-BP40 -> 48223.54657 | BR42: =BR40-BR41 -> 0 | BS42: =BS41-BS40 -> 215459.0123 | BU42: =BU40-BU41 -> -20000 | BV42: =BV41-BV40 -> 23223.54657 | BX42: =BX40-BX41 -> -20000 | BY42: =BY41-BY40 -> 238682.5589 | CA42: =CA40-CA41 -> 0 | CB42: =CB41-CB40 -> 0 | CD42: =CD40-CD41 -> -20000 | CE42: =CE41-CE40 -> 238682.5589
A44: 3 | B44: Gremien | C44: Ist | D44: =Gremien!D4 -> 0 | E44: =Gremien!E4 -> 0 | F44: =D44-E44 -> 0 | G44: =Gremien!G4 -> 0 | H44: =Gremien!H4 -> 0 | I44: =G44-H44 -> 0 | J44: =Gremien!J4 -> 0 | K44: =Gremien!K4 -> 0 | L44: =J44-K44 -> 0 | M44: =Gremien!K4 -> 0 | N44: =Gremien!L4 -> 0 | O44: =M44-N44 -> 0 | P44: =Gremien!P4 -> 0 | Q44: =Gremien!Q4 -> 0 | R44: =P44-Q44 -> 0 | S44: =Gremien!O4 -> 0 | T44: =Gremien!P4 -> 0 | U44: =S44-T44 -> 0 | V44: =Gremien!V4 -> 0 | W44: =Gremien!W4 -> 0 | X44: =V44-W44 -> 0 | Y44: =Gremien!S4 -> 0 | Z44: =Gremien!T4 -> 0 | AA44: =Y44-Z44 -> 0 | AB44: =Gremien!AB4 -> 0 | AC44: =Gremien!AC4 -> 0 | AD44: =AB44-AC44 -> 0 | AE44: =Gremien!W4 -> 0 | AF44: =Gremien!X4 -> 0 | AG44: =AE44-AF44 -> 0 | AH44: =Gremien!AH4 -> 0 | AI44: =Gremien!AI4 -> 0 | AJ44: =AH44-AI44 -> 0 | AK44: =Gremien!AA4 -> 0 | AL44: =Gremien!AB4 -> 0 | AM44: =AK44-AL44 -> 0 | AN44: =Gremien!AN4 -> 0 | AO44: =Gremien!AO4 -> 0 | AP44: =AN44-AO44 -> 0 | AQ44: =Gremien!AE4 -> 0 | AR44: =Gremien!AF4 -> 0 | AS44: =AQ44-AR44 -> 0 | AT44: =Gremien!AT4 -> 0 | AU44: =Gremien!AU4 -> 0 | AV44: =AT44-AU44 -> 0 | AW44: =Gremien!AI4 -> 0 | AX44: =Gremien!AJ4 -> 0 | AY44: =AW44-AX44 -> 0 | AZ44: =Gremien!AZ4 -> 0 | BA44: =Gremien!BA4 -> 0 | BB44: =AZ44-BA44 -> 0 | BC44: =Gremien!AM4 -> 0 | BD44: =Gremien!AN4 -> 0 | BE44: =BC44-BD44 -> 0 | BF44: =Gremien!BF4 -> 0 | BG44: =Gremien!BG4 -> 0 | BH44: =BF44-BG44 -> 0 | BI44: =Gremien!AQ4 -> 0 | BJ44: =Gremien!AR4 -> 0 | BK44: =BI44-BJ44 -> 0 | BL44: =Gremien!BL4 -> 0 | BM44: =Gremien!BM4 -> 0 | BN44: =BL44-BM44 -> 0 | BO44: =Gremien!AU4 -> 0 | BP44: =Gremien!AV4 -> 0 | BQ44: =BO44-BP44 -> 0 | BR44: =Gremien!BR4 -> 0 | BS44: =Gremien!BS4 -> 0 | BT44: =BR44-BS44 -> 0 | BU44: =Gremien!AY4 -> 0 | BV44: =Gremien!AZ4 -> 0 | BW44: =BU44-BV44 -> 0 | BX44: =Gremien!BX4 -> 0 | BY44: =Gremien!BY4 -> 0 | BZ44: =BX44-BY44 -> 0 | CA44: =Gremien!CA4 -> 0 | CB44: =Gremien!CB4 -> 0 | CC44: =CA44-CB44 -> 0 | CD44: =Gremien!CD4 -> 0 | CE44: =Gremien!CE4 -> 0 | CF44: =CD44-CE44 -> 0
C45: Plan | D45: =Gremien!D5 -> 0 | E45: =Gremien!E5 -> 43000 | F45: =D45-E45 -> -43000 | G45: =Gremien!G5 -> 0 | H45: =Gremien!H5 -> 0 | I45: =G45-H45 -> 0 | J45: =Gremien!J5 -> 0 | K45: =Gremien!K5 -> 0 | L45: =J45-K45 -> 0 | M45: =Gremien!K5 -> 0 | N45: =Gremien!L5 -> 0 | O45: =M45-N45 -> 0 | P45: =Gremien!P5 -> 0 | Q45: =Gremien!Q5 -> 0 | R45: =P45-Q45 -> 0 | S45: =Gremien!O5 -> 0 | T45: =Gremien!P5 -> 0 | U45: =S45-T45 -> 0 | V45: =Gremien!V5 -> 3000 | W45: =Gremien!W5 -> 0 | X45: =V45-W45 -> 3000 | Y45: =Gremien!S5 -> 0 | Z45: =Gremien!T5 -> 3000 | AA45: =Y45-Z45 -> -3000 | AB45: =Gremien!AB5 -> 0 | AC45: =Gremien!AC5 -> 0 | AD45: =AB45-AC45 -> 0 | AE45: =Gremien!W5 -> 0 | AF45: =Gremien!X5 -> 0 | AG45: =AE45-AF45 -> 0 | AH45: =Gremien!AH5 -> 3000 | AI45: =Gremien!AI5 -> 0 | AJ45: =AH45-AI45 -> 3000 | AK45: =Gremien!AA5 -> 0 | AL45: =Gremien!AB5 -> 0 | AM45: =AK45-AL45 -> 0 | AN45: =Gremien!AN5 -> 0 | AO45: =Gremien!AO5 -> 0 | AP45: =AN45-AO45 -> 0 | AQ45: =Gremien!AE5 -> 0 | AR45: =Gremien!AF5 -> 0 | AS45: =AQ45-AR45 -> 0 | AT45: =Gremien!AT5 -> 10000 | AU45: =Gremien!AU5 -> 0 | AV45: =AT45-AU45 -> 10000 | AW45: =Gremien!AI5 -> 0 | AX45: =Gremien!AJ5 -> 0 | AY45: =AW45-AX45 -> 0 | AZ45: =Gremien!AZ5 -> 33000 | BA45: =Gremien!BA5 -> 0 | BB45: =AZ45-BA45 -> 33000 | BC45: =Gremien!AM5 -> 0 | BD45: =Gremien!AN5 -> 0 | BE45: =BC45-BD45 -> 0 | BF45: =Gremien!BF5 -> 43000 | BG45: =Gremien!BG5 -> 0 | BH45: =BF45-BG45 -> 43000 | BI45: =Gremien!AQ5 -> 0 | BJ45: =Gremien!AR5 -> 7000 | BK45: =BI45-BJ45 -> -7000 | BL45: =Gremien!BL5 -> 0 | BM45: =Gremien!BM5 -> 0 | BN45: =BL45-BM45 -> 0 | BO45: =Gremien!AU5 -> 0 | BP45: =Gremien!AV5 -> 0 | BQ45: =BO45-BP45 -> 0 | BR45: =Gremien!BR5 -> 0 | BS45: =Gremien!BS5 -> 0 | BT45: =BR45-BS45 -> 0 | BU45: =Gremien!AY5 -> 0 | BV45: =Gremien!AZ5 -> 33000 | BW45: =BU45-BV45 -> -33000 | BX45: =Gremien!BX5 -> 0 | BY45: =Gremien!BY5 -> 0 | BZ45: =BX45-BY45 -> 0 | CA45: =Gremien!CA5 -> 0 | CB45: =Gremien!CB5 -> 0 | CC45: =CA45-CB45 -> 0 | CD45: =Gremien!CD5 -> 0 | CE45: =Gremien!CE5 -> 0 | CF45: =CD45-CE45 -> 0
C46: Saldo | D46: =D44-D45 -> 0 | E46: =E45-E44 -> 43000 | F46: =F44-F45 -> 43000 | G46: =G44-G45 -> 0 | H46: =H45-H44 -> 0 | J46: =J44-J45 -> 0 | K46: =K45-K44 -> 0 | M46: =M44-M45 -> 0 | N46: =N45-N44 -> 0 | P46: =P44-P45 -> 0 | Q46: =Q45-Q44 -> 0 | S46: =S44-S45 -> 0 | T46: =T45-T44 -> 0 | V46: =V44-V45 -> -3000 | W46: =W45-W44 -> 0 | Y46: =Y44-Y45 -> 0 | Z46: =Z45-Z44 -> 3000 | AB46: =AB44-AB45 -> 0 | AC46: =AC45-AC44 -> 0 | AE46: =Gremien!W6 -> 0 | AF46: =Gremien!X6 -> 0 | AH46: =AH44-AH45 -> -3000 | AI46: =AI45-AI44 -> 0 | AK46: =AK44-AK45 -> 0 | AL46: =AL45-AL44 -> 0 | AN46: =AN44-AN45 -> 0 | AO46: =AO45-AO44 -> 0 | AP46: =AP44-AP45 -> 0 | AQ46: =AQ44-AQ45 -> 0 | AR46: =AR45-AR44 -> 0 | AT46: =AT44-AT45 -> -10000 | AU46: =AU45-AU44 -> 0 | AW46: =AW44-AW45 -> 0 | AX46: =AX45-AX44 -> 0 | AZ46: =AZ44-AZ45 -> -33000 | BA46: =BA45-BA44 -> 0 | BC46: =BC44-BC45 -> 0 | BD46: =BD45-BD44 -> 0 | BF46: =BF44-BF45 -> -43000 | BG46: =BG45-BG44 -> 0 | BI46: =BI44-BI45 -> 0 | BJ46: =BJ45-BJ44 -> 7000 | BL46: =BL44-BL45 -> 0 | BM46: =BM45-BM44 -> 0 | BO46: =BO44-BO45 -> 0 | BP46: =BP45-BP44 -> 0 | BR46: =BR44-BR45 -> 0 | BS46: =BS45-BS44 -> 0 | BU46: =BU44-BU45 -> 0 | BV46: =BV45-BV44 -> 33000 | BX46: =BX44-BX45 -> 0 | BY46: =BY45-BY44 -> 0 | CA46: =CA44-CA45 -> 0 | CB46: =CB45-CB44 -> 0 | CD46: =CD44-CD45 -> 0 | CE46: =CE45-CE44 -> 0
A48: 4 | B48: AGs | C48: Ist | D48: =AGs!D4 -> 0 | E48: =AGs!E4 -> 0 | F48: =D48-E48 -> 0 | G48: =AGs!G4 -> 0 | H48: =AGs!H4 -> 0 | I48: =G48-H48 -> 0 | J48: =AGs!I4 -> 0 | K48: =AGs!J4 -> 0 | L48: =J48-K48 -> 0 | M48: =AGs!K4 -> 0 | N48: =AGs!L4 -> 0 | O48: =M48-N48 -> 0 | P48: =AGs!M4 -> 0 | Q48: =AGs!N4 -> 0 | R48: =P48-Q48 -> 0 | S48: =AGs!O4 -> 0 | T48: =AGs!P4 -> 0 | U48: =S48-T48 -> 0 | V48: =AGs!Q4 -> 0 | W48: =AGs!R4 -> 0 | X48: =V48-W48 -> 0 | Y48: =AGs!S4 -> 0 | Z48: =AGs!T4 -> 0 | AA48: =Y48-Z48 -> 0 | AB48: =AGs!U4 -> 0 | AC48: =AGs!V4 -> 0 | AD48: =AB48-AC48 -> 0 | AE48: =AGs!W4 -> 0 | AF48: =AGs!X4 -> 0 | AG48: =AE48-AF48 -> 0 | AH48: =AGs!Y4 -> 0 | AI48: =AGs!Z4 -> 0 | AJ48: =AH48-AI48 -> 0 | AK48: =AGs!AA4 -> 0 | AL48: =AGs!AB4 -> 0 | AM48: =AK48-AL48 -> 0 | AN48: =AGs!AC4 -> 0 | AO48: =AGs!AD4 -> 0 | AP48: =AN48-AO48 -> 0 | AQ48: =AGs!AE4 -> 0 | AR48: =AGs!AF4 -> 0 | AS48: =AQ48-AR48 -> 0 | AT48: =AGs!AG4 -> 0 | AU48: =AGs!AH4 -> 0 | AV48: =AT48-AU48 -> 0 | AW48: =AGs!AI4 -> 0 | AX48: =AGs!AJ4 -> 0 | AY48: =AW48-AX48 -> 0 | AZ48: =AGs!AK4 -> 0 | BA48: =AGs!AL4 -> 0 | BB48: =AZ48-BA48 -> 0 | BC48: =AGs!AM4 -> 0 | BD48: =AGs!AN4 -> 0 | BE48: =BC48-BD48 -> 0 | BF48: =AGs!AO4 -> 0 | BG48: =AGs!AP4 -> 0 | BH48: =BF48-BG48 -> 0 | BI48: =AGs!AQ4 -> 0 | BJ48: =AGs!AR4 -> 0 | BK48: =BI48-BJ48 -> 0 | BL48: =AGs!AS4 -> 0 | BM48: =AGs!AT4 -> 0 | BN48: =BL48-BM48 -> 0 | BO48: =AGs!AU4 -> 0 | BP48: =AGs!AV4 -> 0 | BQ48: =BO48-BP48 -> 0 | BR48: =AGs!AW4 -> 0 | BS48: =AGs!AX4 -> 0 | BT48: =BR48-BS48 -> 0 | BU48: =AGs!AY4 -> 0 | BV48: =AGs!AZ4 -> 0 | BW48: =BU48-BV48 -> 0 | BX48: =AGs!BA4 -> 0 | BY48: =AGs!BB4 -> 0 | BZ48: =BX48-BY48 -> 0 | CA48: =AGs!BC4 -> 0 | CB48: =AGs!BD4 -> 0 | CC48: =CA48-CB48 -> 0 | CD48: =AGs!BE4 -> 0 | CE48: =AGs!BF4 -> 0 | CF48: =CD48-CE48 -> 0
C49: Plan | D49: =AGs!D5 -> 0 | E49: =AGs!E5 -> 14064.8 | F49: =D49-E49 -> -14064.8 | G49: =AGs!G5 -> 0 | H49: =AGs!H5 -> 5.4 | I49: =G49-H49 -> -5.4 | J49: =AGs!I5 -> 0 | K49: =AGs!J5 -> 5.4 | L49: =J49-K49 -> -5.4 | M49: =AGs!K5 -> 0 | N49: =AGs!L5 -> 5.4 | O49: =M49-N49 -> -5.4 | P49: =AGs!M5 -> 0 | Q49: =AGs!N5 -> 10.8 | R49: =P49-Q49 -> -10.8 | S49: =AGs!O5 -> 0 | T49: =AGs!P5 -> 5.4 | U49: =S49-T49 -> -5.4 | V49: =AGs!Q5 -> 0 | W49: =AGs!R5 -> 16.2 | X49: =V49-W49 -> -16.2 | Y49: =AGs!S5 -> 0 | Z49: =AGs!T5 -> 5.4 | AA49: =Y49-Z49 -> -5.4 | AB49: =AGs!U5 -> 0 | AC49: =AGs!V5 -> 21.6 | AD49: =AB49-AC49 -> -21.6 | AE49: =AGs!W5 -> 0 | AF49: =AGs!X5 -> 5.4 | AG49: =AE49-AF49 -> -5.4 | AH49: =AGs!Y5 -> 0 | AI49: =AGs!Z5 -> 27 | AJ49: =AH49-AI49 -> -27 | AK49: =AGs!AA5 -> 0 | AL49: =AGs!AB5 -> 5.4 | AM49: =AK49-AL49 -> -5.4 | AN49: =AGs!AC5 -> 0 | AO49: =AGs!AD5 -> 32.4 | AP49: =AN49-AO49 -> -32.4 | AQ49: =AGs!AE5 -> 0 | AR49: =AGs!AF5 -> 5.4 | AS49: =AQ49-AR49 -> -5.4 | AT49: =AGs!AG5 -> 0 | AU49: =AGs!AH5 -> 37.8 | AV49: =AT49-AU49 -> -37.8 | AW49: =AGs!AI5 -> 0 | AX49: =AGs!AJ5 -> 5.4 | AY49: =AW49-AX49 -> -5.4 | AZ49: =AGs!AK5 -> 0 | BA49: =AGs!AL5 -> 43.2 | BB49: =AZ49-BA49 -> -43.2 | BC49: =AGs!AM5 -> 0 | BD49: =AGs!AN5 -> 5.4 | BE49: =BC49-BD49 -> -5.4 | BF49: =AGs!AO5 -> 0 | BG49: =AGs!AP5 -> 48.6 | BH49: =BF49-BG49 -> -48.6 | BI49: =AGs!AQ5 -> 0 | BJ49: =AGs!AR5 -> 5.4 | BK49: =BI49-BJ49 -> -5.4 | BL49: =AGs!AS5 -> 0 | BM49: =AGs!AT5 -> 54 | BN49: =BL49-BM49 -> -54 | BO49: =AGs!AU5 -> 0 | BP49: =AGs!AV5 -> 5.4 | BQ49: =BO49-BP49 -> -5.4 | BR49: =AGs!AW5 -> 0 | BS49: =AGs!AX5 -> 59.4 | BT49: =BR49-BS49 -> -59.4 | BU49: =AGs!AY5 -> 0 | BV49: =AGs!AZ5 -> 14005.4 | BW49: =BU49-BV49 -> -14005.4 | BX49: =AGs!BA5 -> 0 | BY49: =AGs!BB5 -> 14064.8 | BZ49: =BX49-BY49 -> -14064.8 | CA49: =AGs!BC5 -> 0 | CB49: =AGs!BD5 -> 0 | CC49: =CA49-CB49 -> 0 | CD49: =AGs!BE5 -> 0 | CE49: =AGs!BF5 -> 14064.8 | CF49: =CD49-CE49 -> -14064.8
C50: Saldo | D50: =D48-D49 -> 0 | E50: =E49-E48 -> 14064.8 | F50: =F48-F49 -> 14064.8 | G50: =G48-G49 -> 0 | H50: =H49-H48 -> 5.4 | J50: =J48-J49 -> 0 | K50: =K49-K48 -> 5.4 | M50: =M48-M49 -> 0 | N50: =N49-N48 -> 5.4 | P50: =P48-P49 -> 0 | Q50: =Q49-Q48 -> 10.8 | S50: =S48-S49 -> 0 | T50: =T49-T48 -> 5.4 | V50: =V48-V49 -> 0 | W50: =W49-W48 -> 16.2 | Y50: =Y48-Y49 -> 0 | Z50: =Z49-Z48 -> 5.4 | AB50: =AB48-AB49 -> 0 | AC50: =AC49-AC48 -> 21.6 | AE50: =AE48-AE49 -> 0 | AF50: =AF49-AF48 -> 5.4 | AH50: =AH48-AH49 -> 0 | AI50: =AI49-AI48 -> 27 | AK50: =AK48-AK49 -> 0 | AL50: =AL49-AL48 -> 5.4 | AN50: =AN48-AN49 -> 0 | AO50: =AO49-AO48 -> 32.4 | AP50: =AP48-AP49 -> 32.4 | AQ50: =AQ48-AQ49 -> 0 | AR50: =AR49-AR48 -> 5.4 | AT50: =AT48-AT49 -> 0 | AU50: =AU49-AU48 -> 37.8 | AW50: =AW48-AW49 -> 0 | AX50: =AX49-AX48 -> 5.4 | AZ50: =AZ48-AZ49 -> 0 | BA50: =BA49-BA48 -> 43.2 | BC50: =BC48-BC49 -> 0 | BD50: =BD49-BD48 -> 5.4 | BF50: =BF48-BF49 -> 0 | BG50: =BG49-BG48 -> 48.6 | BI50: =BI48-BI49 -> 0 | BJ50: =BJ49-BJ48 -> 5.4 | BL50: =BL48-BL49 -> 0 | BM50: =BM49-BM48 -> 54 | BO50: =BO48-BO49 -> 0 | BP50: =BP49-BP48 -> 5.4 | BR50: =BR48-BR49 -> 0 | BS50: =BS49-BS48 -> 59.4 | BU50: =BU48-BU49 -> 0 | BV50: =BV49-BV48 -> 14005.4 | BX50: =BX48-BX49 -> 0 | BY50: =BY49-BY48 -> 14064.8 | CA50: =CA48-CA49 -> 0 | CB50: =CB49-CB48 -> 0 | CD50: =CD48-CD49 -> 0 | CE50: =CE49-CE48 -> 14064.8
A52: 5 | B52: Projekte/Schwerpunkte | C52: Ist | D52: =ProjSchw!D4 -> 0 | E52: =ProjSchw!E4 -> 0 | F52: =D52-E52 -> 0 | G52: =ProjSchw!G4 -> 0 | H52: =ProjSchw!H4 -> 0 | I52: =G52-H52 -> 0 | J52: =ProjSchw!I4 -> 0 | K52: =ProjSchw!J4 -> 0 | L52: =J52-K52 -> 0 | M52: =ProjSchw!K4 -> 0 | N52: =ProjSchw!L4 -> 0 | O52: =M52-N52 -> 0 | P52: =ProjSchw!M4 -> 0 | Q52: =ProjSchw!N4 -> 0 | R52: =P52-Q52 -> 0 | S52: =ProjSchw!O4 -> 0 | T52: =ProjSchw!P4 -> 0 | U52: =S52-T52 -> 0 | V52: =ProjSchw!Q4 -> 0 | W52: =ProjSchw!R4 -> 0 | X52: =V52-W52 -> 0 | Y52: =ProjSchw!S4 -> 0 | Z52: =ProjSchw!T4 -> 0 | AA52: =Y52-Z52 -> 0 | AB52: =ProjSchw!U4 -> 0 | AC52: =ProjSchw!V4 -> 0 | AD52: =AB52-AC52 -> 0 | AE52: =ProjSchw!W4 -> 0 | AF52: =ProjSchw!X4 -> 0 | AG52: =AE52-AF52 -> 0 | AH52: =ProjSchw!Y4 -> 0 | AI52: =ProjSchw!Z4 -> 0 | AJ52: =AH52-AI52 -> 0 | AK52: =ProjSchw!AA4 -> 0 | AL52: =ProjSchw!AB4 -> 0 | AM52: =AK52-AL52 -> 0 | AN52: =ProjSchw!AC4 -> 0 | AO52: =ProjSchw!AD4 -> 0 | AP52: =AN52-AO52 -> 0 | AQ52: =ProjSchw!AE4 -> 0 | AR52: =ProjSchw!AF4 -> 0 | AS52: =AQ52-AR52 -> 0 | AT52: =ProjSchw!AG4 -> 0 | AU52: =ProjSchw!AH4 -> 0 | AV52: =AT52-AU52 -> 0 | AW52: =ProjSchw!AI4 -> 0 | AX52: =ProjSchw!AJ4 -> 0 | AY52: =AW52-AX52 -> 0 | AZ52: =ProjSchw!AK4 -> 0 | BA52: =ProjSchw!AL4 -> 0 | BB52: =AZ52-BA52 -> 0 | BC52: =ProjSchw!AM4 -> 0 | BD52: =ProjSchw!AN4 -> 0 | BE52: =BC52-BD52 -> 0 | BF52: =ProjSchw!AO4 -> 0 | BG52: =ProjSchw!AP4 -> 0 | BH52: =BF52-BG52 -> 0 | BI52: =ProjSchw!AQ4 -> 0 | BJ52: =ProjSchw!AR4 -> 0 | BK52: =BI52-BJ52 -> 0 | BL52: =ProjSchw!AS4 -> 0 | BM52: =ProjSchw!AT4 -> 0 | BN52: =BL52-BM52 -> 0 | BO52: =ProjSchw!AU4 -> 0 | BP52: =ProjSchw!AV4 -> 0 | BQ52: =BO52-BP52 -> 0 | BR52: =ProjSchw!AW4 -> 0 | BS52: =ProjSchw!AX4 -> 0 | BT52: =BR52-BS52 -> 0 | BU52: =ProjSchw!AY4 -> 0 | BV52: =ProjSchw!AZ4 -> 0 | BW52: =BU52-BV52 -> 0 | BX52: =ProjSchw!BA4 -> 0 | BY52: =ProjSchw!BB4 -> 0 | BZ52: =BX52-BY52 -> 0 | CA52: =ProjSchw!BC4 -> 0 | CB52: =ProjSchw!BD4 -> 0 | CC52: =CA52-CB52 -> 0 | CD52: =ProjSchw!BE4 -> 0 | CE52: =ProjSchw!BF4 -> 0 | CF52: =CD52-CE52 -> 0
C53: Plan | D53: =ProjSchw!D5 -> 100000 | E53: =ProjSchw!E5 -> 350355.0586 | F53: =D53-E53 -> -250355.0586 | G53: =ProjSchw!G5 -> 0 | H53: =ProjSchw!H5 -> 19946.25489 | I53: =G53-H53 -> -19946.25489 | J53: =ProjSchw!I5 -> 0 | K53: =ProjSchw!J5 -> 19946.25489 | L53: =J53-K53 -> -19946.25489 | M53: =ProjSchw!K5 -> 0 | N53: =ProjSchw!L5 -> 19946.25489 | O53: =M53-N53 -> -19946.25489 | P53: =ProjSchw!M5 -> 0 | Q53: =ProjSchw!N5 -> 39892.50977 | R53: =P53-Q53 -> -39892.50977 | S53: =ProjSchw!O5 -> 0 | T53: =ProjSchw!P5 -> 19946.25489 | U53: =S53-T53 -> -19946.25489 | V53: =ProjSchw!Q5 -> 0 | W53: =ProjSchw!R5 -> 59838.76466 | X53: =V53-W53 -> -59838.76466 | Y53: =ProjSchw!S5 -> 0 | Z53: =ProjSchw!T5 -> 19946.25489 | AA53: =Y53-Z53 -> -19946.25489 | AB53: =ProjSchw!U5 -> 0 | AC53: =ProjSchw!V5 -> 79785.01954 | AD53: =AB53-AC53 -> -79785.01954 | AE53: =ProjSchw!W5 -> 0 | AF53: =ProjSchw!X5 -> 19946.25489 | AG53: =AE53-AF53 -> -19946.25489 | AH53: =ProjSchw!Y5 -> 0 | AI53: =ProjSchw!Z5 -> 99731.27443 | AJ53: =AH53-AI53 -> -99731.27443 | AK53: =ProjSchw!AA5 -> 0 | AL53: =ProjSchw!AB5 -> 19946.25489 | AM53: =AK53-AL53 -> -19946.25489 | AN53: =ProjSchw!AC5 -> 0 | AO53: =ProjSchw!AD5 -> 119677.5293 | AP53: =AN53-AO53 -> -119677.5293 | AQ53: =ProjSchw!AE5 -> 0 | AR53: =ProjSchw!AF5 -> 19946.25489 | AS53: =AQ53-AR53 -> -19946.25489 | AT53: =ProjSchw!AG5 -> 0 | AU53: =ProjSchw!AH5 -> 139623.7842 | AV53: =AT53-AU53 -> -139623.7842 | AW53: =ProjSchw!AI5 -> 0 | AX53: =ProjSchw!AJ5 -> 19946.25489 | AY53: =AW53-AX53 -> -19946.25489 | AZ53: =ProjSchw!AK5 -> 0 | BA53: =ProjSchw!AL5 -> 159570.0391 | BB53: =AZ53-BA53 -> -159570.0391 | BC53: =ProjSchw!AM5 -> 0 | BD53: =ProjSchw!AN5 -> 19946.25489 | BE53: =BC53-BD53 -> -19946.25489 | BF53: =ProjSchw!AO5 -> 0 | BG53: =ProjSchw!AP5 -> 179516.294 | BH53: =BF53-BG53 -> -179516.294 | BI53: =ProjSchw!AQ5 -> 0 | BJ53: =ProjSchw!AR5 -> 19946.25489 | BK53: =BI53-BJ53 -> -19946.25489 | BL53: =ProjSchw!AS5 -> 0 | BM53: =ProjSchw!AT5 -> 199462.5489 | BN53: =BL53-BM53 -> -199462.5489 | BO53: =ProjSchw!AU5 -> 0 | BP53: =ProjSchw!AV5 -> 19946.25489 | BQ53: =BO53-BP53 -> -19946.25489 | BR53: =ProjSchw!AW5 -> 0 | BS53: =ProjSchw!AX5 -> 219408.8037 | BT53: =BR53-BS53 -> -219408.8037 | BU53: =ProjSchw!AY5 -> 100000 | BV53: =ProjSchw!AZ5 -> 130946.2549 | BW53: =BU53-BV53 -> -30946.25489 | BX53: =ProjSchw!BA5 -> 0 | BY53: =ProjSchw!BB5 -> 350355.0586 | BZ53: =BX53-BY53 -> -350355.0586 | CA53: =ProjSchw!BC5 -> 0 | CB53: =ProjSchw!BD5 -> 0 | CC53: =CA53-CB53 -> 0 | CD53: =ProjSchw!BE5 -> 0 | CE53: =ProjSchw!BF5 -> 350355.0586 | CF53: =CD53-CE53 -> -350355.0586
C54: Saldo | D54: =D52-D53 -> -100000 | E54: =E53-E52 -> 350355.0586 | F54: =F52-F53 -> 250355.0586 | G54: =G52-G53 -> 0 | H54: =H53-H52 -> 19946.25489 | J54: =J52-J53 -> 0 | K54: =K53-K52 -> 19946.25489 | M54: =M52-M53 -> 0 | N54: =N53-N52 -> 19946.25489 | P54: =P52-P53 -> 0 | Q54: =Q53-Q52 -> 39892.50977 | S54: =S52-S53 -> 0 | T54: =T53-T52 -> 19946.25489 | V54: =V52-V53 -> 0 | W54: =W53-W52 -> 59838.76466 | Y54: =Y52-Y53 -> 0 | Z54: =Z53-Z52 -> 19946.25489 | AB54: =AB52-AB53 -> 0 | AC54: =AC53-AC52 -> 79785.01954 | AE54: =AE52-AE53 -> 0 | AF54: =AF53-AF52 -> 19946.25489 | AH54: =AH52-AH53 -> 0 | AI54: =AI53-AI52 -> 99731.27443 | AK54: =AK52-AK53 -> 0 | AL54: =AL53-AL52 -> 19946.25489 | AN54: =AN52-AN53 -> 0 | AO54: =AO53-AO52 -> 119677.5293 | AP54: =AP52-AP53 -> 119677.5293 | AQ54: =AQ52-AQ53 -> 0 | AR54: =AR53-AR52 -> 19946.25489 | AT54: =AT52-AT53 -> 0 | AU54: =AU53-AU52 -> 139623.7842 | AW54: =AW52-AW53 -> 0 | AX54: =AX53-AX52 -> 19946.25489 | AZ54: =AZ52-AZ53 -> 0 | BA54: =BA53-BA52 -> 159570.0391 | BC54: =BC52-BC53 -> 0 | BD54: =BD53-BD52 -> 19946.25489 | BF54: =BF52-BF53 -> 0 | BG54: =BG53-BG52 -> 179516.294 | BI54: =BI52-BI53 -> 0 | BJ54: =BJ53-BJ52 -> 19946.25489 | BL54: =BL52-BL53 -> 0 | BM54: =BM53-BM52 -> 199462.5489 | BO54: =BO52-BO53 -> 0 | BP54: =BP53-BP52 -> 19946.25489 | BR54: =BR52-BR53 -> 0 | BS54: =BS53-BS52 -> 219408.8037 | BU54: =BU52-BU53 -> -100000 | BV54: =BV53-BV52 -> 130946.2549 | BX54: =BX52-BX53 -> 0 | BY54: =BY53-BY52 -> 350355.0586 | CA54: =CA52-CA53 -> 0 | CB54: =CB53-CB52 -> 0 | CD54: =CD52-CD53 -> 0 | CE54: =CE53-CE52 -> 350355.0586

Sheet MitgSpend
B1: Inhalt | D1: Jahr | G1: Januar | K1: Februar | O1: März | S1: April | W1: Mai | AA1: Juni | AE1: Juli | AI1: August | AM1: September | AQ1: Oktober | AU1: November | AY1: Dezember | BC1: Überträge etc.
A2: ç | B2: Übersicht | C2: è | G2: Monatswerte | I2: Buchungsstand | K2: Monatswerte | M2: Buchungsstand | O2: Monatswerte | Q2: Buchungsstand | S2: Monatswerte | U2: Buchungsstand | W2: Monatswerte | Y2: Buchungsstand | AA2: Monatswerte | AC2: Buchungsstand | AE2: Monatswerte | AG2: Buchungsstand | AI2: Monatswerte | AK2: Buchungsstand | AM2: Monatswerte | AO2: Buchungsstand | AQ2: Monatswerte | AS2: Buchungsstand | AU2: Monatswerte | AW2: Buchungsstand | AY2: Monatswerte | BA2: Buchungsstand | BE2: Buchungsstand
B3: Liquidität | D3: Einnahmen | E3: Ausgaben | F3: Saldo | G3: Einnahmen | H3: Ausgaben | I3: Einnahmen | J3: Ausgaben | K3: Einnahmen | L3: Ausgaben | M3: Einnahmen | N3: Ausgaben | O3: Einnahmen | P3: Ausgaben | Q3: Einnahmen | R3: Ausgaben | S3: Einnahmen | T3: Ausgaben | U3: Einnahmen | V3: Ausgaben | W3: Einnahmen | X3: Ausgaben | Y3: Einnahmen | Z3: Ausgaben | AA3: Einnahmen | AB3: Ausgaben | AC3: Einnahmen | AD3: Ausgaben | AE3: Einnahmen | AF3: Ausgaben | AG3: Einnahmen | AH3: Ausgaben | AI3: Einnahmen | AJ3: Ausgaben | AK3: Einnahmen | AL3: Ausgaben | AM3: Einnahmen | AN3: Ausgaben | AO3: Einnahmen | AP3: Ausgaben | AQ3: Einnahmen | AR3: Ausgaben | AS3: Einnahmen | AT3: Ausgaben | AU3: Einnahmen | AV3: Ausgaben | AW3: Einnahmen | AX3: Ausgaben | AY3: Einnahmen | AZ3: Ausgaben | BA3: Einnahmen | BB3: Ausgaben | BC3: Einnahmen | BD3: Ausgaben | BE3: Einnahmen | BF3: Ausgaben
A4: 1.1 | B4: Mitglieder / Spendende | C4: Ist | D4: =D8+D12+D16+D20+D24+D28+D32+D36+D40+D44+D48+D52 -> 0 | E4: =E8+E12+E16+E20+E24+E28+E32+E36+E40+E44+E48+E52 -> 0 | F4: =D4-E4 -> 0 | G4: =G8+G12+G16+G20+G24+G28+G32+G36+G40+G44+G48+G52 -> 0 | H4: =H8+H12+H16+H20+H24+H28+H32+H36+H40+H44+H48+H52 -> 0 | I4: =I8+I12+I16+I20+I24+I28+I32+I36+I40+I44+I48+I52 -> 0 | J4: 0 | K4: =K8+K12+K16+K20+K24+K28+K32+K36+K40+K44+K48+K52 -> 0 | L4: =L8+L12+L16+L20+L24+L28+L32+L36+L40+L44+L48+L52 -> 0 | M4: 0 | N4: 0 | O4: =O8+O12+O16+O20+O24+O28+O32+O36+O40+O44+O48+O52 -> 0 | P4: =P8+P12+P16+P20+P24+P28+P32+P36+P40+P44+P48+P52 -> 0 | Q4: 0 | R4: 0 | S4: =S8+S12+S16+S20+S24+S28+S32+S36+S40+S44+S48+S52 -> 0 | T4: =T8+T12+T16+T20+T24+T28+T32+T36+T40+T44+T48+T52 -> 0 | U4: 0 | V4: 0 | W4: 0 | X4: 0 | Y4: 0 | Z4: 0 | AA4: 0 | AB4: 0 | AC4: 0 | AD4: 0 | AE4: 0 | AF4: 0 | AG4: 0 | AH4: 0 | AI4: 0 | AJ4: 0 | AK4: 0 | AL4: 0 | AM4: =AM8+AM12+AM16+AM20+AM24+AM28+AM32+AM36+AM40+AM44+AM48+AM52 -> 0 | AN4: 0 | AO4: 0 | AP4: 0 | AQ4: 0 | AR4: 0 | AS4: 0 | AT4: 0 | AU4: 0 | AV4: 0 | AW4: 0 | AX4: 0 | AY4: =AY8+AY12+AY16+AY20+AY24+AY28+AY32+AY36+AY40+AY44+AY48+AY52 -> 0 | AZ4: 0 | BA4: 0 | BB4: 50000 | BC4: 0 | BD4: 0 | BE4: 0 | BF4: 50000
C5: Plan | D5: =D9+D13+D17+D21+D25+D29+D33+D37+D41+D45+D49+D53 -> 1661000 | E5: =E9+E13+E17+E21+E25+E29+E33+E37+E41+E45+E49+E53 -> 161210.5114 | F5: =D5-E5 -> 1499789.489 | G5: =G9+G13+G17+G21+G25+G29+G33+G37+G41+G45+G49+G53 -> 120000 | H5: 8670.87595 | I5: 120000 | J5: 8670.87595 | K5: 120000 | L5: 8670.87595 | M5: 240000 | N5: 17341.7519 | O5: 155000 | P5: 18670.87595 | Q5: 395000 | R5: 36012.62785 | S5: 120000 | T5: 8670.87595 | U5: 515000 | V5: 44683.5038 | W5: 120000 | X5: 8670.87595 | Y5: 635000 | Z5: 53354.37975 | AA5: 155000 | AB5: 18670.87595 | AC5: 790000 | AD5: 72025.2557 | AE5: 120000 | AF5: 8670.87595 | AG5: 910000 | AH5: 80696.13165 | AI5: 120000 | AJ5: 8670.87595 | AK5: 1030000 | AL5: 89367.0076 | AM5: =AM9+AM13+AM17+AM21+AM25+AM29+AM33+AM37+AM41+AM45+AM49+AM53 -> 155000 | AN5: 16670.87595 | AO5: 1185000 | AP5: 106037.8836 | AQ5: 120000 | AR5: 8670.87595 | AS5: 1305000 | AT5: 114708.7595 | AU5: 120000 | AV5: 8670.87595 | AW5: 1425000 | AX5: 123379.6355 | AY5: =AY9+AY13+AY17+AY21+AY25+AY29+AY33+AY37+AY41+AY45+AY49+AY53 -> 236000 | AZ5: 37830.87595 | BA5: 1661000 | BB5: 211210.5114 | BC5: 0 | BD5: 0 | BE5: 1661000 | BF5: 211210.5114
B6: Eing. Buchungsst. | C6: Saldo | D6: =D4-D5 -> -1661000 | E6: =E5-E4 -> 161210.5114 | F6: =F4-F5 -> -1499789.489 | G6: =G4-G5 -> -120000 | H6: =H5-H4 -> 8670.87595 | I6: =I4-I5 -> -120000 | J6: =J5-J4 -> 8670.87595 | K6: =K4-K5 -> -120000 | L6: =L5-L4 -> 8670.87595 | M6: =M4-M5 -> -240000 | N6: =N5-N4 -> 17341.7519 | O6: =O4-O5 -> -155000 | P6: =P5-P4 -> 18670.87595 | Q6: =Q4-Q5 -> -395000 | R6: =R5-R4 -> 36012.62785 | S6: =S4-S5 -> -120000 | T6: =T5-T4 -> 8670.87595 | U6: =U4-U5 -> -515000 | V6: =V5-V4 -> 44683.5038 | W6: =W4-W5 -> -120000 | X6: =X5-X4 -> 8670.87595 | Y6: =Y4-Y5 -> -635000 | Z6: =Z5-Z4 -> 53354.37975 | AA6: =AA4-AA5 -> -155000 | AB6: =AB5-AB4 -> 18670.87595 | AC6: =AC4-AC5 -> -790000 | AD6: =AD5-AD4 -> 72025.2557 | AE6: =AE4-AE5 -> -120000 | AF6: =AF5-AF4 -> 8670.87595 | AG6: =AG4-AG5 -> -910000 | AH6: =AH5-AH4 -> 80696.13165 | AI6: =AI4-AI5 -> -120000 | AJ6: =AJ5-AJ4 -> 8670.87595 | AK6: =AK4-AK5 -> -1030000 | AL6: =AL5-AL4 -> 89367.0076 | AM6: =AM4-AM5 -> -155000 | AN6: =AN5-AN4 -> 16670.87595 | AO6: =AO4-AO5 -> -1185000 | AP6: =AP5-AP4 -> 106037.8836 | AQ6: =AQ4-AQ5 -> -120000 | AR6: =AR5-AR4 -> 8670.87595 | AS6: =AS4-AS5 -> -1305000 | AT6: =AT5-AT4 -> 114708.7595 | AU6: =AU4-AU5 -> -120000 | AV6: =AV5-AV4 -> 8670.87595 | AW6: =AW4-AW5 -> -1425000 | AX6: =AX5-AX4 -> 123379.6355 | AY6: =AY4-AY5 -> -236000 | AZ6: =AZ5-AZ4 -> 37830.87595 | BA6: =BA4-BA5 -> -1661000 | BB6: =BB5-BB4 -> 161210.5114 | BC6: =BC4-BC5 -> 0 | BD6: =BD5-BD4 -> 0 | BE6: =BE4-BE5 -> -1661000 | BF6: =BF5-BF4 -> 161210.5114
A8: 1.1.1 | B8: Mitgliedsbeiträge | C8: Ist | D8: =G8+K8+O8+S8+W8+AA8+AE8+AI8+AM8+AQ8+AU8+AY8+BC8 -> 0 | E8: =H8+L8+P8+T8+X8+AB8+AF8+AJ8+AN8+AR8+AV8+AZ8+BD8 -> 0 | F8: =D8-E8 -> 0 | H8: 0 | I8: =G8 -> 0 | J8: =H8 -> 0 | L8: 0 | M8: =I8+K8 -> 0 | N8: =J8+L8 -> 0 | P8: 0 | Q8: =M8+O8 -> 0 | R8: =N8+P8 -> 0 | T8: 0 | U8: =Q8+S8 -> 0 | V8: =R8+T8 -> 0 | X8: 0 | Y8: =U8+W8 -> 0 | Z8: =V8+X8 -> 0 | AB8: 0 | AC8: =Y8+AA8 -> 0 | AD8: =Z8+AB8 -> 0 | AF8: 0 | AG8: =AC8+AE8 -> 0 | AH8: =AD8+AF8 -> 0 | AJ8: 0 | AK8: =AG8+AI8 -> 0 | AL8: =AH8+AJ8 -> 0 | AN8: 0 | AO8: =AK8+AM8 -> 0 | AP8: =AL8+AN8 -> 0 | AR8: 0 | AS8: =AO8+AQ8 -> 0 | AT8: =AP8+AR8 -> 0 | AV8: 0 | AW8: =AS8+AU8 -> 0 | AX8: =AT8+AV8 -> 0 | AZ8: 0 | BA8: =AW8+AY8 -> 0 | BB8: =AX8+AZ8 -> 0 | BC8: 0 | BD8: 0 | BE8: =BA8+BC8 -> 0 | BF8: =BB8+BD8 -> 0
C9: Plan | D9: =G9+K9+O9+S9+W9+AA9+AE9+AI9+AM9+AQ9+AU9+AY9+BC9 -> 1140000 | E9: =H9+L9+P9+T9+X9+AB9+AF9+AJ9+AN9+AR9+AV9+AZ9 -> 0 | F9: =D9-E9 -> 1140000 | G9: 95000 | H9: 0 | I9: =G9 -> 95000 | J9: =H9 -> 0 | K9: 95000 | L9: 0 | M9: =I9+K9 -> 190000 | N9: =J9+L9 -> 0 | O9: 95000 | P9: 0 | Q9: =M9+O9 -> 285000 | R9: =N9+P9 -> 0 | S9: 95000 | T9: 0 | U9: =Q9+S9 -> 380000 | V9: =R9+T9 -> 0 | W9: 95000 | X9: 0 | Y9: =U9+W9 -> 475000 | Z9: =V9+X9 -> 0 | AA9: 95000 | AB9: 0 | AC9: =Y9+AA9 -> 570000 | AD9: =Z9+AB9 -> 0 | AE9: 95000 | AF9: 0 | AG9: =AC9+AE9 -> 665000 | AH9: =AD9+AF9 -> 0 | AI9: 95000 | AJ9: 0 | AK9: =AG9+AI9 -> 760000 | AL9: =AH9+AJ9 -> 0 | AM9: 95000 | AN9: 0 | AO9: =AK9+AM9 -> 855000 | AP9: =AL9+AN9 -> 0 | AQ9: 95000 | AR9: 0 | AS9: =AO9+AQ9 -> 950000 | AT9: =AP9+AR9 -> 0 | AU9: 95000 | AV9: 0 | AW9: =AS9+AU9 -> 1045000 | AX9: =AT9+AV9 -> 0 | AY9: 95000 | AZ9: 0 | BA9: =AW9+AY9 -> 1140000 | BB9: =AX9+AZ9 -> 0 | BC9: 0 | BD9: 0 | BE9: =BA9+BC9 -> 1140000 | BF9: =BB9+BD9 -> 0
C10: Saldo | D10: =D8-D9 -> -1140000 | E10: =E9-E8 -> 0 | F10: =F8-F9 -> -1140000 | G10: =G8-G9 -> -95000 | H10: =H9-H8 -> 0 | I10: =I8-I9 -> -95000 | J10: =J9-J8 -> 0 | K10: =K8-K9 -> -95000 | L10: =L9-L8 -> 0 | M10: =M8-M9 -> -190000 | N10: =N9-N8 -> 0 | O10: =O8-O9 -> -95000 | P10: =P9-P8 -> 0 | Q10: =Q8-Q9 -> -285000 | R10: =R9-R8 -> 0 | S10: =S8-S9 -> -95000 | T10: =T9-T8 -> 0 | U10: =U8-U9 -> -380000 | V10: =V9-V8 -> 0 | W10: =W8-W9 -> -95000 | X10: =X9-X8 -> 0 | Y10: =Y8-Y9 -> -475000 | Z10: =Z9-Z8 -> 0 | AA10: =AA8-AA9 -> -95000 | AB10: =AB9-AB8 -> 0 | AC10: =AC8-AC9 -> -570000 | AD10: =AD9-AD8 -> 0 | AE10: =AE8-AE9 -> -95000 | AF10: =AF9-AF8 -> 0 | AG10: =AG8-AG9 -> -665000 | AH10: =AH9-AH8 -> 0 | AI10: =AI8-AI9 -> -95000 | AJ10: =AJ9-AJ8 -> 0 | AK10: =AK8-AK9 -> -760000 | AL10: =AL9-AL8 -> 0 | AM10: =AM8-AM9 -> -95000 | AN10: =AN9-AN8 -> 0 | AO10: =AO8-AO9 -> -855000 | AP10: =AP9-AP8 -> 0 | AQ10: =AQ8-AQ9 -> -95000 | AR10: =AR9-AR8 -> 0 | AS10: =AS8-AS9 -> -950000 | AT10: =AT9-AT8 -> 0 | AU10: =AU8-AU9 -> -95000 | AV10: =AV9-AV8 -> 0 | AW10: =AW8-AW9 -> -1045000 | AX10: =AX9-AX8 -> 0 | AY10: =AY8-AY9 -> -95000 | AZ10: =AZ9-AZ8 -> 0 | BA10: =BA8-BA9 -> -1140000 | BB10: =BB9-BB8 -> 0 | BC10: =BC8-BC9 -> 0 | BD10: =BD9-BD8 -> 0 | BE10: =BE8-BE9 -> -1140000 | BF10: =BF9-BF8 -> 0
A12: 1.1.2 | B12: Spenden / Mailings | C12: Ist | D12: =G12+K12+O12+S12+W12+AA12+AE12+AI12+AM12+AQ12+AU12+AY12+BC12 -> 0 | E12: =H12+L12+P12+T12+X12+AB12+AF12+AJ12+AN12+AR12+AV12+AZ12+BD12 -> 0 | F12: =D12-E12 -> 0 | H12: 0 | I12: =G12 -> 0 | J12: =H12 -> 0 | L12: 0 | M12: =I12+K12 -> 0 | N12: =J12+L12 -> 0 | P12: 0 | Q12: =M12+O12 -> 0 | R12: =N12+P12 -> 0 | T12: 0 | U12: =Q12+S12 -> 0 | V12: =R12+T12 -> 0 | X12: 0 | Y12: =U12+W12 -> 0 | Z12: =V12+X12 -> 0 | AB12: 0 | AC12: =Y12+AA12 -> 0 | AD12: =Z12+AB12 -> 0 | AF12: 0 | AG12: =AC12+AE12 -> 0 | AH12: =AD12+AF12 -> 0 | AJ12: 0 | AK12: =AG12+AI12 -> 0 | AL12: =AH12+AJ12 -> 0 | AN12: 0 | AO12: =AK12+AM12 -> 0 | AP12: =AL12+AN12 -> 0 | AR12: 0 | AS12: =AO12+AQ12 -> 0 | AT12: =AP12+AR12 -> 0 | AV12: 0 | AW12: =AS12+AU12 -> 0 | AX12: =AT12+AV12 -> 0 | AZ12: 0 | BA12: =AW12+AY12 -> 0 | BB12: =AX12+AZ12 -> 0 | BC12: 0 | BD12: 0 | BE12: =BA12+BC12 -> 0 | BF12: =BB12+BD12 -> 0
C13: Plan | D13: =G13+K13+O13+S13+W13+AA13+AE13+AI13+AM13+AQ13+AU13+AY13+BC13 -> 503000 | E13: =H13+L13+P13+T13+X13+AB13+AF13+AJ13+AN13+AR13+AV13+AZ13+BD13 -> 54000 | F13: =D13-E13 -> 449000 | G13: 25000 | H13: 0 | I13: =G13 -> 25000 | J13: =H13 -> 0 | K13: 25000 | L13: 0 | M13: =I13+K13 -> 50000 | N13: =J13+L13 -> 0 | O13: 60000 | P13: 10000 | Q13: =M13+O13 -> 110000 | R13: =N13+P13 -> 10000 | S13: 25000 | T13: 0 | U13: =Q13+S13 -> 135000 | V13: =R13+T13 -> 10000 | W13: 25000 | X13: 0 | Y13: =U13+W13 -> 160000 | Z13: =V13+X13 -> 10000 | AA13: 60000 | AB13: 10000 | AC13: =Y13+AA13 -> 220000 | AD13: =Z13+AB13 -> 20000 | AE13: 25000 | AF13: 0 | AG13: =AC13+AE13 -> 245000 | AH13: =AD13+AF13 -> 20000 | AI13: 25000 | AJ13: 0 | AK13: =AG13+AI13 -> 270000 | AL13: =AH13+AJ13 -> 20000 | AM13: 60000 | AN13: 8000 | AO13: =AK13+AM13 -> 330000 | AP13: =AL13+AN13 -> 28000 | AQ13: 25000 | AR13: 0 | AS13: =AO13+AQ13 -> 355000 | AT13: =AP13+AR13 -> 28000 | AU13: 25000 | AV13: 0 | AW13: =AS13+AU13 -> 380000 | AX13: =AT13+AV13 -> 28000 | AY13: 123000 | AZ13: 26000 | BA13: =AW13+AY13 -> 503000 | BB13: =AX13+AZ13 -> 54000 | BC13: 0 | BD13: 0 | BE13: =BA13+BC13 -> 503000 | BF13: =BB13+BD13 -> 54000
C14: Saldo | D14: =D12-D13 -> -503000 | E14: =E13-E12 -> 54000 | F14: =F12-F13 -> -449000 | G14: =G12-G13 -> -25000 | H14: =H13-H12 -> 0 | I14: =I12-I13 -> -25000 | J14: =J13-J12 -> 0 | K14: =K12-K13 -> -25000 | L14: =L13-L12 -> 0 | M14: =M12-M13 -> -50000 | N14: =N13-N12 -> 0 | O14: =O12-O13 -> -60000 | P14: =P13-P12 -> 10000 | Q14: =Q12-Q13 -> -110000 | R14: =R13-R12 -> 10000 | S14: =S12-S13 -> -25000 | T14: =T13-T12 -> 0 | U14: =U12-U13 -> -135000 | V14: =V13-V12 -> 10000 | W14: =W12-W13 -> -25000 | X14: =X13-X12 -> 0 | Y14: =Y12-Y13 -> -160000 | Z14: =Z13-Z12 -> 10000 | AA14: =AA12-AA13 -> -60000 | AB14: =AB13-AB12 -> 10000 | AC14: =AC12-AC13 -> -220000 | AD14: =AD13-AD12 -> 20000 | AE14: =AE12-AE13 -> -25000 | AF14: =AF13-AF12 -> 0 | AG14: =AG12-AG13 -> -245000 | AH14: =AH13-AH12 -> 20000 | AI14: =AI12-AI13 -> -25000 | AJ14: =AJ13-AJ12 -> 0 | AK14: =AK12-AK13 -> -270000 | AL14: =AL13-AL12 -> 20000 | AM14: =AM12-AM13 -> -60000 | AN14: =AN13-AN12 -> 8000 | AO14: =AO12-AO13 -> -330000 | AP14: =AP13-AP12 -> 28000 | AQ14: =AQ12-AQ13 -> -25000 | AR14: =AR13-AR12 -> 0 | AS14: =AS12-AS13 -> -355000 | AT14: =AT13-AT12 -> 28000 | AU14: =AU12-AU13 -> -25000 | AV14: =AV13-AV12 -> 0 | AW14: =AW12-AW13 -> -380000 | AX14: =AX13-AX12 -> 28000 | AY14: =AY12-AY13 -> -123000 | AZ14: =AZ13-AZ12 -> 26000 | BA14: =BA12-BA13 -> -503000 | BB14: =BB13-BB12 -> 54000 | BC14: =BC12-BC13 -> 0 | BD14: =BD13-BD12 -> 0 | BE14: =BE12-BE13 -> -503000 | BF14: =BF13-BF12 -> 54000
A16: 1.1.3 | B16: Erbschaften | C16: Ist | D16: =G16+K16+O16+S16+W16+AA16+AE16+AI16+AM16+AQ16+AU16+AY16+BC16 -> 0 | E16: =H16+L16+P16+T16+X16+AB16+AF16+AJ16+AN16+AR16+AV16+AZ16+BD16 -> 0 | F16: =D16-E16 -> 0 | G16: 0 | H16: 0 | I16: =G16 -> 0 | J16: =H16 -> 0 | K16: 0 | L16: 0 | M16: =I16+K16 -> 0 | N16: =J16+L16 -> 0 | O16: 0 | P16: 0 | Q16: =M16+O16 -> 0 | R16: =N16+P16 -> 0 | S16: 0 | T16: 0 | U16: =Q16+S16 -> 0 | V16: =R16+T16 -> 0 | W16: 0 | X16: 0 | Y16: =U16+W16 -> 0 | Z16: =V16+X16 -> 0 | AA16: 0 | AB16: 0 | AC16: =Y16+AA16 -> 0 | AD16: =Z16+AB16 -> 0 | AE16: 0 | AF16: 0 | AG16: =AC16+AE16 -> 0 | AH16: =AD16+AF16 -> 0 | AI16: 0 | AJ16: 0 | AK16: =AG16+AI16 -> 0 | AL16: =AH16+AJ16 -> 0 | AM16: 0 | AN16: 0 | AO16: =AK16+AM16 -> 0 | AP16: =AL16+AN16 -> 0 | AQ16: 0 | AR16: 0 | AS16: =AO16+AQ16 -> 0 | AT16: =AP16+AR16 -> 0 | AU16: 0 | AV16: 0 | AW16: =AS16+AU16 -> 0 | AX16: =AT16+AV16 -> 0 | AY16: 0 | AZ16: 0 | BA16: =AW16+AY16 -> 0 | BB16: =AX16+AZ16 -> 0 | BC16: 0 | BD16: 0 | BE16: =BA16+BC16 -> 0 | BF16: =BB16+BD16 -> 0
B17: Großspenden (ab 20 Tsd) | C17: Plan | D17: =G17+K17+O17+S17+W17+AA17+AE17+AI17+AM17+AQ17+AU17+AY17+BC17 -> 0 | E17: =H17+L17+P17+T17+X17+AB17+AF17+AJ17+AN17+AR17+AV17+AZ17+BD17 -> 0 | F17: =D17-E17 -> 0 | G17: 0 | H17: 0 | I17: =G17 -> 0 | J17: =H17 -> 0 | K17: 0 | L17: 0 | M17: =I17+K17 -> 0 | N17: =J17+L17 -> 0 | O17: 0 | P17: 0 | Q17: =M17+O17 -> 0 | R17: =N17+P17 -> 0 | S17: 0 | T17: 0 | U17: =Q17+S17 -> 0 | V17: =R17+T17 -> 0 | W17: 0 | X17: 0 | Y17: =U17+W17 -> 0 | Z17: =V17+X17 -> 0 | AA17: 0 | AB17: 0 | AC17: =Y17+AA17 -> 0 | AD17: =Z17+AB17 -> 0 | AE17: 0 | AF17: 0 | AG17: =AC17+AE17 -> 0 | AH17: =AD17+AF17 -> 0 | AI17: 0 | AJ17: 0 | AK17: =AG17+AI17 -> 0 | AL17: =AH17+AJ17 -> 0 | AM17: 0 | AN17: 0 | AO17: =AK17+AM17 -> 0 | AP17: =AL17+AN17 -> 0 | AQ17: 0 | AR17: 0 | AS17: =AO17+AQ17 -> 0 | AT17: =AP17+AR17 -> 0 | AU17: 0 | AV17: 0 | AW17: =AS17+AU17 -> 0 | AX17: =AT17+AV17 -> 0 | AY17: 0 | AZ17: 0 | BA17: =AW17+AY17 -> 0 | BB17: =AX17+AZ17 -> 0 | BC17: 0 | BD17: 0 | BE17: =BA17+BC17 -> 0 | BF17: =BB17+BD17 -> 0
C18: Saldo | D18: =D16-D17 -> 0 | E18: =E17-E16 -> 0 | F18: =F16-F17 -> 0 | G18: =G16-G17 -> 0 | H18: =H17-H16 -> 0 | I18: =I16-I17 -> 0 | J18: =J17-J16 -> 0 | K18: =K16-K17 -> 0 | L18: =L17-L16 -> 0 | M18: =M16-M17 -> 0 | N18: =N17-N16 -> 0 | O18: =O16-O17 -> 0 | P18: =P17-P16 -> 0 | Q18: =Q16-Q17 -> 0 | R18: =R17-R16 -> 0 | S18: =S16-S17 -> 0 | T18: =T17-T16 -> 0 | U18: =U16-U17 -> 0 | V18: =V17-V16 -> 0 | W18: =W16-W17 -> 0 | X18: =X17-X16 -> 0 | Y18: =Y16-Y17 -> 0 | Z18: =Z17-Z16 -> 0 | AA18: =AA16-AA17 -> 0 | AB18: =AB17-AB16 -> 0 | AC18: =AC16-AC17 -> 0 | AD18: =AD17-AD16 -> 0 | AE18: =AE16-AE17 -> 0 | AF18: =AF17-AF16 -> 0 | AG18: =AG16-AG17 -> 0 | AH18: =AH17-AH16 -> 0 | AI18: =AI16-AI17 -> 0 | AJ18: =AJ17-AJ16 -> 0 | AK18: =AK16-AK17 -> 0 | AL18: =AL17-AL16 -> 0 | AM18: =AM16-AM17 -> 0 | AN18: =AN17-AN16 -> 0 | AO18: =AO16-AO17 -> 0 | AP18: =AP17-AP16 -> 0 | AQ18: =AQ16-AQ17 -> 0 | AR18: =AR17-AR16 -> 0 | AS18: =AS16-AS17 -> 0 | AT18: =AT17-AT16 -> 0 | AU18: =AU16-AU17 -> 0 | AV18: =AV17-AV16 -> 0 | AW18: =AW16-AW17 -> 0 | AX18: =AX17-AX16 -> 0 | AY18: =AY16-AY17 -> 0 | AZ18: =AZ17-AZ16 -> 0 | BA18: =BA16-BA17 -> 0 | BB18: =BB17-BB16 -> 0 | BC18: =BC16-BC17 -> 0 | BD18: =BD17-BD16 -> 0 | BE18: =BE16-BE17 -> 0 | BF18: =BF17-BF16 -> 0
A20: 1.1.4 | B20: Mitgliedsb. Organisationen | C20: Ist | D20: =G20+K20+O20+S20+W20+AA20+AE20+AI20+AM20+AQ20+AU20+AY20+BC20 -> 0 | E20: =H20+L20+P20+T20+X20+AB20+AF20+AJ20+AN20+AR20+AV20+AZ20+BD20 -> 0 | F20: =D20-E20 -> 0 | I20: =G20 -> 0 | J20: =H20 -> 0 | M20: =I20+K20 -> 0 | N20: =J20+L20 -> 0 | Q20: =M20+O20 -> 0 | R20: =N20+P20 -> 0 | U20: =Q20+S20 -> 0 | V20: =R20+T20 -> 0 | Y20: =U20+W20 -> 0 | Z20: =V20+X20 -> 0 | AC20: =Y20+AA20 -> 0 | AD20: =Z20+AB20 -> 0 | AG20: =AC20+AE20 -> 0 | AH20: =AD20+AF20 -> 0 | AK20: =AG20+AI20 -> 0 | AL20: =AH20+AJ20 -> 0 | AO20: =AK20+AM20 -> 0 | AP20: =AL20+AN20 -> 0 | AS20: =AO20+AQ20 -> 0 | AT20: =AP20+AR20 -> 0 | AW20: =AS20+AU20 -> 0 | AX20: =AT20+AV20 -> 0 | BA20: =AW20+AY20 -> 0 | BB20: =AX20+AZ20 -> 0 | BC20: 0 | BD20: 0 | BE20: =BA20+BC20 -> 0 | BF20: =BB20+BD20 -> 0
C21: Plan | D21: =G21+K21+O21+S21+W21+AA21+AE21+AI21+AM21+AQ21+AU21+AY21+BC21 -> 18000 | E21: =H21+L21+P21+T21+X21+AB21+AF21+AJ21+AN21+AR21+AV21+AZ21+BD21 -> 160 | F21: =D21-E21 -> 17840 | G21: 0 | H21: 0 | I21: =G21 -> 0 | J21: =H21 -> 0 | K21: 0 | L21: 0 | M21: =I21+K21 -> 0 | N21: =J21+L21 -> 0 | O21: 0 | P21: 0 | Q21: =M21+O21 -> 0 | R21: =N21+P21 -> 0 | S21: 0 | T21: 0 | U21: =Q21+S21 -> 0 | V21: =R21+T21 -> 0 | W21: 0 | X21: 0 | Y21: =U21+W21 -> 0 | Z21: =V21+X21 -> 0 | AA21: 0 | AB21: 0 | AC21: =Y21+AA21 -> 0 | AD21: =Z21+AB21 -> 0 | AE21: 0 | AF21: 0 | AG21: =AC21+AE21 -> 0 | AH21: =AD21+AF21 -> 0 | AI21: 0 | AJ21: 0 | AK21: =AG21+AI21 -> 0 | AL21: =AH21+AJ21 -> 0 | AM21: 0 | AN21: 0 | AO21: =AK21+AM21 -> 0 | AP21: =AL21+AN21 -> 0 | AQ21: 0 | AR21: 0 | AS21: =AO21+AQ21 -> 0 | AT21: =AP21+AR21 -> 0 | AU21: 0 | AV21: 0 | AW21: =AS21+AU21 -> 0 | AX21: =AT21+AV21 -> 0 | AY21: 18000 | AZ21: 160 | BA21: =AW21+AY21 -> 18000 | BB21: =AX21+AZ21 -> 160 | BC21: 0 | BD21: 0 | BE21: =BA21+BC21 -> 18000 | BF21: =BB21+BD21 -> 160
C22: Saldo | D22: =D20-D21 -> -18000 | E22: =E21-E20 -> 160 | F22: =F20-F21 -> -17840 | G22: =G20-G21 -> 0 | H22: =H21-H20 -> 0 | I22: =I20-I21 -> 0 | J22: =J21-J20 -> 0 | K22: =K20-K21 -> 0 | L22: =L21-L20 -> 0 | M22: =M20-M21 -> 0 | N22: =N21-N20 -> 0 | O22: =O20-O21 -> 0 | P22: =P21-P20 -> 0 | Q22: =Q20-Q21 -> 0 | R22: =R21-R20 -> 0 | S22: =S20-S21 -> 0 | T22: =T21-T20 -> 0 | U22: =U20-U21 -> 0 | V22: =V21-V20 -> 0 | W22: =W20-W21 -> 0 | X22: =X21-X20 -> 0 | Y22: =Y20-Y21 -> 0 | Z22: =Z21-Z20 -> 0 | AA22: =AA20-AA21 -> 0 | AB22: =AB21-AB20 -> 0 | AC22: =AC20-AC21 -> 0 | AD22: =AD21-AD20 -> 0 | AE22: =AE20-AE21 -> 0 | AF22: =AF21-AF20 -> 0 | AG22: =AG20-AG21 -> 0 | AH22: =AH21-AH20 -> 0 | AI22: =AI20-AI21 -> 0 | AJ22: =AJ21-AJ20 -> 0 | AK22: =AK20-AK21 -> 0 | AL22: =AL21-AL20 -> 0 | AM22: =AM20-AM21 -> 0 | AN22: =AN21-AN20 -> 0 | AO22: =AO20-AO21 -> 0 | AP22: =AP21-AP20 -> 0 | AQ22: =AQ20-AQ21 -> 0 | AR22: =AR21-AR20 -> 0 | AS22: =AS20-AS21 -> 0 | AT22: =AT21-AT20 -> 0 | AU22: =AU20-AU21 -> 0 | AV22: =AV21-AV20 -> 0 | AW22: =AW20-AW21 -> 0 | AX22: =AX21-AX20 -> 0 | AY22: =AY20-AY21 -> -18000 | AZ22: =AZ21-AZ20 -> 160 | BA22: =BA20-BA21 -> -18000 | BB22: =BB21-BB20 -> 160 | BC22: =BC20-BC21 -> 0 | BD22: =BD21-BD20 -> 0 | BE22: =BE20-BE21 -> -18000 | BF22: =BF21-BF20 -> 160
A24: 1.1.5 | B24: Schenkungssteuer | C24: Ist | D24: =G24+K24+O24+S24+W24+AA24+AE24+AI24+AM24+AQ24+AU24+AY24+BC24 -> 0 | E24: =H24+L24+P24+T24+X24+AB24+AF24+AJ24+AN24+AR24+AV24+AZ24+BD24 -> 0 | F24: =D24-E24 -> 0 | G24: 0 | H24: 0 | I24: =G24 -> 0 | J24: =H24 -> 0 | K24: 0 | L24: 0 | M24: =I24+K24 -> 0 | N24: =J24+L24 -> 0 | O24: 0 | P24: 0 | Q24: =M24+O24 -> 0 | R24: =N24+P24 -> 0 | S24: 0 | T24: 0 | U24: =Q24+S24 -> 0 | V24: =R24+T24 -> 0 | W24: 0 | X24: 0 | Y24: =U24+W24 -> 0 | Z24: =V24+X24 -> 0 | AA24: 0 | AB24: 0 | AC24: =Y24+AA24 -> 0 | AD24: =Z24+AB24 -> 0 | AE24: 0 | AF24: 0 | AG24: =AC24+AE24 -> 0 | AH24: =AD24+AF24 -> 0 | AI24: 0 | AJ24: 0 | AK24: =AG24+AI24 -> 0 | AL24: =AH24+AJ24 -> 0 | AM24: 0 | AN24: 0 | AO24: =AK24+AM24 -> 0 | AP24: =AL24+AN24 -> 0 | AQ24: 0 | AR24: 0 | AS24: =AO24+AQ24 -> 0 | AT24: =AP24+AR24 -> 0 | AU24: 0 | AV24: 0 | AW24: 0 | AX24: 0 | AY24: 0 | AZ24: 0 | BA24: 0 | BB24: 50000 | BC24: 0 | BD24: 0 | BE24: =BA24+BC24 -> 0 | BF24: =BB24+BD24 -> 50000
C25: Plan | D25: =G25+K25+O25+S25+W25+AA25+AE25+AI25+AM25+AQ25+AU25+AY25+BC25 -> 0 | E25: =H25+L25+P25+T25+X25+AB25+AF25+AJ25+AN25+AR25+AV25+AZ25+BD25 -> 0 | F25: =D25-E25 -> 0 | G25: 0 | H25: 0 | I25: =G25 -> 0 | J25: =H25 -> 0 | K25: 0 | L25: 0 | M25: =I25+K25 -> 0 | N25: =J25+L25 -> 0 | O25: 0 | P25: 0 | Q25: =M25+O25 -> 0 | R25: =N25+P25 -> 0 | S25: 0 | T25: 0 | U25: =Q25+S25 -> 0 | V25: =R25+T25 -> 0 | W25: 0 | X25: 0 | Y25: =U25+W25 -> 0 | Z25: =V25+X25 -> 0 | AA25: 0 | AB25: 0 | AC25: =Y25+AA25 -> 0 | AD25: =Z25+AB25 -> 0 | AE25: 0 | AF25: 0 | AG25: =AC25+AE25 -> 0 | AH25: =AD25+AF25 -> 0 | AI25: 0 | AJ25: 0 | AK25: =AG25+AI25 -> 0 | AL25: =AH25+AJ25 -> 0 | AM25: 0 | AN25: 0 | AO25: =AK25+AM25 -> 0 | AP25: =AL25+AN25 -> 0 | AQ25: 0 | AR25: 0 | AS25: =AO25+AQ25 -> 0 | AT25: =AP25+AR25 -> 0 | AU25: 0 | AV25: 0 | AW25: 0 | AX25: 0 | AY25: 0 | AZ25: 0 | BA25: 0 | BB25: 50000 | BC25: 0 | BD25: 0 | BE25: =BA25+BC25 -> 0 | BF25: =BB25+BD25 -> 50000
C26: Saldo | D26: =D24-D25 -> 0 | E26: =E25-E24 -> 0 | F26: =F24-F25 -> 0 | G26: =G24-G25 -> 0 | H26: =H25-H24 -> 0 | I26: =I24-I25 -> 0 | J26: =J25-J24 -> 0 | K26: =K24-K25 -> 0 | L26: =L25-L24 -> 0 | M26: =M24-M25 -> 0 | N26: =N25-N24 -> 0 | O26: =O24-O25 -> 0 | P26: =P25-P24 -> 0 | Q26: =Q24-Q25 -> 0 | R26: =R25-R24 -> 0 | S26: =S24-S25 -> 0 | T26: =T25-T24 -> 0 | U26: =U24-U25 -> 0 | V26: =V25-V24 -> 0 | W26: =W24-W25 -> 0 | X26: =X25-X24 -> 0 | Y26: =Y24-Y25 -> 0 | Z26: =Z25-Z24 -> 0 | AA26: =AA24-AA25 -> 0 | AB26: =AB25-AB24 -> 0 | AC26: =AC24-AC25 -> 0 | AD26: =AD25-AD24 -> 0 | AE26: =AE24-AE25 -> 0 | AF26: =AF25-AF24 -> 0 | AG26: =AG24-AG25 -> 0 | AH26: =AH25-AH24 -> 0 | AI26: =AI24-AI25 -> 0 | AJ26: =AJ25-AJ24 -> 0 | AK26: =AK24-AK25 -> 0 | AL26: =AL25-AL24 -> 0 | AM26: =AM24-AM25 -> 0 | AN26: =AN25-AN24 -> 0 | AO26: =AO24-AO25 -> 0 | AP26: =AP25-AP24 -> 0 | AQ26: =AQ24-AQ25 -> 0 | AR26: =AR25-AR24 -> 0 | AS26: =AS24-AS25 -> 0 | AT26: =AT25-AT24 -> 0 | AU26: =AU24-AU25 -> 0 | AV26: =AV25-AV24 -> 0 | AW26: =AW24-AW25 -> 0 | AX26: =AX25-AX24 -> 0 | AY26: =AY24-AY25 -> 0 | AZ26: =AZ25-AZ24 -> 0 | BA26: =BA24-BA25 -> 0 | BB26: =BB25-BB24 -> 0 | BC26: =BC24-BC25 -> 0 | BD26: =BD25-BD24 -> 0 | BE26: =BE24-BE25 -> 0 | BF26: =BF25-BF24 -> 0
A28: 1.1.6 | B28: externe Mitgliederverw. | C28: Ist | D28: =G28+K28+O28+S28+W28+AA28+AE28+AI28+AM28+AQ28+AU28+AY28+BC28 -> 0 | E28: =H28+L28+P28+T28+X28+AB28+AF28+AJ28+AN28+AR28+AV28+AZ28+BD28 -> 0 | F28: =D28-E28 -> 0 | G28: 0 | I28: =G28 -> 0 | J28: =H28 -> 0 | K28: 0 | M28: =I28+K28 -> 0 | N28: =J28+L28 -> 0 | O28: 0 | Q28: =M28+O28 -> 0 | R28: =N28+P28 -> 0 | S28: 0 | U28: =Q28+S28 -> 0 | V28: =R28+T28 -> 0 | W28: 0 | Y28: =U28+W28 -> 0 | Z28: =V28+X28 -> 0 | AA28: 0 | AC28: =Y28+AA28 -> 0 | AD28: =Z28+AB28 -> 0 | AE28: 0 | AG28: =AC28+AE28 -> 0 | AH28: =AD28+AF28 -> 0 | AI28: 0 | AK28: =AG28+AI28 -> 0 | AL28: =AH28+AJ28 -> 0 | AM28: 0 | AO28: =AK28+AM28 -> 0 | AP28: =AL28+AN28 -> 0 | AQ28: 0 | AS28: =AO28+AQ28 -> 0 | AT28: =AP28+AR28 -> 0 | AU28: 0 | AW28: =AS28+AU28 -> 0 | AX28: =AT28+AV28 -> 0 | AY28: 0 | BA28: =AW28+AY28 -> 0 | BB28: =AX28+AZ28 -> 0 | BC28: 0 | BD28: 0 | BE28: =BA28+BC28 -> 0 | BF28: =BB28+BD28 -> 0
B29: (KRR) | C29: Plan | D29: =G29+K29+O29+S29+W29+AA29+AE29+AI29+AM29+AQ29+AU29+AY29+BC29 -> 0 | E29: =H29+L29+P29+T29+X29+AB29+AF29+AJ29+AN29+AR29+AV29+AZ29+BD29 -> 32400 | F29: =D29-E29 -> -32400 | G29: 0 | H29: 2700 | I29: =G29 -> 0 | J29: =H29 -> 2700 | K29: 0 | L29: 2700 | M29: =I29+K29 -> 0 | N29: =J29+L29 -> 5400 | O29: 0 | P29: 2700 | Q29: =M29+O29 -> 0 | R29: =N29+P29 -> 8100 | S29: 0 | T29: 2700 | U29: =Q29+S29 -> 0 | V29: =R29+T29 -> 10800 | W29: 0 | X29: 2700 | Y29: =U29+W29 -> 0 | Z29: =V29+X29 -> 13500 | AA29: 0 | AB29: 2700 | AC29: =Y29+AA29 -> 0 | AD29: =Z29+AB29 -> 16200 | AE29: 0 | AF29: 2700 | AG29: =AC29+AE29 -> 0 | AH29: =AD29+AF29 -> 18900 | AI29: 0 | AJ29: 2700 | AK29: =AG29+AI29 -> 0 | AL29: =AH29+AJ29 -> 21600 | AM29: 0 | AN29: 2700 | AO29: =AK29+AM29 -> 0 | AP29: =AL29+AN29 -> 24300 | AQ29: 0 | AR29: 2700 | AS29: =AO29+AQ29 -> 0 | AT29: =AP29+AR29 -> 27000 | AU29: 0 | AV29: 2700 | AW29: =AS29+AU29 -> 0 | AX29: =AT29+AV29 -> 29700 | AY29: 0 | AZ29: 2700 | BA29: =AW29+AY29 -> 0 | BB29: =AX29+AZ29 -> 32400 | BC29: 0 | BD29: 0 | BE29: =BA29+BC29 -> 0 | BF29: =BB29+BD29 -> 32400
C30: Saldo | D30: =D28-D29 -> 0 | E30: =E29-E28 -> 32400 | F30: =F28-F29 -> 32400 | G30: =G28-G29 -> 0 | H30: =H29-H28 -> 2700 | I30: =I28-I29 -> 0 | J30: =J29-J28 -> 2700 | K30: =K28-K29 -> 0 | L30: =L29-L28 -> 2700 | M30: =M28-M29 -> 0 | N30: =N29-N28 -> 5400 | O30: =O28-O29 -> 0 | P30: =P29-P28 -> 2700 | Q30: =Q28-Q29 -> 0 | R30: =R29-R28 -> 8100 | S30: =S28-S29 -> 0 | T30: =T29-T28 -> 2700 | U30: =U28-U29 -> 0 | V30: =V29-V28 -> 10800 | W30: =W28-W29 -> 0 | X30: =X29-X28 -> 2700 | Y30: =Y28-Y29 -> 0 | Z30: =Z29-Z28 -> 13500 | AA30: =AA28-AA29 -> 0 | AB30: =AB29-AB28 -> 2700 | AC30: =AC28-AC29 -> 0 | AD30: =AD29-AD28 -> 16200 | AE30: =AE28-AE29 -> 0 | AF30: =AF29-AF28 -> 2700 | AG30: =AG28-AG29 -> 0 | AH30: =AH29-AH28 -> 18900 | AI30: =AI28-AI29 -> 0 | AJ30: =AJ29-AJ28 -> 2700 | AK30: =AK28-AK29 -> 0 | AL30: =AL29-AL28 -> 21600 | AM30: =AM28-AM29 -> 0 | AN30: =AN29-AN28 -> 2700 | AO30: =AO28-AO29 -> 0 | AP30: =AP29-AP28 -> 24300 | AQ30: =AQ28-AQ29 -> 0 | AR30: =AR29-AR28 -> 2700 | AS30: =AS28-AS29 -> 0 | AT30: =AT29-AT28 -> 27000 | AU30: =AU28-AU29 -> 0 | AV30: =AV29-AV28 -> 2700 | AW30: =AW28-AW29 -> 0 | AX30: =AX29-AX28 -> 29700 | AY30: =AY28-AY29 -> 0 | AZ30: =AZ29-AZ28 -> 2700 | BA30: =BA28-BA29 -> 0 | BB30: =BB29-BB28 -> 32400 | BC30: =BC28-BC29 -> 0 | BD30: =BD29-BD28 -> 0 | BE30: =BE28-BE29 -> 0 | BF30: =BF29-BF28 -> 32400
A32: 1.1.7 | B32: Kontoführung, Einlagegebühren, Rücklastschriften | C32: Ist | D32: =G32+K32+O32+S32+W32+AA32+AE32+AI32+AM32+AQ32+AU32+AY32+BC32 -> 0 | E32: =H32+L32+P32+T32+X32+AB32+AF32+AJ32+AN32+AR32+AV32+AZ32+BD32 -> 0 | F32: =D32-E32 -> 0 | I32: =G32 -> 0 | J32: =H32 -> 0 | M32: =I32+K32 -> 0 | N32: =J32+L32 -> 0 | Q32: =M32+O32 -> 0 | R32: =N32+P32 -> 0 | U32: =Q32+S32 -> 0 | V32: =R32+T32 -> 0 | Y32: =U32+W32 -> 0 | Z32: =V32+X32 -> 0 | AC32: =Y32+AA32 -> 0 | AD32: =Z32+AB32 -> 0 | AG32: =AC32+AE32 -> 0 | AH32: =AD32+AF32 -> 0 | AK32: =AG32+AI32 -> 0 | AL32: =AH32+AJ32 -> 0 | AO32: =AK32+AM32 -> 0 | AP32: =AL32+AN32 -> 0 | AS32: =AO32+AQ32 -> 0 | AT32: =AP32+AR32 -> 0 | AW32: =AS32+AU32 -> 0 | AX32: =AT32+AV32 -> 0 | BA32: =AW32+AY32 -> 0 | BB32: =AX32+AZ32 -> 0 | BC32: 0 | BD32: 0 | BE32: =BA32+BC32 -> 0 | BF32: =BB32+BD32 -> 0
B33: Spendenkonto | C33: Plan | D33: =G33+K33+O33+S33+W33+AA33+AE33+AI33+AM33+AQ33+AU33+AY33+BC33 -> 0 | E33: =H33+L33+P33+T33+X33+AB33+AF33+AJ33+AN33+AR33+AV33+AZ33+BD33 -> 3000 | F33: =D33-E33 -> -3000 | G33: 0 | H33: 0 | I33: =G33 -> 0 | J33: =H33 -> 0 | K33: 0 | L33: 0 | M33: =I33+K33 -> 0 | N33: =J33+L33 -> 0 | O33: 0 | P33: 0 | Q33: =M33+O33 -> 0 | R33: =N33+P33 -> 0 | S33: 0 | T33: 0 | U33: =Q33+S33 -> 0 | V33: =R33+T33 -> 0 | W33: 0 | X33: 0 | Y33: =U33+W33 -> 0 | Z33: =V33+X33 -> 0 | AA33: 0 | AB33: 0 | AC33: =Y33+AA33 -> 0 | AD33: =Z33+AB33 -> 0 | AE33: 0 | AF33: 0 | AG33: =AC33+AE33 -> 0 | AH33: =AD33+AF33 -> 0 | AI33: 0 | AJ33: 0 | AK33: =AG33+AI33 -> 0 | AL33: =AH33+AJ33 -> 0 | AM33: 0 | AN33: 0 | AO33: =AK33+AM33 -> 0 | AP33: =AL33+AN33 -> 0 | AQ33: 0 | AR33: 0 | AS33: =AO33+AQ33 -> 0 | AT33: =AP33+AR33 -> 0 | AU33: 0 | AV33: 0 | AW33: =AS33+AU33 -> 0 | AX33: =AT33+AV33 -> 0 | AY33: 0 | AZ33: 3000 | BA33: =AW33+AY33 -> 0 | BB33: =AX33+AZ33 -> 3000 | BC33: 0 | BD33: 0 | BE33: =BA33+BC33 -> 0 | BF33: =BB33+BD33 -> 3000
C34: Saldo | D34: =D32-D33 -> 0 | E34: =E33-E32 -> 3000 | F34: =F32-F33 -> 3000 | G34: =G32-G33 -> 0 | H34: =H33-H32 -> 0 | I34: =I32-I33 -> 0 | J34: =J33-J32 -> 0 | K34: =K32-K33 -> 0 | L34: =L33-L32 -> 0 | M34: =M32-M33 -> 0 | N34: =N33-N32 -> 0 | O34: =O32-O33 -> 0 | P34: =P33-P32 -> 0 | Q34: =Q32-Q33 -> 0 | R34: =R33-R32 -> 0 | S34: =S32-S33 -> 0 | T34: =T33-T32 -> 0 | U34: =U32-U33 -> 0 | V34: =V33-V32 -> 0 | W34: =W32-W33 -> 0 | X34: =X33-X32 -> 0 | Y34: =Y32-Y33 -> 0 | Z34: =Z33-Z32 -> 0 | AA34: =AA32-AA33 -> 0 | AB34: =AB33-AB32 -> 0 | AC34: =AC32-AC33 -> 0 | AD34: =AD33-AD32 -> 0 | AE34: =AE32-AE33 -> 0 | AF34: =AF33-AF32 -> 0 | AG34: =AG32-AG33 -> 0 | AH34: =AH33-AH32 -> 0 | AI34: =AI32-AI33 -> 0 | AJ34: =AJ33-AJ32 -> 0 | AK34: =AK32-AK33 -> 0 | AL34: =AL33-AL32 -> 0 | AM34: =AM32-AM33 -> 0 | AN34: =AN33-AN32 -> 0 | AO34: =AO32-AO33 -> 0 | AP34: =AP33-AP32 -> 0 | AQ34: =AQ32-AQ33 -> 0 | AR34: =AR33-AR32 -> 0 | AS34: =AS32-AS33 -> 0 | AT34: =AT33-AT32 -> 0 | AU34: =AU32-AU33 -> 0 | AV34: =AV33-AV32 -> 0 | AW34: =AW32-AW33 -> 0 | AX34: =AX33-AX32 -> 0 | AY34: =AY32-AY33 -> 0 | AZ34: =AZ33-AZ32 -> 3000 | BA34: =BA32-BA33 -> 0 | BB34: =BB33-BB32 -> 3000 | BC34: =BC32-BC33 -> 0 | BD34: =BD33-BD32 -> 0 | BE34: =BE32-BE33 -> 0 | BF34: =BF33-BF32 -> 3000
A36: 1.1.8 | B36: 177. Personal | C36: Ist | D36: =G36+K36+O36+S36+W36+AA36+AE36+AI36+AM36+AQ36+AU36+AY36+BC36 -> 0 | E36: =H36+L36+P36+T36+X36+AB36+AF36+AJ36+AN36+AR36+AV36+AZ36+BD36 -> 0 | F36: =D36-E36 -> 0 | I36: =G36 -> 0 | J36: =H36 -> 0 | M36: =I36+K36 -> 0 | N36: =J36+L36 -> 0 | Q36: =M36+O36 -> 0 | R36: =N36+P36 -> 0 | U36: =Q36+S36 -> 0 | V36: =R36+T36 -> 0 | Y36: =U36+W36 -> 0 | Z36: =V36+X36 -> 0 | AC36: =Y36+AA36 -> 0 | AD36: =Z36+AB36 -> 0 | AG36: =AC36+AE36 -> 0 | AH36: =AD36+AF36 -> 0 | AK36: =AG36+AI36 -> 0 | AL36: =AH36+AJ36 -> 0 | AO36: =AK36+AM36 -> 0 | AP36: =AL36+AN36 -> 0 | AS36: =AO36+AQ36 -> 0 | AT36: =AP36+AR36 -> 0 | AW36: =AS36+AU36 -> 0 | AX36: =AT36+AV36 -> 0 | BA36: =AW36+AY36 -> 0 | BB36: =AX36+AZ36 -> 0 | BC36: 0 | BD36: 0 | BE36: =BA36+BC36 -> 0 | BF36: =BB36+BD36 -> 0
B37: Fundraising/move | C37: Plan | D37: =G37+K37+O37+S37+W37+AA37+AE37+AI37+AM37+AQ37+AU37+AY37+BC37 -> 0 | E37: =H37+L37+P37+T37+X37+AB37+AF37+AJ37+AN37+AR37+AV37+AZ37+BD37 -> 71650.5114 | F37: =D37-E37 -> -71650.5114 | G37: 0 | H37: =+Stellenplan!G$8 -> 5970.87595 | I37: =G37 -> 0 | J37: =H37 -> 5970.87595 | K37: 0 | L37: =+Stellenplan!H$8 -> 5970.87595 | M37: =I37+K37 -> 0 | N37: =J37+L37 -> 11941.7519 | O37: 0 | P37: =+Stellenplan!I$8 -> 5970.87595 | Q37: =M37+O37 -> 0 | R37: =N37+P37 -> 17912.62785 | S37: 0 | T37: =+Stellenplan!J$8 -> 5970.87595 | U37: =Q37+S37 -> 0 | V37: =R37+T37 -> 23883.5038 | W37: 0 | X37: =+Stellenplan!K$8 -> 5970.87595 | Y37: =U37+W37 -> 0 | Z37: =V37+X37 -> 29854.37975 | AA37: 0 | AB37: =+Stellenplan!L$8 -> 5970.87595 | AC37: =Y37+AA37 -> 0 | AD37: =Z37+AB37 -> 35825.2557 | AE37: 0 | AF37: =+Stellenplan!M$8 -> 5970.87595 | AG37: =AC37+AE37 -> 0 | AH37: =AD37+AF37 -> 41796.13165 | AI37: 0 | AJ37: =+Stellenplan!N$8 -> 5970.87595 | AK37: =AG37+AI37 -> 0 | AL37: =AH37+AJ37 -> 47767.0076 | AM37: 0 | AN37: =+Stellenplan!O$8 -> 5970.87595 | AO37: =AK37+AM37 -> 0 | AP37: =AL37+AN37 -> 53737.88355 | AQ37: 0 | AR37: =+Stellenplan!P$8 -> 5970.87595 | AS37: =AO37+AQ37 -> 0 | AT37: =AP37+AR37 -> 59708.7595 | AU37: 0 | AV37: =+Stellenplan!Q$8 -> 5970.87595 | AW37: =AS37+AU37 -> 0 | AX37: =AT37+AV37 -> 65679.63545 | AY37: 0 | AZ37: =+Stellenplan!R$8 -> 5970.87595 | BA37: =AW37+AY37 -> 0 | BB37: =AX37+AZ37 -> 71650.5114 | BC37: 0 | BD37: 0 | BE37: =BA37+BC37 -> 0 | BF37: =BB37+BD37 -> 71650.5114
C38: Saldo | D38: =D36-D37 -> 0 | E38: =E37-E36 -> 71650.5114 | F38: =F36-F37 -> 71650.5114 | G38: =G36-G37 -> 0 | H38: =H37-H36 -> 5970.87595 | I38: =I36-I37 -> 0 | J38: =J37-J36 -> 5970.87595 | K38: =K36-K37 -> 0 | L38: =L37-L36 -> 5970.87595 | M38: =M36-M37 -> 0 | N38: =N37-N36 -> 11941.7519 | O38: =O36-O37 -> 0 | P38: =P37-P36 -> 5970.87595 | Q38: =Q36-Q37 -> 0 | R38: =R37-R36 -> 17912.62785 | S38: =S36-S37 -> 0 | T38: =T37-T36 -> 5970.87595 | U38: =U36-U37 -> 0 | V38: =V37-V36 -> 23883.5038 | W38: =W36-W37 -> 0 | X38: =X37-X36 -> 5970.87595 | Y38: =Y36-Y37 -> 0 | Z38: =Z37-Z36 -> 29854.37975 | AA38: =AA36-AA37 -> 0 | AB38: =AB37-AB36 -> 5970.87595 | AC38: =AC36-AC37 -> 0 | AD38: =AD37-AD36 -> 35825.2557 | AE38: =AE36-AE37 -> 0 | AF38: =AF37-AF36 -> 5970.87595 | AG38: =AG36-AG37 -> 0 | AH38: =AH37-AH36 -> 41796.13165 | AI38: =AI36-AI37 -> 0 | AJ38: =AJ37-AJ36 -> 5970.87595 | AK38: =AK36-AK37 -> 0 | AL38: =AL37-AL36 -> 47767.0076 | AM38: =AM36-AM37 -> 0 | AN38: =AN37-AN36 -> 5970.87595 | AO38: =AO36-AO37 -> 0 | AP38: =AP37-AP36 -> 53737.88355 | AQ38: =AQ36-AQ37 -> 0 | AR38: =AR37-AR36 -> 5970.87595 | AS38: =AS36-AS37 -> 0 | AT38: =AT37-AT36 -> 59708.7595 | AU38: =AU36-AU37 -> 0 | AV38: =AV37-AV36 -> 5970.87595 | AW38: =AW36-AW37 -> 0 | AX38: =AX37-AX36 -> 65679.63545 | AY38: =AY36-AY37 -> 0 | AZ38: =AZ37-AZ36 -> 5970.87595 | BA38: =BA36-BA37 -> 0 | BB38: =BB37-BB36 -> 71650.5114 | BC38: =BC36-BC37 -> 0 | BD38: =BD37-BD36 -> 0 | BE38: =BE36-BE37 -> 0 | BF38: =BF37-BF36 -> 71650.5114
A40: 1.1.9 | C40: Ist | D40: =G40+K40+O40+S40+W40+AA40+AE40+AI40+AM40+AQ40+AU40+AY40+BC40 -> 0 | E40: =H40+L40+P40+T40+X40+AB40+AF40+AJ40+AN40+AR40+AV40+AZ40+BD40 -> 0 | F40: =D40-E40 -> 0 | I40: =G40 -> 0 | J40: =H40 -> 0 | M40: =I40+K40 -> 0 | N40: =J40+L40 -> 0 | Q40: =M40+O40 -> 0 | R40: =N40+P40 -> 0 | U40: =Q40+S40 -> 0 | V40: =R40+T40 -> 0 | Y40: =U40+W40 -> 0 | Z40: =V40+X40 -> 0 | AC40: =Y40+AA40 -> 0 | AD40: =Z40+AB40 -> 0 | AG40: =AC40+AE40 -> 0 | AH40: =AD40+AF40 -> 0 | AK40: =AG40+AI40 -> 0 | AL40: =AH40+AJ40 -> 0 | AO40: =AK40+AM40 -> 0 | AP40: =AL40+AN40 -> 0 | AS40: =AO40+AQ40 -> 0 | AT40: =AP40+AR40 -> 0 | AW40: =AS40+AU40 -> 0 | AX40: =AT40+AV40 -> 0 | BA40: =AW40+AY40 -> 0 | BB40: =AX40+AZ40 -> 0 | BC40: 0 | BD40: 0 | BE40: =BA40+BC40 -> 0 | BF40: =BB40+BD40 -> 0
C41: Plan | D41: =G41+K41+O41+S41+W41+AA41+AE41+AI41+AM41+AQ41+AU41+AY41+BC41 -> 0 | E41: =H41+L41+P41+T41+X41+AB41+AF41+AJ41+AN41+AR41+AV41+AZ41+BD41 -> 0 | F41: =D41-E41 -> 0 | G41: 0 | H41: 0 | I41: =G41 -> 0 | J41: =H41 -> 0 | K41: 0 | L41: 0 | M41: =I41+K41 -> 0 | N41: =J41+L41 -> 0 | O41: 0 | P41: 0 | Q41: =M41+O41 -> 0 | R41: =N41+P41 -> 0 | S41: 0 | T41: 0 | U41: =Q41+S41 -> 0 | V41: =R41+T41 -> 0 | W41: 0 | X41: 0 | Y41: =U41+W41 -> 0 | Z41: =V41+X41 -> 0 | AA41: 0 | AB41: 0 | AC41: =Y41+AA41 -> 0 | AD41: =Z41+AB41 -> 0 | AE41: 0 | AF41: 0 | AG41: =AC41+AE41 -> 0 | AH41: =AD41+AF41 -> 0 | AI41: 0 | AJ41: 0 | AK41: =AG41+AI41 -> 0 | AL41: =AH41+AJ41 -> 0 | AM41: 0 | AN41: 0 | AO41: =AK41+AM41 -> 0 | AP41: =AL41+AN41 -> 0 | AQ41: 0 | AR41: 0 | AS41: =AO41+AQ41 -> 0 | AT41: =AP41+AR41 -> 0 | AU41: 0 | AV41: 0 | AW41: =AS41+AU41 -> 0 | AX41: =AT41+AV41 -> 0 | AY41: 0 | AZ41: 0 | BA41: =AW41+AY41 -> 0 | BB41: =AX41+AZ41 -> 0 | BC41: 0 | BD41: 0 | BE41: =BA41+BC41 -> 0 | BF41: =BB41+BD41 -> 0
C42: Saldo | D42: =D40-D41 -> 0 | E42: =E41-E40 -> 0 | F42: =F40-F41 -> 0 | G42: =G40-G41 -> 0 | H42: =H41-H40 -> 0 | I42: =I40-I41 -> 0 | J42: =J41-J40 -> 0 | K42: =K40-K41 -> 0 | L42: =L41-L40 -> 0 | M42: =M40-M41 -> 0 | N42: =N41-N40 -> 0 | O42: =O40-O41 -> 0 | P42: =P41-P40 -> 0 | Q42: =Q40-Q41 -> 0 | R42: =R41-R40 -> 0 | S42: =S40-S41 -> 0 | T42: =T41-T40 -> 0 | U42: =U40-U41 -> 0 | V42: =V41-V40 -> 0 | W42: =W40-W41 -> 0 | X42: =X41-X40 -> 0 | Y42: =Y40-Y41 -> 0 | Z42: =Z41-Z40 -> 0 | AA42: =AA40-AA41 -> 0 | AB42: =AB41-AB40 -> 0 | AC42: =AC40-AC41 -> 0 | AD42: =AD41-AD40 -> 0 | AE42: =AE40-AE41 -> 0 | AF42: =AF41-AF40 -> 0 | AG42: =AG40-AG41 -> 0 | AH42: =AH41-AH40 -> 0 | AI42: =AI40-AI41 -> 0 | AJ42: =AJ41-AJ40 -> 0 | AK42: =AK40-AK41 -> 0 | AL42: =AL41-AL40 -> 0 | AM42: =AM40-AM41 -> 0 | AN42: =AN41-AN40 -> 0 | AO42: =AO40-AO41 -> 0 | AP42: =AP41-AP40 -> 0 | AQ42: =AQ40-AQ41 -> 0 | AR42: =AR41-AR40 -> 0 | AS42: =AS40-AS41 -> 0 | AT42: =AT41-AT40 -> 0 | AU42: =AU40-AU41 -> 0 | AV42: =AV41-AV40 -> 0 | AW42: =AW40-AW41 -> 0 | AX42: =AX41-AX40 -> 0 | AY42: =AY40-AY41 -> 0 | AZ42: =AZ41-AZ40 -> 0 | BA42: =BA40-BA41 -> 0 | BB42: =BB41-BB40 -> 0 | BC42: =BC40-BC41 -> 0 | BD42: =BD41-BD40 -> 0 | BE42: =BE40-BE41 -> 0 | BF42: =BF41-BF40 -> 0
A44: 1.1.10 | C44: Ist | D44: =G44+K44+O44+S44+W44+AA44+AE44+AI44+AM44+AQ44+AU44+AY44+BC44 -> 0 | E44: =H44+L44+P44+T44+X44+AB44+AF44+AJ44+AN44+AR44+AV44+AZ44+BD44 -> 0 | F44: =D44-E44 -> 0 | I44: =G44 -> 0 | J44: =H44 -> 0 | M44: =I44+K44 -> 0 | N44: =J44+L44 -> 0 | Q44: =M44+O44 -> 0 | R44: =N44+P44 -> 0 | U44: =Q44+S44 -> 0 | V44: =R44+T44 -> 0 | Y44: =U44+W44 -> 0 | Z44: =V44+X44 -> 0 | AC44: =Y44+AA44 -> 0 | AD44: =Z44+AB44 -> 0 | AG44: =AC44+AE44 -> 0 | AH44: =AD44+AF44 -> 0 | AK44: =AG44+AI44 -> 0 | AL44: =AH44+AJ44 -> 0 | AO44: =AK44+AM44 -> 0 | AP44: =AL44+AN44 -> 0 | AS44: =AO44+AQ44 -> 0 | AT44: =AP44+AR44 -> 0 | AW44: =AS44+AU44 -> 0 | AX44: =AT44+AV44 -> 0 | BA44: =AW44+AY44 -> 0 | BB44: =AX44+AZ44 -> 0 | BC44: 0 | BD44: 0 | BE44: =BA44+BC44 -> 0 | BF44: =BB44+BD44 -> 0
C45: Plan | D45: =G45+K45+O45+S45+W45+AA45+AE45+AI45+AM45+AQ45+AU45+AY45+BC45 -> 0 | E45: =H45+L45+P45+T45+X45+AB45+AF45+AJ45+AN45+AR45+AV45+AZ45+BD45 -> 0 | F45: =D45-E45 -> 0 | G45: 0 | H45: 0 | I45: =G45 -> 0 | J45: =H45 -> 0 | K45: 0 | L45: 0 | M45: =I45+K45 -> 0 | N45: =J45+L45 -> 0 | O45: 0 | P45: 0 | Q45: =M45+O45 -> 0 | R45: =N45+P45 -> 0 | S45: 0 | T45: 0 | U45: =Q45+S45 -> 0 | V45: =R45+T45 -> 0 | W45: 0 | X45: 0 | Y45: =U45+W45 -> 0 | Z45: =V45+X45 -> 0 | AA45: 0 | AB45: 0 | AC45: =Y45+AA45 -> 0 | AD45: =Z45+AB45 -> 0 | AE45: 0 | AF45: 0 | AG45: =AC45+AE45 -> 0 | AH45: =AD45+AF45 -> 0 | AI45: 0 | AJ45: 0 | AK45: =AG45+AI45 -> 0 | AL45: =AH45+AJ45 -> 0 | AM45: 0 | AN45: 0 | AO45: =AK45+AM45 -> 0 | AP45: =AL45+AN45 -> 0 | AQ45: 0 | AR45: 0 | AS45: =AO45+AQ45 -> 0 | AT45: =AP45+AR45 -> 0 | AU45: 0 | AV45: 0 | AW45: =AS45+AU45 -> 0 | AX45: =AT45+AV45 -> 0 | AY45: 0 | AZ45: 0 | BA45: =AW45+AY45 -> 0 | BB45: =AX45+AZ45 -> 0 | BC45: 0 | BD45: 0 | BE45: =BA45+BC45 -> 0 | BF45: =BB45+BD45 -> 0
C46: Saldo | D46: =D44-D45 -> 0 | E46: =E45-E44 -> 0 | F46: =F44-F45 -> 0 | G46: =G44-G45 -> 0 | H46: =H45-H44 -> 0 | I46: =I44-I45 -> 0 | J46: =J45-J44 -> 0 | K46: =K44-K45 -> 0 | L46: =L45-L44 -> 0 | M46: =M44-M45 -> 0 | N46: =N45-N44 -> 0 | O46: =O44-O45 -> 0 | P46: =P45-P44 -> 0 | Q46: =Q44-Q45 -> 0 | R46: =R45-R44 -> 0 | S46: =S44-S45 -> 0 | T46: =T45-T44 -> 0 | U46: =U44-U45 -> 0 | V46: =V45-V44 -> 0 | W46: =W44-W45 -> 0 | X46: =X45-X44 -> 0 | Y46: =Y44-Y45 -> 0 | Z46: =Z45-Z44 -> 0 | AA46: =AA44-AA45 -> 0 | AB46: =AB45-AB44 -> 0 | AC46: =AC44-AC45 -> 0 | AD46: =AD45-AD44 -> 0 | AE46: =AE44-AE45 -> 0 | AF46: =AF45-AF44 -> 0 | AG46: =AG44-AG45 -> 0 | AH46: =AH45-AH44 -> 0 | AI46: =AI44-AI45 -> 0 | AJ46: =AJ45-AJ44 -> 0 | AK46: =AK44-AK45 -> 0 | AL46: =AL45-AL44 -> 0 | AM46: =AM44-AM45 -> 0 | AN46: =AN45-AN44 -> 0 | AO46: =AO44-AO45 -> 0 | AP46: =AP45-AP44 -> 0 | AQ46: =AQ44-AQ45 -> 0 | AR46: =AR45-AR44 -> 0 | AS46: =AS44-AS45 -> 0 | AT46: =AT45-AT44 -> 0 | AU46: =AU44-AU45 -> 0 | AV46: =AV45-AV44 -> 0 | AW46: =AW44-AW45 -> 0 | AX46: =AX45-AX44 -> 0 | AY46: =AY44-AY45 -> 0 | AZ46: =AZ45-AZ44 -> 0 | BA46: =BA44-BA45 -> 0 | BB46: =BB45-BB44 -> 0 | BC46: =BC44-BC45 -> 0 | BD46: =BD45-BD44 -> 0 | BE46: =BE44-BE45 -> 0 | BF46: =BF45-BF44 -> 0
A48: 1.1.11 | C48: Ist | D48: =G48+K48+O48+S48+W48+AA48+AE48+AI48+AM48+AQ48+AU48+AY48+BC48 -> 0 | E48: =H48+L48+P48+T48+X48+AB48+AF48+AJ48+AN48+AR48+AV48+AZ48+BD48 -> 0 | F48: =D48-E48 -> 0 | I48: =G48 -> 0 | J48: =H48 -> 0 | M48: =I48+K48 -> 0 | N48: =J48+L48 -> 0 | Q48: =M48+O48 -> 0 | R48: =N48+P48 -> 0 | U48: =Q48+S48 -> 0 | V48: =R48+T48 -> 0 | Y48: =U48+W48 -> 0 | Z48: =V48+X48 -> 0 | AC48: =Y48+AA48 -> 0 | AD48: =Z48+AB48 -> 0 | AG48: =AC48+AE48 -> 0 | AH48: =AD48+AF48 -> 0 | AK48: =AG48+AI48 -> 0 | AL48: =AH48+AJ48 -> 0 | AO48: =AK48+AM48 -> 0 | AP48: =AL48+AN48 -> 0 | AS48: =AO48+AQ48 -> 0 | AT48: =AP48+AR48 -> 0 | AW48: =AS48+AU48 -> 0 | AX48: =AT48+AV48 -> 0 | BA48: =AW48+AY48 -> 0 | BB48: =AX48+AZ48 -> 0 | BC48: 0 | BD48: 0 | BE48: =BA48+BC48 -> 0 | BF48: =BB48+BD48 -> 0
C49: Plan | D49: =G49+K49+O49+S49+W49+AA49+AE49+AI49+AM49+AQ49+AU49+AY49+BC49 -> 0 | E49: =H49+L49+P49+T49+X49+AB49+AF49+AJ49+AN49+AR49+AV49+AZ49+BD49 -> 0 | F49: =D49-E49 -> 0 | G49: 0 | H49: 0 | I49: =G49 -> 0 | J49: =H49 -> 0 | K49: 0 | L49: 0 | M49: =I49+K49 -> 0 | N49: =J49+L49 -> 0 | O49: 0 | P49: 0 | Q49: =M49+O49 -> 0 | R49: =N49+P49 -> 0 | S49: 0 | T49: 0 | U49: =Q49+S49 -> 0 | V49: =R49+T49 -> 0 | W49: 0 | X49: 0 | Y49: =U49+W49 -> 0 | Z49: =V49+X49 -> 0 | AA49: 0 | AB49: 0 | AC49: =Y49+AA49 -> 0 | AD49: =Z49+AB49 -> 0 | AE49: 0 | AF49: 0 | AG49: =AC49+AE49 -> 0 | AH49: =AD49+AF49 -> 0 | AI49: 0 | AJ49: 0 | AK49: =AG49+AI49 -> 0 | AL49: =AH49+AJ49 -> 0 | AM49: 0 | AN49: 0 | AO49: =AK49+AM49 -> 0 | AP49: =AL49+AN49 -> 0 | AQ49: 0 | AR49: 0 | AS49: =AO49+AQ49 -> 0 | AT49: =AP49+AR49 -> 0 | AU49: 0 | AV49: 0 | AW49: =AS49+AU49 -> 0 | AX49: =AT49+AV49 -> 0 | AY49: 0 | AZ49: 0 | BA49: =AW49+AY49 -> 0 | BB49: =AX49+AZ49 -> 0 | BC49: 0 | BD49: 0 | BE49: =BA49+BC49 -> 0 | BF49: =BB49+BD49 -> 0
C50: Saldo | D50: =D48-D49 -> 0 | E50: =E49-E48 -> 0 | F50: =F48-F49 -> 0 | G50: =G48-G49 -> 0 | H50: =H49-H48 -> 0 | I50: =I48-I49 -> 0 | J50: =J49-J48 -> 0 | K50: =K48-K49 -> 0 | L50: =L49-L48 -> 0 | M50: =M48-M49 -> 0 | N50: =N49-N48 -> 0 | O50: =O48-O49 -> 0 | P50: =P49-P48 -> 0 | Q50: =Q48-Q49 -> 0 | R50: =R49-R48 -> 0 | S50: =S48-S49 -> 0 | T50: =T49-T48 -> 0 | U50: =U48-U49 -> 0 | V50: =V49-V48 -> 0 | W50: =W48-W49 -> 0 | X50: =X49-X48 -> 0 | Y50: =Y48-Y49 -> 0 | Z50: =Z49-Z48 -> 0 | AA50: =AA48-AA49 -> 0 | AB50: =AB49-AB48 -> 0 | AC50: =AC48-AC49 -> 0 | AD50: =AD49-AD48 -> 0 | AE50: =AE48-AE49 -> 0 | AF50: =AF49-AF48 -> 0 | AG50: =AG48-AG49 -> 0 | AH50: =AH49-AH48 -> 0 | AI50: =AI48-AI49 -> 0 | AJ50: =AJ49-AJ48 -> 0 | AK50: =AK48-AK49 -> 0 | AL50: =AL49-AL48 -> 0 | AM50: =AM48-AM49 -> 0 | AN50: =AN49-AN48 -> 0 | AO50: =AO48-AO49 -> 0 | AP50: =AP49-AP48 -> 0 | AQ50: =AQ48-AQ49 -> 0 | AR50: =AR49-AR48 -> 0 | AS50: =AS48-AS49 -> 0 | AT50: =AT49-AT48 -> 0 | AU50: =AU48-AU49 -> 0 | AV50: =AV49-AV48 -> 0 | AW50: =AW48-AW49 -> 0 | AX50: =AX49-AX48 -> 0 | AY50: =AY48-AY49 -> 0 | AZ50: =AZ49-AZ48 -> 0 | BA50: =BA48-BA49 -> 0 | BB50: =BB49-BB48 -> 0 | BC50: =BC48-BC49 -> 0 | BD50: =BD49-BD48 -> 0 | BE50: =BE48-BE49 -> 0 | BF50: =BF49-BF48 -> 0
A52: 1.1.12 | C52: Ist | D52: =G52+K52+O52+S52+W52+AA52+AE52+AI52+AM52+AQ52+AU52+AY52+BC52 -> 0 | E52: =H52+L52+P52+T52+X52+AB52+AF52+AJ52+AN52+AR52+AV52+AZ52+BD52 -> 0 | F52: =D52-E52 -> 0 | I52: =G52 -> 0 | J52: =H52 -> 0 | M52: =I52+K52 -> 0 | N52: =J52+L52 -> 0 | Q52: =M52+O52 -> 0 | R52: =N52+P52 -> 0 | U52: =Q52+S52 -> 0 | V52: =R52+T52 -> 0 | Y52: =U52+W52 -> 0 | Z52: =V52+X52 -> 0 | AC52: =Y52+AA52 -> 0 | AD52: =Z52+AB52 -> 0 | AG52: =AC52+AE52 -> 0 | AH52: =AD52+AF52 -> 0 | AK52: =AG52+AI52 -> 0 | AL52: =AH52+AJ52 -> 0 | AO52: =AK52+AM52 -> 0 | AP52: =AL52+AN52 -> 0 | AS52: =AO52+AQ52 -> 0 | AT52: =AP52+AR52 -> 0 | AW52: =AS52+AU52 -> 0 | AX52: =AT52+AV52 -> 0 | BA52: =AW52+AY52 -> 0 | BB52: =AX52+AZ52 -> 0 | BC52: 0 | BD52: 0 | BE52: =BA52+BC52 -> 0 | BF52: =BB52+BD52 -> 0
C53: Plan | D53: =G53+K53+O53+S53+W53+AA53+AE53+AI53+AM53+AQ53+AU53+AY53+BC53 -> 0 | E53: =H53+L53+P53+T53+X53+AB53+AF53+AJ53+AN53+AR53+AV53+AZ53+BD53 -> 0 | F53: =D53-E53 -> 0 | G53: 0 | H53: 0 | I53: =G53 -> 0 | J53: =H53 -> 0 | K53: 0 | L53: 0 | M53: =I53+K53 -> 0 | N53: =J53+L53 -> 0 | O53: 0 | P53: 0 | Q53: =M53+O53 -> 0 | R53: =N53+P53 -> 0 | S53: 0 | T53: 0 | U53: =Q53+S53 -> 0 | V53: =R53+T53 -> 0 | W53: 0 | X53: 0 | Y53: =U53+W53 -> 0 | Z53: =V53+X53 -> 0 | AA53: 0 | AB53: 0 | AC53: =Y53+AA53 -> 0 | AD53: =Z53+AB53 -> 0 | AE53: 0 | AF53: 0 | AG53: =AC53+AE53 -> 0 | AH53: =AD53+AF53 -> 0 | AI53: 0 | AJ53: 0 | AK53: =AG53+AI53 -> 0 | AL53: =AH53+AJ53 -> 0 | AM53: 0 | AN53: 0 | AO53: =AK53+AM53 -> 0 | AP53: =AL53+AN53 -> 0 | AQ53: 0 | AR53: 0 | AS53: =AO53+AQ53 -> 0 | AT53: =AP53+AR53 -> 0 | AU53: 0 | AV53: 0 | AW53: =AS53+AU53 -> 0 | AX53: =AT53+AV53 -> 0 | AY53: 0 | AZ53: 0 | BA53: =AW53+AY53 -> 0 | BB53: =AX53+AZ53 -> 0 | BC53: 0 | BD53: 0 | BE53: =BA53+BC53 -> 0 | BF53: =BB53+BD53 -> 0
C54: Saldo | D54: =D52-D53 -> 0 | E54: =E53-E52 -> 0 | F54: =F52-F53 -> 0 | G54: =G52-G53 -> 0 | H54: =H53-H52 -> 0 | I54: =I52-I53 -> 0 | J54: =J53-J52 -> 0 | K54: =K52-K53 -> 0 | L54: =L53-L52 -> 0 | M54: =M52-M53 -> 0 | N54: =N53-N52 -> 0 | O54: =O52-O53 -> 0 | P54: =P53-P52 -> 0 | Q54: =Q52-Q53 -> 0 | R54: =R53-R52 -> 0 | S54: =S52-S53 -> 0 | T54: =T53-T52 -> 0 | U54: =U52-U53 -> 0 | V54: =V53-V52 -> 0 | W54: =W52-W53 -> 0 | X54: =X53-X52 -> 0 | Y54: =Y52-Y53 -> 0 | Z54: =Z53-Z52 -> 0 | AA54: =AA52-AA53 -> 0 | AB54: =AB53-AB52 -> 0 | AC54: =AC52-AC53 -> 0 | AD54: =AD53-AD52 -> 0 | AE54: =AE52-AE53 -> 0 | AF54: =AF53-AF52 -> 0 | AG54: =AG52-AG53 -> 0 | AH54: =AH53-AH52 -> 0 | AI54: =AI52-AI53 -> 0 | AJ54: =AJ53-AJ52 -> 0 | AK54: =AK52-AK53 -> 0 | AL54: =AL53-AL52 -> 0 | AM54: =AM52-AM53 -> 0 | AN54: =AN53-AN52 -> 0 | AO54: =AO52-AO53 -> 0 | AP54: =AP53-AP52 -> 0 | AQ54: =AQ52-AQ53 -> 0 | AR54: =AR53-AR52 -> 0 | AS54: =AS52-AS53 -> 0 | AT54: =AT53-AT52 -> 0 | AU54: =AU52-AU53 -> 0 | AV54: =AV53-AV52 -> 0 | AW54: =AW52-AW53 -> 0 | AX54: =AX53-AX52 -> 0 | AY54: =AY52-AY53 -> 0 | AZ54: =AZ53-AZ52 -> 0 | BA54: =BA52-BA53 -> 0 | BB54: =BB53-BB52 -> 0 | BC54: =BC52-BC53 -> 0 | BD54: =BD53-BD52 -> 0 | BE54: =BE52-BE53 -> 0 | BF54: =BF53-BF52 -> 0
AG60: =AG14 -> -245000
AG61: =AG30 -> 0
AG62: =SUM(AG60:AG61) -> -245000
AG63: =AH30 -> 18900
AG64: -20000
AG65: =SUM(AG63:AG64) -> -1100
AG66: =AG65+AG62 -> -246100

Sheet Verwaltung
B1: Inhalt | D1: Jahr | G1: Januar | K1: Februar | O1: März | S1: April | W1: Mai | AA1: Juni | AE1: Juli | AI1: August | AM1: September | AQ1: Oktober | AU1: November | AY1: Dezember | BC1: Überträge etc.
A2: ç | B2: Übersicht | C2: è | G2: Monatswerte | I2: Buchungsstand | K2: Monatswerte | M2: Buchungsstand | O2: Monatswerte | Q2: Buchungsstand | S2: Monatswerte | U2: Buchungsstand | W2: Monatswerte | Y2: Buchungsstand | AA2: Monatswerte | AC2: Buchungsstand | AE2: Monatswerte | AG2: Buchungsstand | AI2: Monatswerte | AK2: Buchungsstand | AM2: Monatswerte | AO2: Buchungsstand | AQ2: Monatswerte | AS2: Buchungsstand | AU2: Monatswerte | AW2: Buchungsstand | AY2: Monatswerte | BA2: Buchungsstand | BE2: Buchungsstand
B3: Liquidität | D3: Einnahmen | E3: Ausgaben | F3: Saldo | G3: Einnahmen | H3: Ausgaben | I3: Einnahmen | J3: Ausgaben | K3: Einnahmen | L3: Ausgaben | M3: Einnahmen | N3: Ausgaben | O3: Einnahmen | P3: Ausgaben | Q3: Einnahmen | R3: Ausgaben | S3: Einnahmen | T3: Ausgaben | U3: Einnahmen | V3: Ausgaben | W3: Einnahmen | X3: Ausgaben | Y3: Einnahmen | Z3: Ausgaben | AA3: Einnahmen | AB3: Ausgaben | AC3: Einnahmen | AD3: Ausgaben | AE3: Einnahmen | AF3: Ausgaben | AG3: Einnahmen | AH3: Ausgaben | AI3: Einnahmen | AJ3: Ausgaben | AK3: Einnahmen | AL3: Ausgaben | AM3: Einnahmen | AN3: Ausgaben | AO3: Einnahmen | AP3: Ausgaben | AQ3: Einnahmen | AR3: Ausgaben | AS3: Einnahmen | AT3: Ausgaben | AU3: Einnahmen | AV3: Ausgaben | AW3: Einnahmen | AX3: Ausgaben | AY3: Einnahmen | AZ3: Ausgaben | BA3: Einnahmen | BB3: Ausgaben | BC3: Einnahmen | BD3: Ausgaben | BE3: Einnahmen | BF3: Ausgaben
A4: 1.2 | B4: Verwaltung | C4: Ist | D4: =D8+D12+D16+D20+D24+D28+D32+D36+D40+D44+D48+D52+D56 -> 0 | E4: =E8+E12+E16+E20+E24+E28+E32+E36+E40+E44+E48+E52+E56 -> 0 | F4: =D4-E4 -> 0 | G4: =G8+G12+G16+G20+G24+G28+G32+G36+G40+G44+G48+G52+G56 -> 0 | H4: 0 | I4: 0 | J4: 0 | K4: 0 | L4: 0 | M4: 0 | N4: 0 | O4: 0 | P4: 0 | Q4: 0 | R4: 0 | S4: 0 | T4: 0 | U4: 0 | V4: 0 | W4: 0 | X4: 0 | Y4: 0 | Z4: 0 | AA4: 0 | AB4: 0 | AC4: 0 | AD4: 0 | AE4: 0 | AF4: 0 | AG4: 0 | AH4: 0 | AI4: 0 | AJ4: 0 | AK4: 0 | AL4: 0 | AM4: 0 | AN4: 0 | AO4: 0 | AP4: 0 | AQ4: 0 | AR4: 0 | AS4: 0 | AT4: 0 | AU4: 0 | AV4: 0 | AW4: 0 | AX4: 0 | AY4: 0 | AZ4: 0 | BA4: 0 | BB4: 0 | BC4: 0 | BD4: 0 | BE4: 0 | BF4: 0
C5: Plan | D5: 0 | E5: =E9+E13+E17+E21+E25+E29+E33+E37+E41+E45+E49+E53+E57 -> 117900 | F5: =D5-E5 -> -117900 | G5: =G9+G13+G17+G21+G25+G29+G33+G37+G41+G45+G49+G53+G57 -> 0 | H5: 5100 | I5: 0 | J5: 5100 | K5: 0 | L5: 5100 | M5: 0 | N5: 10200 | O5: 0 | P5: 5100 | Q5: 0 | R5: 15300 | S5: 0 | T5: 5100 | U5: 0 | V5: 20400 | W5: 0 | X5: 5100 | Y5: 0 | Z5: 25500 | AA5: 0 | AB5: 5100 | AC5: 0 | AD5: 30600 | AE5: 0 | AF5: 5100 | AG5: 0 | AH5: 35700 | AI5: 0 | AJ5: 5100 | AK5: 0 | AL5: 40800 | AM5: 0 | AN5: 5100 | AO5: 0 | AP5: 45900 | AQ5: 0 | AR5: 5100 | AS5: 0 | AT5: 51000 | AU5: 0 | AV5: 5100 | AW5: 0 | AX5: 56100 | AY5: 0 | AZ5: 61800 | BA5: 0 | BB5: 117900 | BC5: 0 | BD5: 0 | BE5: 0 | BF5: 117900
B6: Eing. Buchungsst. | C6: Saldo | D6: =D4-D5 -> 0 | E6: =E5-E4 -> 117900 | F6: =SUM(F4-F5) -> 117900 | G6: =G4-G5 -> 0 | H6: =H5-H4 -> 5100 | I6: =I4-I5 -> 0 | J6: =J5-J4 -> 5100 | K6: =K4-K5 -> 0 | L6: =L5-L4 -> 5100 | M6: =M4-M5 -> 0 | N6: =N5-N4 -> 10200 | O6: =O4-O5 -> 0 | P6: =P5-P4 -> 5100 | Q6: =Q4-Q5 -> 0 | R6: =R5-R4 -> 15300 | S6: =S4-S5 -> 0 | T6: =T5-T4 -> 5100 | U6: =U4-U5 -> 0 | V6: =V5-V4 -> 20400 | W6: =W4-W5 -> 0 | X6: =X5-X4 -> 5100 | Y6: =Y4-Y5 -> 0 | Z6: =Z5-Z4 -> 25500 | AA6: =AA4-AA5 -> 0 | AB6: =AB5-AB4 -> 5100 | AC6: =AC4-AC5 -> 0 | AD6: =AD5-AD4 -> 30600 | AE6: =AE4-AE5 -> 0 | AF6: =AF5-AF4 -> 5100 | AG6: =AG4-AG5 -> 0 | AH6: =AH5-AH4 -> 35700 | AI6: =AI4-AI5 -> 0 | AJ6: =AJ5-AJ4 -> 5100 | AK6: =AK4-AK5 -> 0 | AL6: =AL5-AL4 -> 40800 | AM6: =AM4-AM5 -> 0 | AN6: =AN5-AN4 -> 5100 | AO6: =AO4-AO5 -> 0 | AP6: =AP5-AP4 -> 45900 | AQ6: =AQ4-AQ5 -> 0 | AR6: =AR5-AR4 -> 5100 | AS6: =AS4-AS5 -> 0 | AT6: =AT5-AT4 -> 51000 | AU6: =AU4-AU5 -> 0 | AV6: =AV5-AV4 -> 5100 | AW6: =AW4-AW5 -> 0 | AX6: =AX5-AX4 -> 56100 | AY6: =AY4-AY5 -> 0 | AZ6: =AZ5-AZ4 -> 61800 | BA6: =BA4-BA5 -> 0 | BB6: =BB5-BB4 -> 117900 | BC6: =BC4-BC5 -> 0 | BD6: =BD5-BD4 -> 0 | BE6: =BE4-BE5 -> 0 | BF6: =BF5-BF4 -> 117900
A8: 1.2.1 | B8: Miete inkl. NK & Strom | C8: Ist | D8: =G8+K8+O8+S8+W8+AA8+AE8+AI8+AM8+AQ8+AU8+AY8+BC8 -> 0 | E8: =H8+L8+P8+T8+X8+AB8+AF8+AJ8+AN8+AR8+AV8+AZ8+BD8 -> 0 | F8: =D8-E8 -> 0 | I8: =G8 -> 0 | J8: =H8 -> 0 | M8: =I8+K8 -> 0 | N8: =J8+L8 -> 0 | Q8: =M8+O8 -> 0 | R8: =N8+P8 -> 0 | U8: =Q8+S8 -> 0 | V8: =R8+T8 -> 0 | Y8: =U8+W8 -> 0 | Z8: =V8+X8 -> 0 | AC8: =Y8+AA8 -> 0 | AD8: =Z8+AB8 -> 0 | AG8: =AC8+AE8 -> 0 | AH8: =AD8+AF8 -> 0 | AK8: =AG8+AI8 -> 0 | AL8: =AH8+AJ8 -> 0 | AO8: =AK8+AM8 -> 0 | AP8: =AL8+AN8 -> 0 | AS8: =AO8+AQ8 -> 0 | AT8: =AP8+AR8 -> 0 | AW8: =AS8+AU8 -> 0 | AX8: =AT8+AV8 -> 0 | BA8: =AW8+AY8 -> 0 | BB8: =AX8+AZ8 -> 0 | BC8: 0 | BD8: 0 | BE8: =BA8+BC8 -> 0 | BF8: =BB8+BD8 -> 0
B9: 6. OG, Keller | C9: Plan | D9: =G9+K9+O9+S9+W9+AA9+AE9+AI9+AM9+AQ9+AU9+AY9+BC9 -> 0 | E9: =H9+L9+P9+T9+X9+AB9+AF9+AJ9+AN9+AR9+AV9+AZ9+BD9 -> 60000 | F9: =D9-E9 -> -60000 | G9: 0 | H9: 4500 | I9: =G9 -> 0 | J9: =H9 -> 4500 | K9: 0 | L9: 4500 | M9: =I9+K9 -> 0 | N9: =J9+L9 -> 9000 | O9: 0 | P9: 4500 | Q9: =M9+O9 -> 0 | R9: =N9+P9 -> 13500 | S9: 0 | T9: 4500 | U9: =Q9+S9 -> 0 | V9: =R9+T9 -> 18000 | W9: 0 | X9: 4500 | Y9: =U9+W9 -> 0 | Z9: =V9+X9 -> 22500 | AA9: 0 | AB9: 4500 | AC9: =Y9+AA9 -> 0 | AD9: =Z9+AB9 -> 27000 | AE9: 0 | AF9: 4500 | AG9: =AC9+AE9 -> 0 | AH9: =AD9+AF9 -> 31500 | AI9: 0 | AJ9: 4500 | AK9: =AG9+AI9 -> 0 | AL9: =AH9+AJ9 -> 36000 | AM9: 0 | AN9: 4500 | AO9: =AK9+AM9 -> 0 | AP9: =AL9+AN9 -> 40500 | AQ9: 0 | AR9: 4500 | AS9: =AO9+AQ9 -> 0 | AT9: =AP9+AR9 -> 45000 | AU9: 0 | AV9: 4500 | AW9: =AS9+AU9 -> 0 | AX9: =AT9+AV9 -> 49500 | AY9: 0 | AZ9: 10500 | BA9: =AW9+AY9 -> 0 | BB9: =AX9+AZ9 -> 60000 | BC9: 0 | BD9: 0 | BE9: =BA9+BC9 -> 0 | BF9: =BB9+BD9 -> 60000
C10: Saldo | D10: =D8-D9 -> 0 | E10: =E9-E8 -> 60000 | F10: =SUM(F8-F9) -> 60000 | G10: =G8-G9 -> 0 | H10: =H9-H8 -> 4500 | I10: =I8-I9 -> 0 | J10: =J9-J8 -> 4500 | K10: =K8-K9 -> 0 | L10: =L9-L8 -> 4500 | M10: =M8-M9 -> 0 | N10: =N9-N8 -> 9000 | O10: =O8-O9 -> 0 | P10: =P9-P8 -> 4500 | Q10: =Q8-Q9 -> 0 | R10: =R9-R8 -> 13500 | S10: =S8-S9 -> 0 | T10: =T9-T8 -> 4500 | U10: =U8-U9 -> 0 | V10: =V9-V8 -> 18000 | W10: =W8-W9 -> 0 | X10: =X9-X8 -> 4500 | Y10: =Y8-Y9 -> 0 | Z10: =Z9-Z8 -> 22500 | AA10: =AA8-AA9 -> 0 | AB10: =AB9-AB8 -> 4500 | AC10: =AC8-AC9 -> 0 | AD10: =AD9-AD8 -> 27000 | AE10: =AE8-AE9 -> 0 | AF10: =AF9-AF8 -> 4500 | AG10: =AG8-AG9 -> 0 | AH10: =AH9-AH8 -> 31500 | AI10: =AI8-AI9 -> 0 | AJ10: =AJ9-AJ8 -> 4500 | AK10: =AK8-AK9 -> 0 | AL10: =AL9-AL8 -> 36000 | AM10: =AM8-AM9 -> 0 | AN10: =AN9-AN8 -> 4500 | AO10: =AO8-AO9 -> 0 | AP10: =AP9-AP8 -> 40500 | AQ10: =AQ8-AQ9 -> 0 | AR10: =AR9-AR8 -> 4500 | AS10: =AS8-AS9 -> 0 | AT10: =AT9-AT8 -> 45000 | AU10: =AU8-AU9 -> 0 | AV10: =AV9-AV8 -> 4500 | AW10: =AW8-AW9 -> 0 | AX10: =AX9-AX8 -> 49500 | AY10: =AY8-AY9 -> 0 | AZ10: =AZ9-AZ8 -> 10500 | BA10: =BA8-BA9 -> 0 | BB10: =BB9-BB8 -> 60000 | BC10: =BC8-BC9 -> 0 | BD10: =BD9-BD8 -> 0 | BE10: =BE8-BE9 -> 0 | BF10: =BF9-BF8 -> 60000
A12: 1.2.2 | B12: Telefon | C12: Ist | D12: =G12+K12+O12+S12+W12+AA12+AE12+AI12+AM12+AQ12+AU12+AY12+BC12 -> 0 | E12: =H12+L12+P12+T12+X12+AB12+AF12+AJ12+AN12+AR12+AV12+AZ12+BD12 -> 0 | F12: =D12-E12 -> 0 | I12: =G12 -> 0 | J12: =H12 -> 0 | M12: =I12+K12 -> 0 | N12: =J12+L12 -> 0 | Q12: =M12+O12 -> 0 | R12: =N12+P12 -> 0 | U12: =Q12+S12 -> 0 | V12: =R12+T12 -> 0 | Y12: =U12+W12 -> 0 | Z12: =V12+X12 -> 0 | AC12: =Y12+AA12 -> 0 | AD12: =Z12+AB12 -> 0 | AG12: =AC12+AE12 -> 0 | AH12: =AD12+AF12 -> 0 | AK12: =AG12+AI12 -> 0 | AL12: =AH12+AJ12 -> 0 | AO12: =AK12+AM12 -> 0 | AP12: =AL12+AN12 -> 0 | AS12: =AO12+AQ12 -> 0 | AT12: =AP12+AR12 -> 0 | AW12: =AS12+AU12 -> 0 | AX12: =AT12+AV12 -> 0 | BA12: =AW12+AY12 -> 0 | BB12: =AX12+AZ12 -> 0 | BC12: 0 | BD12: 0 | BE12: =BA12+BC12 -> 0 | BF12: =BB12+BD12 -> 0
C13: Plan | D13: =G13+K13+O13+S13+W13+AA13+AE13+AI13+AM13+AQ13+AU13+AY13+BC13 -> 0 | E13: =H13+L13+P13+T13+X13+AB13+AF13+AJ13+AN13+AR13+AV13+AZ13+BD13 -> 7200 | F13: =D13-E13 -> -7200 | G13: 0 | H13: 600 | I13: =G13 -> 0 | J13: =H13 -> 600 | K13: 0 | L13: 600 | M13: =I13+K13 -> 0 | N13: =J13+L13 -> 1200 | O13: 0 | P13: 600 | Q13: =M13+O13 -> 0 | R13: =N13+P13 -> 1800 | S13: 0 | T13: 600 | U13: =Q13+S13 -> 0 | V13: =R13+T13 -> 2400 | W13: 0 | X13: 600 | Y13: =U13+W13 -> 0 | Z13: =V13+X13 -> 3000 | AA13: 0 | AB13: 600 | AC13: =Y13+AA13 -> 0 | AD13: =Z13+AB13 -> 3600 | AE13: 0 | AF13: 600 | AG13: =AC13+AE13 -> 0 | AH13: =AD13+AF13 -> 4200 | AI13: 0 | AJ13: 600 | AK13: =AG13+AI13 -> 0 | AL13: =AH13+AJ13 -> 4800 | AM13: 0 | AN13: 600 | AO13: =AK13+AM13 -> 0 | AP13: =AL13+AN13 -> 5400 | AQ13: 0 | AR13: 600 | AS13: =AO13+AQ13 -> 0 | AT13: =AP13+AR13 -> 6000 | AU13: 0 | AV13: 600 | AW13: =AS13+AU13 -> 0 | AX13: =AT13+AV13 -> 6600 | AY13: 0 | AZ13: 600 | BA13: =AW13+AY13 -> 0 | BB13: =AX13+AZ13 -> 7200 | BC13: 0 | BD13: 0 | BE13: =BA13+BC13 -> 0 | BF13: =BB13+BD13 -> 7200
C14: Saldo | D14: =D12-D13 -> 0 | E14: =E13-E12 -> 7200 | F14: =SUM(F12-F13) -> 7200 | G14: =G12-G13 -> 0 | H14: =H13-H12 -> 600 | I14: =I12-I13 -> 0 | J14: =J13-J12 -> 600 | K14: =K12-K13 -> 0 | L14: =L13-L12 -> 600 | M14: =M12-M13 -> 0 | N14: =N13-N12 -> 1200 | O14: =O12-O13 -> 0 | P14: =P13-P12 -> 600 | Q14: =Q12-Q13 -> 0 | R14: =R13-R12 -> 1800 | S14: =S12-S13 -> 0 | T14: =T13-T12 -> 600 | U14: =U12-U13 -> 0 | V14: =V13-V12 -> 2400 | W14: =W12-W13 -> 0 | X14: =X13-X12 -> 600 | Y14: =Y12-Y13 -> 0 | Z14: =Z13-Z12 -> 3000 | AA14: =AA12-AA13 -> 0 | AB14: =AB13-AB12 -> 600 | AC14: =AC12-AC13 -> 0 | AD14: =AD13-AD12 -> 3600 | AE14: =AE12-AE13 -> 0 | AF14: =AF13-AF12 -> 600 | AG14: =AG12-AG13 -> 0 | AH14: =AH13-AH12 -> 4200 | AI14: =AI12-AI13 -> 0 | AJ14: =AJ13-AJ12 -> 600 | AK14: =AK12-AK13 -> 0 | AL14: =AL13-AL12 -> 4800 | AM14: =AM12-AM13 -> 0 | AN14: =AN13-AN12 -> 600 | AO14: =AO12-AO13 -> 0 | AP14: =AP13-AP12 -> 5400 | AQ14: =AQ12-AQ13 -> 0 | AR14: =AR13-AR12 -> 600 | AS14: =AS12-AS13 -> 0 | AT14: =AT13-AT12 -> 6000 | AU14: =AU12-AU13 -> 0 | AV14: =AV13-AV12 -> 600 | AW14: =AW12-AW13 -> 0 | AX14: =AX13-AX12 -> 6600 | AY14: =AY12-AY13 -> 0 | AZ14: =AZ13-AZ12 -> 600 | BA14: =BA12-BA13 -> 0 | BB14: =BB13-BB12 -> 7200 | BC14: =BC12-BC13 -> 0 | BD14: =BD13-BD12 -> 0 | BE14: =BE12-BE13 -> 0 | BF14: =BF13-BF12 -> 7200
A16: 1.2.3 | B16: Porto | C16: Ist | D16: =G16+K16+O16+S16+W16+AA16+AE16+AI16+AM16+AQ16+AU16+AY16+BC16 -> 0 | E16: =H16+L16+P16+T16+X16+AB16+AF16+AJ16+AN16+AR16+AV16+AZ16+BD16 -> 0 | F16: =D16-E16 -> 0 | I16: =G16 -> 0 | J16: =H16 -> 0 | M16: =I16+K16 -> 0 | N16: =J16+L16 -> 0 | Q16: =M16+O16 -> 0 | R16: =N16+P16 -> 0 | U16: =Q16+S16 -> 0 | V16: =R16+T16 -> 0 | Y16: =U16+W16 -> 0 | Z16: =V16+X16 -> 0 | AC16: =Y16+AA16 -> 0 | AD16: =Z16+AB16 -> 0 | AG16: =AC16+AE16 -> 0 | AH16: =AD16+AF16 -> 0 | AK16: =AG16+AI16 -> 0 | AL16: =AH16+AJ16 -> 0 | AO16: =AK16+AM16 -> 0 | AP16: =AL16+AN16 -> 0 | AS16: =AO16+AQ16 -> 0 | AT16: =AP16+AR16 -> 0 | AW16: =AS16+AU16 -> 0 | AX16: =AT16+AV16 -> 0 | BA16: =AW16+AY16 -> 0 | BB16: =AX16+AZ16 -> 0 | BC16: 0 | BD16: 0 | BE16: =BA16+BC16 -> 0 | BF16: =BB16+BD16 -> 0
C17: Plan | D17: =G17+K17+O17+S17+W17+AA17+AE17+AI17+AM17+AQ17+AU17+AY17+BC17 -> 0 | E17: =H17+L17+P17+T17+X17+AB17+AF17+AJ17+AN17+AR17+AV17+AZ17+BD17 -> 3800 | F17: =D17-E17 -> -3800 | G17: 0 | H17: 0 | I17: =G17 -> 0 | J17: =H17 -> 0 | K17: 0 | L17: 0 | M17: =I17+K17 -> 0 | N17: =J17+L17 -> 0 | O17: 0 | P17: 0 | Q17: =M17+O17 -> 0 | R17: =N17+P17 -> 0 | S17: 0 | T17: 0 | U17: =Q17+S17 -> 0 | V17: =R17+T17 -> 0 | W17: 0 | X17: 0 | Y17: =U17+W17 -> 0 | Z17: =V17+X17 -> 0 | AA17: 0 | AB17: 0 | AC17: =Y17+AA17 -> 0 | AD17: =Z17+AB17 -> 0 | AE17: 0 | AF17: 0 | AG17: =AC17+AE17 -> 0 | AH17: =AD17+AF17 -> 0 | AI17: 0 | AJ17: 0 | AK17: =AG17+AI17 -> 0 | AL17: =AH17+AJ17 -> 0 | AM17: 0 | AN17: 0 | AO17: =AK17+AM17 -> 0 | AP17: =AL17+AN17 -> 0 | AQ17: 0 | AR17: 0 | AS17: =AO17+AQ17 -> 0 | AT17: =AP17+AR17 -> 0 | AU17: 0 | AV17: 0 | AW17: =AS17+AU17 -> 0 | AX17: =AT17+AV17 -> 0 | AY17: 0 | AZ17: 3800 | BA17: =AW17+AY17 -> 0 | BB17: =AX17+AZ17 -> 3800 | BC17: 0 | BD17: 0 | BE17: =BA17+BC17 -> 0 | BF17: =BB17+BD17 -> 3800
C18: Saldo | D18: =D16-D17 -> 0 | E18: =E17-E16 -> 3800 | F18: =SUM(F16-F17) -> 3800 | G18: =G16-G17 -> 0 | H18: =H17-H16 -> 0 | I18: =I16-I17 -> 0 | J18: =J17-J16 -> 0 | K18: =K16-K17 -> 0 | L18: =L17-L16 -> 0 | M18: =M16-M17 -> 0 | N18: =N17-N16 -> 0 | O18: =O16-O17 -> 0 | P18: =P17-P16 -> 0 | Q18: =Q16-Q17 -> 0 | R18: =R17-R16 -> 0 | S18: =S16-S17 -> 0 | T18: =T17-T16 -> 0 | U18: =U16-U17 -> 0 | V18: =V17-V16 -> 0 | W18: =W16-W17 -> 0 | X18: =X17-X16 -> 0 | Y18: =Y16-Y17 -> 0 | Z18: =Z17-Z16 -> 0 | AA18: =AA16-AA17 -> 0 | AB18: =AB17-AB16 -> 0 | AC18: =AC16-AC17 -> 0 | AD18: =AD17-AD16 -> 0 | AE18: =AE16-AE17 -> 0 | AF18: =AF17-AF16 -> 0 | AG18: =AG16-AG17 -> 0 | AH18: =AH17-AH16 -> 0 | AI18: =AI16-AI17 -> 0 | AJ18: =AJ17-AJ16 -> 0 | AK18: =AK16-AK17 -> 0 | AL18: =AL17-AL16 -> 0 | AM18: =AM16-AM17 -> 0 | AN18: =AN17-AN16 -> 0 | AO18: =AO16-AO17 -> 0 | AP18: =AP17-AP16 -> 0 | AQ18: =AQ16-AQ17 -> 0 | AR18: =AR17-AR16 -> 0 | AS18: =AS16-AS17 -> 0 | AT18: =AT17-AT16 -> 0 | AU18: =AU16-AU17 -> 0 | AV18: =AV17-AV16 -> 0 | AW18: =AW16-AW17 -> 0 | AX18: =AX17-AX16 -> 0 | AY18: =AY16-AY17 -> 0 | AZ18: =AZ17-AZ16 -> 3800 | BA18: =BA16-BA17 -> 0 | BB18: =BB17-BB16 -> 3800 | BC18: =BC16-BC17 -> 0 | BD18: =BD17-BD16 -> 0 | BE18: =BE16-BE17 -> 0 | BF18: =BF17-BF16 -> 3800
A20: 1.2.4 | B20: Büromaterial | C20: Ist | D20: =G20+K20+O20+S20+W20+AA20+AE20+AI20+AM20+AQ20+AU20+AY20+BC20 -> 0 | E20: =H20+L20+P20+T20+X20+AB20+AF20+AJ20+AN20+AR20+AV20+AZ20+BD20 -> 0 | F20: =D20-E20 -> 0 | I20: =G20 -> 0 | J20: =H20 -> 0 | M20: =I20+K20 -> 0 | N20: =J20+L20 -> 0 | Q20: =M20+O20 -> 0 | R20: =N20+P20 -> 0 | U20: =Q20+S20 -> 0 | V20: =R20+T20 -> 0 | Y20: =U20+W20 -> 0 | Z20: =V20+X20 -> 0 | AC20: =Y20+AA20 -> 0 | AD20: =Z20+AB20 -> 0 | AG20: =AC20+AE20 -> 0 | AH20: =AD20+AF20 -> 0 | AK20: =AG20+AI20 -> 0 | AL20: =AH20+AJ20 -> 0 | AO20: =AK20+AM20 -> 0 | AP20: =AL20+AN20 -> 0 | AS20: =AO20+AQ20 -> 0 | AT20: =AP20+AR20 -> 0 | AW20: =AS20+AU20 -> 0 | AX20: =AT20+AV20 -> 0 | BA20: =AW20+AY20 -> 0 | BB20: =AX20+AZ20 -> 0 | BC20: 0 | BD20: 0 | BE20: =BA20+BC20 -> 0 | BF20: =BB20+BD20 -> 0
C21: Plan | D21: =G21+K21+O21+S21+W21+AA21+AE21+AI21+AM21+AQ21+AU21+AY21+BC21 -> 0 | E21: =H21+L21+P21+T21+X21+AB21+AF21+AJ21+AN21+AR21+AV21+AZ21+BD21 -> 2500 | F21: =D21-E21 -> -2500 | G21: 0 | H21: 0 | I21: =G21 -> 0 | J21: =H21 -> 0 | K21: 0 | L21: 0 | M21: =I21+K21 -> 0 | N21: =J21+L21 -> 0 | O21: 0 | P21: 0 | Q21: =M21+O21 -> 0 | R21: =N21+P21 -> 0 | S21: 0 | T21: 0 | U21: =Q21+S21 -> 0 | V21: =R21+T21 -> 0 | W21: 0 | X21: 0 | Y21: =U21+W21 -> 0 | Z21: =V21+X21 -> 0 | AA21: 0 | AB21: 0 | AC21: =Y21+AA21 -> 0 | AD21: =Z21+AB21 -> 0 | AE21: 0 | AF21: 0 | AG21: =AC21+AE21 -> 0 | AH21: =AD21+AF21 -> 0 | AI21: 0 | AJ21: 0 | AK21: =AG21+AI21 -> 0 | AL21: =AH21+AJ21 -> 0 | AM21: 0 | AN21: 0 | AO21: =AK21+AM21 -> 0 | AP21: =AL21+AN21 -> 0 | AQ21: 0 | AR21: 0 | AS21: =AO21+AQ21 -> 0 | AT21: =AP21+AR21 -> 0 | AU21: 0 | AV21: 0 | AW21: =AS21+AU21 -> 0 | AX21: =AT21+AV21 -> 0 | AY21: 0 | AZ21: 2500 | BA21: =AW21+AY21 -> 0 | BB21: =AX21+AZ21 -> 2500 | BC21: 0 | BD21: 0 | BE21: =BA21+BC21 -> 0 | BF21: =BB21+BD21 -> 2500
C22: Saldo | D22: =D20-D21 -> 0 | E22: =E21-E20 -> 2500 | F22: =SUM(F20-F21) -> 2500 | G22: =G20-G21 -> 0 | H22: =H21-H20 -> 0 | I22: =I20-I21 -> 0 | J22: =J21-J20 -> 0 | K22: =K20-K21 -> 0 | L22: =L21-L20 -> 0 | M22: =M20-M21 -> 0 | N22: =N21-N20 -> 0 | O22: =O20-O21 -> 0 | P22: =P21-P20 -> 0 | Q22: =Q20-Q21 -> 0 | R22: =R21-R20 -> 0 | S22: =S20-S21 -> 0 | T22: =T21-T20 -> 0 | U22: =U20-U21 -> 0 | V22: =V21-V20 -> 0 | W22: =W20-W21 -> 0 | X22: =X21-X20 -> 0 | Y22: =Y20-Y21 -> 0 | Z22: =Z21-Z20 -> 0 | AA22: =AA20-AA21 -> 0 | AB22: =AB21-AB20 -> 0 | AC22: =AC20-AC21 -> 0 | AD22: =AD21-AD20 -> 0 | AE22: =AE20-AE21 -> 0 | AF22: =AF21-AF20 -> 0 | AG22: =AG20-AG21 -> 0 | AH22: =AH21-AH20 -> 0 | AI22: =AI20-AI21 -> 0 | AJ22: =AJ21-AJ20 -> 0 | AK22: =AK20-AK21 -> 0 | AL22: =AL21-AL20 -> 0 | AM22: =AM20-AM21 -> 0 | AN22: =AN21-AN20 -> 0 | AO22: =AO20-AO21 -> 0 | AP22: =AP21-AP20 -> 0 | AQ22: =AQ20-AQ21 -> 0 | AR22: =AR21-AR20 -> 0 | AS22: =AS20-AS21 -> 0 | AT22: =AT21-AT20 -> 0 | AU22: =AU20-AU21 -> 0 | AV22: =AV21-AV20 -> 0 | AW22: =AW20-AW21 -> 0 | AX22: =AX21-AX20 -> 0 | AY22: =AY20-AY21 -> 0 | AZ22: =AZ21-AZ20 -> 2500 | BA22: =BA20-BA21 -> 0 | BB22: =BB21-BB20 -> 2500 | BC22: =BC20-BC21 -> 0 | BD22: =BD21-BD20 -> 0 | BE22: =BE20-BE21 -> 0 | BF22: =BF21-BF20 -> 2500
A24: 1.2.5 | B24: Kopierer | C24: Ist | D24: =G24+K24+O24+S24+W24+AA24+AE24+AI24+AM24+AQ24+AU24+AY24+BC24 -> 0 | E24: =H24+L24+P24+T24+X24+AB24+AF24+AJ24+AN24+AR24+AV24+AZ24+BD24 -> 0 | F24: =D24-E24 -> 0 | I24: =G24 -> 0 | J24: =H24 -> 0 | M24: =I24+K24 -> 0 | N24: =J24+L24 -> 0 | Q24: =M24+O24 -> 0 | R24: =N24+P24 -> 0 | U24: =Q24+S24 -> 0 | V24: =R24+T24 -> 0 | Y24: =U24+W24 -> 0 | Z24: =V24+X24 -> 0 | AC24: =Y24+AA24 -> 0 | AD24: =Z24+AB24 -> 0 | AG24: =AC24+AE24 -> 0 | AH24: =AD24+AF24 -> 0 | AK24: =AG24+AI24 -> 0 | AL24: =AH24+AJ24 -> 0 | AO24: =AK24+AM24 -> 0 | AP24: =AL24+AN24 -> 0 | AS24: =AO24+AQ24 -> 0 | AT24: =AP24+AR24 -> 0 | AW24: =AS24+AU24 -> 0 | AX24: =AT24+AV24 -> 0 | BA24: =AW24+AY24 -> 0 | BB24: =AX24+AZ24 -> 0 | BC24: 0 | BD24: 0 | BE24: =BA24+BC24 -> 0 | BF24: =BB24+BD24 -> 0
C25: Plan | D25: =G25+K25+O25+S25+W25+AA25+AE25+AI25+AM25+AQ25+AU25+AY25+BC25 -> 0 | E25: =H25+L25+P25+T25+X25+AB25+AF25+AJ25+AN25+AR25+AV25+AZ25+BD25 -> 2000 | F25: =D25-E25 -> -2000 | G25: 0 | H25: 0 | I25: =G25 -> 0 | J25: =H25 -> 0 | K25: 0 | L25: 0 | M25: =I25+K25 -> 0 | N25: =J25+L25 -> 0 | O25: 0 | P25: 0 | Q25: =M25+O25 -> 0 | R25: =N25+P25 -> 0 | S25: 0 | T25: 0 | U25: =Q25+S25 -> 0 | V25: =R25+T25 -> 0 | W25: 0 | X25: 0 | Y25: =U25+W25 -> 0 | Z25: =V25+X25 -> 0 | AA25: 0 | AB25: 0 | AC25: =Y25+AA25 -> 0 | AD25: =Z25+AB25 -> 0 | AE25: 0 | AF25: 0 | AG25: =AC25+AE25 -> 0 | AH25: =AD25+AF25 -> 0 | AI25: 0 | AJ25: 0 | AK25: =AG25+AI25 -> 0 | AL25: =AH25+AJ25 -> 0 | AM25: 0 | AN25: 0 | AO25: =AK25+AM25 -> 0 | AP25: =AL25+AN25 -> 0 | AQ25: 0 | AR25: 0 | AS25: =AO25+AQ25 -> 0 | AT25: =AP25+AR25 -> 0 | AU25: 0 | AV25: 0 | AW25: =AS25+AU25 -> 0 | AX25: =AT25+AV25 -> 0 | AY25: 0 | AZ25: 2000 | BA25: =AW25+AY25 -> 0 | BB25: =AX25+AZ25 -> 2000 | BC25: 0 | BD25: 0 | BE25: =BA25+BC25 -> 0 | BF25: =BB25+BD25 -> 2000
C26: Saldo | D26: =D24-D25 -> 0 | E26: =E25-E24 -> 2000 | F26: =SUM(F24-F25) -> 2000 | G26: =G24-G25 -> 0 | H26: =H25-H24 -> 0 | I26: =I24-I25 -> 0 | J26: =J25-J24 -> 0 | K26: =K24-K25 -> 0 | L26: =L25-L24 -> 0 | M26: =M24-M25 -> 0 | N26: =N25-N24 -> 0 | O26: =O24-O25 -> 0 | P26: =P25-P24 -> 0 | Q26: =Q24-Q25 -> 0 | R26: =R25-R24 -> 0 | S26: =S24-S25 -> 0 | T26: =T25-T24 -> 0 | U26: =U24-U25 -> 0 | V26: =V25-V24 -> 0 | W26: =W24-W25 -> 0 | X26: =X25-X24 -> 0 | Y26: =Y24-Y25 -> 0 | Z26: =Z25-Z24 -> 0 | AA26: =AA24-AA25 -> 0 | AB26: =AB25-AB24 -> 0 | AC26: =AC24-AC25 -> 0 | AD26: =AD25-AD24 -> 0 | AE26: =AE24-AE25 -> 0 | AF26: =AF25-AF24 -> 0 | AG26: =AG24-AG25 -> 0 | AH26: =AH25-AH24 -> 0 | AI26: =AI24-AI25 -> 0 | AJ26: =AJ25-AJ24 -> 0 | AK26: =AK24-AK25 -> 0 | AL26: =AL25-AL24 -> 0 | AM26: =AM24-AM25 -> 0 | AN26: =AN25-AN24 -> 0 | AO26: =AO24-AO25 -> 0 | AP26: =AP25-AP24 -> 0 | AQ26: =AQ24-AQ25 -> 0 | AR26: =AR25-AR24 -> 0 | AS26: =AS24-AS25 -> 0 | AT26: =AT25-AT24 -> 0 | AU26: =AU24-AU25 -> 0 | AV26: =AV25-AV24 -> 0 | AW26: =AW24-AW25 -> 0 | AX26: =AX25-AX24 -> 0 | AY26: =AY24-AY25 -> 0 | AZ26: =AZ25-AZ24 -> 2000 | BA26: =BA24-BA25 -> 0 | BB26: =BB25-BB24 -> 2000 | BC26: =BC24-BC25 -> 0 | BD26: =BD25-BD24 -> 0 | BE26: =BE24-BE25 -> 0 | BF26: =BF25-BF24 -> 2000
A28: 1.2.6 | B28: Instandhaltung, Reparaturen | C28: Ist | D28: =G28+K28+O28+S28+W28+AA28+AE28+AI28+AM28+AQ28+AU28+AY28+BC28 -> 0 | E28: =H28+L28+P28+T28+X28+AB28+AF28+AJ28+AN28+AR28+AV28+AZ28+BD28 -> 0 | F28: =D28-E28 -> 0 | I28: =G28 -> 0 | J28: =H28 -> 0 | M28: =I28+K28 -> 0 | N28: =J28+L28 -> 0 | Q28: =M28+O28 -> 0 | R28: =N28+P28 -> 0 | U28: =Q28+S28 -> 0 | V28: =R28+T28 -> 0 | Y28: =U28+W28 -> 0 | Z28: =V28+X28 -> 0 | AC28: =Y28+AA28 -> 0 | AD28: =Z28+AB28 -> 0 | AG28: =AC28+AE28 -> 0 | AH28: =AD28+AF28 -> 0 | AK28: =AG28+AI28 -> 0 | AL28: =AH28+AJ28 -> 0 | AO28: =AK28+AM28 -> 0 | AP28: =AL28+AN28 -> 0 | AS28: =AO28+AQ28 -> 0 | AT28: =AP28+AR28 -> 0 | AW28: =AS28+AU28 -> 0 | AX28: =AT28+AV28 -> 0 | BA28: =AW28+AY28 -> 0 | BB28: =AX28+AZ28 -> 0 | BC28: 0 | BD28: 0 | BE28: =BA28+BC28 -> 0 | BF28: =BB28+BD28 -> 0
B29: Feuerlöscher, 1. Hilfe Koffer | C29: Plan | D29: =G29+K29+O29+S29+W29+AA29+AE29+AI29+AM29+AQ29+AU29+AY29+BC29 -> 0 | E29: =H29+L29+P29+T29+X29+AB29+AF29+AJ29+AN29+AR29+AV29+AZ29+BD29 -> 500 | F29: =D29-E29 -> -500 | G29: 0 | H29: 0 | I29: =G29 -> 0 | J29: =H29 -> 0 | K29: 0 | L29: 0 | M29: =I29+K29 -> 0 | N29: =J29+L29 -> 0 | O29: 0 | P29: 0 | Q29: =M29+O29 -> 0 | R29: =N29+P29 -> 0 | S29: 0 | T29: 0 | U29: =Q29+S29 -> 0 | V29: =R29+T29 -> 0 | W29: 0 | X29: 0 | Y29: =U29+W29 -> 0 | Z29: =V29+X29 -> 0 | AA29: 0 | AB29: 0 | AC29: =Y29+AA29 -> 0 | AD29: =Z29+AB29 -> 0 | AE29: 0 | AF29: 0 | AG29: =AC29+AE29 -> 0 | AH29: =AD29+AF29 -> 0 | AI29: 0 | AJ29: 0 | AK29: =AG29+AI29 -> 0 | AL29: =AH29+AJ29 -> 0 | AM29: 0 | AN29: 0 | AO29: =AK29+AM29 -> 0 | AP29: =AL29+AN29 -> 0 | AQ29: 0 | AR29: 0 | AS29: =AO29+AQ29 -> 0 | AT29: =AP29+AR29 -> 0 | AU29: 0 | AV29: 0 | AW29: =AS29+AU29 -> 0 | AX29: =AT29+AV29 -> 0 | AY29: 0 | AZ29: 500 | BA29: =AW29+AY29 -> 0 | BB29: =AX29+AZ29 -> 500 | BC29: 0 | BD29: 0 | BE29: =BA29+BC29 -> 0 | BF29: =BB29+BD29 -> 500
C30: Saldo | D30: =D28-D29 -> 0 | E30: =E29-E28 -> 500 | F30: =SUM(F28-F29) -> 500 | G30: =G28-G29 -> 0 | H30: =H29-H28 -> 0 | I30: =I28-I29 -> 0 | J30: =J29-J28 -> 0 | K30: =K28-K29 -> 0 | L30: =L29-L28 -> 0 | M30: =M28-M29 -> 0 | N30: =N29-N28 -> 0 | O30: =O28-O29 -> 0 | P30: =P29-P28 -> 0 | Q30: =Q28-Q29 -> 0 | R30: =R29-R28 -> 0 | S30: =S28-S29 -> 0 | T30: =T29-T28 -> 0 | U30: =U28-U29 -> 0 | V30: =V29-V28 -> 0 | W30: =W28-W29 -> 0 | X30: =X29-X28 -> 0 | Y30: =Y28-Y29 -> 0 | Z30: =Z29-Z28 -> 0 | AA30: =AA28-AA29 -> 0 | AB30: =AB29-AB28 -> 0 | AC30: =AC28-AC29 -> 0 | AD30: =AD29-AD28 -> 0 | AE30: =AE28-AE29 -> 0 | AF30: =AF29-AF28 -> 0 | AG30: =AG28-AG29 -> 0 | AH30: =AH29-AH28 -> 0 | AI30: =AI28-AI29 -> 0 | AJ30: =AJ29-AJ28 -> 0 | AK30: =AK28-AK29 -> 0 | AL30: =AL29-AL28 -> 0 | AM30: =AM28-AM29 -> 0 | AN30: =AN29-AN28 -> 0 | AO30: =AO28-AO29 -> 0 | AP30: =AP29-AP28 -> 0 | AQ30: =AQ28-AQ29 -> 0 | AR30: =AR29-AR28 -> 0 | AS30: =AS28-AS29 -> 0 | AT30: =AT29-AT28 -> 0 | AU30: =AU28-AU29 -> 0 | AV30: =AV29-AV28 -> 0 | AW30: =AW28-AW29 -> 0 | AX30: =AX29-AX28 -> 0 | AY30: =AY28-AY29 -> 0 | AZ30: =AZ29-AZ28 -> 500 | BA30: =BA28-BA29 -> 0 | BB30: =BB29-BB28 -> 500 | BC30: =BC28-BC29 -> 0 | BD30: =BD29-BD28 -> 0 | BE30: =BE28-BE29 -> 0 | BF30: =BF29-BF28 -> 500
A32: 1.2.7 | B32: Kontoführung | C32: Ist | D32: =G32+K32+O32+S32+W32+AA32+AE32+AI32+AM32+AQ32+AU32+AY32+BC32 -> 0 | E32: =H32+L32+P32+T32+X32+AB32+AF32+AJ32+AN32+AR32+AV32+AZ32+BD32 -> 0 | F32: =D32-E32 -> 0 | I32: =G32 -> 0 | J32: =H32 -> 0 | M32: =I32+K32 -> 0 | N32: =J32+L32 -> 0 | Q32: =M32+O32 -> 0 | R32: =N32+P32 -> 0 | U32: =Q32+S32 -> 0 | V32: =R32+T32 -> 0 | Y32: =U32+W32 -> 0 | Z32: =V32+X32 -> 0 | AC32: =Y32+AA32 -> 0 | AD32: =Z32+AB32 -> 0 | AG32: =AC32+AE32 -> 0 | AH32: =AD32+AF32 -> 0 | AK32: =AG32+AI32 -> 0 | AL32: =AH32+AJ32 -> 0 | AO32: =AK32+AM32 -> 0 | AP32: =AL32+AN32 -> 0 | AS32: =AO32+AQ32 -> 0 | AT32: =AP32+AR32 -> 0 | AW32: =AS32+AU32 -> 0 | AX32: =AT32+AV32 -> 0 | BA32: =AW32+AY32 -> 0 | BB32: =AX32+AZ32 -> 0 | BC32: 0 | BD32: 0 | BE32: =BA32+BC32 -> 0 | BF32: =BB32+BD32 -> 0
B33: (nicht Spendenkonten) | C33: Plan | D33: =G33+K33+O33+S33+W33+AA33+AE33+AI33+AM33+AQ33+AU33+AY33+BC33 -> 0 | E33: =H33+L33+P33+T33+X33+AB33+AF33+AJ33+AN33+AR33+AV33+AZ33+BD33 -> 800 | F33: =D33-E33 -> -800 | G33: 0 | H33: 0 | I33: =G33 -> 0 | J33: =H33 -> 0 | K33: 0 | L33: 0 | M33: =I33+K33 -> 0 | N33: =J33+L33 -> 0 | O33: 0 | P33: 0 | Q33: =M33+O33 -> 0 | R33: =N33+P33 -> 0 | S33: 0 | T33: 0 | U33: =Q33+S33 -> 0 | V33: =R33+T33 -> 0 | W33: 0 | X33: 0 | Y33: =U33+W33 -> 0 | Z33: =V33+X33 -> 0 | AA33: 0 | AB33: 0 | AC33: =Y33+AA33 -> 0 | AD33: =Z33+AB33 -> 0 | AE33: 0 | AF33: 0 | AG33: =AC33+AE33 -> 0 | AH33: =AD33+AF33 -> 0 | AI33: 0 | AJ33: 0 | AK33: =AG33+AI33 -> 0 | AL33: =AH33+AJ33 -> 0 | AM33: 0 | AN33: 0 | AO33: =AK33+AM33 -> 0 | AP33: =AL33+AN33 -> 0 | AQ33: 0 | AR33: 0 | AS33: =AO33+AQ33 -> 0 | AT33: =AP33+AR33 -> 0 | AU33: 0 | AV33: 0 | AW33: =AS33+AU33 -> 0 | AX33: =AT33+AV33 -> 0 | AY33: 0 | AZ33: 800 | BA33: =AW33+AY33 -> 0 | BB33: =AX33+AZ33 -> 800 | BC33: 0 | BD33: 0 | BE33: =BA33+BC33 -> 0 | BF33: =BB33+BD33 -> 800
C34: Saldo | D34: =D32-D33 -> 0 | E34: =E33-E32 -> 800 | F34: =SUM(F32-F33) -> 800 | G34: =G32-G33 -> 0 | H34: =H33-H32 -> 0 | I34: =I32-I33 -> 0 | J34: =J33-J32 -> 0 | K34: =K32-K33 -> 0 | L34: =L33-L32 -> 0 | M34: =M32-M33 -> 0 | N34: =N33-N32 -> 0 | O34: =O32-O33 -> 0 | P34: =P33-P32 -> 0 | Q34: =Q32-Q33 -> 0 | R34: =R33-R32 -> 0 | S34: =S32-S33 -> 0 | T34: =T33-T32 -> 0 | U34: =U32-U33 -> 0 | V34: =V33-V32 -> 0 | W34: =W32-W33 -> 0 | X34: =X33-X32 -> 0 | Y34: =Y32-Y33 -> 0 | Z34: =Z33-Z32 -> 0 | AA34: =AA32-AA33 -> 0 | AB34: =AB33-AB32 -> 0 | AC34: =AC32-AC33 -> 0 | AD34: =AD33-AD32 -> 0 | AE34: =AE32-AE33 -> 0 | AF34: =AF33-AF32 -> 0 | AG34: =AG32-AG33 -> 0 | AH34: =AH33-AH32 -> 0 | AI34: =AI32-AI33 -> 0 | AJ34: =AJ33-AJ32 -> 0 | AK34: =AK32-AK33 -> 0 | AL34: =AL33-AL32 -> 0 | AM34: =AM32-AM33 -> 0 | AN34: =AN33-AN32 -> 0 | AO34: =AO32-AO33 -> 0 | AP34: =AP33-AP32 -> 0 | AQ34: =AQ32-AQ33 -> 0 | AR34: =AR33-AR32 -> 0 | AS34: =AS32-AS33 -> 0 | AT34: =AT33-AT32 -> 0 | AU34: =AU32-AU33 -> 0 | AV34: =AV33-AV32 -> 0 | AW34: =AW32-AW33 -> 0 | AX34: =AX33-AX32 -> 0 | AY34: =AY32-AY33 -> 0 | AZ34: =AZ33-AZ32 -> 800 | BA34: =BA32-BA33 -> 0 | BB34: =BB33-BB32 -> 800 | BC34: =BC32-BC33 -> 0 | BD34: =BD33-BD32 -> 0 | BE34: =BE32-BE33 -> 0 | BF34: =BF33-BF32 -> 800
A36: 1.2.8 | B36: Bewirtung, Kaffee, Milch | C36: Ist | D36: =G36+K36+O36+S36+W36+AA36+AE36+AI36+AM36+AQ36+AU36+AY36+BC36 -> 0 | E36: =H36+L36+P36+T36+X36+AB36+AF36+AJ36+AN36+AR36+AV36+AZ36+BD36 -> 0 | F36: =D36-E36 -> 0 | I36: =G36 -> 0 | J36: =H36 -> 0 | M36: =I36+K36 -> 0 | N36: =J36+L36 -> 0 | Q36: =M36+O36 -> 0 | R36: =N36+P36 -> 0 | U36: =Q36+S36 -> 0 | V36: =R36+T36 -> 0 | Y36: =U36+W36 -> 0 | Z36: =V36+X36 -> 0 | AC36: =Y36+AA36 -> 0 | AD36: =Z36+AB36 -> 0 | AG36: =AC36+AE36 -> 0 | AH36: =AD36+AF36 -> 0 | AK36: =AG36+AI36 -> 0 | AL36: =AH36+AJ36 -> 0 | AO36: =AK36+AM36 -> 0 | AP36: =AL36+AN36 -> 0 | AS36: =AO36+AQ36 -> 0 | AT36: =AP36+AR36 -> 0 | AW36: =AS36+AU36 -> 0 | AX36: =AT36+AV36 -> 0 | BA36: =AW36+AY36 -> 0 | BB36: =AX36+AZ36 -> 0 | BC36: 0 | BD36: 0 | BE36: =BA36+BC36 -> 0 | BF36: =BB36+BD36 -> 0
B37: Entsorgung; Reinigungsmittel | C37: Plan | D37: =G37+K37+O37+S37+W37+AA37+AE37+AI37+AM37+AQ37+AU37+AY37+BC37 -> 0 | E37: =H37+L37+P37+T37+X37+AB37+AF37+AJ37+AN37+AR37+AV37+AZ37+BD37 -> 3800 | F37: =D37-E37 -> -3800 | G37: 0 | H37: 0 | I37: =G37 -> 0 | J37: =H37 -> 0 | K37: 0 | L37: 0 | M37: =I37+K37 -> 0 | N37: =J37+L37 -> 0 | O37: 0 | P37: 0 | Q37: =M37+O37 -> 0 | R37: =N37+P37 -> 0 | S37: 0 | T37: 0 | U37: =Q37+S37 -> 0 | V37: =R37+T37 -> 0 | W37: 0 | X37: 0 | Y37: =U37+W37 -> 0 | Z37: =V37+X37 -> 0 | AA37: 0 | AB37: 0 | AC37: =Y37+AA37 -> 0 | AD37: =Z37+AB37 -> 0 | AE37: 0 | AF37: 0 | AG37: =AC37+AE37 -> 0 | AH37: =AD37+AF37 -> 0 | AI37: 0 | AJ37: 0 | AK37: =AG37+AI37 -> 0 | AL37: =AH37+AJ37 -> 0 | AM37: 0 | AN37: 0 | AO37: =AK37+AM37 -> 0 | AP37: =AL37+AN37 -> 0 | AQ37: 0 | AR37: 0 | AS37: =AO37+AQ37 -> 0 | AT37: =AP37+AR37 -> 0 | AU37: 0 | AV37: 0 | AW37: =AS37+AU37 -> 0 | AX37: =AT37+AV37 -> 0 | AY37: 0 | AZ37: 3800 | BA37: =AW37+AY37 -> 0 | BB37: =AX37+AZ37 -> 3800 | BC37: 0 | BD37: 0 | BE37: =BA37+BC37 -> 0 | BF37: =BB37+BD37 -> 3800
B38: Bücher (500), Wasser | C38: Saldo | D38: =D36-D37 -> 0 | E38: =E37-E36 -> 3800 | F38: =SUM(F36-F37) -> 3800 | G38: =G36-G37 -> 0 | H38: =H37-H36 -> 0 | I38: =I36-I37 -> 0 | J38: =J37-J36 -> 0 | K38: =K36-K37 -> 0 | L38: =L37-L36 -> 0 | M38: =M36-M37 -> 0 | N38: =N37-N36 -> 0 | O38: =O36-O37 -> 0 | P38: =P37-P36 -> 0 | Q38: =Q36-Q37 -> 0 | R38: =R37-R36 -> 0 | S38: =S36-S37 -> 0 | T38: =T37-T36 -> 0 | U38: =U36-U37 -> 0 | V38: =V37-V36 -> 0 | W38: =W36-W37 -> 0 | X38: =X37-X36 -> 0 | Y38: =Y36-Y37 -> 0 | Z38: =Z37-Z36 -> 0 | AA38: =AA36-AA37 -> 0 | AB38: =AB37-AB36 -> 0 | AC38: =AC36-AC37 -> 0 | AD38: =AD37-AD36 -> 0 | AE38: =AE36-AE37 -> 0 | AF38: =AF37-AF36 -> 0 | AG38: =AG36-AG37 -> 0 | AH38: =AH37-AH36 -> 0 | AI38: =AI36-AI37 -> 0 | AJ38: =AJ37-AJ36 -> 0 | AK38: =AK36-AK37 -> 0 | AL38: =AL37-AL36 -> 0 | AM38: =AM36-AM37 -> 0 | AN38: =AN37-AN36 -> 0 | AO38: =AO36-AO37 -> 0 | AP38: =AP37-AP36 -> 0 | AQ38: =AQ36-AQ37 -> 0 | AR38: =AR37-AR36 -> 0 | AS38: =AS36-AS37 -> 0 | AT38: =AT37-AT36 -> 0 | AU38: =AU36-AU37 -> 0 | AV38: =AV37-AV36 -> 0 | AW38: =AW36-AW37 -> 0 | AX38: =AX37-AX36 -> 0 | AY38: =AY36-AY37 -> 0 | AZ38: =AZ37-AZ36 -> 3800 | BA38: =BA36-BA37 -> 0 | BB38: =BB37-BB36 -> 3800 | BC38: =BC36-BC37 -> 0 | BD38: =BD37-BD36 -> 0 | BE38: =BE36-BE37 -> 0 | BF38: =BF37-BF36 -> 3800
A40: 1.2.9 | B40: Versicherungen | C40: Ist | D40: =G40+K40+O40+S40+W40+AA40+AE40+AI40+AM40+AQ40+AU40+AY40+BC40 -> 0 | E40: =H40+L40+P40+T40+X40+AB40+AF40+AJ40+AN40+AR40+AV40+AZ40+BD40 -> 0 | F40: =D40-E40 -> 0 | I40: =G40 -> 0 | J40: =H40 -> 0 | M40: =I40+K40 -> 0 | N40: =J40+L40 -> 0 | Q40: =M40+O40 -> 0 | R40: =N40+P40 -> 0 | U40: =Q40+S40 -> 0 | V40: =R40+T40 -> 0 | Y40: =U40+W40 -> 0 | Z40: =V40+X40 -> 0 | AC40: =Y40+AA40 -> 0 | AD40: =Z40+AB40 -> 0 | AG40: =AC40+AE40 -> 0 | AH40: =AD40+AF40 -> 0 | AK40: =AG40+AI40 -> 0 | AL40: =AH40+AJ40 -> 0 | AO40: =AK40+AM40 -> 0 | AP40: =AL40+AN40 -> 0 | AS40: =AO40+AQ40 -> 0 | AT40: =AP40+AR40 -> 0 | AW40: =AS40+AU40 -> 0 | AX40: =AT40+AV40 -> 0 | BA40: =AW40+AY40 -> 0 | BB40: =AX40+AZ40 -> 0 | BC40: 0 | BD40: 0 | BE40: =BA40+BC40 -> 0 | BF40: =BB40+BD40 -> 0
B41: (nicht projekebezogene Beiträge) | C41: Plan | D41: =G41+K41+O41+S41+W41+AA41+AE41+AI41+AM41+AQ41+AU41+AY41+BC41 -> 0 | E41: =H41+L41+P41+T41+X41+AB41+AF41+AJ41+AN41+AR41+AV41+AZ41+BD41 -> 14000 | F41: =D41-E41 -> -14000 | G41: 0 | H41: 0 | I41: =G41 -> 0 | J41: =H41 -> 0 | K41: 0 | L41: 0 | M41: =I41+K41 -> 0 | N41: =J41+L41 -> 0 | O41: 0 | P41: 0 | Q41: =M41+O41 -> 0 | R41: =N41+P41 -> 0 | S41: 0 | T41: 0 | U41: =Q41+S41 -> 0 | V41: =R41+T41 -> 0 | W41: 0 | X41: 0 | Y41: =U41+W41 -> 0 | Z41: =V41+X41 -> 0 | AA41: 0 | AB41: 0 | AC41: =Y41+AA41 -> 0 | AD41: =Z41+AB41 -> 0 | AE41: 0 | AF41: 0 | AG41: =AC41+AE41 -> 0 | AH41: =AD41+AF41 -> 0 | AI41: 0 | AJ41: 0 | AK41: =AG41+AI41 -> 0 | AL41: =AH41+AJ41 -> 0 | AM41: 0 | AN41: 0 | AO41: =AK41+AM41 -> 0 | AP41: =AL41+AN41 -> 0 | AQ41: 0 | AR41: 0 | AS41: =AO41+AQ41 -> 0 | AT41: =AP41+AR41 -> 0 | AU41: 0 | AV41: 0 | AW41: =AS41+AU41 -> 0 | AX41: =AT41+AV41 -> 0 | AY41: 0 | AZ41: 14000 | BA41: =AW41+AY41 -> 0 | BB41: =AX41+AZ41 -> 14000 | BC41: 0 | BD41: 0 | BE41: =BA41+BC41 -> 0 | BF41: =BB41+BD41 -> 14000
B42: inkl. Erstattungen | C42: Saldo | D42: =D40-D41 -> 0 | E42: =E41-E40 -> 14000 | F42: =SUM(F40-F41) -> 14000 | G42: =G40-G41 -> 0 | H42: =H41-H40 -> 0 | I42: =I40-I41 -> 0 | J42: =J41-J40 -> 0 | K42: =K40-K41 -> 0 | L42: =L41-L40 -> 0 | M42: =M40-M41 -> 0 | N42: =N41-N40 -> 0 | O42: =O40-O41 -> 0 | P42: =P41-P40 -> 0 | Q42: =Q40-Q41 -> 0 | R42: =R41-R40 -> 0 | S42: =S40-S41 -> 0 | T42: =T41-T40 -> 0 | U42: =U40-U41 -> 0 | V42: =V41-V40 -> 0 | W42: =W40-W41 -> 0 | X42: =X41-X40 -> 0 | Y42: =Y40-Y41 -> 0 | Z42: =Z41-Z40 -> 0 | AA42: =AA40-AA41 -> 0 | AB42: =AB41-AB40 -> 0 | AC42: =AC40-AC41 -> 0 | AD42: =AD41-AD40 -> 0 | AE42: =AE40-AE41 -> 0 | AF42: =AF41-AF40 -> 0 | AG42: =AG40-AG41 -> 0 | AH42: =AH41-AH40 -> 0 | AI42: =AI40-AI41 -> 0 | AJ42: =AJ41-AJ40 -> 0 | AK42: =AK40-AK41 -> 0 | AL42: =AL41-AL40 -> 0 | AM42: =AM40-AM41 -> 0 | AN42: =AN41-AN40 -> 0 | AO42: =AO40-AO41 -> 0 | AP42: =AP41-AP40 -> 0 | AQ42: =AQ40-AQ41 -> 0 | AR42: =AR41-AR40 -> 0 | AS42: =AS40-AS41 -> 0 | AT42: =AT41-AT40 -> 0 | AU42: =AU40-AU41 -> 0 | AV42: =AV41-AV40 -> 0 | AW42: =AW40-AW41 -> 0 | AX42: =AX41-AX40 -> 0 | AY42: =AY40-AY41 -> 0 | AZ42: =AZ41-AZ40 -> 14000 | BA42: =BA40-BA41 -> 0 | BB42: =BB41-BB40 -> 14000 | BC42: =BC40-BC41 -> 0 | BD42: =BD41-BD40 -> 0 | BE42: =BE40-BE41 -> 0 | BF42: =BF41-BF40 -> 14000
A44: 1.2.10 | B44: Steuerberater | C44: Ist | D44: =G44+K44+O44+S44+W44+AA44+AE44+AI44+AM44+AQ44+AU44+AY44+BC44 -> 0 | E44: =H44+L44+P44+T44+X44+AB44+AF44+AJ44+AN44+AR44+AV44+AZ44+BD44 -> 0 | F44: =D44-E44 -> 0 | I44: =G44 -> 0 | J44: =H44 -> 0 | M44: =I44+K44 -> 0 | N44: =J44+L44 -> 0 | Q44: =M44+O44 -> 0 | R44: =N44+P44 -> 0 | U44: =Q44+S44 -> 0 | V44: =R44+T44 -> 0 | Y44: =U44+W44 -> 0 | Z44: =V44+X44 -> 0 | AC44: =Y44+AA44 -> 0 | AD44: =Z44+AB44 -> 0 | AG44: =AC44+AE44 -> 0 | AH44: =AD44+AF44 -> 0 | AK44: =AG44+AI44 -> 0 | AL44: =AH44+AJ44 -> 0 | AO44: =AK44+AM44 -> 0 | AP44: =AL44+AN44 -> 0 | AS44: =AO44+AQ44 -> 0 | AT44: =AP44+AR44 -> 0 | AW44: =AS44+AU44 -> 0 | AX44: =AT44+AV44 -> 0 | BA44: =AW44+AY44 -> 0 | BB44: =AX44+AZ44 -> 0 | BC44: 0 | BD44: 0 | BE44: =BA44+BC44 -> 0 | BF44: =BB44+BD44 -> 0
C45: Plan | D45: =G45+K45+O45+S45+W45+AA45+AE45+AI45+AM45+AQ45+AU45+AY45+BC45 -> 0 | E45: =H45+L45+P45+T45+X45+AB45+AF45+AJ45+AN45+AR45+AV45+AZ45+BD45 -> 8500 | F45: =D45-E45 -> -8500 | G45: 0 | H45: 0 | I45: =G45 -> 0 | J45: =H45 -> 0 | K45: 0 | L45: 0 | M45: =I45+K45 -> 0 | N45: =J45+L45 -> 0 | O45: 0 | P45: 0 | Q45: =M45+O45 -> 0 | R45: =N45+P45 -> 0 | S45: 0 | T45: 0 | U45: =Q45+S45 -> 0 | V45: =R45+T45 -> 0 | W45: 0 | X45: 0 | Y45: =U45+W45 -> 0 | Z45: =V45+X45 -> 0 | AA45: 0 | AB45: 0 | AC45: =Y45+AA45 -> 0 | AD45: =Z45+AB45 -> 0 | AE45: 0 | AF45: 0 | AG45: =AC45+AE45 -> 0 | AH45: =AD45+AF45 -> 0 | AI45: 0 | AJ45: 0 | AK45: =AG45+AI45 -> 0 | AL45: =AH45+AJ45 -> 0 | AM45: 0 | AN45: 0 | AO45: =AK45+AM45 -> 0 | AP45: =AL45+AN45 -> 0 | AQ45: 0 | AR45: 0 | AS45: =AO45+AQ45 -> 0 | AT45: =AP45+AR45 -> 0 | AU45: 0 | AV45: 0 | AW45: =AS45+AU45 -> 0 | AX45: =AT45+AV45 -> 0 | AY45: 0 | AZ45: 8500 | BA45: =AW45+AY45 -> 0 | BB45: =AX45+AZ45 -> 8500 | BC45: 0 | BD45: 0 | BE45: =BA45+BC45 -> 0 | BF45: =BB45+BD45 -> 8500
C46: Saldo | D46: =D44-D45 -> 0 | E46: =E45-E44 -> 8500 | F46: =SUM(F44-F45) -> 8500 | G46: =G44-G45 -> 0 | H46: =H45-H44 -> 0 | I46: =I44-I45 -> 0 | J46: =J45-J44 -> 0 | K46: =K44-K45 -> 0 | L46: =L45-L44 -> 0 | M46: =M44-M45 -> 0 | N46: =N45-N44 -> 0 | O46: =O44-O45 -> 0 | P46: =P45-P44 -> 0 | Q46: =Q44-Q45 -> 0 | R46: =R45-R44 -> 0 | S46: =S44-S45 -> 0 | T46: =T45-T44 -> 0 | U46: =U44-U45 -> 0 | V46: =V45-V44 -> 0 | W46: =W44-W45 -> 0 | X46: =X45-X44 -> 0 | Y46: =Y44-Y45 -> 0 | Z46: =Z45-Z44 -> 0 | AA46: =AA44-AA45 -> 0 | AB46: =AB45-AB44 -> 0 | AC46: =AC44-AC45 -> 0 | AD46: =AD45-AD44 -> 0 | AE46: =AE44-AE45 -> 0 | AF46: =AF45-AF44 -> 0 | AG46: =AG44-AG45 -> 0 | AH46: =AH45-AH44 -> 0 | AI46: =AI44-AI45 -> 0 | AJ46: =AJ45-AJ44 -> 0 | AK46: =AK44-AK45 -> 0 | AL46: =AL45-AL44 -> 0 | AM46: =AM44-AM45 -> 0 | AN46: =AN45-AN44 -> 0 | AO46: =AO44-AO45 -> 0 | AP46: =AP45-AP44 -> 0 | AQ46: =AQ44-AQ45 -> 0 | AR46: =AR45-AR44 -> 0 | AS46: =AS44-AS45 -> 0 | AT46: =AT45-AT44 -> 0 | AU46: =AU44-AU45 -> 0 | AV46: =AV45-AV44 -> 0 | AW46: =AW44-AW45 -> 0 | AX46: =AX45-AX44 -> 0 | AY46: =AY44-AY45 -> 0 | AZ46: =AZ45-AZ44 -> 8500 | BA46: =BA44-BA45 -> 0 | BB46: =BB45-BB44 -> 8500 | BC46: =BC44-BC45 -> 0 | BD46: =BD45-BD44 -> 0 | BE46: =BE44-BE45 -> 0 | BF46: =BF45-BF44 -> 8500
A48: 1.2.11 | B48: Rechtskosten/Anwälte/… | C48: Ist | D48: =G48+K48+O48+S48+W48+AA48+AE48+AI48+AM48+AQ48+AU48+AY48+BC48 -> 0 | E48: =H48+L48+P48+T48+X48+AB48+AF48+AJ48+AN48+AR48+AV48+AZ48+BD48 -> 0 | F48: =D48-E48 -> 0 | I48: =G48 -> 0 | J48: =H48 -> 0 | M48: =I48+K48 -> 0 | N48: =J48+L48 -> 0 | Q48: =M48+O48 -> 0 | R48: =N48+P48 -> 0 | U48: =Q48+S48 -> 0 | V48: =R48+T48 -> 0 | Y48: =U48+W48 -> 0 | Z48: =V48+X48 -> 0 | AC48: =Y48+AA48 -> 0 | AD48: =Z48+AB48 -> 0 | AG48: =AC48+AE48 -> 0 | AH48: =AD48+AF48 -> 0 | AK48: =AG48+AI48 -> 0 | AL48: =AH48+AJ48 -> 0 | AO48: =AK48+AM48 -> 0 | AP48: =AL48+AN48 -> 0 | AS48: =AO48+AQ48 -> 0 | AT48: =AP48+AR48 -> 0 | AW48: =AS48+AU48 -> 0 | AX48: =AT48+AV48 -> 0 | BA48: =AW48+AY48 -> 0 | BB48: =AX48+AZ48 -> 0 | BC48: 0 | BD48: 0 | BE48: =BA48+BC48 -> 0 | BF48: =BB48+BD48 -> 0
C49: Plan | D49: =G49+K49+O49+S49+W49+AA49+AE49+AI49+AM49+AQ49+AU49+AY49+BC49 -> 0 | E49: =H49+L49+P49+T49+X49+AB49+AF49+AJ49+AN49+AR49+AV49+AZ49+BD49 -> 8000 | F49: =D49-E49 -> -8000 | G49: 0 | H49: 0 | I49: =G49 -> 0 | J49: =H49 -> 0 | K49: 0 | L49: 0 | M49: =I49+K49 -> 0 | N49: =J49+L49 -> 0 | O49: 0 | P49: 0 | Q49: =M49+O49 -> 0 | R49: =N49+P49 -> 0 | S49: 0 | T49: 0 | U49: =Q49+S49 -> 0 | V49: =R49+T49 -> 0 | W49: 0 | X49: 0 | Y49: =U49+W49 -> 0 | Z49: =V49+X49 -> 0 | AA49: 0 | AB49: 0 | AC49: =Y49+AA49 -> 0 | AD49: =Z49+AB49 -> 0 | AE49: 0 | AF49: 0 | AG49: =AC49+AE49 -> 0 | AH49: =AD49+AF49 -> 0 | AI49: 0 | AJ49: 0 | AK49: =AG49+AI49 -> 0 | AL49: =AH49+AJ49 -> 0 | AM49: 0 | AN49: 0 | AO49: =AK49+AM49 -> 0 | AP49: =AL49+AN49 -> 0 | AQ49: 0 | AR49: 0 | AS49: =AO49+AQ49 -> 0 | AT49: =AP49+AR49 -> 0 | AU49: 0 | AV49: 0 | AW49: =AS49+AU49 -> 0 | AX49: =AT49+AV49 -> 0 | AY49: 0 | AZ49: 8000 | BA49: =AW49+AY49 -> 0 | BB49: =AX49+AZ49 -> 8000 | BC49: 0 | BD49: 0 | BE49: =BA49+BC49 -> 0 | BF49: =BB49+BD49 -> 8000
C50: Saldo | D50: =D48-D49 -> 0 | E50: =E49-E48 -> 8000 | F50: =SUM(F48-F49) -> 8000 | G50: =G48-G49 -> 0 | H50: =H49-H48 -> 0 | I50: =I48-I49 -> 0 | J50: =J49-J48 -> 0 | K50: =K48-K49 -> 0 | L50: =L49-L48 -> 0 | M50: =M48-M49 -> 0 | N50: =N49-N48 -> 0 | O50: =O48-O49 -> 0 | P50: =P49-P48 -> 0 | Q50: =Q48-Q49 -> 0 | R50: =R49-R48 -> 0 | S50: =S48-S49 -> 0 | T50: =T49-T48 -> 0 | U50: =U48-U49 -> 0 | V50: =V49-V48 -> 0 | W50: =W48-W49 -> 0 | X50: =X49-X48 -> 0 | Y50: =Y48-Y49 -> 0 | Z50: =Z49-Z48 -> 0 | AA50: =AA48-AA49 -> 0 | AB50: =AB49-AB48 -> 0 | AC50: =AC48-AC49 -> 0 | AD50: =AD49-AD48 -> 0 | AE50: =AE48-AE49 -> 0 | AF50: =AF49-AF48 -> 0 | AG50: =AG48-AG49 -> 0 | AH50: =AH49-AH48 -> 0 | AI50: =AI48-AI49 -> 0 | AJ50: =AJ49-AJ48 -> 0 | AK50: =AK48-AK49 -> 0 | AL50: =AL49-AL48 -> 0 | AM50: =AM48-AM49 -> 0 | AN50: =AN49-AN48 -> 0 | AO50: =AO48-AO49 -> 0 | AP50: =AP49-AP48 -> 0 | AQ50: =AQ48-AQ49 -> 0 | AR50: =AR49-AR48 -> 0 | AS50: =AS48-AS49 -> 0 | AT50: =AT49-AT48 -> 0 | AU50: =AU48-AU49 -> 0 | AV50: =AV49-AV48 -> 0 | AW50: =AW48-AW49 -> 0 | AX50: =AX49-AX48 -> 0 | AY50: =AY48-AY49 -> 0 | AZ50: =AZ49-AZ48 -> 8000 | BA50: =BA48-BA49 -> 0 | BB50: =BB49-BB48 -> 8000 | BC50: =BC48-BC49 -> 0 | BD50: =BD49-BD48 -> 0 | BE50: =BE48-BE49 -> 0 | BF50: =BF49-BF48 -> 8000
A52: 1.2.12 | B52: Datenschutzbeauftragter | C52: Ist | D52: =G52+K52+O52+S52+W52+AA52+AE52+AI52+AM52+AQ52+AU52+AY52+BC52 -> 0 | E52: =H52+L52+P52+T52+X52+AB52+AF52+AJ52+AN52+AR52+AV52+AZ52+BD52 -> 0 | F52: =D52-E52 -> 0 | I52: =G52 -> 0 | J52: =H52 -> 0 | M52: =I52+K52 -> 0 | N52: =J52+L52 -> 0 | Q52: =M52+O52 -> 0 | R52: =N52+P52 -> 0 | U52: =Q52+S52 -> 0 | V52: =R52+T52 -> 0 | Y52: =U52+W52 -> 0 | Z52: =V52+X52 -> 0 | AC52: =Y52+AA52 -> 0 | AD52: =Z52+AB52 -> 0 | AG52: =AC52+AE52 -> 0 | AH52: =AD52+AF52 -> 0 | AK52: =AG52+AI52 -> 0 | AL52: =AH52+AJ52 -> 0 | AO52: =AK52+AM52 -> 0 | AP52: =AL52+AN52 -> 0 | AS52: =AO52+AQ52 -> 0 | AT52: =AP52+AR52 -> 0 | AW52: =AS52+AU52 -> 0 | AX52: =AT52+AV52 -> 0 | BA52: =AW52+AY52 -> 0 | BB52: =AX52+AZ52 -> 0 | BC52: 0 | BD52: 0 | BE52: =BA52+BC52 -> 0 | BF52: =BB52+BD52 -> 0
B53: Koop.Vertrag KRR | C53: Plan | D53: =G53+K53+O53+S53+W53+AA53+AE53+AI53+AM53+AQ53+AU53+AY53+BC53 -> 0 | E53: =H53+L53+P53+T53+X53+AB53+AF53+AJ53+AN53+AR53+AV53+AZ53+BD53 -> 3800 | F53: =D53-E53 -> -3800 | G53: 0 | H53: 0 | I53: =G53 -> 0 | J53: =H53 -> 0 | K53: 0 | L53: 0 | M53: =I53+K53 -> 0 | N53: =J53+L53 -> 0 | O53: 0 | P53: 0 | Q53: =M53+O53 -> 0 | R53: =N53+P53 -> 0 | S53: 0 | T53: 0 | U53: =Q53+S53 -> 0 | V53: =R53+T53 -> 0 | W53: 0 | X53: 0 | Y53: =U53+W53 -> 0 | Z53: =V53+X53 -> 0 | AA53: 0 | AB53: 0 | AC53: =Y53+AA53 -> 0 | AD53: =Z53+AB53 -> 0 | AE53: 0 | AF53: 0 | AG53: =AC53+AE53 -> 0 | AH53: =AD53+AF53 -> 0 | AI53: 0 | AJ53: 0 | AK53: =AG53+AI53 -> 0 | AL53: =AH53+AJ53 -> 0 | AM53: 0 | AN53: 0 | AO53: =AK53+AM53 -> 0 | AP53: =AL53+AN53 -> 0 | AQ53: 0 | AR53: 0 | AS53: =AO53+AQ53 -> 0 | AT53: =AP53+AR53 -> 0 | AU53: 0 | AV53: 0 | AW53: =AS53+AU53 -> 0 | AX53: =AT53+AV53 -> 0 | AY53: 0 | AZ53: 3800 | BA53: =AW53+AY53 -> 0 | BB53: =AX53+AZ53 -> 3800 | BC53: 0 | BD53: 0 | BE53: =BA53+BC53 -> 0 | BF53: =BB53+BD53 -> 3800
C54: Saldo | D54: =D52-D53 -> 0 | E54: =E53-E52 -> 3800 | F54: =F52-F53 -> 3800 | G54: =G52-G53 -> 0 | H54: =H53-H52 -> 0 | I54: =I52-I53 -> 0 | J54: =J53-J52 -> 0 | K54: =K52-K53 -> 0 | L54: =L53-L52 -> 0 | M54: =M52-M53 -> 0 | N54: =N53-N52 -> 0 | O54: =O52-O53 -> 0 | P54: =P53-P52 -> 0 | Q54: =Q52-Q53 -> 0 | R54: =R53-R52 -> 0 | S54: =S52-S53 -> 0 | T54: =T53-T52 -> 0 | U54: =U52-U53 -> 0 | V54: =V53-V52 -> 0 | W54: =W52-W53 -> 0 | X54: =X53-X52 -> 0 | Y54: =Y52-Y53 -> 0 | Z54: =Z53-Z52 -> 0 | AA54: =AA52-AA53 -> 0 | AB54: =AB53-AB52 -> 0 | AC54: =AC52-AC53 -> 0 | AD54: =AD53-AD52 -> 0 | AE54: =AE52-AE53 -> 0 | AF54: =AF53-AF52 -> 0 | AG54: =AG52-AG53 -> 0 | AH54: =AH53-AH52 -> 0 | AI54: =AI52-AI53 -> 0 | AJ54: =AJ53-AJ52 -> 0 | AK54: =AK52-AK53 -> 0 | AL54: =AL53-AL52 -> 0 | AM54: =AM52-AM53 -> 0 | AN54: =AN53-AN52 -> 0 | AO54: =AO52-AO53 -> 0 | AP54: =AP53-AP52 -> 0 | AQ54: =AQ52-AQ53 -> 0 | AR54: =AR53-AR52 -> 0 | AS54: =AS52-AS53 -> 0 | AT54: =AT53-AT52 -> 0 | AU54: =AU52-AU53 -> 0 | AV54: =AV53-AV52 -> 0 | AW54: =AW52-AW53 -> 0 | AX54: =AX53-AX52 -> 0 | AY54: =AY52-AY53 -> 0 | AZ54: =AZ53-AZ52 -> 3800 | BA54: =BA52-BA53 -> 0 | BB54: =BB53-BB52 -> 3800 | BC54: =BC52-BC53 -> 0 | BD54: =BD53-BD52 -> 0 | BE54: =BE52-BE53 -> 0 | BF54: =BF53-BF52 -> 3800
A56: 1.2.13 | B56: Sonstiges/Vorjahre | C56: Ist | D56: =G56+K56+O56+S56+W56+AA56+AE56+AI56+AM56+AQ56+AU56+AY56+BC56 -> 0 | E56: =H56+L56+P56+T56+X56+AB56+AF56+AJ56+AN56+AR56+AV56+AZ56+BD56 -> 0 | F56: =D56-E56 -> 0 | I56: =G56 -> 0 | J56: =H56 -> 0 | M56: =I56+K56 -> 0 | N56: =J56+L56 -> 0 | Q56: =M56+O56 -> 0 | R56: =N56+P56 -> 0 | U56: =Q56+S56 -> 0 | V56: =R56+T56 -> 0 | Y56: =U56+W56 -> 0 | Z56: =V56+X56 -> 0 | AC56: =Y56+AA56 -> 0 | AD56: =Z56+AB56 -> 0 | AG56: =AC56+AE56 -> 0 | AH56: =AD56+AF56 -> 0 | AK56: =AG56+AI56 -> 0 | AL56: =AH56+AJ56 -> 0 | AO56: =AK56+AM56 -> 0 | AP56: =AL56+AN56 -> 0 | AS56: =AO56+AQ56 -> 0 | AT56: =AP56+AR56 -> 0 | AW56: =AS56+AU56 -> 0 | AX56: =AT56+AV56 -> 0 | BA56: =AW56+AY56 -> 0 | BB56: =AX56+AZ56 -> 0 | BC56: 0 | BD56: 0 | BE56: =BA56+BC56 -> 0 | BF56: =BB56+BD56 -> 0
B57: Mitgliedschaft JuHe | C57: Plan | D57: =G57+K57+O57+S57+W57+AA57+AE57+AI57+AM57+AQ57+AU57+AY57+BC57 -> 0 | E57: =H57+L57+P57+T57+X57+AB57+AF57+AJ57+AN57+AR57+AV57+AZ57+BD57 -> 3000 | F57: =D57-E57 -> -3000 | G57: 0 | H57: 0 | I57: =G57 -> 0 | J57: =H57 -> 0 | K57: 0 | L57: 0 | M57: =I57+K57 -> 0 | N57: =J57+L57 -> 0 | O57: 0 | P57: 0 | Q57: =M57+O57 -> 0 | R57: =N57+P57 -> 0 | S57: 0 | T57: 0 | U57: =Q57+S57 -> 0 | V57: =R57+T57 -> 0 | W57: 0 | X57: 0 | Y57: =U57+W57 -> 0 | Z57: =V57+X57 -> 0 | AA57: 0 | AB57: 0 | AC57: =Y57+AA57 -> 0 | AD57: =Z57+AB57 -> 0 | AE57: 0 | AF57: 0 | AG57: =AC57+AE57 -> 0 | AH57: =AD57+AF57 -> 0 | AI57: 0 | AJ57: 0 | AK57: =AG57+AI57 -> 0 | AL57: =AH57+AJ57 -> 0 | AM57: 0 | AN57: 0 | AO57: =AK57+AM57 -> 0 | AP57: =AL57+AN57 -> 0 | AQ57: 0 | AR57: 0 | AS57: =AO57+AQ57 -> 0 | AT57: =AP57+AR57 -> 0 | AU57: 0 | AV57: 0 | AW57: =AS57+AU57 -> 0 | AX57: =AT57+AV57 -> 0 | AY57: 0 | AZ57: 3000 | BA57: =AW57+AY57 -> 0 | BB57: =AX57+AZ57 -> 3000 | BC57: 0 | BD57: 0 | BE57: =BA57+BC57 -> 0 | BF57: =BB57+BD57 -> 3000
C58: Saldo | D58: =D56-D57 -> 0 | E58: =E57-E56 -> 3000 | F58: =SUM(F56-F57) -> 3000 | G58: =G56-G57 -> 0 | H58: =H57-H56 -> 0 | I58: =I56-I57 -> 0 | J58: =J57-J56 -> 0 | K58: =K56-K57 -> 0 | L58: =L57-L56 -> 0 | M58: =M56-M57 -> 0 | N58: =N57-N56 -> 0 | O58: =O56-O57 -> 0 | P58: =P57-P56 -> 0 | Q58: =Q56-Q57 -> 0 | R58: =R57-R56 -> 0 | S58: =S56-S57 -> 0 | T58: =T57-T56 -> 0 | U58: =U56-U57 -> 0 | V58: =V57-V56 -> 0 | W58: =W56-W57 -> 0 | X58: =X57-X56 -> 0 | Y58: =Y56-Y57 -> 0 | Z58: =Z57-Z56 -> 0 | AA58: =AA56-AA57 -> 0 | AB58: =AB57-AB56 -> 0 | AC58: =AC56-AC57 -> 0 | AD58: =AD57-AD56 -> 0 | AE58: =AE56-AE57 -> 0 | AF58: =AF57-AF56 -> 0 | AG58: =AG56-AG57 -> 0 | AH58: =AH57-AH56 -> 0 | AI58: =AI56-AI57 -> 0 | AJ58: =AJ57-AJ56 -> 0 | AK58: =AK56-AK57 -> 0 | AL58: =AL57-AL56 -> 0 | AM58: =AM56-AM57 -> 0 | AN58: =AN57-AN56 -> 0 | AO58: =AO56-AO57 -> 0 | AP58: =AP57-AP56 -> 0 | AQ58: =AQ56-AQ57 -> 0 | AR58: =AR57-AR56 -> 0 | AS58: =AS56-AS57 -> 0 | AT58: =AT57-AT56 -> 0 | AU58: =AU56-AU57 -> 0 | AV58: =AV57-AV56 -> 0 | AW58: =AW56-AW57 -> 0 | AX58: =AX57-AX56 -> 0 | AY58: =AY56-AY57 -> 0 | AZ58: =AZ57-AZ56 -> 3000 | BA58: =BA56-BA57 -> 0 | BB58: =BB57-BB56 -> 3000 | BC58: =BC56-BC57 -> 0 | BD58: =BD57-BD56 -> 0 | BE58: =BE56-BE57 -> 0 | BF58: =BF57-BF56 -> 3000

Sheet PersBund
B1: Inhalt | D1: Jahr | G1: Januar | K1: Februar | O1: März | S1: April | W1: Mai | AA1: Juni | AE1: Juli | AI1: August | AM1: September | AQ1: Oktober | AU1: November | AY1: Dezember | BC1: Übeträge
A2: ç | B2: Übersicht | C2: è | G2: Monatswerte | I2: Buchungsstand | K2: Monatswerte | M2: Buchungsstand | O2: Monatswerte | Q2: Buchungsstand | S2: Monatswerte | U2: Buchungsstand | W2: Monatswerte | Y2: Buchungsstand | AA2: Monatswerte | AC2: Buchungsstand | AE2: Monatswerte | AG2: Buchungsstand | AI2: Monatswerte | AK2: Buchungsstand | AM2: Monatswerte | AO2: Buchungsstand | AQ2: Monatswerte | AS2: Buchungsstand | AU2: Monatswerte | AW2: Buchungsstand | AY2: Monatswerte | BA2: Buchungsstand | BC2: etc. | BE2: Buchungsstand
B3: Liquidität | D3: Einnahmen | E3: Ausgaben | F3: Saldo | G3: Einnahmen | H3: Ausgaben | I3: Einnahmen | J3: Ausgaben | K3: Einnahmen | L3: Ausgaben | M3: Einnahmen | N3: Ausgaben | O3: Einnahmen | P3: Ausgaben | Q3: Einnahmen | R3: Ausgaben | S3: Einnahmen | T3: Ausgaben | U3: Einnahmen | V3: Ausgaben | W3: Einnahmen | X3: Ausgaben | Y3: Einnahmen | Z3: Ausgaben | AA3: Einnahmen | AB3: Ausgaben | AC3: Einnahmen | AD3: Ausgaben | AE3: Einnahmen | AF3: Ausgaben | AG3: Einnahmen | AH3: Ausgaben | AI3: Einnahmen | AJ3: Ausgaben | AK3: Einnahmen | AL3: Ausgaben | AM3: Einnahmen | AN3: Ausgaben | AO3: Einnahmen | AP3: Ausgaben | AQ3: Einnahmen | AR3: Ausgaben | AS3: Einnahmen | AT3: Ausgaben | AU3: Einnahmen | AV3: Ausgaben | AW3: Einnahmen | AX3: Ausgaben | AY3: Einnahmen | AZ3: Ausgaben | BA3: Einnahmen | BB3: Ausgaben | BC3: Einnahmen | BD3: Ausgaben | BE3: Einnahmen | BF3: Ausgaben
A4: 1.3 | B4: Personalmittel Bundesbüro | C4: Ist | D4: =D8+D12+D16+D20+D24+D28+D32+D36+D40+D44+D48+D52 -> 0 | E4: =E8+E12+E16+E20+E24+E28+E32+E36+E40+E44+E48+E52 -> 0 | F4: =D4-E4 -> 0 | G4: =G8+G12+G16+G20+G24+G28+G32+G36+G40+G44+G48+G52 -> 0 | H4: 0 | I4: 0 | J4: 0 | K4: 0 | L4: 0 | M4: 0 | N4: 0 | O4: 0 | P4: 0 | Q4: 0 | R4: 0 | S4: 0 | T4: 0 | U4: 0 | V4: 0 | W4: 0 | X4: 0 | Y4: 0 | Z4: 0 | AA4: 0 | AB4: 0 | AC4: 0 | AD4: 0 | AE4: 0 | AF4: 0 | AG4: 0 | AH4: 0 | AI4: 0 | AJ4: 0 | AK4: 0 | AL4: 0 | AM4: =AM8+AM12+AM16+AM20+AM24+AM28+AM32+AM36+AM40+AM44+AM48+AM52 -> 0 | AN4: 0 | AO4: 0 | AP4: 0 | AQ4: 0 | AR4: 0 | AS4: 0 | AT4: 0 | AU4: 0 | AV4: 0 | AW4: 0 | AX4: 0 | AY4: 0 | AZ4: 0 | BA4: 0 | BB4: 0 | BC4: 0 | BD4: 0 | BE4: =BE8+BE12+BE16+BE20+BE24+BE28+BE32+BE36+BE40+BE44+BE48+BE52 -> 0 | BF4: 0
C5: Plan | D5: =D9+D13+D17+D21+D25+D29+D33+D37+D41+D45+D49+D53 -> 0 | E5: =E9+E13+E17+E21+E25+E29+E33+E37+E41+E45+E49+E53 -> 435648.4229 | F5: =D5-E5 -> -435648.4229 | G5: =G9+G13+G17+G21+G25+G29+G33+G37+G41+G45+G49+G53 -> 0 | H5: 33562.36857 | I5: 0 | J5: 33562.36857 | K5: 0 | L5: 33562.36857 | M5: 0 | N5: 67124.73715 | O5: 0 | P5: 33562.36857 | Q5: 0 | R5: 100687.1057 | S5: 0 | T5: 33562.36857 | U5: 0 | V5: 134249.4743 | W5: 0 | X5: 33562.36857 | Y5: 0 | Z5: 167811.8429 | AA5: 0 | AB5: 33562.36857 | AC5: 0 | AD5: 201374.2114 | AE5: 0 | AF5: 33562.36857 | AG5: 0 | AH5: 234936.58 | AI5: 0 | AJ5: 33562.36857 | AK5: 0 | AL5: 268498.9486 | AM5: =AM9+AM13+AM17+AM21+AM25+AM29+AM33+AM37+AM41+AM45+AM49+AM53 -> 0 | AN5: 33562.36857 | AO5: 0 | AP5: 302061.3172 | AQ5: 0 | AR5: 33562.36857 | AS5: 0 | AT5: 335623.6857 | AU5: 0 | AV5: 33562.36857 | AW5: 0 | AX5: 369186.0543 | AY5: 0 | AZ5: 66462.36857 | BA5: 0 | BB5: 435648.4229 | BC5: 0 | BD5: 0 | BE5: 0 | BF5: 435648.4229
B6: Eing. Buchungsst. | C6: Saldo | D6: =D4-D5 -> 0 | E6: =E5-E4 -> 435648.4229 | F6: =F4-F5 -> 435648.4229 | G6: =G4-G5 -> 0 | H6: =H5-H4 -> 33562.36857 | I6: =I4-I5 -> 0 | J6: =J5-J4 -> 33562.36857 | K6: =K4-K5 -> 0 | L6: =L5-L4 -> 33562.36857 | M6: =M4-M5 -> 0 | N6: =N5-N4 -> 67124.73715 | O6: =O4-O5 -> 0 | P6: =P5-P4 -> 33562.36857 | Q6: =Q4-Q5 -> 0 | R6: =R5-R4 -> 100687.1057 | S6: =S4-S5 -> 0 | T6: =T5-T4 -> 33562.36857 | U6: =U4-U5 -> 0 | V6: =V5-V4 -> 134249.4743 | W6: =W4-W5 -> 0 | X6: =X5-X4 -> 33562.36857 | Y6: =Y4-Y5 -> 0 | Z6: =Z5-Z4 -> 167811.8429 | AA6: =AA4-AA5 -> 0 | AB6: =AB5-AB4 -> 33562.36857 | AC6: =AC4-AC5 -> 0 | AD6: =AD5-AD4 -> 201374.2114 | AE6: =AE4-AE5 -> 0 | AF6: =AF5-AF4 -> 33562.36857 | AG6: =AG4-AG5 -> 0 | AH6: =AH5-AH4 -> 234936.58 | AI6: =AI4-AI5 -> 0 | AJ6: =AJ5-AJ4 -> 33562.36857 | AK6: =AK4-AK5 -> 0 | AL6: =AL5-AL4 -> 268498.9486 | AM6: =AM4-AM5 -> 0 | AN6: =AN5-AN4 -> 33562.36857 | AO6: =AO4-AO5 -> 0 | AP6: =AP5-AP4 -> 302061.3172 | AQ6: =AQ4-AQ5 -> 0 | AR6: =AR5-AR4 -> 33562.36857 | AS6: =AS4-AS5 -> 0 | AT6: =AT5-AT4 -> 335623.6857 | AU6: =AU4-AU5 -> 0 | AV6: =AV5-AV4 -> 33562.36857 | AW6: =AW4-AW5 -> 0 | AX6: =AX5-AX4 -> 369186.0543 | AY6: =AY4-AY5 -> 0 | AZ6: =AZ5-AZ4 -> 66462.36857 | BA6: =BA4-BA5 -> 0 | BB6: =BB5-BB4 -> 435648.4229 | BC6: =BC4-BC5 -> 0 | BD6: =BD5-BD4 -> 0 | BE6: =BE4-BE5 -> 0 | BF6: =BF5-BF4 -> 435648.4229
A8: 1.3.1 | B8: Personalkosten | C8: Ist | D8: =G8+K8+O8+S8+W8+AA8+AE8+AI8+AM8+AQ8+AU8+AY8+BC8 -> 0 | E8: =H8+L8+P8+T8+X8+AB8+AF8+AJ8+AN8+AR8+AV8+AZ8+BD8 -> 0 | F8: =D8-E8 -> 0 | I8: =G8 -> 0 | J8: =H8 -> 0 | M8: =I8+K8 -> 0 | N8: =J8+L8 -> 0 | Q8: =M8+O8 -> 0 | R8: =N8+P8 -> 0 | U8: =Q8+S8 -> 0 | V8: =R8+T8 -> 0 | Y8: =U8+W8 -> 0 | Z8: =V8+X8 -> 0 | AC8: =Y8+AA8 -> 0 | AD8: =Z8+AB8 -> 0 | AG8: =AC8+AE8 -> 0 | AH8: =AD8+AF8 -> 0 | AK8: =AG8+AI8 -> 0 | AL8: =AH8+AJ8 -> 0 | AO8: =AK8+AM8 -> 0 | AP8: =AL8+AN8 -> 0 | AS8: =AO8+AQ8 -> 0 | AT8: =AP8+AR8 -> 0 | AW8: =AS8+AU8 -> 0 | AX8: =AT8+AV8 -> 0 | BA8: =AW8+AY8 -> 0 | BB8: =AX8+AZ8 -> 0 | BC8: 0 | BD8: 0 | BE8: =BA8+BC8 -> 0 | BF8: =BB8+BD8 -> 0
C9: Plan | D9: =G9+K9+O9+S9+W9+AA9+AE9+AI9+AM9+AQ9+AU9+AY9+BC9 -> 0 | E9: =H9+L9+P9+T9+X9+AB9+AF9+AJ9+AN9+AR9+AV9+AZ9+BD9 -> 385948.4229 | F9: =D9-E9 -> -385948.4229 | G9: 0 | H9: =+Stellenplan!G$19 -> 32162.36857 | I9: =G9 -> 0 | J9: =H9 -> 32162.36857 | K9: 0 | L9: =+Stellenplan!H$19 -> 32162.36857 | M9: =I9+K9 -> 0 | N9: =J9+L9 -> 64324.73715 | O9: 0 | P9: =+Stellenplan!I$19 -> 32162.36857 | Q9: =M9+O9 -> 0 | R9: =N9+P9 -> 96487.10572 | S9: 0 | T9: =+Stellenplan!J$19 -> 32162.36857 | U9: =Q9+S9 -> 0 | V9: =R9+T9 -> 128649.4743 | W9: 0 | X9: =+Stellenplan!K$19 -> 32162.36857 | Y9: =U9+W9 -> 0 | Z9: =V9+X9 -> 160811.8429 | AA9: 0 | AB9: =+Stellenplan!L$19 -> 32162.36857 | AC9: =Y9+AA9 -> 0 | AD9: =Z9+AB9 -> 192974.2114 | AE9: 0 | AF9: =+Stellenplan!M$19 -> 32162.36857 | AG9: =AC9+AE9 -> 0 | AH9: =AD9+AF9 -> 225136.58 | AI9: 0 | AJ9: =+Stellenplan!N$19 -> 32162.36857 | AK9: =AG9+AI9 -> 0 | AL9: =AH9+AJ9 -> 257298.9486 | AM9: 0 | AN9: =+Stellenplan!O$19 -> 32162.36857 | AO9: =AK9+AM9 -> 0 | AP9: =AL9+AN9 -> 289461.3172 | AQ9: 0 | AR9: =+Stellenplan!P$19 -> 32162.36857 | AS9: =AO9+AQ9 -> 0 | AT9: =AP9+AR9 -> 321623.6857 | AU9: 0 | AV9: =+Stellenplan!Q$19 -> 32162.36857 | AW9: =AS9+AU9 -> 0 | AX9: =AT9+AV9 -> 353786.0543 | AY9: 0 | AZ9: =+Stellenplan!R$19 -> 32162.36857 | BA9: =AW9+AY9 -> 0 | BB9: =AX9+AZ9 -> 385948.4229 | BC9: 0 | BD9: 0 | BE9: =BA9+BC9 -> 0 | BF9: =BB9+BD9 -> 385948.4229
C10: Saldo | D10: =D8-D9 -> 0 | E10: =E9-E8 -> 385948.4229 | F10: =F8-F9 -> 385948.4229 | G10: =G8-G9 -> 0 | H10: =H9-H8 -> 32162.36857 | I10: =I8-I9 -> 0 | J10: =J9-J8 -> 32162.36857 | K10: =K8-K9 -> 0 | L10: =L9-L8 -> 32162.36857 | M10: =M8-M9 -> 0 | N10: =N9-N8 -> 64324.73715 | O10: =O8-O9 -> 0 | P10: =P9-P8 -> 32162.36857 | Q10: =Q8-Q9 -> 0 | R10: =R9-R8 -> 96487.10572 | S10: =S8-S9 -> 0 | T10: =T9-T8 -> 32162.36857 | U10: =U8-U9 -> 0 | V10: =V9-V8 -> 128649.4743 | W10: =W8-W9 -> 0 | X10: =X9-X8 -> 32162.36857 | Y10: =Y8-Y9 -> 0 | Z10: =Z9-Z8 -> 160811.8429 | AA10: =AA8-AA9 -> 0 | AB10: =AB9-AB8 -> 32162.36857 | AC10: =AC8-AC9 -> 0 | AD10: =AD9-AD8 -> 192974.2114 | AE10: =AE8-AE9 -> 0 | AF10: =AF9-AF8 -> 32162.36857 | AG10: =AG8-AG9 -> 0 | AH10: =AH9-AH8 -> 225136.58 | AI10: =AI8-AI9 -> 0 | AJ10: =AJ9-AJ8 -> 32162.36857 | AK10: =AK8-AK9 -> 0 | AL10: =AL9-AL8 -> 257298.9486 | AM10: =AM8-AM9 -> 0 | AN10: =AN9-AN8 -> 32162.36857 | AO10: =AO8-AO9 -> 0 | AP10: =AP9-AP8 -> 289461.3172 | AQ10: =AQ8-AQ9 -> 0 | AR10: =AR9-AR8 -> 32162.36857 | AS10: =AS8-AS9 -> 0 | AT10: =AT9-AT8 -> 321623.6857 | AU10: =AU8-AU9 -> 0 | AV10: =AV9-AV8 -> 32162.36857 | AW10: =AW8-AW9 -> 0 | AX10: =AX9-AX8 -> 353786.0543 | AY10: =AY8-AY9 -> 0 | AZ10: =AZ9-AZ8 -> 32162.36857 | BA10: =BA8-BA9 -> 0 | BB10: =BB9-BB8 -> 385948.4229 | BC10: =BC8-BC9 -> 0 | BD10: =BD9-BD8 -> 0 | BE10: =BE8-BE9 -> 0 | BF10: =BF9-BF8 -> 385948.4229
A12: 1.3.2 | B12: 169.Bürohilfen/Aushilfen/Vertretung | C12: Ist | D12: =G12+K12+O12+S12+W12+AA12+AE12+AI12+AM12+AQ12+AU12+AY12+BC12 -> 0 | E12: =H12+L12+P12+T12+X12+AB12+AF12+AJ12+AN12+AR12+AV12+AZ12+BD12 -> 0 | F12: =D12-E12 -> 0 | I12: =G12 -> 0 | J12: =H12 -> 0 | M12: =I12+K12 -> 0 | N12: =J12+L12 -> 0 | Q12: =M12+O12 -> 0 | R12: =N12+P12 -> 0 | U12: =Q12+S12 -> 0 | V12: =R12+T12 -> 0 | Y12: =U12+W12 -> 0 | Z12: =V12+X12 -> 0 | AC12: =Y12+AA12 -> 0 | AD12: =Z12+AB12 -> 0 | AG12: =AC12+AE12 -> 0 | AH12: =AD12+AF12 -> 0 | AK12: =AG12+AI12 -> 0 | AL12: =AH12+AJ12 -> 0 | AO12: =AK12+AM12 -> 0 | AP12: =AL12+AN12 -> 0 | AS12: =AO12+AQ12 -> 0 | AT12: =AP12+AR12 -> 0 | AW12: =AS12+AU12 -> 0 | AX12: =AT12+AV12 -> 0 | BA12: =AW12+AY12 -> 0 | BB12: =AX12+AZ12 -> 0 | BC12: 0 | BD12: 0 | BE12: =BA12+BC12 -> 0 | BF12: =BB12+BD12 -> 0
C13: Plan | D13: =G13+K13+O13+S13+W13+AA13+AE13+AI13+AM13+AQ13+AU13+AY13+BC13 -> 0 | E13: =H13+L13+P13+T13+X13+AB13+AF13+AJ13+AN13+AR13+AV13+AZ13+BD13 -> 2500 | F13: =D13-E13 -> -2500 | G13: 0 | H13: 0 | I13: =G13 -> 0 | J13: =H13 -> 0 | K13: 0 | L13: 0 | M13: =I13+K13 -> 0 | N13: =J13+L13 -> 0 | O13: 0 | P13: 0 | Q13: =M13+O13 -> 0 | R13: =N13+P13 -> 0 | S13: 0 | T13: 0 | U13: =Q13+S13 -> 0 | V13: =R13+T13 -> 0 | W13: 0 | X13: 0 | Y13: =U13+W13 -> 0 | Z13: =V13+X13 -> 0 | AA13: 0 | AB13: 0 | AC13: =Y13+AA13 -> 0 | AD13: =Z13+AB13 -> 0 | AE13: 0 | AF13: 0 | AG13: =AC13+AE13 -> 0 | AH13: =AD13+AF13 -> 0 | AI13: 0 | AJ13: 0 | AK13: =AG13+AI13 -> 0 | AL13: =AH13+AJ13 -> 0 | AM13: 0 | AN13: 0 | AO13: =AK13+AM13 -> 0 | AP13: =AL13+AN13 -> 0 | AQ13: 0 | AR13: 0 | AS13: =AO13+AQ13 -> 0 | AT13: =AP13+AR13 -> 0 | AU13: 0 | AV13: 0 | AW13: =AS13+AU13 -> 0 | AX13: =AT13+AV13 -> 0 | AY13: 0 | AZ13: 2500 | BA13: =AW13+AY13 -> 0 | BB13: =AX13+AZ13 -> 2500 | BC13: 0 | BD13: 0 | BE13: =BA13+BC13 -> 0 | BF13: =BB13+BD13 -> 2500
C14: Saldo | D14: =D12-D13 -> 0 | E14: =E13-E12 -> 2500 | F14: =F12-F13 -> 2500 | G14: =G12-G13 -> 0 | H14: =H13-H12 -> 0 | I14: =I12-I13 -> 0 | J14: =J13-J12 -> 0 | K14: =K12-K13 -> 0 | L14: =L13-L12 -> 0 | M14: =M12-M13 -> 0 | N14: =N13-N12 -> 0 | O14: =O12-O13 -> 0 | P14: =P13-P12 -> 0 | Q14: =Q12-Q13 -> 0 | R14: =R13-R12 -> 0 | S14: =S12-S13 -> 0 | T14: =T13-T12 -> 0 | U14: =U12-U13 -> 0 | V14: =V13-V12 -> 0 | W14: =W12-W13 -> 0 | X14: =X13-X12 -> 0 | Y14: =Y12-Y13 -> 0 | Z14: =Z13-Z12 -> 0 | AA14: =AA12-AA13 -> 0 | AB14: =AB13-AB12 -> 0 | AC14: =AC12-AC13 -> 0 | AD14: =AD13-AD12 -> 0 | AE14: =AE12-AE13 -> 0 | AF14: =AF13-AF12 -> 0 | AG14: =AG12-AG13 -> 0 | AH14: =AH13-AH12 -> 0 | AI14: =AI12-AI13 -> 0 | AJ14: =AJ13-AJ12 -> 0 | AK14: =AK12-AK13 -> 0 | AL14: =AL13-AL12 -> 0 | AM14: =AM12-AM13 -> 0 | AN14: =AN13-AN12 -> 0 | AO14: =AO12-AO13 -> 0 | AP14: =AP13-AP12 -> 0 | AQ14: =AQ12-AQ13 -> 0 | AR14: =AR13-AR12 -> 0 | AS14: =AS12-AS13 -> 0 | AT14: =AT13-AT12 -> 0 | AU14: =AU12-AU13 -> 0 | AV14: =AV13-AV12 -> 0 | AW14: =AW12-AW13 -> 0 | AX14: =AX13-AX12 -> 0 | AY14: =AY12-AY13 -> 0 | AZ14: =AZ13-AZ12 -> 2500 | BA14: =BA12-BA13 -> 0 | BB14: =BB13-BB12 -> 2500 | BC14: =BC12-BC13 -> 0 | BD14: =BD13-BD12 -> 0 | BE14: =BE12-BE13 -> 0 | BF14: =BF13-BF12 -> 2500
A16: 1.3.3 | B16: Schwerbehindertenabgabe | C16: Ist | D16: =G16+K16+O16+S16+W16+AA16+AE16+AI16+AM16+AQ16+AU16+AY16+BC16 -> 0 | E16: =H16+L16+P16+T16+X16+AB16+AF16+AJ16+AN16+AR16+AV16+AZ16+BD16 -> 0 | F16: =D16-E16 -> 0 | I16: =G16 -> 0 | J16: =H16 -> 0 | M16: =I16+K16 -> 0 | N16: =J16+L16 -> 0 | Q16: =M16+O16 -> 0 | R16: =N16+P16 -> 0 | U16: =Q16+S16 -> 0 | V16: =R16+T16 -> 0 | Y16: =U16+W16 -> 0 | Z16: =V16+X16 -> 0 | AC16: =Y16+AA16 -> 0 | AD16: =Z16+AB16 -> 0 | AG16: =AC16+AE16 -> 0 | AH16: =AD16+AF16 -> 0 | AK16: =AG16+AI16 -> 0 | AL16: =AH16+AJ16 -> 0 | AO16: =AK16+AM16 -> 0 | AP16: =AL16+AN16 -> 0 | AS16: =AO16+AQ16 -> 0 | AT16: =AP16+AR16 -> 0 | AW16: =AS16+AU16 -> 0 | AX16: =AT16+AV16 -> 0 | BA16: =AW16+AY16 -> 0 | BB16: =AX16+AZ16 -> 0 | BC16: 0 | BD16: 0 | BE16: =BA16+BC16 -> 0 | BF16: =BB16+BD16 -> 0
C17: Plan | D17: =G17+K17+O17+S17+W17+AA17+AE17+AI17+AM17+AQ17+AU17+AY17+BC17 -> 0 | E17: =H17+L17+P17+T17+X17+AB17+AF17+AJ17+AN17+AR17+AV17+AZ17+BD17 -> 1500 | F17: =D17-E17 -> -1500 | G17: 0 | H17: 0 | I17: =G17 -> 0 | J17: =H17 -> 0 | K17: 0 | L17: 0 | M17: =I17+K17 -> 0 | N17: =J17+L17 -> 0 | O17: 0 | P17: 0 | Q17: =M17+O17 -> 0 | R17: =N17+P17 -> 0 | S17: 0 | T17: 0 | U17: =Q17+S17 -> 0 | V17: =R17+T17 -> 0 | W17: 0 | X17: 0 | Y17: =U17+W17 -> 0 | Z17: =V17+X17 -> 0 | AA17: 0 | AB17: 0 | AC17: =Y17+AA17 -> 0 | AD17: =Z17+AB17 -> 0 | AE17: 0 | AF17: 0 | AG17: =AC17+AE17 -> 0 | AH17: =AD17+AF17 -> 0 | AI17: 0 | AJ17: 0 | AK17: =AG17+AI17 -> 0 | AL17: =AH17+AJ17 -> 0 | AM17: 0 | AN17: 0 | AO17: =AK17+AM17 -> 0 | AP17: =AL17+AN17 -> 0 | AQ17: 0 | AR17: 0 | AS17: =AO17+AQ17 -> 0 | AT17: =AP17+AR17 -> 0 | AU17: 0 | AV17: 0 | AW17: =AS17+AU17 -> 0 | AX17: =AT17+AV17 -> 0 | AY17: 0 | AZ17: 1500 | BA17: =AW17+AY17 -> 0 | BB17: =AX17+AZ17 -> 1500 | BC17: 0 | BD17: 0 | BE17: =BA17+BC17 -> 0 | BF17: =BB17+BD17 -> 1500
C18: Saldo | D18: =D16-D17 -> 0 | E18: =E17-E16 -> 1500 | F18: =F16-F17 -> 1500 | G18: =G16-G17 -> 0 | H18: =H17-H16 -> 0 | I18: =I16-I17 -> 0 | J18: =J17-J16 -> 0 | K18: =K16-K17 -> 0 | L18: =L17-L16 -> 0 | M18: =M16-M17 -> 0 | N18: =N17-N16 -> 0 | O18: =O16-O17 -> 0 | P18: =P17-P16 -> 0 | Q18: =Q16-Q17 -> 0 | R18: =R17-R16 -> 0 | S18: =S16-S17 -> 0 | T18: =T17-T16 -> 0 | U18: =U16-U17 -> 0 | V18: =V17-V16 -> 0 | W18: =W16-W17 -> 0 | X18: =X17-X16 -> 0 | Y18: =Y16-Y17 -> 0 | Z18: =Z17-Z16 -> 0 | AA18: =AA16-AA17 -> 0 | AB18: =AB17-AB16 -> 0 | AC18: =AC16-AC17 -> 0 | AD18: =AD17-AD16 -> 0 | AE18: =AE16-AE17 -> 0 | AF18: =AF17-AF16 -> 0 | AG18: =AG16-AG17 -> 0 | AH18: =AH17-AH16 -> 0 | AI18: =AI16-AI17 -> 0 | AJ18: =AJ17-AJ16 -> 0 | AK18: =AK16-AK17 -> 0 | AL18: =AL17-AL16 -> 0 | AM18: =AM16-AM17 -> 0 | AN18: =AN17-AN16 -> 0 | AO18: =AO16-AO17 -> 0 | AP18: =AP17-AP16 -> 0 | AQ18: =AQ16-AQ17 -> 0 | AR18: =AR17-AR16 -> 0 | AS18: =AS16-AS17 -> 0 | AT18: =AT17-AT16 -> 0 | AU18: =AU16-AU17 -> 0 | AV18: =AV17-AV16 -> 0 | AW18: =AW16-AW17 -> 0 | AX18: =AX17-AX16 -> 0 | AY18: =AY16-AY17 -> 0 | AZ18: =AZ17-AZ16 -> 1500 | BA18: =BA16-BA17 -> 0 | BB18: =BB17-BB16 -> 1500 | BC18: =BC16-BC17 -> 0 | BD18: =BD17-BD16 -> 0 | BE18: =BE16-BE17 -> 0 | BF18: =BF17-BF16 -> 1500
A20: 1.3.4 | B20: PraktikantInnen | C20: Ist | D20: =G20+K20+O20+S20+W20+AA20+AE20+AI20+AM20+AQ20+AU20+AY20+BC20 -> 0 | E20: =H20+L20+P20+T20+X20+AB20+AF20+AJ20+AN20+AR20+AV20+AZ20+BD20 -> 0 | F20: =D20-E20 -> 0 | I20: =G20 -> 0 | J20: =H20 -> 0 | M20: =I20+K20 -> 0 | N20: =J20+L20 -> 0 | Q20: =M20+O20 -> 0 | R20: =N20+P20 -> 0 | U20: =Q20+S20 -> 0 | V20: =R20+T20 -> 0 | Y20: =U20+W20 -> 0 | Z20: =V20+X20 -> 0 | AC20: =Y20+AA20 -> 0 | AD20: =Z20+AB20 -> 0 | AG20: =AC20+AE20 -> 0 | AH20: =AD20+AF20 -> 0 | AK20: =AG20+AI20 -> 0 | AL20: =AH20+AJ20 -> 0 | AO20: =AK20+AM20 -> 0 | AP20: =AL20+AN20 -> 0 | AS20: =AO20+AQ20 -> 0 | AT20: =AP20+AR20 -> 0 | AW20: =AS20+AU20 -> 0 | AX20: =AT20+AV20 -> 0 | BA20: =AW20+AY20 -> 0 | BB20: =AX20+AZ20 -> 0 | BC20: 0 | BD20: 0 | BE20: =BA20+BC20 -> 0 | BF20: =BB20+BD20 -> 0
C21: Plan | D21: =G21+K21+O21+S21+W21+AA21+AE21+AI21+AM21+AQ21+AU21+AY21+BC21 -> 0 | E21: =H21+L21+P21+T21+X21+AB21+AF21+AJ21+AN21+AR21+AV21+AZ21+BD21 -> 16800 | F21: =D21-E21 -> -16800 | G21: 0 | H21: 1400 | I21: =G21 -> 0 | J21: =H21 -> 1400 | K21: 0 | L21: 1400 | M21: =I21+K21 -> 0 | N21: =J21+L21 -> 2800 | O21: 0 | P21: 1400 | Q21: =M21+O21 -> 0 | R21: =N21+P21 -> 4200 | S21: 0 | T21: 1400 | U21: =Q21+S21 -> 0 | V21: =R21+T21 -> 5600 | W21: 0 | X21: 1400 | Y21: =U21+W21 -> 0 | Z21: =V21+X21 -> 7000 | AA21: 0 | AB21: 1400 | AC21: =Y21+AA21 -> 0 | AD21: =Z21+AB21 -> 8400 | AE21: 0 | AF21: 1400 | AG21: =AC21+AE21 -> 0 | AH21: =AD21+AF21 -> 9800 | AI21: 0 | AJ21: 1400 | AK21: =AG21+AI21 -> 0 | AL21: =AH21+AJ21 -> 11200 | AM21: 0 | AN21: 1400 | AO21: =AK21+AM21 -> 0 | AP21: =AL21+AN21 -> 12600 | AQ21: 0 | AR21: 1400 | AS21: =AO21+AQ21 -> 0 | AT21: =AP21+AR21 -> 14000 | AU21: 0 | AV21: 1400 | AW21: =AS21+AU21 -> 0 | AX21: =AT21+AV21 -> 15400 | AY21: 0 | AZ21: 1400 | BA21: =AW21+AY21 -> 0 | BB21: =AX21+AZ21 -> 16800 | BC21: 0 | BD21: 0 | BE21: =BA21+BC21 -> 0 | BF21: =BB21+BD21 -> 16800
C22: Saldo | D22: =D20-D21 -> 0 | E22: =E21-E20 -> 16800 | F22: =F20-F21 -> 16800 | G22: =G20-G21 -> 0 | H22: =H21-H20 -> 1400 | I22: =I20-I21 -> 0 | J22: =J21-J20 -> 1400 | K22: =K20-K21 -> 0 | L22: =L21-L20 -> 1400 | M22: =M20-M21 -> 0 | N22: =N21-N20 -> 2800 | O22: =O20-O21 -> 0 | P22: =P21-P20 -> 1400 | Q22: =Q20-Q21 -> 0 | R22: =R21-R20 -> 4200 | S22: =S20-S21 -> 0 | T22: =T21-T20 -> 1400 | U22: =U20-U21 -> 0 | V22: =V21-V20 -> 5600 | W22: =W20-W21 -> 0 | X22: =X21-X20 -> 1400 | Y22: =Y20-Y21 -> 0 | Z22: =Z21-Z20 -> 7000 | AA22: =AA20-AA21 -> 0 | AB22: =AB21-AB20 -> 1400 | AC22: =AC20-AC21 -> 0 | AD22: =AD21-AD20 -> 8400 | AE22: =AE20-AE21 -> 0 | AF22: =AF21-AF20 -> 1400 | AG22: =AG20-AG21 -> 0 | AH22: =AH21-AH20 -> 9800 | AI22: =AI20-AI21 -> 0 | AJ22: =AJ21-AJ20 -> 1400 | AK22: =AK20-AK21 -> 0 | AL22: =AL21-AL20 -> 11200 | AM22: =AM20-AM21 -> 0 | AN22: =AN21-AN20 -> 1400 | AO22: =AO20-AO21 -> 0 | AP22: =AP21-AP20 -> 12600 | AQ22: =AQ20-AQ21 -> 0 | AR22: =AR21-AR20 -> 1400 | AS22: =AS20-AS21 -> 0 | AT22: =AT21-AT20 -> 14000 | AU22: =AU20-AU21 -> 0 | AV22: =AV21-AV20 -> 1400 | AW22: =AW20-AW21 -> 0 | AX22: =AX21-AX20 -> 15400 | AY22: =AY20-AY21 -> 0 | AZ22: =AZ21-AZ20 -> 1400 | BA22: =BA20-BA21 -> 0 | BB22: =BB21-BB20 -> 16800 | BC22: =BC20-BC21 -> 0 | BD22: =BD21-BD20 -> 0 | BE22: =BE20-BE21 -> 0 | BF22: =BF21-BF20 -> 16800
A24: 1.3.5 | B24: KSK | C24: Ist | D24: =G24+K24+O24+S24+W24+AA24+AE24+AI24+AM24+AQ24+AU24+AY24+BC24 -> 0 | E24: =H24+L24+P24+T24+X24+AB24+AF24+AJ24+AN24+AR24+AV24+AZ24+BD24 -> 0 | F24: =D24-E24 -> 0 | I24: =G24 -> 0 | J24: =H24 -> 0 | M24: =I24+K24 -> 0 | N24: =J24+L24 -> 0 | Q24: =M24+O24 -> 0 | R24: =N24+P24 -> 0 | U24: =Q24+S24 -> 0 | V24: =R24+T24 -> 0 | Y24: =U24+W24 -> 0 | Z24: =V24+X24 -> 0 | AC24: =Y24+AA24 -> 0 | AD24: =Z24+AB24 -> 0 | AG24: =AC24+AE24 -> 0 | AH24: =AD24+AF24 -> 0 | AK24: =AG24+AI24 -> 0 | AL24: =AH24+AJ24 -> 0 | AO24: =AK24+AM24 -> 0 | AP24: =AL24+AN24 -> 0 | AS24: =AO24+AQ24 -> 0 | AT24: =AP24+AR24 -> 0 | AW24: =AS24+AU24 -> 0 | AX24: =AT24+AV24 -> 0 | BA24: =AW24+AY24 -> 0 | BB24: =AX24+AZ24 -> 0 | BC24: 0 | BD24: 0 | BE24: =BA24+BC24 -> 0 | BF24: =BB24+BD24 -> 0
B25: Gruppen + BB | C25: Plan | D25: =G25+K25+O25+S25+W25+AA25+AE25+AI25+AM25+AQ25+AU25+AY25+BC25 -> 0 | E25: =H25+L25+P25+T25+X25+AB25+AF25+AJ25+AN25+AR25+AV25+AZ25+BD25 -> 1600 | F25: =D25-E25 -> -1600 | G25: 0 | H25: 0 | I25: =G25 -> 0 | J25: =H25 -> 0 | K25: 0 | L25: 0 | M25: =I25+K25 -> 0 | N25: =J25+L25 -> 0 | O25: 0 | P25: 0 | Q25: =M25+O25 -> 0 | R25: =N25+P25 -> 0 | S25: 0 | T25: 0 | U25: =Q25+S25 -> 0 | V25: =R25+T25 -> 0 | W25: 0 | X25: 0 | Y25: =U25+W25 -> 0 | Z25: =V25+X25 -> 0 | AA25: 0 | AB25: 0 | AC25: =Y25+AA25 -> 0 | AD25: =Z25+AB25 -> 0 | AE25: 0 | AF25: 0 | AG25: =AC25+AE25 -> 0 | AH25: =AD25+AF25 -> 0 | AI25: 0 | AJ25: 0 | AK25: =AG25+AI25 -> 0 | AL25: =AH25+AJ25 -> 0 | AM25: 0 | AN25: 0 | AO25: =AK25+AM25 -> 0 | AP25: =AL25+AN25 -> 0 | AQ25: 0 | AR25: 0 | AS25: =AO25+AQ25 -> 0 | AT25: =AP25+AR25 -> 0 | AU25: 0 | AV25: 0 | AW25: =AS25+AU25 -> 0 | AX25: =AT25+AV25 -> 0 | AY25: 0 | AZ25: 1600 | BA25: =AW25+AY25 -> 0 | BB25: =AX25+AZ25 -> 1600 | BC25: 0 | BD25: 0 | BE25: =BA25+BC25 -> 0 | BF25: =BB25+BD25 -> 1600
C26: Saldo | D26: =D24-D25 -> 0 | E26: =E25-E24 -> 1600 | F26: =F24-F25 -> 1600 | G26: =G24-G25 -> 0 | H26: =H25-H24 -> 0 | I26: =I24-I25 -> 0 | J26: =J25-J24 -> 0 | K26: =K24-K25 -> 0 | L26: =L25-L24 -> 0 | M26: =M24-M25 -> 0 | N26: =N25-N24 -> 0 | O26: =O24-O25 -> 0 | P26: =P25-P24 -> 0 | Q26: =Q24-Q25 -> 0 | R26: =R25-R24 -> 0 | S26: =S24-S25 -> 0 | T26: =T25-T24 -> 0 | U26: =U24-U25 -> 0 | V26: =V25-V24 -> 0 | W26: =W24-W25 -> 0 | X26: =X25-X24 -> 0 | Y26: =Y24-Y25 -> 0 | Z26: =Z25-Z24 -> 0 | AA26: =AA24-AA25 -> 0 | AB26: =AB25-AB24 -> 0 | AC26: =AC24-AC25 -> 0 | AD26: =AD25-AD24 -> 0 | AE26: =AE24-AE25 -> 0 | AF26: =AF25-AF24 -> 0 | AG26: =AG24-AG25 -> 0 | AH26: =AH25-AH24 -> 0 | AI26: =AI24-AI25 -> 0 | AJ26: =AJ25-AJ24 -> 0 | AK26: =AK24-AK25 -> 0 | AL26: =AL25-AL24 -> 0 | AM26: =AM24-AM25 -> 0 | AN26: =AN25-AN24 -> 0 | AO26: =AO24-AO25 -> 0 | AP26: =AP25-AP24 -> 0 | AQ26: =AQ24-AQ25 -> 0 | AR26: =AR25-AR24 -> 0 | AS26: =AS24-AS25 -> 0 | AT26: =AT25-AT24 -> 0 | AU26: =AU24-AU25 -> 0 | AV26: =AV25-AV24 -> 0 | AW26: =AW24-AW25 -> 0 | AX26: =AX25-AX24 -> 0 | AY26: =AY24-AY25 -> 0 | AZ26: =AZ25-AZ24 -> 1600 | BA26: =BA24-BA25 -> 0 | BB26: =BB25-BB24 -> 1600 | BC26: =BC24-BC25 -> 0 | BD26: =BD25-BD24 -> 0 | BE26: =BE24-BE25 -> 0 | BF26: =BF25-BF24 -> 1600
A28: 1.3.6 | B28: Fahrtkosten BB | C28: Ist | D28: =G28+K28+O28+S28+W28+AA28+AE28+AI28+AM28+AQ28+AU28+AY28+BC28 -> 0 | E28: =H28+L28+P28+T28+X28+AB28+AF28+AJ28+AN28+AR28+AV28+AZ28+BD28 -> 0 | F28: =D28-E28 -> 0 | I28: =G28 -> 0 | J28: =H28 -> 0 | M28: =I28+K28 -> 0 | N28: =J28+L28 -> 0 | Q28: =M28+O28 -> 0 | R28: =N28+P28 -> 0 | U28: =Q28+S28 -> 0 | V28: =R28+T28 -> 0 | Y28: =U28+W28 -> 0 | Z28: =V28+X28 -> 0 | AC28: =Y28+AA28 -> 0 | AD28: =Z28+AB28 -> 0 | AG28: =AC28+AE28 -> 0 | AH28: =AD28+AF28 -> 0 | AK28: =AG28+AI28 -> 0 | AL28: =AH28+AJ28 -> 0 | AO28: =AK28+AM28 -> 0 | AP28: =AL28+AN28 -> 0 | AS28: =AO28+AQ28 -> 0 | AT28: =AP28+AR28 -> 0 | AW28: =AS28+AU28 -> 0 | AX28: =AT28+AV28 -> 0 | BA28: =AW28+AY28 -> 0 | BB28: =AX28+AZ28 -> 0 | BC28: 0 | BD28: 0 | BE28: =BA28+BC28 -> 0 | BF28: =BB28+BD28 -> 0
C29: Plan | D29: =G29+K29+O29+S29+W29+AA29+AE29+AI29+AM29+AQ29+AU29+AY29+BC29 -> 0 | E29: =H29+L29+P29+T29+X29+AB29+AF29+AJ29+AN29+AR29+AV29+AZ29+BD29 -> 4800 | F29: =D29-E29 -> -4800 | G29: 0 | H29: 0 | I29: =G29 -> 0 | J29: =H29 -> 0 | K29: 0 | L29: 0 | M29: =I29+K29 -> 0 | N29: =J29+L29 -> 0 | O29: 0 | P29: 0 | Q29: =M29+O29 -> 0 | R29: =N29+P29 -> 0 | S29: 0 | T29: 0 | U29: =Q29+S29 -> 0 | V29: =R29+T29 -> 0 | W29: 0 | X29: 0 | Y29: =U29+W29 -> 0 | Z29: =V29+X29 -> 0 | AA29: 0 | AB29: 0 | AC29: =Y29+AA29 -> 0 | AD29: =Z29+AB29 -> 0 | AE29: 0 | AF29: 0 | AG29: =AC29+AE29 -> 0 | AH29: =AD29+AF29 -> 0 | AI29: 0 | AJ29: 0 | AK29: =AG29+AI29 -> 0 | AL29: =AH29+AJ29 -> 0 | AM29: 0 | AN29: 0 | AO29: =AK29+AM29 -> 0 | AP29: =AL29+AN29 -> 0 | AQ29: 0 | AR29: 0 | AS29: =AO29+AQ29 -> 0 | AT29: =AP29+AR29 -> 0 | AU29: 0 | AV29: 0 | AW29: =AS29+AU29 -> 0 | AX29: =AT29+AV29 -> 0 | AY29: 0 | AZ29: 4800 | BA29: =AW29+AY29 -> 0 | BB29: =AX29+AZ29 -> 4800 | BC29: 0 | BD29: 0 | BE29: =BA29+BC29 -> 0 | BF29: =BB29+BD29 -> 4800
C30: Saldo | D30: =D28-D29 -> 0 | E30: =E29-E28 -> 4800 | F30: =F28-F29 -> 4800 | G30: =G28-G29 -> 0 | H30: =H29-H28 -> 0 | I30: =I28-I29 -> 0 | J30: =J29-J28 -> 0 | K30: =K28-K29 -> 0 | L30: =L29-L28 -> 0 | M30: =M28-M29 -> 0 | N30: =N29-N28 -> 0 | O30: =O28-O29 -> 0 | P30: =P29-P28 -> 0 | Q30: =Q28-Q29 -> 0 | R30: =R29-R28 -> 0 | S30: =S28-S29 -> 0 | T30: =T29-T28 -> 0 | U30: =U28-U29 -> 0 | V30: =V29-V28 -> 0 | W30: =W28-W29 -> 0 | X30: =X29-X28 -> 0 | Y30: =Y28-Y29 -> 0 | Z30: =Z29-Z28 -> 0 | AA30: =AA28-AA29 -> 0 | AB30: =AB29-AB28 -> 0 | AC30: =AC28-AC29 -> 0 | AD30: =AD29-AD28 -> 0 | AE30: =AE28-AE29 -> 0 | AF30: =AF29-AF28 -> 0 | AG30: =AG28-AG29 -> 0 | AH30: =AH29-AH28 -> 0 | AI30: =AI28-AI29 -> 0 | AJ30: =AJ29-AJ28 -> 0 | AK30: =AK28-AK29 -> 0 | AL30: =AL29-AL28 -> 0 | AM30: =AM28-AM29 -> 0 | AN30: =AN29-AN28 -> 0 | AO30: =AO28-AO29 -> 0 | AP30: =AP29-AP28 -> 0 | AQ30: =AQ28-AQ29 -> 0 | AR30: =AR29-AR28 -> 0 | AS30: =AS28-AS29 -> 0 | AT30: =AT29-AT28 -> 0 | AU30: =AU28-AU29 -> 0 | AV30: =AV29-AV28 -> 0 | AW30: =AW28-AW29 -> 0 | AX30: =AX29-AX28 -> 0 | AY30: =AY28-AY29 -> 0 | AZ30: =AZ29-AZ28 -> 4800 | BA30: =BA28-BA29 -> 0 | BB30: =BB29-BB28 -> 4800 | BC30: =BC28-BC29 -> 0 | BD30: =BD29-BD28 -> 0 | BE30: =BE28-BE29 -> 0 | BF30: =BF29-BF28 -> 4800
A32: 1.3.7 | B32: Weiterbildung | C32: Ist | D32: 0 | E32: =H32+L32+P32+T32+X32+AB32+AF32+AJ32+AN32+AR32+AV32+AZ32+BD32 -> 0 | F32: =D32-E32 -> 0 | I32: =G32 -> 0 | J32: =H32 -> 0 | M32: =I32+K32 -> 0 | N32: =J32+L32 -> 0 | Q32: =M32+O32 -> 0 | R32: =N32+P32 -> 0 | U32: =Q32+S32 -> 0 | V32: =R32+T32 -> 0 | Y32: =U32+W32 -> 0 | Z32: =V32+X32 -> 0 | AC32: =Y32+AA32 -> 0 | AD32: =Z32+AB32 -> 0 | AG32: =AC32+AE32 -> 0 | AH32: =AD32+AF32 -> 0 | AK32: =AG32+AI32 -> 0 | AL32: =AH32+AJ32 -> 0 | AO32: =AK32+AM32 -> 0 | AP32: =AL32+AN32 -> 0 | AS32: =AO32+AQ32 -> 0 | AT32: =AP32+AR32 -> 0 | AW32: =AS32+AU32 -> 0 | AX32: =AT32+AV32 -> 0 | BA32: =AW32+AY32 -> 0 | BB32: =AX32+AZ32 -> 0 | BC32: 0 | BD32: 0 | BE32: =BA32+BC32 -> 0 | BF32: =BB32+BD32 -> 0
C33: Plan | D33: 0 | E33: =H33+L33+P33+T33+X33+AB33+AF33+AJ33+AN33+AR33+AV33+AZ33+BD33 -> 3000 | F33: =D33-E33 -> -3000 | G33: 0 | H33: 0 | I33: =G33 -> 0 | J33: =H33 -> 0 | K33: 0 | L33: 0 | M33: =I33+K33 -> 0 | N33: =J33+L33 -> 0 | O33: 0 | P33: 0 | Q33: =M33+O33 -> 0 | R33: =N33+P33 -> 0 | S33: 0 | T33: 0 | U33: =Q33+S33 -> 0 | V33: =R33+T33 -> 0 | W33: 0 | X33: 0 | Y33: =U33+W33 -> 0 | Z33: =V33+X33 -> 0 | AA33: 0 | AB33: 0 | AC33: =Y33+AA33 -> 0 | AD33: =Z33+AB33 -> 0 | AE33: 0 | AF33: 0 | AG33: =AC33+AE33 -> 0 | AH33: =AD33+AF33 -> 0 | AI33: 0 | AJ33: 0 | AK33: =AG33+AI33 -> 0 | AL33: =AH33+AJ33 -> 0 | AM33: 0 | AN33: 0 | AO33: =AK33+AM33 -> 0 | AP33: =AL33+AN33 -> 0 | AQ33: 0 | AR33: 0 | AS33: =AO33+AQ33 -> 0 | AT33: =AP33+AR33 -> 0 | AU33: 0 | AV33: 0 | AW33: =AS33+AU33 -> 0 | AX33: =AT33+AV33 -> 0 | AY33: 0 | AZ33: 3000 | BA33: =AW33+AY33 -> 0 | BB33: =AX33+AZ33 -> 3000 | BC33: 0 | BD33: 0 | BE33: =BA33+BC33 -> 0 | BF33: =BB33+BD33 -> 3000
C34: Saldo | D34: =D32-D33 -> 0 | E34: =E33-E32 -> 3000 | F34: =F32-F33 -> 3000 | G34: =G32-G33 -> 0 | H34: =H33-H32 -> 0 | I34: =I32-I33 -> 0 | J34: =J33-J32 -> 0 | K34: =K32-K33 -> 0 | L34: =L33-L32 -> 0 | M34: =M32-M33 -> 0 | N34: =N33-N32 -> 0 | O34: =O32-O33 -> 0 | P34: =P33-P32 -> 0 | Q34: =Q32-Q33 -> 0 | R34: =R33-R32 -> 0 | S34: =S32-S33 -> 0 | T34: =T33-T32 -> 0 | U34: =U32-U33 -> 0 | V34: =V33-V32 -> 0 | W34: =W32-W33 -> 0 | X34: =X33-X32 -> 0 | Y34: =Y32-Y33 -> 0 | Z34: =Z33-Z32 -> 0 | AA34: =AA32-AA33 -> 0 | AB34: =AB33-AB32 -> 0 | AC34: =AC32-AC33 -> 0 | AD34: =AD33-AD32 -> 0 | AE34: =AE32-AE33 -> 0 | AF34: =AF33-AF32 -> 0 | AG34: =AG32-AG33 -> 0 | AH34: =AH33-AH32 -> 0 | AI34: =AI32-AI33 -> 0 | AJ34: =AJ33-AJ32 -> 0 | AK34: =AK32-AK33 -> 0 | AL34: =AL33-AL32 -> 0 | AM34: =AM32-AM33 -> 0 | AN34: =AN33-AN32 -> 0 | AO34: =AO32-AO33 -> 0 | AP34: =AP33-AP32 -> 0 | AQ34: =AQ32-AQ33 -> 0 | AR34: =AR33-AR32 -> 0 | AS34: =AS32-AS33 -> 0 | AT34: =AT33-AT32 -> 0 | AU34: =AU32-AU33 -> 0 | AV34: =AV33-AV32 -> 0 | AW34: =AW32-AW33 -> 0 | AX34: =AX33-AX32 -> 0 | AY34: =AY32-AY33 -> 0 | AZ34: =AZ33-AZ32 -> 3000 | BA34: =BA32-BA33 -> 0 | BB34: =BB33-BB32 -> 3000 | BC34: =BC32-BC33 -> 0 | BD34: =BD33-BD32 -> 0 | BE34: =BE32-BE33 -> 0 | BF34: =BF33-BF32 -> 3000
A36: 1.3.8 | B36: Berufsgenossenschaft | C36: Ist | D36: =G36+K36+O36+S36+W36+AA36+AE36+AI36+AM36+AQ36+AU36+AY36+BC36 -> 0 | E36: =H36+L36+P36+T36+X36+AB36+AF36+AJ36+AN36+AR36+AV36+AZ36+BD36 -> 0 | F36: =D36-E36 -> 0 | I36: =G36 -> 0 | J36: =H36 -> 0 | M36: =I36+K36 -> 0 | N36: =J36+L36 -> 0 | Q36: =M36+O36 -> 0 | R36: =N36+P36 -> 0 | U36: =Q36+S36 -> 0 | V36: =R36+T36 -> 0 | Y36: =U36+W36 -> 0 | Z36: =V36+X36 -> 0 | AC36: =Y36+AA36 -> 0 | AD36: =Z36+AB36 -> 0 | AG36: =AC36+AE36 -> 0 | AH36: =AD36+AF36 -> 0 | AK36: =AG36+AI36 -> 0 | AL36: =AH36+AJ36 -> 0 | AO36: =AK36+AM36 -> 0 | AP36: =AL36+AN36 -> 0 | AS36: =AO36+AQ36 -> 0 | AT36: =AP36+AR36 -> 0 | AW36: =AS36+AU36 -> 0 | AX36: =AT36+AV36 -> 0 | BA36: =AW36+AY36 -> 0 | BB36: =AX36+AZ36 -> 0 | BD36: 0 | BE36: =BA36+BC36 -> 0 | BF36: =BB36+BD36 -> 0
C37: Plan | D37: =G37+K37+O37+S37+W37+AA37+AE37+AI37+AM37+AQ37+AU37+AY37+BC37 -> 0 | E37: =H37+L37+P37+T37+X37+AB37+AF37+AJ37+AN37+AR37+AV37+AZ37+BD37 -> 4500 | F37: =D37-E37 -> -4500 | G37: 0 | H37: 0 | I37: =G37 -> 0 | J37: =H37 -> 0 | K37: 0 | L37: 0 | M37: =I37+K37 -> 0 | N37: =J37+L37 -> 0 | O37: 0 | P37: 0 | Q37: =M37+O37 -> 0 | R37: =N37+P37 -> 0 | S37: 0 | T37: 0 | U37: =Q37+S37 -> 0 | V37: =R37+T37 -> 0 | W37: 0 | X37: 0 | Y37: =U37+W37 -> 0 | Z37: =V37+X37 -> 0 | AA37: 0 | AB37: 0 | AC37: =Y37+AA37 -> 0 | AD37: =Z37+AB37 -> 0 | AE37: 0 | AF37: 0 | AG37: =AC37+AE37 -> 0 | AH37: =AD37+AF37 -> 0 | AI37: 0 | AJ37: 0 | AK37: =AG37+AI37 -> 0 | AL37: =AH37+AJ37 -> 0 | AM37: 0 | AN37: 0 | AO37: =AK37+AM37 -> 0 | AP37: =AL37+AN37 -> 0 | AQ37: 0 | AR37: 0 | AS37: =AO37+AQ37 -> 0 | AT37: =AP37+AR37 -> 0 | AU37: 0 | AV37: 0 | AW37: =AS37+AU37 -> 0 | AX37: =AT37+AV37 -> 0 | AY37: 0 | AZ37: 4500 | BA37: =AW37+AY37 -> 0 | BB37: =AX37+AZ37 -> 4500 | BD37: 0 | BE37: =BA37+BC37 -> 0 | BF37: =BB37+BD37 -> 4500
C38: Saldo | D38: =D36-D37 -> 0 | E38: =E37-E36 -> 4500 | F38: =F36-F37 -> 4500 | G38: =G36-G37 -> 0 | H38: =H37-H36 -> 0 | I38: =I36-I37 -> 0 | J38: =J37-J36 -> 0 | K38: =K36-K37 -> 0 | L38: =L37-L36 -> 0 | M38: =M36-M37 -> 0 | N38: =N37-N36 -> 0 | O38: =O36-O37 -> 0 | P38: =P37-P36 -> 0 | Q38: =Q36-Q37 -> 0 | R38: =R37-R36 -> 0 | S38: =S36-S37 -> 0 | T38: =T37-T36 -> 0 | U38: =U36-U37 -> 0 | V38: =V37-V36 -> 0 | W38: =W36-W37 -> 0 | X38: =X37-X36 -> 0 | Y38: =Y36-Y37 -> 0 | Z38: =Z37-Z36 -> 0 | AA38: =AA36-AA37 -> 0 | AB38: =AB37-AB36 -> 0 | AC38: =AC36-AC37 -> 0 | AD38: =AD37-AD36 -> 0 | AE38: =AE36-AE37 -> 0 | AF38: =AF37-AF36 -> 0 | AG38: =AG36-AG37 -> 0 | AH38: =AH37-AH36 -> 0 | AI38: =AI36-AI37 -> 0 | AJ38: =AJ37-AJ36 -> 0 | AK38: =AK36-AK37 -> 0 | AL38: =AL37-AL36 -> 0 | AM38: =AM36-AM37 -> 0 | AN38: =AN37-AN36 -> 0 | AO38: =AO36-AO37 -> 0 | AP38: =AP37-AP36 -> 0 | AQ38: =AQ36-AQ37 -> 0 | AR38: =AR37-AR36 -> 0 | AS38: =AS36-AS37 -> 0 | AT38: =AT37-AT36 -> 0 | AU38: =AU36-AU37 -> 0 | AV38: =AV37-AV36 -> 0 | AW38: =AW36-AW37 -> 0 | AX38: =AX37-AX36 -> 0 | AY38: =AY36-AY37 -> 0 | AZ38: =AZ37-AZ36 -> 4500 | BA38: =BA36-BA37 -> 0 | BB38: =BB37-BB36 -> 4500 | BC38: =BC36-BC37 -> 0 | BD38: =BD37-BD36 -> 0 | BE38: =BE36-BE37 -> 0 | BF38: =BF37-BF36 -> 4500
A40: 1.3.9 | B40: Büroklausuren/Supervision | C40: Ist | D40: =G40+K40+O40+S40+W40+AA40+AE40+AI40+AM40+AQ40+AU40+AY40+BC40 -> 0 | E40: =H40+L40+P40+T40+X40+AB40+AF40+AJ40+AN40+AR40+AV40+AZ40+BD40 -> 0 | F40: =D40-E40 -> 0 | I40: =G40 -> 0 | J40: =H40 -> 0 | M40: =I40+K40 -> 0 | N40: =J40+L40 -> 0 | Q40: =M40+O40 -> 0 | R40: =N40+P40 -> 0 | U40: =Q40+S40 -> 0 | V40: =R40+T40 -> 0 | Y40: =U40+W40 -> 0 | Z40: =V40+X40 -> 0 | AC40: =Y40+AA40 -> 0 | AD40: =Z40+AB40 -> 0 | AG40: =AC40+AE40 -> 0 | AH40: =AD40+AF40 -> 0 | AK40: =AG40+AI40 -> 0 | AL40: =AH40+AJ40 -> 0 | AO40: =AK40+AM40 -> 0 | AP40: =AL40+AN40 -> 0 | AS40: =AO40+AQ40 -> 0 | AT40: =AP40+AR40 -> 0 | AW40: =AS40+AU40 -> 0 | AX40: =AT40+AV40 -> 0 | BA40: =AW40+AY40 -> 0 | BB40: =AX40+AZ40 -> 0 | BC40: 0 | BD40: 0 | BE40: =BA40+BC40 -> 0 | BF40: =BB40+BD40 -> 0
C41: Plan | D41: =G41+K41+O41+S41+W41+AA41+AE41+AI41+AM41+AQ41+AU41+AY41+BC41 -> 0 | E41: =H41+L41+P41+T41+X41+AB41+AF41+AJ41+AN41+AR41+AV41+AZ41+BD41 -> 5000 | F41: =D41-E41 -> -5000 | G41: 0 | H41: 0 | I41: =G41 -> 0 | J41: =H41 -> 0 | K41: 0 | L41: 0 | M41: =I41+K41 -> 0 | N41: =J41+L41 -> 0 | O41: 0 | P41: 0 | Q41: =M41+O41 -> 0 | R41: =N41+P41 -> 0 | S41: 0 | T41: 0 | U41: =Q41+S41 -> 0 | V41: =R41+T41 -> 0 | W41: 0 | X41: 0 | Y41: =U41+W41 -> 0 | Z41: =V41+X41 -> 0 | AA41: 0 | AB41: 0 | AC41: =Y41+AA41 -> 0 | AD41: =Z41+AB41 -> 0 | AE41: 0 | AF41: 0 | AG41: =AC41+AE41 -> 0 | AH41: =AD41+AF41 -> 0 | AI41: 0 | AJ41: 0 | AK41: =AG41+AI41 -> 0 | AL41: =AH41+AJ41 -> 0 | AM41: 0 | AN41: 0 | AO41: =AK41+AM41 -> 0 | AP41: =AL41+AN41 -> 0 | AQ41: 0 | AR41: 0 | AS41: =AO41+AQ41 -> 0 | AT41: =AP41+AR41 -> 0 | AU41: 0 | AV41: 0 | AW41: =AS41+AU41 -> 0 | AX41: =AT41+AV41 -> 0 | AY41: 0 | AZ41: 5000 | BA41: =AW41+AY41 -> 0 | BB41: =AX41+AZ41 -> 5000 | BC41: 0 | BD41: 0 | BE41: =BA41+BC41 -> 0 | BF41: =BB41+BD41 -> 5000
C42: Saldo | D42: =D40-D41 -> 0 | E42: =E41-E40 -> 5000 | F42: =F40-F41 -> 5000 | G42: =G40-G41 -> 0 | H42: =H41-H40 -> 0 | I42: =I40-I41 -> 0 | J42: =J41-J40 -> 0 | K42: =K40-K41 -> 0 | L42: =L41-L40 -> 0 | M42: =M40-M41 -> 0 | N42: =N41-N40 -> 0 | O42: =O40-O41 -> 0 | P42: =P41-P40 -> 0 | Q42: =Q40-Q41 -> 0 | R42: =R41-R40 -> 0 | S42: =S40-S41 -> 0 | T42: =T41-T40 -> 0 | U42: =U40-U41 -> 0 | V42: =V41-V40 -> 0 | W42: =W40-W41 -> 0 | X42: =X41-X40 -> 0 | Y42: =Y40-Y41 -> 0 | Z42: =Z41-Z40 -> 0 | AA42: =AA40-AA41 -> 0 | AB42: =AB41-AB40 -> 0 | AC42: =AC40-AC41 -> 0 | AD42: =AD41-AD40 -> 0 | AE42: =AE40-AE41 -> 0 | AF42: =AF41-AF40 -> 0 | AG42: =AG40-AG41 -> 0 | AH42: =AH41-AH40 -> 0 | AI42: =AI40-AI41 -> 0 | AJ42: =AJ41-AJ40 -> 0 | AK42: =AK40-AK41 -> 0 | AL42: =AL41-AL40 -> 0 | AM42: =AM40-AM41 -> 0 | AN42: =AN41-AN40 -> 0 | AO42: =AO40-AO41 -> 0 | AP42: =AP41-AP40 -> 0 | AQ42: =AQ40-AQ41 -> 0 | AR42: =AR41-AR40 -> 0 | AS42: =AS40-AS41 -> 0 | AT42: =AT41-AT40 -> 0 | AU42: =AU40-AU41 -> 0 | AV42: =AV41-AV40 -> 0 | AW42: =AW40-AW41 -> 0 | AX42: =AX41-AX40 -> 0 | AY42: =AY40-AY41 -> 0 | AZ42: =AZ41-AZ40 -> 5000 | BA42: =BA40-BA41 -> 0 | BB42: =BB41-BB40 -> 5000 | BC42: =BC40-BC41 -> 0 | BD42: =BD41-BD40 -> 0 | BE42: =BE40-BE41 -> 0 | BF42: =BF41-BF40 -> 5000
A44: 1.3.10 | B44: Weihnachtsgeld | C44: Ist | D44: =G44+K44+O44+S44+W44+AA44+AE44+AI44+AM44+AQ44+AU44+AY44+BC44 -> 0 | E44: =H44+L44+P44+T44+X44+AB44+AF44+AJ44+AN44+AR44+AV44+AZ44+BD44 -> 0 | F44: =D44-E44 -> 0 | I44: =G44 -> 0 | J44: =H44 -> 0 | M44: =I44+K44 -> 0 | N44: =J44+L44 -> 0 | Q44: =M44+O44 -> 0 | R44: =N44+P44 -> 0 | U44: =Q44+S44 -> 0 | V44: =R44+T44 -> 0 | Y44: =U44+W44 -> 0 | Z44: =V44+X44 -> 0 | AC44: =Y44+AA44 -> 0 | AD44: =Z44+AB44 -> 0 | AG44: =AC44+AE44 -> 0 | AH44: =AD44+AF44 -> 0 | AK44: =AG44+AI44 -> 0 | AL44: =AH44+AJ44 -> 0 | AO44: =AK44+AM44 -> 0 | AP44: =AL44+AN44 -> 0 | AS44: =AO44+AQ44 -> 0 | AT44: =AP44+AR44 -> 0 | AW44: =AS44+AU44 -> 0 | AX44: =AT44+AV44 -> 0 | BA44: =AW44+AY44 -> 0 | BB44: =AX44+AZ44 -> 0 | BC44: 0 | BD44: 0 | BE44: =BA44+BC44 -> 0 | BF44: =BB44+BD44 -> 0
C45: Plan | D45: =G45+K45+O45+S45+W45+AA45+AE45+AI45+AM45+AQ45+AU45+AY45+BC45 -> 0 | E45: =H45+L45+P45+T45+X45+AB45+AF45+AJ45+AN45+AR45+AV45+AZ45+BD45 -> 10000 | F45: =D45-E45 -> -10000 | G45: 0 | H45: 0 | I45: =G45 -> 0 | J45: =H45 -> 0 | K45: 0 | L45: 0 | M45: =I45+K45 -> 0 | N45: =J45+L45 -> 0 | O45: 0 | P45: 0 | Q45: =M45+O45 -> 0 | R45: =N45+P45 -> 0 | S45: 0 | T45: 0 | U45: =Q45+S45 -> 0 | V45: =R45+T45 -> 0 | W45: 0 | X45: 0 | Y45: =U45+W45 -> 0 | Z45: =V45+X45 -> 0 | AA45: 0 | AB45: 0 | AC45: =Y45+AA45 -> 0 | AD45: =Z45+AB45 -> 0 | AE45: 0 | AF45: 0 | AG45: =AC45+AE45 -> 0 | AH45: =AD45+AF45 -> 0 | AI45: 0 | AJ45: 0 | AK45: =AG45+AI45 -> 0 | AL45: =AH45+AJ45 -> 0 | AM45: 0 | AN45: 0 | AO45: =AK45+AM45 -> 0 | AP45: =AL45+AN45 -> 0 | AQ45: 0 | AR45: 0 | AS45: =AO45+AQ45 -> 0 | AT45: =AP45+AR45 -> 0 | AU45: 0 | AV45: 0 | AW45: =AS45+AU45 -> 0 | AX45: =AT45+AV45 -> 0 | AY45: 0 | AZ45: 10000 | BA45: =AW45+AY45 -> 0 | BB45: =AX45+AZ45 -> 10000 | BC45: 0 | BD45: 0 | BE45: =BA45+BC45 -> 0 | BF45: =BB45+BD45 -> 10000
C46: Saldo | D46: =D44-D45 -> 0 | E46: =E45-E44 -> 10000 | F46: =F44-F45 -> 10000 | G46: =G44-G45 -> 0 | H46: =H45-H44 -> 0 | I46: =I44-I45 -> 0 | J46: =J45-J44 -> 0 | K46: =K44-K45 -> 0 | L46: =L45-L44 -> 0 | M46: =M44-M45 -> 0 | N46: =N45-N44 -> 0 | O46: =O44-O45 -> 0 | P46: =P45-P44 -> 0 | Q46: =Q44-Q45 -> 0 | R46: =R45-R44 -> 0 | S46: =S44-S45 -> 0 | T46: =T45-T44 -> 0 | U46: =U44-U45 -> 0 | V46: =V45-V44 -> 0 | W46: =W44-W45 -> 0 | X46: =X45-X44 -> 0 | Y46: =Y44-Y45 -> 0 | Z46: =Z45-Z44 -> 0 | AA46: =AA44-AA45 -> 0 | AB46: =AB45-AB44 -> 0 | AC46: =AC44-AC45 -> 0 | AD46: =AD45-AD44 -> 0 | AE46: =AE44-AE45 -> 0 | AF46: =AF45-AF44 -> 0 | AG46: =AG44-AG45 -> 0 | AH46: =AH45-AH44 -> 0 | AI46: =AI44-AI45 -> 0 | AJ46: =AJ45-AJ44 -> 0 | AK46: =AK44-AK45 -> 0 | AL46: =AL45-AL44 -> 0 | AM46: =AM44-AM45 -> 0 | AN46: =AN45-AN44 -> 0 | AO46: =AO44-AO45 -> 0 | AP46: =AP45-AP44 -> 0 | AQ46: =AQ44-AQ45 -> 0 | AR46: =AR45-AR44 -> 0 | AS46: =AS44-AS45 -> 0 | AT46: =AT45-AT44 -> 0 | AU46: =AU44-AU45 -> 0 | AV46: =AV45-AV44 -> 0 | AW46: =AW44-AW45 -> 0 | AX46: =AX45-AX44 -> 0 | AY46: =AY44-AY45 -> 0 | AZ46: =AZ45-AZ44 -> 10000 | BA46: =BA44-BA45 -> 0 | BB46: =BB45-BB44 -> 10000 | BC46: =BC44-BC45 -> 0 | BD46: =BD45-BD44 -> 0 | BE46: =BE44-BE45 -> 0 | BF46: =BF45-BF44 -> 10000
A48: 1.3.11 | C48: Ist | D48: =G48+K48+O48+S48+W48+AA48+AE48+AI48+AM48+AQ48+AU48+AY48+BC48 -> 0 | E48: =H48+L48+P48+T48+X48+AB48+AF48+AJ48+AN48+AR48+AV48+AZ48+BD48 -> 0 | F48: =D48-E48 -> 0 | I48: =G48 -> 0 | J48: =H48 -> 0 | M48: =I48+K48 -> 0 | N48: =J48+L48 -> 0 | Q48: =M48+O48 -> 0 | R48: =N48+P48 -> 0 | U48: =Q48+S48 -> 0 | V48: =R48+T48 -> 0 | Y48: =U48+W48 -> 0 | Z48: =V48+X48 -> 0 | AC48: =Y48+AA48 -> 0 | AD48: =Z48+AB48 -> 0 | AG48: =AC48+AE48 -> 0 | AH48: =AD48+AF48 -> 0 | AK48: =AG48+AI48 -> 0 | AL48: =AH48+AJ48 -> 0 | AO48: =AK48+AM48 -> 0 | AP48: =AL48+AN48 -> 0 | AS48: =AO48+AQ48 -> 0 | AT48: =AP48+AR48 -> 0 | AW48: =AS48+AU48 -> 0 | AX48: =AT48+AV48 -> 0 | BA48: =AW48+AY48 -> 0 | BB48: =AX48+AZ48 -> 0 | BC48: 0 | BD48: 0 | BE48: =BA48+BC48 -> 0 | BF48: =BB48+BD48 -> 0
C49: Plan | D49: =G49+K49+O49+S49+W49+AA49+AE49+AI49+AM49+AQ49+AU49+AY49+BC49 -> 0 | E49: =H49+L49+P49+T49+X49+AB49+AF49+AJ49+AN49+AR49+AV49+AZ49+BD49 -> 0 | F49: =D49-E49 -> 0 | G49: 0 | H49: 0 | I49: =G49 -> 0 | J49: =H49 -> 0 | K49: 0 | L49: 0 | M49: =I49+K49 -> 0 | N49: =J49+L49 -> 0 | O49: 0 | P49: 0 | Q49: =M49+O49 -> 0 | R49: =N49+P49 -> 0 | S49: 0 | T49: 0 | U49: =Q49+S49 -> 0 | V49: =R49+T49 -> 0 | W49: 0 | X49: 0 | Y49: =U49+W49 -> 0 | Z49: =V49+X49 -> 0 | AA49: 0 | AB49: 0 | AC49: =Y49+AA49 -> 0 | AD49: =Z49+AB49 -> 0 | AE49: 0 | AF49: 0 | AG49: =AC49+AE49 -> 0 | AH49: =AD49+AF49 -> 0 | AI49: 0 | AJ49: 0 | AK49: =AG49+AI49 -> 0 | AL49: =AH49+AJ49 -> 0 | AM49: 0 | AN49: 0 | AO49: =AK49+AM49 -> 0 | AP49: =AL49+AN49 -> 0 | AQ49: 0 | AR49: 0 | AS49: =AO49+AQ49 -> 0 | AT49: =AP49+AR49 -> 0 | AU49: 0 | AV49: 0 | AW49: =AS49+AU49 -> 0 | AX49: =AT49+AV49 -> 0 | AY49: 0 | AZ49: 0 | BA49: =AW49+AY49 -> 0 | BB49: =AX49+AZ49 -> 0 | BC49: 0 | BD49: 0 | BE49: =BA49+BC49 -> 0 | BF49: =BB49+BD49 -> 0
C50: Saldo | D50: =D48-D49 -> 0 | E50: =E49-E48 -> 0 | F50: =F48-F49 -> 0 | G50: =G48-G49 -> 0 | H50: =H49-H48 -> 0 | I50: =I48-I49 -> 0 | J50: =J49-J48 -> 0 | K50: =K48-K49 -> 0 | L50: =L49-L48 -> 0 | M50: =M48-M49 -> 0 | N50: =N49-N48 -> 0 | O50: =O48-O49 -> 0 | P50: =P49-P48 -> 0 | Q50: =Q48-Q49 -> 0 | R50: =R49-R48 -> 0 | S50: =S48-S49 -> 0 | T50: =T49-T48 -> 0 | U50: =U48-U49 -> 0 | V50: =V49-V48 -> 0 | W50: =W48-W49 -> 0 | X50: =X49-X48 -> 0 | Y50: =Y48-Y49 -> 0 | Z50: =Z49-Z48 -> 0 | AA50: =AA48-AA49 -> 0 | AB50: =AB49-AB48 -> 0 | AC50: =AC48-AC49 -> 0 | AD50: =AD49-AD48 -> 0 | AE50: =AE48-AE49 -> 0 | AF50: =AF49-AF48 -> 0 | AG50: =AG48-AG49 -> 0 | AH50: =AH49-AH48 -> 0 | AI50: =AI48-AI49 -> 0 | AJ50: =AJ49-AJ48 -> 0 | AK50: =AK48-AK49 -> 0 | AL50: =AL49-AL48 -> 0 | AM50: =AM48-AM49 -> 0 | AN50: =AN49-AN48 -> 0 | AO50: =AO48-AO49 -> 0 | AP50: =AP49-AP48 -> 0 | AQ50: =AQ48-AQ49 -> 0 | AR50: =AR49-AR48 -> 0 | AS50: =AS48-AS49 -> 0 | AT50: =AT49-AT48 -> 0 | AU50: =AU48-AU49 -> 0 | AV50: =AV49-AV48 -> 0 | AW50: =AW48-AW49 -> 0 | AX50: =AX49-AX48 -> 0 | AY50: =AY48-AY49 -> 0 | AZ50: =AZ49-AZ48 -> 0 | BA50: =BA48-BA49 -> 0 | BB50: =BB49-BB48 -> 0 | BC50: =BC48-BC49 -> 0 | BD50: =BD49-BD48 -> 0 | BE50: =BE48-BE49 -> 0 | BF50: =BF49-BF48 -> 0
A52: 1.3.12 | C52: Ist | D52: =G52+K52+O52+S52+W52+AA52+AE52+AI52+AM52+AQ52+AU52+AY52+BC52 -> 0 | E52: =H52+L52+P52+T52+X52+AB52+AF52+AJ52+AN52+AR52+AV52+AZ52+BD52 -> 0 | F52: =D52-E52 -> 0 | I52: =G52 -> 0 | J52: =H52 -> 0 | M52: =I52+K52 -> 0 | N52: =J52+L52 -> 0 | Q52: =M52+O52 -> 0 | R52: =N52+P52 -> 0 | U52: =Q52+S52 -> 0 | V52: =R52+T52 -> 0 | Y52: =U52+W52 -> 0 | Z52: =V52+X52 -> 0 | AC52: =Y52+AA52 -> 0 | AD52: =Z52+AB52 -> 0 | AG52: =AC52+AE52 -> 0 | AH52: =AD52+AF52 -> 0 | AK52: =AG52+AI52 -> 0 | AL52: =AH52+AJ52 -> 0 | AO52: =AK52+AM52 -> 0 | AP52: =AL52+AN52 -> 0 | AS52: =AO52+AQ52 -> 0 | AT52: =AP52+AR52 -> 0 | AW52: =AS52+AU52 -> 0 | AX52: =AT52+AV52 -> 0 | BA52: =AW52+AY52 -> 0 | BB52: =AX52+AZ52 -> 0 | BC52: 0 | BD52: 0 | BE52: =BA52+BC52 -> 0 | BF52: =BB52+BD52 -> 0
C53: Plan | D53: =G53+K53+O53+S53+W53+AA53+AE53+AI53+AM53+AQ53+AU53+AY53+BC53 -> 0 | E53: =H53+L53+P53+T53+X53+AB53+AF53+AJ53+AN53+AR53+AV53+AZ53+BD53 -> 0 | F53: =D53-E53 -> 0 | G53: 0 | H53: 0 | I53: =G53 -> 0 | J53: =H53 -> 0 | K53: 0 | L53: 0 | M53: =I53+K53 -> 0 | N53: =J53+L53 -> 0 | O53: 0 | P53: 0 | Q53: =M53+O53 -> 0 | R53: =N53+P53 -> 0 | S53: 0 | T53: 0 | U53: =Q53+S53 -> 0 | V53: =R53+T53 -> 0 | W53: 0 | X53: 0 | Y53: =U53+W53 -> 0 | Z53: =V53+X53 -> 0 | AA53: 0 | AB53: 0 | AC53: =Y53+AA53 -> 0 | AD53: =Z53+AB53 -> 0 | AE53: 0 | AF53: 0 | AG53: =AC53+AE53 -> 0 | AH53: =AD53+AF53 -> 0 | AI53: 0 | AJ53: 0 | AK53: =AG53+AI53 -> 0 | AL53: =AH53+AJ53 -> 0 | AM53: 0 | AN53: 0 | AO53: =AK53+AM53 -> 0 | AP53: =AL53+AN53 -> 0 | AQ53: 0 | AR53: 0 | AS53: =AO53+AQ53 -> 0 | AT53: =AP53+AR53 -> 0 | AU53: 0 | AV53: 0 | AW53: =AS53+AU53 -> 0 | AX53: =AT53+AV53 -> 0 | AY53: 0 | AZ53: 0 | BA53: =AW53+AY53 -> 0 | BB53: =AX53+AZ53 -> 0 | BC53: 0 | BD53: 0 | BE53: =BA53+BC53 -> 0 | BF53: =BB53+BD53 -> 0
C54: Saldo | D54: =D52-D53 -> 0 | E54: =E53-E52 -> 0 | F54: =F52-F53 -> 0 | G54: =G52-G53 -> 0 | H54: =H53-H52 -> 0 | I54: =I52-I53 -> 0 | J54: =J53-J52 -> 0 | K54: =K52-K53 -> 0 | L54: =L53-L52 -> 0 | M54: =M52-M53 -> 0 | N54: =N53-N52 -> 0 | O54: =O52-O53 -> 0 | P54: =P53-P52 -> 0 | Q54: =Q52-Q53 -> 0 | R54: =R53-R52 -> 0 | S54: =S52-S53 -> 0 | T54: =T53-T52 -> 0 | U54: =U52-U53 -> 0 | V54: =V53-V52 -> 0 | W54: =W52-W53 -> 0 | X54: =X53-X52 -> 0 | Y54: =Y52-Y53 -> 0 | Z54: =Z53-Z52 -> 0 | AA54: =AA52-AA53 -> 0 | AB54: =AB53-AB52 -> 0 | AC54: =AC52-AC53 -> 0 | AD54: =AD53-AD52 -> 0 | AE54: =AE52-AE53 -> 0 | AF54: =AF53-AF52 -> 0 | AG54: =AG52-AG53 -> 0 | AH54: =AH53-AH52 -> 0 | AI54: =AI52-AI53 -> 0 | AJ54: =AJ53-AJ52 -> 0 | AK54: =AK52-AK53 -> 0 | AL54: =AL53-AL52 -> 0 | AM54: =AM52-AM53 -> 0 | AN54: =AN53-AN52 -> 0 | AO54: =AO52-AO53 -> 0 | AP54: =AP53-AP52 -> 0 | AQ54: =AQ52-AQ53 -> 0 | AR54: =AR53-AR52 -> 0 | AS54: =AS52-AS53 -> 0 | AT54: =AT53-AT52 -> 0 | AU54: =AU52-AU53 -> 0 | AV54: =AV53-AV52 -> 0 | AW54: =AW52-AW53 -> 0 | AX54: =AX53-AX52 -> 0 | AY54: =AY52-AY53 -> 0 | AZ54: =AZ53-AZ52 -> 0 | BA54: =BA52-BA53 -> 0 | BB54: =BB53-BB52 -> 0 | BC54: =BC52-BC53 -> 0 | BD54: =BD53-BD52 -> 0 | BE54: =BE52-BE53 -> 0 | BF54: =BF53-BF52 -> 0

Sheet AlgÖff
B1: Inhalt | D1: Jahr | G1: Januar | K1: Februar | O1: März | S1: April | W1: Mai | AA1: Juni | AE1: Juli | AI1: August | AM1: September | AQ1: Oktober | AU1: November | AY1: Dezember | BC1: Überträge etc.
A2: ç | B2: Übersicht | C2: è | G2: Monatswerte | I2: Buchungsstand | K2: Monatswerte | M2: Buchungsstand | O2: Monatswerte | Q2: Buchungsstand | S2: Monatswerte | U2: Buchungsstand | W2: Monatswerte | Y2: Buchungsstand | AA2: Monatswerte | AC2: Buchungsstand | AE2: Monatswerte | AG2: Buchungsstand | AI2: Monatswerte | AK2: Buchungsstand | AM2: Monatswerte | AO2: Buchungsstand | AQ2: Monatswerte | AS2: Buchungsstand | AU2: Monatswerte | AW2: Buchungsstand | AY2: Monatswerte | BA2: Buchungsstand | BE2: Buchungsstand
B3: Liquidität | D3: Einnahmen | E3: Ausgaben | F3: Saldo | G3: Einnahmen | H3: Ausgaben | I3: Einnahmen | J3: Ausgaben | K3: Einnahmen | L3: Ausgaben | M3: Einnahmen | N3: Ausgaben | O3: Einnahmen | P3: Ausgaben | Q3: Einnahmen | R3: Ausgaben | S3: Einnahmen | T3: Ausgaben | U3: Einnahmen | V3: Ausgaben | W3: Einnahmen | X3: Ausgaben | Y3: Einnahmen | Z3: Ausgaben | AA3: Einnahmen | AB3: Ausgaben | AC3: Einnahmen | AD3: Ausgaben | AE3: Einnahmen | AF3: Ausgaben | AG3: Einnahmen | AH3: Ausgaben | AI3: Einnahmen | AJ3: Ausgaben | AK3: Einnahmen | AL3: Ausgaben | AM3: Einnahmen | AN3: Ausgaben | AO3: Einnahmen | AP3: Ausgaben | AQ3: Einnahmen | AR3: Ausgaben | AS3: Einnahmen | AT3: Ausgaben | AU3: Einnahmen | AV3: Ausgaben | AW3: Einnahmen | AX3: Ausgaben | AY3: Einnahmen | AZ3: Ausgaben | BA3: Einnahmen | BB3: Ausgaben | BC3: Einnahmen | BD3: Ausgaben | BE3: Einnahmen | BF3: Ausgaben
A4: 1.4 | B4: Allgemeine | C4: Ist | D4: =D8+D12+D16+D20+D24+D28+D32+D36+D40 -> 0 | E4: =E8+E12+E16+E20+E24+E28+E32+E36+E40 -> 0 | F4: =D4-E4 -> 0 | G4: =G8+G12+G16+G20+G24+G28+G32+G36+G40 -> 0 | H4: 0 | I4: 0 | J4: 0 | K4: 0 | L4: 0 | M4: 0 | N4: 0 | O4: 0 | P4: =P8+P12+P16+P20+P24+P28+P32+P36+P40 -> 0 | Q4: 0 | R4: 0 | S4: 0 | T4: 0 | U4: 0 | V4: 0 | W4: 0 | X4: 0 | Y4: 0 | Z4: 0 | AA4: 0 | AB4: 0 | AC4: 0 | AD4: 0 | AE4: 0 | AF4: 0 | AG4: 0 | AH4: 0 | AI4: 0 | AJ4: 0 | AK4: 0 | AL4: 0 | AM4: 0 | AN4: 0 | AO4: 0 | AP4: 0 | AQ4: 0 | AR4: 0 | AS4: 0 | AT4: 0 | AU4: 0 | AV4: 0 | AW4: 0 | AX4: 0 | AY4: 0 | AZ4: 0 | BA4: 0 | BB4: 0 | BC4: 0 | BD4: 0 | BE4: 0 | BF4: 0
B5: Öffentlichkeitsarbeit | C5: Plan | D5: =D9+D13+D17+D21+D25+D29+D33+D37+D41 -> 0 | E5: =E9+E13+E17+E21+E25+E29+E33+E37+E41 -> 258096.3553 | F5: =D5-E5 -> -258096.3553 | G5: =G9+G13+G17+G21+G25+G29+G33+G37+G41 -> 0 | H5: 14216.36294 | I5: 0 | J5: 14216.36294 | K5: 0 | L5: 13016.36294 | M5: 0 | N5: 27232.72588 | O5: 0 | P5: 34016.36294 | Q5: 0 | R5: 61249.08883 | S5: 0 | T5: 13016.36294 | U5: 0 | V5: 74265.45177 | W5: 0 | X5: 13016.36294 | Y5: 0 | Z5: 87281.81471 | AA5: 0 | AB5: 34016.36294 | AC5: 0 | AD5: 121298.1777 | AE5: 0 | AF5: 13016.36294 | AG5: 0 | AH5: 134314.5406 | AI5: 0 | AJ5: 34016.36294 | AK5: 0 | AL5: 168330.9035 | AM5: 0 | AN5: 13016.36294 | AO5: 0 | AP5: 181347.2665 | AQ5: 0 | AR5: 13016.36294 | AS5: 0 | AT5: 194363.6294 | AU5: 0 | AV5: 34016.36294 | AW5: 0 | AX5: 228379.9924 | AY5: 0 | AZ5: 29716.36294 | BA5: 0 | BB5: 258096.3553 | BC5: 0 | BD5: 0 | BE5: 0 | BF5: 258096.3553
B6: Eing. Buchungsst. | C6: Saldo | D6: =D4-D5 -> 0 | E6: =E5-E4 -> 258096.3553 | F6: =F4-F5 -> 258096.3553 | G6: =G4-G5 -> 0 | H6: =H5-H4 -> 14216.36294 | I6: =I4-I5 -> 0 | J6: =J5-J4 -> 14216.36294 | K6: =K4-K5 -> 0 | L6: =L5-L4 -> 13016.36294 | M6: =M4-M5 -> 0 | N6: =N5-N4 -> 27232.72588 | O6: =O4-O5 -> 0 | P6: =P5-P4 -> 34016.36294 | Q6: =Q4-Q5 -> 0 | R6: =R5-R4 -> 61249.08883 | S6: =S4-S5 -> 0 | T6: =T5-T4 -> 13016.36294 | U6: =U4-U5 -> 0 | V6: =V5-V4 -> 74265.45177 | W6: =W4-W5 -> 0 | X6: =X5-X4 -> 13016.36294 | Y6: =Y4-Y5 -> 0 | Z6: =Z5-Z4 -> 87281.81471 | AA6: =AA4-AA5 -> 0 | AB6: =AB5-AB4 -> 34016.36294 | AC6: =AC4-AC5 -> 0 | AD6: =AD5-AD4 -> 121298.1777 | AE6: =AE4-AE5 -> 0 | AF6: =AF5-AF4 -> 13016.36294 | AG6: =AG4-AG5 -> 0 | AH6: =AH5-AH4 -> 134314.5406 | AI6: =AI4-AI5 -> 0 | AJ6: =AJ5-AJ4 -> 34016.36294 | AK6: =AK4-AK5 -> 0 | AL6: =AL5-AL4 -> 168330.9035 | AM6: =AM4-AM5 -> 0 | AN6: =AN5-AN4 -> 13016.36294 | AO6: =AO4-AO5 -> 0 | AP6: =AP5-AP4 -> 181347.2665 | AQ6: =AQ4-AQ5 -> 0 | AR6: =AR5-AR4 -> 13016.36294 | AS6: =AS4-AS5 -> 0 | AT6: =AT5-AT4 -> 194363.6294 | AU6: =AU4-AU5 -> 0 | AV6: =AV5-AV4 -> 34016.36294 | AW6: =AW4-AW5 -> 0 | AX6: =AX5-AX4 -> 228379.9924 | AY6: =AY4-AY5 -> 0 | AZ6: =AZ5-AZ4 -> 29716.36294 | BA6: =BA4-BA5 -> 0 | BB6: =BB5-BB4 -> 258096.3553 | BC6: =BC4-BC5 -> 0 | BD6: =BD5-BD4 -> 0 | BE6: =BE4-BE5 -> 0 | BF6: =BF5-BF4 -> 258096.3553
A8: 1.4.1 | B8: 170. Pressearbeit | C8: Ist | D8: =G8+K8+O8+S8+W8+AA8+AE8+AI8+AM8+AQ8+AU8+AY8+BC8 -> 0 | E8: =H8+L8+P8+T8+X8+AB8+AF8+AJ8+AN8+AR8+AV8+AZ8+BD8 -> 0 | F8: =D8-E8 -> 0 | I8: =G8 -> 0 | J8: =H8 -> 0 | M8: =I8+K8 -> 0 | N8: =J8+L8 -> 0 | Q8: =M8+O8 -> 0 | R8: =N8+P8 -> 0 | U8: =Q8+S8 -> 0 | V8: =R8+T8 -> 0 | Y8: =U8+W8 -> 0 | Z8: =V8+X8 -> 0 | AC8: =Y8+AA8 -> 0 | AD8: =Z8+AB8 -> 0 | AG8: =AC8+AE8 -> 0 | AH8: =AD8+AF8 -> 0 | AK8: =AG8+AI8 -> 0 | AL8: =AH8+AJ8 -> 0 | AO8: =AK8+AM8 -> 0 | AP8: =AL8+AN8 -> 0 | AS8: =AO8+AQ8 -> 0 | AT8: =AP8+AR8 -> 0 | AW8: =AS8+AU8 -> 0 | AX8: =AT8+AV8 -> 0 | BA8: =AW8+AY8 -> 0 | BB8: =AX8+AZ8 -> 0 | BC8: 0 | BD8: 0 | BE8: =BA8+BC8 -> 0 | BF8: =BB8+BD8 -> 0
B9: PK, Pressemonitor, … | C9: Plan | D9: =G9+K9+O9+S9+W9+AA9+AE9+AI9+AM9+AQ9+AU9+AY9+BC9 -> 0 | E9: =H9+L9+P9+T9+X9+AB9+AF9+AJ9+AN9+AR9+AV9+AZ9+BD9 -> 3500 | F9: =D9-E9 -> -3500 | G9: 0 | H9: 0 | I9: =G9 -> 0 | J9: =H9 -> 0 | K9: 0 | L9: 0 | M9: =I9+K9 -> 0 | N9: =J9+L9 -> 0 | O9: 0 | P9: 0 | Q9: =M9+O9 -> 0 | R9: =N9+P9 -> 0 | S9: 0 | T9: 0 | U9: =Q9+S9 -> 0 | V9: =R9+T9 -> 0 | W9: 0 | X9: 0 | Y9: =U9+W9 -> 0 | Z9: =V9+X9 -> 0 | AA9: 0 | AB9: 0 | AC9: =Y9+AA9 -> 0 | AD9: =Z9+AB9 -> 0 | AE9: 0 | AF9: 0 | AG9: =AC9+AE9 -> 0 | AH9: =AD9+AF9 -> 0 | AI9: 0 | AJ9: 0 | AK9: =AG9+AI9 -> 0 | AL9: =AH9+AJ9 -> 0 | AM9: 0 | AN9: 0 | AO9: =AK9+AM9 -> 0 | AP9: =AL9+AN9 -> 0 | AQ9: 0 | AR9: 0 | AS9: =AO9+AQ9 -> 0 | AT9: =AP9+AR9 -> 0 | AU9: 0 | AV9: 0 | AW9: =AS9+AU9 -> 0 | AX9: =AT9+AV9 -> 0 | AY9: 0 | AZ9: 3500 | BA9: =AW9+AY9 -> 0 | BB9: =AX9+AZ9 -> 3500 | BC9: 0 | BD9: 0 | BE9: =BA9+BC9 -> 0 | BF9: =BB9+BD9 -> 3500
C10: Saldo | D10: =D8-D9 -> 0 | E10: =E9-E8 -> 3500 | F10: =SUM(F8-F9) -> 3500 | G10: =G8-G9 -> 0 | H10: =H9-H8 -> 0 | I10: =I8-I9 -> 0 | J10: =J9-J8 -> 0 | K10: =K8-K9 -> 0 | L10: =L9-L8 -> 0 | M10: =M8-M9 -> 0 | N10: =N9-N8 -> 0 | O10: =O8-O9 -> 0 | P10: =P9-P8 -> 0 | Q10: =Q8-Q9 -> 0 | R10: =R9-R8 -> 0 | S10: =S8-S9 -> 0 | T10: =T9-T8 -> 0 | U10: =U8-U9 -> 0 | V10: =V9-V8 -> 0 | W10: =W8-W9 -> 0 | X10: =X9-X8 -> 0 | Y10: =Y8-Y9 -> 0 | Z10: =Z9-Z8 -> 0 | AA10: =AA8-AA9 -> 0 | AB10: =AB9-AB8 -> 0 | AC10: =AC8-AC9 -> 0 | AD10: =AD9-AD8 -> 0 | AE10: =AE8-AE9 -> 0 | AF10: =AF9-AF8 -> 0 | AG10: =AG8-AG9 -> 0 | AH10: =AH9-AH8 -> 0 | AI10: =AI8-AI9 -> 0 | AJ10: =AJ9-AJ8 -> 0 | AK10: =AK8-AK9 -> 0 | AL10: =AL9-AL8 -> 0 | AM10: =AM8-AM9 -> 0 | AN10: =AN9-AN8 -> 0 | AO10: =AO8-AO9 -> 0 | AP10: =AP9-AP8 -> 0 | AQ10: =AQ8-AQ9 -> 0 | AR10: =AR9-AR8 -> 0 | AS10: =AS8-AS9 -> 0 | AT10: =AT9-AT8 -> 0 | AU10: =AU8-AU9 -> 0 | AV10: =AV9-AV8 -> 0 | AW10: =AW8-AW9 -> 0 | AX10: =AX9-AX8 -> 0 | AY10: =AY8-AY9 -> 0 | AZ10: =AZ9-AZ8 -> 3500 | BA10: =BA8-BA9 -> 0 | BB10: =BB9-BB8 -> 3500 | BC10: =BC8-BC9 -> 0 | BD10: =BD9-BD8 -> 0 | BE10: =BE8-BE9 -> 0 | BF10: =BF9-BF8 -> 3500
A12: 1.4.2 | B12: 170. Personal | C12: Ist | D12: =G12+K12+O12+S12+W12+AA12+AE12+AI12+AM12+AQ12+AU12+AY12+BC12 -> 0 | E12: =H12+L12+P12+T12+X12+AB12+AF12+AJ12+AN12+AR12+AV12+AZ12+BD12 -> 0 | F12: =D12-E12 -> 0 | I12: =G12 -> 0 | J12: =H12 -> 0 | M12: =I12+K12 -> 0 | N12: =J12+L12 -> 0 | Q12: =M12+O12 -> 0 | R12: =N12+P12 -> 0 | U12: =Q12+S12 -> 0 | V12: =R12+T12 -> 0 | Y12: =U12+W12 -> 0 | Z12: =V12+X12 -> 0 | AC12: =Y12+AA12 -> 0 | AD12: =Z12+AB12 -> 0 | AG12: =AC12+AE12 -> 0 | AH12: =AD12+AF12 -> 0 | AK12: =AG12+AI12 -> 0 | AL12: =AH12+AJ12 -> 0 | AO12: =AK12+AM12 -> 0 | AP12: =AL12+AN12 -> 0 | AS12: =AO12+AQ12 -> 0 | AT12: =AP12+AR12 -> 0 | AW12: =AS12+AU12 -> 0 | AX12: =AT12+AV12 -> 0 | BA12: =AW12+AY12 -> 0 | BB12: =AX12+AZ12 -> 0 | BC12: 0 | BD12: 0 | BE12: =BA12+BC12 -> 0 | BF12: =BB12+BD12 -> 0
B13: ÖA, Newsletter, Presse | C13: Plan | D13: =G13+K13+O13+S13+W13+AA13+AE13+AI13+AM13+AQ13+AU13+AY13+BC13 -> 0 | E13: =H13+L13+P13+T13+X13+AB13+AF13+AJ13+AN13+AR13+AV13+AZ13+BD13 -> 156196.3553 | F13: =D13-E13 -> -156196.3553 | G13: 0 | H13: =+Stellenplan!G$30 -> 13016.36294 | I13: =G13 -> 0 | J13: =H13 -> 13016.36294 | K13: 0 | L13: =+Stellenplan!H$30 -> 13016.36294 | M13: =I13+K13 -> 0 | N13: =J13+L13 -> 26032.72588 | O13: 0 | P13: =+Stellenplan!I$30 -> 13016.36294 | Q13: =M13+O13 -> 0 | R13: =N13+P13 -> 39049.08883 | S13: 0 | T13: =+Stellenplan!J$30 -> 13016.36294 | U13: =Q13+S13 -> 0 | V13: =R13+T13 -> 52065.45177 | W13: 0 | X13: =+Stellenplan!K$30 -> 13016.36294 | Y13: =U13+W13 -> 0 | Z13: =V13+X13 -> 65081.81471 | AA13: 0 | AB13: =+Stellenplan!L$30 -> 13016.36294 | AC13: =Y13+AA13 -> 0 | AD13: =Z13+AB13 -> 78098.17765 | AE13: 0 | AF13: =+Stellenplan!M$30 -> 13016.36294 | AG13: =AC13+AE13 -> 0 | AH13: =AD13+AF13 -> 91114.54059 | AI13: 0 | AJ13: =+Stellenplan!N$30 -> 13016.36294 | AK13: =AG13+AI13 -> 0 | AL13: =AH13+AJ13 -> 104130.9035 | AM13: 0 | AN13: =+Stellenplan!O$30 -> 13016.36294 | AO13: =AK13+AM13 -> 0 | AP13: =AL13+AN13 -> 117147.2665 | AQ13: 0 | AR13: =+Stellenplan!P$30 -> 13016.36294 | AS13: =AO13+AQ13 -> 0 | AT13: =AP13+AR13 -> 130163.6294 | AU13: 0 | AV13: =+Stellenplan!Q$30 -> 13016.36294 | AW13: =AS13+AU13 -> 0 | AX13: =AT13+AV13 -> 143179.9924 | AY13: 0 | AZ13: =+Stellenplan!R$30 -> 13016.36294 | BA13: =AW13+AY13 -> 0 | BB13: =AX13+AZ13 -> 156196.3553 | BC13: 0 | BD13: 0 | BE13: =BA13+BC13 -> 0 | BF13: =BB13+BD13 -> 156196.3553
C14: Saldo | D14: =D12-D13 -> 0 | E14: =E13-E12 -> 156196.3553 | F14: =SUM(F12-F13) -> 156196.3553 | G14: =G12-G13 -> 0 | H14: =H13-H12 -> 13016.36294 | I14: =I12-I13 -> 0 | J14: =J13-J12 -> 13016.36294 | K14: =K12-K13 -> 0 | L14: =L13-L12 -> 13016.36294 | M14: =M12-M13 -> 0 | N14: =N13-N12 -> 26032.72588 | O14: =O12-O13 -> 0 | P14: =P13-P12 -> 13016.36294 | Q14: =Q12-Q13 -> 0 | R14: =R13-R12 -> 39049.08883 | S14: =S12-S13 -> 0 | T14: =T13-T12 -> 13016.36294 | U14: =U12-U13 -> 0 | V14: =V13-V12 -> 52065.45177 | W14: =W12-W13 -> 0 | X14: =X13-X12 -> 13016.36294 | Y14: =Y12-Y13 -> 0 | Z14: =Z13-Z12 -> 65081.81471 | AA14: =AA12-AA13 -> 0 | AB14: =AB13-AB12 -> 13016.36294 | AC14: =AC12-AC13 -> 0 | AD14: =AD13-AD12 -> 78098.17765 | AE14: =AE12-AE13 -> 0 | AF14: =AF13-AF12 -> 13016.36294 | AG14: =AG12-AG13 -> 0 | AH14: =AH13-AH12 -> 91114.54059 | AI14: =AI12-AI13 -> 0 | AJ14: =AJ13-AJ12 -> 13016.36294 | AK14: =AK12-AK13 -> 0 | AL14: =AL13-AL12 -> 104130.9035 | AM14: =AM12-AM13 -> 0 | AN14: =AN13-AN12 -> 13016.36294 | AO14: =AO12-AO13 -> 0 | AP14: =AP13-AP12 -> 117147.2665 | AQ14: =AQ12-AQ13 -> 0 | AR14: =AR13-AR12 -> 13016.36294 | AS14: =AS12-AS13 -> 0 | AT14: =AT13-AT12 -> 130163.6294 | AU14: =AU12-AU13 -> 0 | AV14: =AV13-AV12 -> 13016.36294 | AW14: =AW12-AW13 -> 0 | AX14: =AX13-AX12 -> 143179.9924 | AY14: =AY12-AY13 -> 0 | AZ14: =AZ13-AZ12 -> 13016.36294 | BA14: =BA12-BA13 -> 0 | BB14: =BB13-BB12 -> 156196.3553 | BC14: =BC12-BC13 -> 0 | BD14: =BD13-BD12 -> 0 | BE14: =BE12-BE13 -> 0 | BF14: =BF13-BF12 -> 156196.3553
A16: 1.4.3 | B16: Online-Werbung | C16: Ist | D16: =G16+K16+O16+S16+W16+AA16+AE16+AI16+AM16+AQ16+AU16+AY16+BC16 -> 0 | E16: =H16+L16+P16+T16+X16+AB16+AF16+AJ16+AN16+AR16+AV16+AZ16+BD16 -> 0 | F16: =D16-E16 -> 0 | I16: =G16 -> 0 | J16: =H16 -> 0 | M16: =I16+K16 -> 0 | N16: =J16+L16 -> 0 | Q16: =M16+O16 -> 0 | R16: =N16+P16 -> 0 | U16: =Q16+S16 -> 0 | V16: =R16+T16 -> 0 | Y16: =U16+W16 -> 0 | Z16: =V16+X16 -> 0 | AC16: =Y16+AA16 -> 0 | AD16: =Z16+AB16 -> 0 | AG16: =AC16+AE16 -> 0 | AH16: =AD16+AF16 -> 0 | AK16: =AG16+AI16 -> 0 | AL16: =AH16+AJ16 -> 0 | AO16: =AK16+AM16 -> 0 | AP16: =AL16+AN16 -> 0 | AS16: =AO16+AQ16 -> 0 | AT16: =AP16+AR16 -> 0 | AW16: =AS16+AU16 -> 0 | AX16: =AT16+AV16 -> 0 | BA16: =AW16+AY16 -> 0 | BB16: =AX16+AZ16 -> 0 | BC16: 0 | BD16: 0 | BE16: =BA16+BC16 -> 0 | BF16: =BB16+BD16 -> 0
B17: ÖA/Fundraising | C17: Plan | D17: =G17+K17+O17+S17+W17+AA17+AE17+AI17+AM17+AQ17+AU17+AY17+BC17 -> 0 | E17: =H17+L17+P17+T17+X17+AB17+AF17+AJ17+AN17+AR17+AV17+AZ17+BD17 -> 5000 | F17: =D17-E17 -> -5000 | G17: 0 | H17: 0 | I17: =G17 -> 0 | J17: =H17 -> 0 | K17: 0 | L17: 0 | M17: =I17+K17 -> 0 | N17: =J17+L17 -> 0 | O17: 0 | P17: 0 | Q17: =M17+O17 -> 0 | R17: =N17+P17 -> 0 | S17: 0 | T17: 0 | U17: =Q17+S17 -> 0 | V17: =R17+T17 -> 0 | W17: 0 | X17: 0 | Y17: =U17+W17 -> 0 | Z17: =V17+X17 -> 0 | AA17: 0 | AB17: 0 | AC17: =Y17+AA17 -> 0 | AD17: =Z17+AB17 -> 0 | AE17: 0 | AF17: 0 | AG17: =AC17+AE17 -> 0 | AH17: =AD17+AF17 -> 0 | AI17: 0 | AJ17: 0 | AK17: =AG17+AI17 -> 0 | AL17: =AH17+AJ17 -> 0 | AM17: 0 | AN17: 0 | AO17: =AK17+AM17 -> 0 | AP17: =AL17+AN17 -> 0 | AQ17: 0 | AR17: 0 | AS17: =AO17+AQ17 -> 0 | AT17: =AP17+AR17 -> 0 | AU17: 0 | AV17: 0 | AW17: =AS17+AU17 -> 0 | AX17: =AT17+AV17 -> 0 | AY17: 0 | AZ17: 5000 | BA17: =AW17+AY17 -> 0 | BB17: =AX17+AZ17 -> 5000 | BC17: 0 | BD17: 0 | BE17: =BA17+BC17 -> 0 | BF17: =BB17+BD17 -> 5000
C18: Saldo | D18: =D16-D17 -> 0 | E18: =E17-E16 -> 5000 | F18: =SUM(F16-F17) -> 5000 | G18: =G16-G17 -> 0 | H18: =H17-H16 -> 0 | I18: =I16-I17 -> 0 | J18: =J17-J16 -> 0 | K18: =K16-K17 -> 0 | L18: =L17-L16 -> 0 | M18: =M16-M17 -> 0 | N18: =N17-N16 -> 0 | O18: =O16-O17 -> 0 | P18: =P17-P16 -> 0 | Q18: =Q16-Q17 -> 0 | R18: =R17-R16 -> 0 | S18: =S16-S17 -> 0 | T18: =T17-T16 -> 0 | U18: =U16-U17 -> 0 | V18: =V17-V16 -> 0 | W18: =W16-W17 -> 0 | X18: =X17-X16 -> 0 | Y18: =Y16-Y17 -> 0 | Z18: =Z17-Z16 -> 0 | AA18: =AA16-AA17 -> 0 | AB18: =AB17-AB16 -> 0 | AC18: =AC16-AC17 -> 0 | AD18: =AD17-AD16 -> 0 | AE18: =AE16-AE17 -> 0 | AF18: =AF17-AF16 -> 0 | AG18: =AG16-AG17 -> 0 | AH18: =AH17-AH16 -> 0 | AI18: =AI16-AI17 -> 0 | AJ18: =AJ17-AJ16 -> 0 | AK18: =AK16-AK17 -> 0 | AL18: =AL17-AL16 -> 0 | AM18: =AM16-AM17 -> 0 | AN18: =AN17-AN16 -> 0 | AO18: =AO16-AO17 -> 0 | AP18: =AP17-AP16 -> 0 | AQ18: =AQ16-AQ17 -> 0 | AR18: =AR17-AR16 -> 0 | AS18: =AS16-AS17 -> 0 | AT18: =AT17-AT16 -> 0 | AU18: =AU16-AU17 -> 0 | AV18: =AV17-AV16 -> 0 | AW18: =AW16-AW17 -> 0 | AX18: =AX17-AX16 -> 0 | AY18: =AY16-AY17 -> 0 | AZ18: =AZ17-AZ16 -> 5000 | BA18: =BA16-BA17 -> 0 | BB18: =BB17-BB16 -> 5000 | BC18: =BC16-BC17 -> 0 | BD18: =BD17-BD16 -> 0 | BE18: =BE16-BE17 -> 0 | BF18: =BF17-BF16 -> 5000
A20: 1.4.4 | B20: 176. Rundbrief 4x | C20: Ist | D20: =G20+K20+O20+S20+W20+AA20+AE20+AI20+AM20+AQ20+AU20+AY20+BC20 -> 0 | E20: =H20+L20+P20+T20+X20+AB20+AF20+AJ20+AN20+AR20+AV20+AZ20+BD20 -> 0 | F20: =D20-E20 -> 0 | I20: =G20 -> 0 | J20: =H20 -> 0 | M20: =I20+K20 -> 0 | N20: =J20+L20 -> 0 | Q20: =M20+O20 -> 0 | R20: =N20+P20 -> 0 | U20: =Q20+S20 -> 0 | V20: =R20+T20 -> 0 | Y20: =U20+W20 -> 0 | Z20: =V20+X20 -> 0 | AC20: =Y20+AA20 -> 0 | AD20: =Z20+AB20 -> 0 | AG20: =AC20+AE20 -> 0 | AH20: =AD20+AF20 -> 0 | AK20: =AG20+AI20 -> 0 | AL20: =AH20+AJ20 -> 0 | AO20: =AK20+AM20 -> 0 | AP20: =AL20+AN20 -> 0 | AS20: =AO20+AQ20 -> 0 | AT20: =AP20+AR20 -> 0 | AW20: =AS20+AU20 -> 0 | AX20: =AT20+AV20 -> 0 | BA20: =AW20+AY20 -> 0 | BB20: =AX20+AZ20 -> 0 | BC20: 0 | BD20: 0 | BE20: =BA20+BC20 -> 0 | BF20: =BB20+BD20 -> 0
C21: Plan | D21: =G21+K21+O21+S21+W21+AA21+AE21+AI21+AM21+AQ21+AU21+AY21+BC21 -> 0 | E21: =H21+L21+P21+T21+X21+AB21+AF21+AJ21+AN21+AR21+AV21+AZ21+BD21 -> 85200 | F21: =D21-E21 -> -85200 | G21: 0 | H21: 1200 | I21: =G21 -> 0 | J21: =H21 -> 1200 | K21: 0 | L21: 0 | M21: =I21+K21 -> 0 | N21: =J21+L21 -> 1200 | O21: 0 | P21: 21000 | Q21: =M21+O21 -> 0 | R21: =N21+P21 -> 22200 | S21: 0 | T21: 0 | U21: =Q21+S21 -> 0 | V21: =R21+T21 -> 22200 | W21: 0 | X21: 0 | Y21: =U21+W21 -> 0 | Z21: =V21+X21 -> 22200 | AA21: 0 | AB21: 21000 | AC21: =Y21+AA21 -> 0 | AD21: =Z21+AB21 -> 43200 | AE21: 0 | AF21: 0 | AG21: =AC21+AE21 -> 0 | AH21: =AD21+AF21 -> 43200 | AI21: 0 | AJ21: 21000 | AK21: =AG21+AI21 -> 0 | AL21: =AH21+AJ21 -> 64200 | AM21: 0 | AN21: 0 | AO21: =AK21+AM21 -> 0 | AP21: =AL21+AN21 -> 64200 | AQ21: 0 | AR21: 0 | AS21: =AO21+AQ21 -> 0 | AT21: =AP21+AR21 -> 64200 | AU21: 0 | AV21: 21000 | AW21: =AS21+AU21 -> 0 | AX21: =AT21+AV21 -> 85200 | AY21: 0 | AZ21: 0 | BA21: =AW21+AY21 -> 0 | BB21: =AX21+AZ21 -> 85200 | BC21: 0 | BD21: 0 | BE21: =BA21+BC21 -> 0 | BF21: =BB21+BD21 -> 85200
C22: Saldo | D22: =D20-D21 -> 0 | E22: =E21-E20 -> 85200 | F22: =SUM(F20-F21) -> 85200 | G22: =G20-G21 -> 0 | H22: =H21-H20 -> 1200 | I22: =I20-I21 -> 0 | J22: =J21-J20 -> 1200 | K22: =K20-K21 -> 0 | L22: =L21-L20 -> 0 | M22: =M20-M21 -> 0 | N22: =N21-N20 -> 1200 | O22: =O20-O21 -> 0 | P22: =P21-P20 -> 21000 | Q22: =Q20-Q21 -> 0 | R22: =R21-R20 -> 22200 | S22: =S20-S21 -> 0 | T22: =T21-T20 -> 0 | U22: =U20-U21 -> 0 | V22: =V21-V20 -> 22200 | W22: =W20-W21 -> 0 | X22: =X21-X20 -> 0 | Y22: =Y20-Y21 -> 0 | Z22: =Z21-Z20 -> 22200 | AA22: =AA20-AA21 -> 0 | AB22: =AB21-AB20 -> 21000 | AC22: =AC20-AC21 -> 0 | AD22: =AD21-AD20 -> 43200 | AE22: =AE20-AE21 -> 0 | AF22: =AF21-AF20 -> 0 | AG22: =AG20-AG21 -> 0 | AH22: =AH21-AH20 -> 43200 | AI22: =AI20-AI21 -> 0 | AJ22: =AJ21-AJ20 -> 21000 | AK22: =AK20-AK21 -> 0 | AL22: =AL21-AL20 -> 64200 | AM22: =AM20-AM21 -> 0 | AN22: =AN21-AN20 -> 0 | AO22: =AO20-AO21 -> 0 | AP22: =AP21-AP20 -> 64200 | AQ22: =AQ20-AQ21 -> 0 | AR22: =AR21-AR20 -> 0 | AS22: =AS20-AS21 -> 0 | AT22: =AT21-AT20 -> 64200 | AU22: =AU20-AU21 -> 0 | AV22: =AV21-AV20 -> 21000 | AW22: =AW20-AW21 -> 0 | AX22: =AX21-AX20 -> 85200 | AY22: =AY20-AY21 -> 0 | AZ22: =AZ21-AZ20 -> 0 | BA22: =BA20-BA21 -> 0 | BB22: =BB21-BB20 -> 85200 | BC22: =BC20-BC21 -> 0 | BD22: =BD21-BD20 -> 0 | BE22: =BE20-BE21 -> 0 | BF22: =BF21-BF20 -> 85200
A24: 1.4.5 | B24: 176. Honorare Rundbrief | C24: Ist | D24: =G24+K24+O24+S24+W24+AA24+AE24+AI24+AM24+AQ24+AU24+AY24+BC24 -> 0 | E24: =H24+L24+P24+T24+X24+AB24+AF24+AJ24+AN24+AR24+AV24+AZ24+BD24 -> 0 | F24: =D24-E24 -> 0 | I24: =G24 -> 0 | J24: =H24 -> 0 | M24: =I24+K24 -> 0 | N24: =J24+L24 -> 0 | Q24: =M24+O24 -> 0 | R24: =N24+P24 -> 0 | U24: =Q24+S24 -> 0 | V24: =R24+T24 -> 0 | Y24: =U24+W24 -> 0 | Z24: =V24+X24 -> 0 | AC24: =Y24+AA24 -> 0 | AD24: =Z24+AB24 -> 0 | AG24: =AC24+AE24 -> 0 | AH24: =AD24+AF24 -> 0 | AK24: =AG24+AI24 -> 0 | AL24: =AH24+AJ24 -> 0 | AO24: =AK24+AM24 -> 0 | AP24: =AL24+AN24 -> 0 | AS24: =AO24+AQ24 -> 0 | AT24: =AP24+AR24 -> 0 | AW24: =AS24+AU24 -> 0 | AX24: =AT24+AV24 -> 0 | BA24: =AW24+AY24 -> 0 | BB24: =AX24+AZ24 -> 0 | BC24: 0 | BD24: 0 | BE24: =BA24+BC24 -> 0 | BF24: =BB24+BD24 -> 0
C25: Plan | D25: =G25+K25+O25+S25+W25+AA25+AE25+AI25+AM25+AQ25+AU25+AY25+BC25 -> 0 | E25: =H25+L25+P25+T25+X25+AB25+AF25+AJ25+AN25+AR25+AV25+AZ25+BD25 -> 1200 | F25: =D25-E25 -> -1200 | G25: 0 | H25: 0 | I25: =G25 -> 0 | J25: =H25 -> 0 | K25: 0 | L25: 0 | M25: =I25+K25 -> 0 | N25: =J25+L25 -> 0 | O25: 0 | P25: 0 | Q25: =M25+O25 -> 0 | R25: =N25+P25 -> 0 | S25: 0 | T25: 0 | U25: =Q25+S25 -> 0 | V25: =R25+T25 -> 0 | W25: 0 | X25: 0 | Y25: =U25+W25 -> 0 | Z25: =V25+X25 -> 0 | AA25: 0 | AB25: 0 | AC25: =Y25+AA25 -> 0 | AD25: =Z25+AB25 -> 0 | AE25: 0 | AF25: 0 | AG25: =AC25+AE25 -> 0 | AH25: =AD25+AF25 -> 0 | AI25: 0 | AJ25: 0 | AK25: =AG25+AI25 -> 0 | AL25: =AH25+AJ25 -> 0 | AM25: 0 | AN25: 0 | AO25: =AK25+AM25 -> 0 | AP25: =AL25+AN25 -> 0 | AQ25: 0 | AR25: 0 | AS25: =AO25+AQ25 -> 0 | AT25: =AP25+AR25 -> 0 | AU25: 0 | AV25: 0 | AW25: =AS25+AU25 -> 0 | AX25: =AT25+AV25 -> 0 | AY25: 0 | AZ25: 1200 | BA25: =AW25+AY25 -> 0 | BB25: =AX25+AZ25 -> 1200 | BC25: 0 | BD25: 0 | BE25: =BA25+BC25 -> 0 | BF25: =BB25+BD25 -> 1200
C26: Saldo | D26: =D24-D25 -> 0 | E26: =E25-E24 -> 1200 | F26: =SUM(F24-F25) -> 1200 | G26: =G24-G25 -> 0 | H26: =H25-H24 -> 0 | I26: =I24-I25 -> 0 | J26: =J25-J24 -> 0 | K26: =K24-K25 -> 0 | L26: =L25-L24 -> 0 | M26: =M24-M25 -> 0 | N26: =N25-N24 -> 0 | O26: =O24-O25 -> 0 | P26: =P25-P24 -> 0 | Q26: =Q24-Q25 -> 0 | R26: =R25-R24 -> 0 | S26: =S24-S25 -> 0 | T26: =T25-T24 -> 0 | U26: =U24-U25 -> 0 | V26: =V25-V24 -> 0 | W26: =W24-W25 -> 0 | X26: =X25-X24 -> 0 | Y26: =Y24-Y25 -> 0 | Z26: =Z25-Z24 -> 0 | AA26: =AA24-AA25 -> 0 | AB26: =AB25-AB24 -> 0 | AC26: =AC24-AC25 -> 0 | AD26: =AD25-AD24 -> 0 | AE26: =AE24-AE25 -> 0 | AF26: =AF25-AF24 -> 0 | AG26: =AG24-AG25 -> 0 | AH26: =AH25-AH24 -> 0 | AI26: =AI24-AI25 -> 0 | AJ26: =AJ25-AJ24 -> 0 | AK26: =AK24-AK25 -> 0 | AL26: =AL25-AL24 -> 0 | AM26: =AM24-AM25 -> 0 | AN26: =AN25-AN24 -> 0 | AO26: =AO24-AO25 -> 0 | AP26: =AP25-AP24 -> 0 | AQ26: =AQ24-AQ25 -> 0 | AR26: =AR25-AR24 -> 0 | AS26: =AS24-AS25 -> 0 | AT26: =AT25-AT24 -> 0 | AU26: =AU24-AU25 -> 0 | AV26: =AV25-AV24 -> 0 | AW26: =AW24-AW25 -> 0 | AX26: =AX25-AX24 -> 0 | AY26: =AY24-AY25 -> 0 | AZ26: =AZ25-AZ24 -> 1200 | BA26: =BA24-BA25 -> 0 | BB26: =BB25-BB24 -> 1200 | BC26: =BC24-BC25 -> 0 | BD26: =BD25-BD24 -> 0 | BE26: =BE24-BE25 -> 0 | BF26: =BF25-BF24 -> 1200
A28: 1.4.6 | B28: 173. Aktionsmaterial | C28: Ist | D28: =G28+K28+O28+S28+W28+AA28+AE28+AI28+AM28+AQ28+AU28+AY28+BC28 -> 0 | E28: =H28+L28+P28+T28+X28+AB28+AF28+AJ28+AN28+AR28+AV28+AZ28+BD28 -> 0 | F28: =D28-E28 -> 0 | I28: =G28 -> 0 | J28: =H28 -> 0 | M28: =I28+K28 -> 0 | N28: =J28+L28 -> 0 | Q28: =M28+O28 -> 0 | R28: =N28+P28 -> 0 | U28: =Q28+S28 -> 0 | V28: =R28+T28 -> 0 | Y28: =U28+W28 -> 0 | Z28: =V28+X28 -> 0 | AC28: =Y28+AA28 -> 0 | AD28: =Z28+AB28 -> 0 | AG28: =AC28+AE28 -> 0 | AH28: =AD28+AF28 -> 0 | AK28: =AG28+AI28 -> 0 | AL28: =AH28+AJ28 -> 0 | AO28: =AK28+AM28 -> 0 | AP28: =AL28+AN28 -> 0 | AS28: =AO28+AQ28 -> 0 | AT28: =AP28+AR28 -> 0 | AW28: =AS28+AU28 -> 0 | AX28: =AT28+AV28 -> 0 | BA28: =AW28+AY28 -> 0 | BB28: =AX28+AZ28 -> 0 | BC28: 0 | BD28: 0 | BE28: =BA28+BC28 -> 0 | BF28: =BB28+BD28 -> 0
C29: Plan | D29: =G29+K29+O29+S29+W29+AA29+AE29+AI29+AM29+AQ29+AU29+AY29+BC29 -> 0 | E29: =H29+L29+P29+T29+X29+AB29+AF29+AJ29+AN29+AR29+AV29+AZ29+BD29 -> 1000 | F29: =D29-E29 -> -1000 | G29: 0 | H29: 0 | I29: =G29 -> 0 | J29: =H29 -> 0 | K29: 0 | L29: 0 | M29: =I29+K29 -> 0 | N29: =J29+L29 -> 0 | O29: 0 | P29: 0 | Q29: =M29+O29 -> 0 | R29: =N29+P29 -> 0 | S29: 0 | T29: 0 | U29: =Q29+S29 -> 0 | V29: =R29+T29 -> 0 | W29: 0 | X29: 0 | Y29: =U29+W29 -> 0 | Z29: =V29+X29 -> 0 | AA29: 0 | AB29: 0 | AC29: =Y29+AA29 -> 0 | AD29: =Z29+AB29 -> 0 | AE29: 0 | AF29: 0 | AG29: =AC29+AE29 -> 0 | AH29: =AD29+AF29 -> 0 | AI29: 0 | AJ29: 0 | AK29: =AG29+AI29 -> 0 | AL29: =AH29+AJ29 -> 0 | AM29: 0 | AN29: 0 | AO29: =AK29+AM29 -> 0 | AP29: =AL29+AN29 -> 0 | AQ29: 0 | AR29: 0 | AS29: =AO29+AQ29 -> 0 | AT29: =AP29+AR29 -> 0 | AU29: 0 | AV29: 0 | AW29: =AS29+AU29 -> 0 | AX29: =AT29+AV29 -> 0 | AY29: 0 | AZ29: 1000 | BA29: =AW29+AY29 -> 0 | BB29: =AX29+AZ29 -> 1000 | BC29: 0 | BD29: 0 | BE29: =BA29+BC29 -> 0 | BF29: =BB29+BD29 -> 1000
C30: Saldo | D30: =D28-D29 -> 0 | E30: =E29-E28 -> 1000 | F30: =SUM(F28-F29) -> 1000 | G30: =G28-G29 -> 0 | H30: =H29-H28 -> 0 | I30: =I28-I29 -> 0 | J30: =J29-J28 -> 0 | K30: =K28-K29 -> 0 | L30: =L29-L28 -> 0 | M30: =M28-M29 -> 0 | N30: =N29-N28 -> 0 | O30: =O28-O29 -> 0 | P30: =P29-P28 -> 0 | Q30: =Q28-Q29 -> 0 | R30: =R29-R28 -> 0 | S30: =S28-S29 -> 0 | T30: =T29-T28 -> 0 | U30: =U28-U29 -> 0 | V30: =V29-V28 -> 0 | W30: =W28-W29 -> 0 | X30: =X29-X28 -> 0 | Y30: =Y28-Y29 -> 0 | Z30: =Z29-Z28 -> 0 | AA30: =AA28-AA29 -> 0 | AB30: =AB29-AB28 -> 0 | AC30: =AC28-AC29 -> 0 | AD30: =AD29-AD28 -> 0 | AE30: =AE28-AE29 -> 0 | AF30: =AF29-AF28 -> 0 | AG30: =AG28-AG29 -> 0 | AH30: =AH29-AH28 -> 0 | AI30: =AI28-AI29 -> 0 | AJ30: =AJ29-AJ28 -> 0 | AK30: =AK28-AK29 -> 0 | AL30: =AL29-AL28 -> 0 | AM30: =AM28-AM29 -> 0 | AN30: =AN29-AN28 -> 0 | AO30: =AO28-AO29 -> 0 | AP30: =AP29-AP28 -> 0 | AQ30: =AQ28-AQ29 -> 0 | AR30: =AR29-AR28 -> 0 | AS30: =AS28-AS29 -> 0 | AT30: =AT29-AT28 -> 0 | AU30: =AU28-AU29 -> 0 | AV30: =AV29-AV28 -> 0 | AW30: =AW28-AW29 -> 0 | AX30: =AX29-AX28 -> 0 | AY30: =AY28-AY29 -> 0 | AZ30: =AZ29-AZ28 -> 1000 | BA30: =BA28-BA29 -> 0 | BB30: =BB29-BB28 -> 1000 | BC30: =BC28-BC29 -> 0 | BD30: =BD29-BD28 -> 0 | BE30: =BE28-BE29 -> 0 | BF30: =BF29-BF28 -> 1000
A32: 1.4.7 | B32: Grafik/Layout (MM) | C32: Ist | D32: =G32+K32+O32+S32+W32+AA32+AE32+AI32+AM32+AQ32+AU32+AY32+BC32 -> 0 | E32: =H32+L32+P32+T32+X32+AB32+AF32+AJ32+AN32+AR32+AV32+AZ32+BD32 -> 0 | F32: =D32-E32 -> 0 | I32: =G32 -> 0 | J32: =H32 -> 0 | M32: =I32+K32 -> 0 | N32: =J32+L32 -> 0 | Q32: =M32+O32 -> 0 | R32: =N32+P32 -> 0 | U32: =Q32+S32 -> 0 | V32: =R32+T32 -> 0 | Y32: =U32+W32 -> 0 | Z32: =V32+X32 -> 0 | AC32: =Y32+AA32 -> 0 | AD32: =Z32+AB32 -> 0 | AG32: =AC32+AE32 -> 0 | AH32: =AD32+AF32 -> 0 | AK32: =AG32+AI32 -> 0 | AL32: =AH32+AJ32 -> 0 | AO32: =AK32+AM32 -> 0 | AP32: =AL32+AN32 -> 0 | AS32: =AO32+AQ32 -> 0 | AT32: =AP32+AR32 -> 0 | AW32: =AS32+AU32 -> 0 | AX32: =AT32+AV32 -> 0 | BA32: =AW32+AY32 -> 0 | BB32: =AX32+AZ32 -> 0 | BC32: 0 | BD32: 0 | BE32: =BA32+BC32 -> 0 | BF32: =BB32+BD32 -> 0
C33: Plan | D33: =G33+K33+O33+S33+W33+AA33+AE33+AI33+AM33+AQ33+AU33+AY33+BC33 -> 0 | E33: =H33+L33+P33+T33+X33+AB33+AF33+AJ33+AN33+AR33+AV33+AZ33+BD33 -> 6000 | F33: =D33-E33 -> -6000 | G33: 0 | H33: 0 | I33: =G33 -> 0 | J33: =H33 -> 0 | K33: 0 | L33: 0 | M33: =I33+K33 -> 0 | N33: =J33+L33 -> 0 | O33: 0 | P33: 0 | Q33: =M33+O33 -> 0 | R33: =N33+P33 -> 0 | S33: 0 | T33: 0 | U33: =Q33+S33 -> 0 | V33: =R33+T33 -> 0 | W33: 0 | X33: 0 | Y33: =U33+W33 -> 0 | Z33: =V33+X33 -> 0 | AA33: 0 | AB33: 0 | AC33: =Y33+AA33 -> 0 | AD33: =Z33+AB33 -> 0 | AE33: 0 | AF33: 0 | AG33: =AC33+AE33 -> 0 | AH33: =AD33+AF33 -> 0 | AI33: 0 | AJ33: 0 | AK33: =AG33+AI33 -> 0 | AL33: =AH33+AJ33 -> 0 | AM33: 0 | AN33: 0 | AO33: =AK33+AM33 -> 0 | AP33: =AL33+AN33 -> 0 | AQ33: 0 | AR33: 0 | AS33: =AO33+AQ33 -> 0 | AT33: =AP33+AR33 -> 0 | AU33: 0 | AV33: 0 | AW33: =AS33+AU33 -> 0 | AX33: =AT33+AV33 -> 0 | AY33: 0 | AZ33: 6000 | BA33: =AW33+AY33 -> 0 | BB33: =AX33+AZ33 -> 6000 | BC33: 0 | BD33: 0 | BE33: =BA33+BC33 -> 0 | BF33: =BB33+BD33 -> 6000
C34: Saldo | D34: =D32-D33 -> 0 | E34: =E33-E32 -> 6000 | F34: =SUM(F32-F33) -> 6000 | G34: =G32-G33 -> 0 | H34: =H33-H32 -> 0 | I34: =I32-I33 -> 0 | J34: =J33-J32 -> 0 | K34: =K32-K33 -> 0 | L34: =L33-L32 -> 0 | M34: =M32-M33 -> 0 | N34: =N33-N32 -> 0 | O34: =O32-O33 -> 0 | P34: =P33-P32 -> 0 | Q34: =Q32-Q33 -> 0 | R34: =R33-R32 -> 0 | S34: =S32-S33 -> 0 | T34: =T33-T32 -> 0 | U34: =U32-U33 -> 0 | V34: =V33-V32 -> 0 | W34: =W32-W33 -> 0 | X34: =X33-X32 -> 0 | Y34: =Y32-Y33 -> 0 | Z34: =Z33-Z32 -> 0 | AA34: =AA32-AA33 -> 0 | AB34: =AB33-AB32 -> 0 | AC34: =AC32-AC33 -> 0 | AD34: =AD33-AD32 -> 0 | AE34: =AE32-AE33 -> 0 | AF34: =AF33-AF32 -> 0 | AG34: =AG32-AG33 -> 0 | AH34: =AH33-AH32 -> 0 | AI34: =AI32-AI33 -> 0 | AJ34: =AJ33-AJ32 -> 0 | AK34: =AK32-AK33 -> 0 | AL34: =AL33-AL32 -> 0 | AM34: =AM32-AM33 -> 0 | AN34: =AN33-AN32 -> 0 | AO34: =AO32-AO33 -> 0 | AP34: =AP33-AP32 -> 0 | AQ34: =AQ32-AQ33 -> 0 | AR34: =AR33-AR32 -> 0 | AS34: =AS32-AS33 -> 0 | AT34: =AT33-AT32 -> 0 | AU34: =AU32-AU33 -> 0 | AV34: =AV33-AV32 -> 0 | AW34: =AW32-AW33 -> 0 | AX34: =AX33-AX32 -> 0 | AY34: =AY32-AY33 -> 0 | AZ34: =AZ33-AZ32 -> 6000 | BA34: =BA32-BA33 -> 0 | BB34: =BB33-BB32 -> 6000 | BC34: =BC32-BC33 -> 0 | BD34: =BD33-BD32 -> 0 | BE34: =BE32-BE33 -> 0 | BF34: =BF33-BF32 -> 6000
A36: 1.4.8 | C36: Ist | D36: =G36+K36+O36+S36+W36+AA36+AE36+AI36+AM36+AQ36+AU36+AY36+BC36 -> 0 | E36: =H36+L36+P36+T36+X36+AB36+AF36+AJ36+AN36+AR36+AV36+AZ36+BD36 -> 0 | F36: =D36-E36 -> 0 | I36: =G36 -> 0 | J36: =H36 -> 0 | M36: =I36+K36 -> 0 | N36: =J36+L36 -> 0 | Q36: =M36+O36 -> 0 | R36: =N36+P36 -> 0 | U36: =Q36+S36 -> 0 | V36: =R36+T36 -> 0 | Y36: =U36+W36 -> 0 | Z36: =V36+X36 -> 0 | AC36: =Y36+AA36 -> 0 | AD36: =Z36+AB36 -> 0 | AG36: =AC36+AE36 -> 0 | AH36: =AD36+AF36 -> 0 | AK36: =AG36+AI36 -> 0 | AL36: =AH36+AJ36 -> 0 | AO36: =AK36+AM36 -> 0 | AP36: =AL36+AN36 -> 0 | AS36: =AO36+AQ36 -> 0 | AT36: =AP36+AR36 -> 0 | AW36: =AS36+AU36 -> 0 | AX36: =AT36+AV36 -> 0 | BA36: =AW36+AY36 -> 0 | BB36: =AX36+AZ36 -> 0 | BC36: 0 | BD36: 0 | BE36: =BA36+BC36 -> 0 | BF36: =BB36+BD36 -> 0
C37: Plan | D37: =G37+K37+O37+S37+W37+AA37+AE37+AI37+AM37+AQ37+AU37+AY37+BC37 -> 0 | E37: =H37+L37+P37+T37+X37+AB37+AF37+AJ37+AN37+AR37+AV37+AZ37+BD37 -> 0 | F37: =D37-E37 -> 0 | G37: 0 | H37: 0 | I37: =G37 -> 0 | J37: =H37 -> 0 | K37: 0 | L37: 0 | M37: =I37+K37 -> 0 | N37: =J37+L37 -> 0 | O37: 0 | P37: 0 | Q37: =M37+O37 -> 0 | R37: =N37+P37 -> 0 | S37: 0 | T37: 0 | U37: =Q37+S37 -> 0 | V37: =R37+T37 -> 0 | W37: 0 | X37: 0 | Y37: =U37+W37 -> 0 | Z37: =V37+X37 -> 0 | AA37: 0 | AB37: 0 | AC37: =Y37+AA37 -> 0 | AD37: =Z37+AB37 -> 0 | AE37: 0 | AF37: 0 | AG37: =AC37+AE37 -> 0 | AH37: =AD37+AF37 -> 0 | AI37: 0 | AJ37: 0 | AK37: =AG37+AI37 -> 0 | AL37: =AH37+AJ37 -> 0 | AM37: 0 | AN37: 0 | AO37: =AK37+AM37 -> 0 | AP37: =AL37+AN37 -> 0 | AQ37: 0 | AR37: 0 | AS37: =AO37+AQ37 -> 0 | AT37: =AP37+AR37 -> 0 | AU37: 0 | AV37: 0 | AW37: =AS37+AU37 -> 0 | AX37: =AT37+AV37 -> 0 | AY37: 0 | AZ37: 0 | BA37: =AW37+AY37 -> 0 | BB37: =AX37+AZ37 -> 0 | BC37: 0 | BD37: 0 | BE37: =BA37+BC37 -> 0 | BF37: =BB37+BD37 -> 0
C38: Saldo | D38: =D36-D37 -> 0 | E38: =E37-E36 -> 0 | F38: =SUM(F36-F37) -> 0 | G38: =G36-G37 -> 0 | H38: =H37-H36 -> 0 | I38: =I36-I37 -> 0 | J38: =J37-J36 -> 0 | K38: =K36-K37 -> 0 | L38: =L37-L36 -> 0 | M38: =M36-M37 -> 0 | N38: =N37-N36 -> 0 | O38: =O36-O37 -> 0 | P38: =P37-P36 -> 0 | Q38: =Q36-Q37 -> 0 | R38: =R37-R36 -> 0 | S38: =S36-S37 -> 0 | T38: =T37-T36 -> 0 | U38: =U36-U37 -> 0 | V38: =V37-V36 -> 0 | W38: =W36-W37 -> 0 | X38: =X37-X36 -> 0 | Y38: =Y36-Y37 -> 0 | Z38: =Z37-Z36 -> 0 | AA38: =AA36-AA37 -> 0 | AB38: =AB37-AB36 -> 0 | AC38: =AC36-AC37 -> 0 | AD38: =AD37-AD36 -> 0 | AE38: =AE36-AE37 -> 0 | AF38: =AF37-AF36 -> 0 | AG38: =AG36-AG37 -> 0 | AH38: =AH37-AH36 -> 0 | AI38: =AI36-AI37 -> 0 | AJ38: =AJ37-AJ36 -> 0 | AK38: =AK36-AK37 -> 0 | AL38: =AL37-AL36 -> 0 | AM38: =AM36-AM37 -> 0 | AN38: =AN37-AN36 -> 0 | AO38: =AO36-AO37 -> 0 | AP38: =AP37-AP36 -> 0 | AQ38: =AQ36-AQ37 -> 0 | AR38: =AR37-AR36 -> 0 | AS38: =AS36-AS37 -> 0 | AT38: =AT37-AT36 -> 0 | AU38: =AU36-AU37 -> 0 | AV38: =AV37-AV36 -> 0 | AW38: =AW36-AW37 -> 0 | AX38: =AX37-AX36 -> 0 | AY38: =AY36-AY37 -> 0 | AZ38: =AZ37-AZ36 -> 0 | BA38: =BA36-BA37 -> 0 | BB38: =BB37-BB36 -> 0 | BC38: =BC36-BC37 -> 0 | BD38: =BD37-BD36 -> 0 | BE38: =BE36-BE37 -> 0 | BF38: =BF37-BF36 -> 0
A40: 1.4.9 | C40: Ist | D40: =G40+K40+O40+S40+W40+AA40+AE40+AI40+AM40+AQ40+AU40+AY40+BC40 -> 0 | E40: =H40+L40+P40+T40+X40+AB40+AF40+AJ40+AN40+AR40+AV40+AZ40+BD40 -> 0 | F40: =D40-E40 -> 0 | I40: =G40 -> 0 | J40: =H40 -> 0 | M40: =I40+K40 -> 0 | N40: =J40+L40 -> 0 | Q40: =M40+O40 -> 0 | R40: =N40+P40 -> 0 | U40: =Q40+S40 -> 0 | V40: =R40+T40 -> 0 | Y40: =U40+W40 -> 0 | Z40: =V40+X40 -> 0 | AC40: =Y40+AA40 -> 0 | AD40: =Z40+AB40 -> 0 | AG40: =AC40+AE40 -> 0 | AH40: =AD40+AF40 -> 0 | AK40: =AG40+AI40 -> 0 | AL40: =AH40+AJ40 -> 0 | AO40: =AK40+AM40 -> 0 | AP40: =AL40+AN40 -> 0 | AS40: =AO40+AQ40 -> 0 | AT40: =AP40+AR40 -> 0 | AW40: =AS40+AU40 -> 0 | AX40: =AT40+AV40 -> 0 | BA40: =AW40+AY40 -> 0 | BB40: =AX40+AZ40 -> 0 | BC40: 0 | BD40: 0 | BE40: =BA40+BC40 -> 0 | BF40: =BB40+BD40 -> 0
C41: Plan | D41: =G41+K41+O41+S41+W41+AA41+AE41+AI41+AM41+AQ41+AU41+AY41+BC41 -> 0 | E41: =H41+L41+P41+T41+X41+AB41+AF41+AJ41+AN41+AR41+AV41+AZ41+BD41 -> 0 | F41: =D41-E41 -> 0 | G41: 0 | H41: 0 | I41: =G41 -> 0 | J41: =H41 -> 0 | K41: 0 | L41: 0 | M41: =I41+K41 -> 0 | N41: =J41+L41 -> 0 | O41: 0 | P41: 0 | Q41: =M41+O41 -> 0 | R41: =N41+P41 -> 0 | S41: 0 | T41: 0 | U41: =Q41+S41 -> 0 | V41: =R41+T41 -> 0 | W41: 0 | X41: 0 | Y41: =U41+W41 -> 0 | Z41: =V41+X41 -> 0 | AA41: 0 | AB41: 0 | AC41: =Y41+AA41 -> 0 | AD41: =Z41+AB41 -> 0 | AE41: 0 | AF41: 0 | AG41: =AC41+AE41 -> 0 | AH41: =AD41+AF41 -> 0 | AI41: 0 | AJ41: 0 | AK41: =AG41+AI41 -> 0 | AL41: =AH41+AJ41 -> 0 | AM41: 0 | AN41: 0 | AO41: =AK41+AM41 -> 0 | AP41: =AL41+AN41 -> 0 | AQ41: 0 | AR41: 0 | AS41: =AO41+AQ41 -> 0 | AT41: =AP41+AR41 -> 0 | AU41: 0 | AV41: 0 | AW41: =AS41+AU41 -> 0 | AX41: =AT41+AV41 -> 0 | AY41: 0 | AZ41: 0 | BA41: =AW41+AY41 -> 0 | BB41: =AX41+AZ41 -> 0 | BC41: 0 | BD41: 0 | BE41: =BA41+BC41 -> 0 | BF41: =BB41+BD41 -> 0
C42: Saldo | D42: =D40-D41 -> 0 | E42: =E41-E40 -> 0 | F42: =SUM(F40-F41) -> 0 | G42: =G40-G41 -> 0 | H42: =H41-H40 -> 0 | I42: =I40-I41 -> 0 | J42: =J41-J40 -> 0 | K42: =K40-K41 -> 0 | L42: =L41-L40 -> 0 | M42: =M40-M41 -> 0 | N42: =N41-N40 -> 0 | O42: =O40-O41 -> 0 | P42: =P41-P40 -> 0 | Q42: =Q40-Q41 -> 0 | R42: =R41-R40 -> 0 | S42: =S40-S41 -> 0 | T42: =T41-T40 -> 0 | U42: =U40-U41 -> 0 | V42: =V41-V40 -> 0 | W42: =W40-W41 -> 0 | X42: =X41-X40 -> 0 | Y42: =Y40-Y41 -> 0 | Z42: =Z41-Z40 -> 0 | AA42: =AA40-AA41 -> 0 | AB42: =AB41-AB40 -> 0 | AC42: =AC40-AC41 -> 0 | AD42: =AD41-AD40 -> 0 | AE42: =AE40-AE41 -> 0 | AF42: =AF41-AF40 -> 0 | AG42: =AG40-AG41 -> 0 | AH42: =AH41-AH40 -> 0 | AI42: =AI40-AI41 -> 0 | AJ42: =AJ41-AJ40 -> 0 | AK42: =AK40-AK41 -> 0 | AL42: =AL41-AL40 -> 0 | AM42: =AM40-AM41 -> 0 | AN42: =AN41-AN40 -> 0 | AO42: =AO40-AO41 -> 0 | AP42: =AP41-AP40 -> 0 | AQ42: =AQ40-AQ41 -> 0 | AR42: =AR41-AR40 -> 0 | AS42: =AS40-AS41 -> 0 | AT42: =AT41-AT40 -> 0 | AU42: =AU40-AU41 -> 0 | AV42: =AV41-AV40 -> 0 | AW42: =AW40-AW41 -> 0 | AX42: =AX41-AX40 -> 0 | AY42: =AY40-AY41 -> 0 | AZ42: =AZ41-AZ40 -> 0 | BA42: =BA40-BA41 -> 0 | BB42: =BB41-BB40 -> 0 | BC42: =BC40-BC41 -> 0 | BD42: =BD41-BD40 -> 0 | BE42: =BE40-BE41 -> 0 | BF42: =BF41-BF40 -> 0
S44: 0 | T44: 0 | W44: 0 | X44: 0 | AA44: 0 | AB44: 0

Sheet IntPräs
B1: Inhalt | D1: Jahr | G1: Januar | K1: Februar | O1: März | S1: April | W1: Mai | AA1: Juni | AE1: Juli | AI1: August | AM1: September | AQ1: Oktober | AU1: November | AY1: Dezember | BC1: Überträge etc.
A2: ç | B2: Übersicht | C2: è | G2: Monatswerte | I2: Buchungsstand | K2: Monatswerte | M2: Buchungsstand | O2: Monatswerte | Q2: Buchungsstand | S2: Monatswerte | U2: Buchungsstand | W2: Monatswerte | Y2: Buchungsstand | AA2: Monatswerte | AC2: Buchungsstand | AE2: Monatswerte | AG2: Buchungsstand | AI2: Monatswerte | AK2: Buchungsstand | AM2: Monatswerte | AO2: Buchungsstand | AQ2: Monatswerte | AS2: Buchungsstand | AU2: Monatswerte | AW2: Buchungsstand | AY2: Monatswerte | BA2: Buchungsstand | BE2: Buchungsstand
B3: Liquidität | D3: Einnahmen | E3: Ausgaben | F3: Saldo | G3: Einnahmen | H3: Ausgaben | I3: Einnahmen | J3: Ausgaben | K3: Einnahmen | L3: Ausgaben | M3: Einnahmen | N3: Ausgaben | O3: Einnahmen | P3: Ausgaben | Q3: Einnahmen | R3: Ausgaben | S3: Einnahmen | T3: Ausgaben | U3: Einnahmen | V3: Ausgaben | W3: Einnahmen | X3: Ausgaben | Y3: Einnahmen | Z3: Ausgaben | AA3: Einnahmen | AB3: Ausgaben | AC3: Einnahmen | AD3: Ausgaben | AE3: Einnahmen | AF3: Ausgaben | AG3: Einnahmen | AH3: Ausgaben | AI3: Einnahmen | AJ3: Ausgaben | AK3: Einnahmen | AL3: Ausgaben | AM3: Einnahmen | AN3: Ausgaben | AO3: Einnahmen | AP3: Ausgaben | AQ3: Einnahmen | AR3: Ausgaben | AS3: Einnahmen | AT3: Ausgaben | AU3: Einnahmen | AV3: Ausgaben | AW3: Einnahmen | AX3: Ausgaben | AY3: Einnahmen | AZ3: Ausgaben | BA3: Einnahmen | BB3: Ausgaben | BC3: Einnahmen | BD3: Ausgaben | BE3: Einnahmen | BF3: Ausgaben
A4: 1.5 | B4: Internet Präsenz | C4: Ist | D4: =D8+D12+D16+D20+D24+D28+D32 -> 0 | E4: =E8+E12+E16+E20+E24+E28+E32 -> 0 | F4: =D4-E4 -> 0 | G4: =G8+G12+G16+G20+G24+G28+G32 -> 0 | H4: =H8+H12+H16+H20+H24+H28+H32 -> 0 | I4: 0 | J4: 0 | K4: 0 | L4: =L8+L12+L16+L20+L24+L28+L32 -> 0 | M4: 0 | N4: 0 | O4: 0 | P4: =P8+P12+P16+P20+P24+P28+P32 -> 0 | Q4: 0 | R4: 0 | S4: 0 | T4: 0 | U4: 0 | V4: 0 | W4: 0 | X4: 0 | Y4: 0 | Z4: 0 | AA4: 0 | AB4: 0 | AC4: 0 | AD4: 0 | AE4: 0 | AF4: 0 | AG4: 0 | AH4: 0 | AI4: 0 | AJ4: 0 | AK4: 0 | AL4: 0 | AM4: 0 | AN4: 0 | AO4: 0 | AP4: 0 | AQ4: 0 | AR4: 0 | AS4: 0 | AT4: 0 | AU4: 0 | AV4: 0 | AW4: 0 | AX4: 0 | AY4: 0 | AZ4: 0 | BA4: 0 | BB4: 0 | BC4: =BC8+BC12+BC16+BC20+BC24+BC28+BC32 -> 0 | BD4: 0 | BE4: 0 | BF4: 0
C5: Plan | D5: =D9+D13+D17+D21+D25+D29+D33 -> 0 | E5: =E9+E13+E17+E21+E25+E29+E33 -> 183156.6083 | F5: =D5-E5 -> -183156.6083 | G5: =G9+G13+G17+G21+G25+G29+G33 -> 0 | H5: 12596.38403 | I5: 0 | J5: 12596.38403 | K5: 0 | L5: 12596.38403 | M5: 0 | N5: 25192.76806 | O5: 0 | P5: 12596.38403 | Q5: 0 | R5: 37789.15209 | S5: 0 | T5: 12596.38403 | U5: 0 | V5: 50385.53612 | W5: 0 | X5: 12596.38403 | Y5: 0 | Z5: 62981.92014 | AA5: 0 | AB5: 12596.38403 | AC5: 0 | AD5: 75578.30417 | AE5: 0 | AF5: 12596.38403 | AG5: 0 | AH5: 88174.6882 | AI5: 0 | AJ5: 12596.38403 | AK5: 0 | AL5: 100771.0722 | AM5: 0 | AN5: 12596.38403 | AO5: 0 | AP5: 113367.4563 | AQ5: 0 | AR5: 12596.38403 | AS5: 0 | AT5: 95963.84029 | AU5: 0 | AV5: 12596.38403 | AW5: 0 | AX5: 108560.2243 | AY5: 0 | AZ5: 44596.38403 | BA5: 0 | BB5: 153156.6083 | BC5: 0 | BD5: 0 | BE5: 0 | BF5: 153156.6083
